Workbook

Sheet Project Details
R7: Junction Turning Count
C9: Project Number | F9: 4204-MID
C10: Project Name | F10: Birmingham City Counts 2021
C11: Client | F11: Birmingham City Council
C13: Sites | F13: 1-5
C14: Survey Date | F14: 25/05/2021
C15: Survey Time | F15: 07:00-19:00
C17: Weather | F17: Dry
C19: Observations | F19: No incidents or observations during the survey period.
B25: Tracsis will retain all personal data relating to this project, including all video images, for a period of three months after receipt of this report and all other data files for one year.
B26: If you would like a copy of the personal data or wish for us to retain for a longer period, please do not hesitate to contact us.

Sheet Dashboard
AL1: 0 | BB1: 1 | BC1: 1
AK2: ='Project Details'!F9&" "&'Project Details'!F10 -> 4204-MID Birmingham City Counts 2021 | AN2: 0
AK3: ='Project Details'!R7 -> Junction Turning Count
AH4: ='Project Details'!F14 -> 25/05/2021
Q7: Arm | V7: Location | AA7: Observations
Q9: A | R9: A435 Alcester Road South(N) | V9: Latitude: | X9: 52.43141
Q10: B | R10: B4146 Addison Road | V10: Longitude: | X10: -1.89293
Q11: C | R11: A435 Alcester Road South(S)
Q18: Total Number of Vehicles per Interval
Y28: O-D Movement Matrix | AH28: Road Names
AF30: G
Q31: Percentage of Classed Vehicles
AC33: A | AD33: B | AE33: C
F34: D | G34: E | H34: F | I34: G | AB34: A
Y35: E | AB35: B
Y36: F | AB36: C
Y37: G
B38: D
B39: E
B40: F
B41: G

Sheet Data
A1: site | B1: x,y | C1: lat,lon | N1: time periods | S1: Class | T1: Colour | Y1: Counts for overview Flow diagram, origin and destination ( sheet2) | Z1: Site 1 | AA1: 3663 | AB1: 2911 | AC1: 4662 | AD1: 5608 | AE1: 2685 | AF1: 2429 | AG1: 8081 | AH1: 8143 | AS1: 07:00:00 | AT1: 07:00:00 | AU1: 1 | AV1: 1 | AW1: 1 | AY1: 1 | AZ1: 4 | BB1: 1 | BC1: 1 | BD1: ALL | BE1: counts for arm flow diagram, arm X- arm Y | BF1: A_A | BG1: A_B | BH1: A_C | BI1: B_A | BJ1: B_B | BK1: B_C | BL1: C_A | BM1: C_B | BN1: C_C
A2: Site 1 | B2: 38.816426664590836,838.4228377752006 | C2: 52.42914,-1.90208 | D2: A,55.9228047199,B4122 Vicarage Road,412.939254375,191.69605875000002 | E2: B,142.696051722,A4040 Howard Road,402.12932625,293.309383125 | F2: C,172.694240467,Grove Road,222.68451937499998,386.27476499999995 | G2: D,238.061551083,A4040 Vicarage Road,129.7191375,361.77226125 | N2: 07:00-19:00 | V2: Towards is first column | Z2: Site 2 | AA2: 4393 | AB2: 3685 | AC2: 608 | AD2: 242 | AE2: 2833 | AF2: 3539 | AG2: 2522 | AH2: 2890 | AS2: 07:15:00 | AT2: 07:15:00 | AU2: 1 | AV2: 48 | AX2: Car | AY2: 1 | AZ2: 1 | BD2: A | BF2: 0 | BG2: 969 | BH2: 830 | BI2: 1864 | BJ2: 4 | BK2: 0 | BL2: 58 | BM2: 4600 | BN2: 974 | BO2: 32 | BP2: 0 | BQ2: 1679 | BR2: 1933 | BS2: 4607 | BT2: 1541 | BU2: 0 | BV2: 0 | BW2: 0 | BX2: 0 | BY2: 0 | BZ2: 0 | CA2: 0 | CB2: 0 | CC2: 0 | CD2: 0 | CE2: 0 | CF2: 0 | CG2: 0 | CH2: 0 | CI2: 0 | CJ2: 0 | CK2: 0 | CL2: 0 | CM2: 0 | CN2: 0 | CO2: 0 | CP2: 0 | CQ2: 0 | CR2: 0 | CS2: 0 | CT2: 0 | CU2: 0 | CV2: 0 | CW2: 0 | CX2: 0 | CY2: 0 | CZ2: 0 | DA2: 0 | DB2: 0 | DC2: 0 | DD2: 0 | DE2: 0 | DF2: 0 | DG2: 0 | DH2: 0 | DI2: 0 | DJ2: 0 | DK2: 0 | DL2: 0 | DM2: 0 | DN2: 0 | DO2: 0 | DP2: 0 | DQ2: 0 | DR2: 0 | DS2: 0 | DT2: 0 | DU2: 0 | DV2: 0 | DW2: 0 | DX2: 0 | DY2: 0 | DZ2: 0 | EA2: 0 | EB2: 0 | EC2: 0 | ED2: 0 | EE2: 0
A3: Site 2 | B3: 475.0240426659584,543.3916002288461 | C3: 52.43107,-1.8974 | D3: A,59.6208739886,B4122 Vicarage Road(ENE),353.12431875000004,261.60026062500003 | E3: B,131.035345277,Abbots Road,363.93424687500004,335.10777187499997 | F3: C,236.513831184,B4122 Vicarage Road(WSW),250.7903325,327.18049125 | G3: D,314.370401392,Avenue Road,240.70106625,246.46636125 | N3: 15 | S3: CAR | V3: Away is second column | Z3: Site 3 | AA3: 7667 | AB3: 7604 | AC3: 5800 | AD3: 4896 | AE3: 3607 | AF3: 4574 | AS3: 07:30:00 | AT3: 07:30:00 | AX3: LGV | AY3: 1 | AZ3: 1 | BD3: B
A4: Site 3 | B4: 880.473429331556,333.9574410021305 | C4: 52.43244,-1.89305 | D4: A,357.878903603,A435 Alcester Road South(N),283.94077875,213.315915 | E4: B,177.367565131,A435 Alcester Road South(S),289.70607375,357.44829 | F4: C,270.674036898,Vicarage Road,206.82995812500002,286.102764375 | N4: 4204-MID | V4: For each arm | Z4: Site 4 | AA4: 5325 | AB4: 5781 | AC4: 1512 | AD4: 1421 | AE4: 5992 | AF4: 5627 | AS4: 07:45:00 | AT4: 07:45:00 | AX4: OGV1 | AY4: 1 | AZ4: 1.5 | BD4: C
A5: Site 4 | B5: 891.6582399979234,491.41584688797593 | C5: 52.43141,-1.89293 | D5: A,356.552613148,A435 Alcester Road South(N),278.896145625,232.773785625 | E5: B,91.8279682443,B4146 Addison Road,361.77226125,298.35401625 | F5: C,178.025065989,A435 Alcester Road South(S),287.544088125,363.213585 | N5: Birmingham City Counts 2021 | S5: LGV | Z5: Site 5 | AA5: 5879 | AB5: 6042 | AC5: 4166 | AD5: 4959 | AE5: 5601 | AF5: 5426 | AG5: 5704 | AH5: 4923 | AS5: 08:00:00 | AT5: 08:00:00 | AX5: OGV2 | AY5: 1 | AZ5: 2.3
A6: Site 5 | B6: 914.0278613343835,992.8122741058469 | C6: 52.42813,-1.89269 | D6: A,357.273689006,A435 Alcester Road South(N),287.544088125,211.87459125 | E6: B,101.88865804,A4040 Howard Road East,379.06814625,309.16394437499997 | F6: C,177.483124343,A435 Alcester Road South(S),294.030045,368.97888 | G6: D,277.305759533,A4040 Howard Road,219.08121,285.3821025 | N6: 25/05/2021 | AS6: 08:15:00 | AT6: 08:15:00 | AX6: Bus/Coach | AY6: 1 | AZ6: 2
N7: 600 | O7: <--overview map size | S7: OGV1 | AS7: 08:30:00 | AT7: 08:30:00 | AX7: MC | AY7: 1 | AZ7: 0.4
N8: TRUE | AS8: 08:45:00 | AT8: 08:45:00 | AX8: PC | AY8: 1 | AZ8: 0.2
S9: OGV2 | AS9: 09:00:00 | AT9: 09:00:00 | AY9: 1 | AZ9: 2
AS10: 09:15:00 | AT10: 09:15:00 | AY10: 1
S11: PSV | AS11: 09:30:00 | AT11: 09:30:00 | AY11: 1
AS12: 09:45:00 | AT12: 09:45:00 | AY12: 1
S13: MCL | AS13: 10:00:00 | AT13: 10:00:00 | AY13: 1
AS14: 10:15:00 | AT14: 10:15:00 | AY14: 1
S15: PCL | AS15: 10:30:00 | AT15: 10:30:00 | AY15: 1
AS16: 10:45:00 | AT16: 10:45:00 | AY16: 1
S17: OGV | AS17: 11:00:00 | AT17: 11:00:00
AS18: 11:15:00 | AT18: 11:15:00
S19: MGV2 | AS19: 11:30:00 | AT19: 11:30:00
AS20: 11:45:00 | AT20: 11:45:00
S21: PC | AS21: 12:00:00 | AT21: 12:00:00
AS22: 12:15:00 | AT22: 12:15:00
S23: BUS | AS23: 12:30:00 | AT23: 12:30:00
AS24: 12:45:00 | AT24: 12:45:00
S25: MC | AS25: 13:00:00 | AT25: 13:00:00
AS26: 13:15:00 | AT26: 13:15:00
S27: HGV | AS27: 13:30:00 | AT27: 13:30:00
AS28: 13:45:00 | AT28: 13:45:00
S29: MGV | AS29: 14:00:00 | AT29: 14:00:00
AS30: 14:15:00 | AT30: 14:15:00
S31: LTAX | AS31: 14:30:00 | AT31: 14:30:00
AS32: 14:45:00 | AT32: 14:45:00
S33: CVN | AS33: 15:00:00 | AT33: 15:00:00
AS34: 15:15:00 | AT34: 15:15:00
S35: AGR | AS35: 15:30:00 | AT35: 15:30:00
AS36: 15:45:00 | AT36: 15:45:00
S37: OTH | AS37: 16:00:00 | AT37: 16:00:00
AS38: 16:15:00 | AT38: 16:15:00
S39: PCLRed | AS39: 16:30:00 | AT39: 16:30:00
AS40: 16:45:00 | AT40: 16:45:00
S41: R3 | AS41: 17:00:00 | AT41: 17:00:00
AS42: 17:15:00 | AT42: 17:15:00
S43: R4 | AS43: 17:30:00 | AT43: 17:30:00
AS44: 17:45:00 | AT44: 17:45:00
S45: A5 | AS45: 18:00:00 | AT45: 18:00:00
AS46: 18:15:00 | AT46: 18:15:00
S47: A6 | AS47: 18:30:00 | AT47: 18:30:00
AS48: 18:45:00 | AT48: 18:45:00
S49: PED | AS49: 19:00:00 | AT49: 19:00:00
S51: WCH
S53: MOB
S55: EQU
S57: PWC
S59: PWD
S61: PUSH
S63: ALLPED
S65: PCLBlue
V81: 07:00:00 | W81: 07:15:00
V82: 07:15:00 | W82: 07:30:00
V83: 07:30:00 | W83: 07:45:00
V84: 07:45:00 | W84: 08:00:00
V85: 08:00:00 | W85: 08:15:00
V86: 08:15:00 | W86: 08:30:00
V87: 08:30:00 | W87: 08:45:00
V88: 08:45:00 | W88: 09:00:00
V89: 09:00:00 | W89: 09:15:00
V90: 09:15:00 | W90: 09:30:00
V91: 09:30:00 | W91: 09:45:00
V92: 09:45:00 | W92: 10:00:00
V93: 10:00:00 | W93: 10:15:00
V94: 10:15:00 | W94: 10:30:00
V95: 10:30:00 | W95: 10:45:00
V96: 10:45:00 | W96: 11:00:00
V97: 11:00:00 | W97: 11:15:00
V98: 11:15:00 | W98: 11:30:00
V99: 11:30:00 | W99: 11:45:00 | AA99: 07:00:00 | AB99: 07:15:00 | AC99: 07:30:00 | AD99: 07:45:00 | AE99: 08:00:00 | AF99: 08:15:00 | AG99: 08:30:00 | AH99: 08:45:00 | AI99: 09:00:00 | AJ99: 09:15:00 | AK99: 09:30:00 | AL99: 09:45:00 | AM99: 10:00:00 | AN99: 10:15:00 | AO99: 10:30:00 | AP99: 10:45:00 | AQ99: 11:00:00 | AR99: 11:15:00 | AS99: 11:30:00 | AT99: 11:45:00 | AU99: 12:00:00 | AV99: 12:15:00 | AW99: 12:30:00 | AX99: 12:45:00 | AY99: 13:00:00 | AZ99: 13:15:00 | BA99: 13:30:00 | BB99: 13:45:00 | BC99: 14:00:00 | BD99: 14:15:00 | BE99: 14:30:00 | BF99: 14:45:00 | BG99: 15:00:00 | BH99: 15:15:00 | BI99: 15:30:00 | BJ99: 15:45:00 | BK99: 16:00:00 | BL99: 16:15:00 | BM99: 16:30:00 | BN99: 16:45:00 | BO99: 17:00:00 | BP99: 17:15:00 | BQ99: 17:30:00 | BR99: 17:45:00 | BS99: 18:00:00 | BT99: 18:15:00 | BU99: 18:30:00 | BV99: 18:45:00
A100: ALL | B100: Site 1,38.816426664590836,838.4228377752006,A,21.625,-16.74999999627471,B,19.749999999068677,0.8749999981373549,C,-11.375,17.0,D,-27.5,12.75 | C100: Site 2,475.0240426659584,543.3916002288461,A,10.375000000931323,-4.749999998137355,B,13.5,8.375,C,-7.875000000931323,8.5,D,-8.250000000931323,-7.25 | D100: Site 3,880.473429331556,333.9574410021305,A,-0.75,-13.0,B,0.25,11.999999998137355,C,-14.5,-0.25000000186264515 | E100: Site 4,891.6582399979234,491.41584688797593,A,-1.625,-9.625000001862645,B,12.750000000931323,1.7499999962747097,C,-0.5,13.874999998137355 | F100: Site 5,914.0278613343835,992.8122741058469,A,-0.125,-13.249999998137355,B,15.75,3.625000001862645,C,1.0,14.0,D,-12.125,-1.5000000018626451 | V100: 11:45:00 | W100: 12:00:00 | Y100: Counts for graph on dashboard, volume counts | Z100: Car
V101: 12:00:00 | W101: 12:15:00
V102: 12:15:00 | W102: 12:30:00
V103: 12:30:00 | W103: 12:45:00
V104: 12:45:00 | W104: 13:00:00
V105: 13:00:00 | W105: 13:15:00
V106: 13:15:00 | W106: 13:30:00
V107: 13:30:00 | W107: 13:45:00
V108: 13:45:00 | W108: 14:00:00
V109: 14:00:00 | W109: 14:15:00
V110: 14:15:00 | W110: 14:30:00
V111: 14:30:00 | W111: 14:45:00
V112: 14:45:00 | W112: 15:00:00
V113: 15:00:00 | W113: 15:15:00
V114: 15:15:00 | W114: 15:30:00
V115: 15:30:00 | W115: 15:45:00
V116: 15:45:00 | W116: 16:00:00
V117: 16:00:00 | W117: 16:15:00
V118: 16:15:00 | W118: 16:30:00
V119: 16:30:00 | W119: 16:45:00
V120: 16:45:00 | W120: 17:00:00 | Y120: Counts for pie chart
V121: 17:00:00 | W121: 17:15:00
V122: 17:15:00 | W122: 17:30:00
V123: 17:30:00 | W123: 17:45:00
V124: 17:45:00 | W124: 18:00:00
V125: 18:00:00 | W125: 18:15:00
V126: 18:15:00 | W126: 18:30:00
V127: 18:30:00 | W127: 18:45:00
V128: 18:45:00 | W128: 19:00:00
Z140: 07:00:00 | AA140: 07:15:00 | AB140: 07:30:00 | AC140: 07:45:00 | AD140: 08:00:00 | AE140: 08:15:00 | AF140: 08:30:00 | AG140: 08:45:00 | AH140: 09:00:00 | AI140: 09:15:00 | AJ140: 09:30:00 | AK140: 09:45:00 | AL140: 10:00:00 | AM140: 10:15:00 | AN140: 10:30:00 | AO140: 10:45:00 | AP140: 11:00:00 | AQ140: 11:15:00 | AR140: 11:30:00 | AS140: 11:45:00 | AT140: 12:00:00 | AU140: 12:15:00 | AV140: 12:30:00 | AW140: 12:45:00 | AX140: 13:00:00 | AY140: 13:15:00 | AZ140: 13:30:00 | BA140: 13:45:00 | BB140: 14:00:00 | BC140: 14:15:00 | BD140: 14:30:00 | BE140: 14:45:00 | BF140: 15:00:00 | BG140: 15:15:00 | BH140: 15:30:00 | BI140: 15:45:00 | BJ140: 16:00:00 | BK140: 16:15:00 | BL140: 16:30:00 | BM140: 16:45:00 | BN140: 17:00:00 | BO140: 17:15:00 | BP140: 17:30:00 | BQ140: 17:45:00 | BR140: 18:00:00 | BS140: 18:15:00 | BT140: 18:30:00 | BU140: 18:45:00
Y141: 0 | Z141: 288 | AA141: 408 | AB141: 454 | AC141: 465 | AD141: 432 | AE141: 435 | AF141: 403 | AG141: 383 | AH141: 426 | AI141: 396 | AJ141: 381 | AK141: 369 | AL141: 362 | AM141: 368 | AN141: 368 | AO141: 373 | AP141: 364 | AQ141: 367 | AR141: 363 | AS141: 361 | AT141: 395 | AU141: 369 | AV141: 371 | AW141: 381 | AX141: 387 | AY141: 374 | AZ141: 359 | BA141: 355 | BB141: 406 | BC141: 405 | BD141: 399 | BE141: 397 | BF141: 407 | BG141: 405 | BH141: 395 | BI141: 411 | BJ141: 433 | BK141: 433 | BL141: 451 | BM141: 448 | BN141: 465 | BO141: 452 | BP141: 432 | BQ141: 416 | BR141: 415 | BS141: 444 | BT141: 368 | BU141: 352 | BV141: 0 | BW141: 0 | BX141: 0 | BY141: 0 | BZ141: 0 | CA141: 0 | CB141: 0 | CC141: 0 | CD141: 0 | CE141: 0 | CF141: 0 | CG141: 0 | CH141: 0 | CI141: 0 | CJ141: 0 | CK141: 0 | CL141: 0 | CM141: 0 | CN141: 0 | CO141: 0 | CP141: 0 | CQ141: 0 | CR141: 0 | CS141: 0 | CT141: 0 | CU141: 0 | CV141: 0 | CW141: 0 | CX141: 0 | CY141: 0 | CZ141: 0 | DA141: 0 | DB141: 0 | DC141: 0 | DD141: 0 | DE141: 0 | DF141: 0 | DG141: 0 | DH141: 0 | DI141: 0 | DJ141: 0 | DK141: 0 | DL141: 0 | DM141: 0 | DN141: 0 | DO141: 0 | DP141: 0 | DQ141: 0 | DR141: 0 | DS141: 0 | DT141: 0 | DU141: 0 | DV141: 0 | DW141: 0 | DX141: 0 | DY141: 0 | DZ141: 0 | EA141: 0 | EB141: 0 | EC141: 0 | ED141: 0 | EE141: 0 | EF141: 0 | EG141: 0 | EH141: 0 | EI141: 0 | EJ141: 0 | EK141: 0 | EL141: 0 | EM141: 0 | EN141: 0 | EO141: 0 | EP141: 0 | EQ141: 0 | ER141: 0 | ES141: 0 | ET141: 0 | EU141: 0 | EV141: 0 | EW141: 0 | EX141: 0 | EY141: 0 | EZ141: 0 | FA141: 0 | FB141: 0 | FC141: 0 | FD141: 0 | FE141: 0 | FF141: 0 | FG141: 0 | FH141: 0 | FI141: 0 | FJ141: 0 | FK141: 0 | FL141: 0 | FM141: 0
AS177: =AS176+"00:15:00" -> 0.01041666667
AS178: 0.02083333333
AS179: 0.03125
AS180: 0.04166666667
AS181: 0.05208333333
AS182: 0.0625
AS183: 0.07291666667
AS184: 0.08333333333
AS185: 0.09375
AS186: 0.1041666667
AS187: 0.1145833333
AS188: 0.125
AS189: 0.1354166667
AS190: 0.1458333333
AS191: 0.15625
AS192: 0.1666666667
AS193: 0.1770833333
AS194: 0.1875
AS195: 0.1979166667
AS196: 0.2083333333
AS197: 0.21875
AS198: 0.2291666667
AS199: 0.2395833333
AS200: 0.25
AS201: 0.2604166667
AS202: 0.2708333333
AS203: 0.28125
AS204: 07:00:00
AS205: 07:15:00
AS206: 07:30:00
AS207: 07:45:00
AS208: 08:00:00
AS209: =AS208+"00:15:00" -> 08:15:00
AS210: 08:30:00
AS211: 08:45:00
AS212: 09:00:00
AS213: 09:15:00
AS214: 09:30:00
AS215: 09:45:00
AS216: 10:00:00
AS217: 10:15:00
AS218: 10:30:00
AS219: 10:45:00
AS220: 11:00:00
AS221: 11:15:00
AS222: 11:30:00
AS223: 11:45:00
AS224: 12:00:00
AS225: 12:15:00
AS226: 12:30:00
AS227: 12:45:00
AS228: 13:00:00
AS229: 13:15:00
AS230: 13:30:00
AS231: 13:45:00
AS232: 14:00:00
AS233: 14:15:00
AS234: 14:30:00
AS235: 14:45:00
AS236: 15:00:00
AS237: 15:15:00
AS238: 15:30:00
AS239: 15:45:00
AS240: 16:00:00
AS241: =AS240+"00:15:00" -> 16:15:00
AS242: 16:30:00
AS243: 16:45:00
AS244: 17:00:00
AS245: 17:15:00
AS246: 17:30:00
AS247: 17:45:00
AS248: 18:00:00
AS249: 18:15:00
AS250: 18:30:00
AS251: 18:45:00
AS252: 19:00:00
AS253: 19:15:00
AS254: 19:30:00
AS255: 19:45:00
AS256: 20:00:00
AS257: 20:15:00
AS258: 20:30:00
AS259: 20:45:00
AS260: 21:00:00
AS261: 21:15:00
AS262: 21:30:00
AS263: 21:45:00
AS264: 22:00:00
AS265: 22:15:00
AS266: 22:30:00
AS267: 22:45:00
AS268: 23:00:00
AS269: 23:15:00
... 49 more rows

Sheet Main (hidden)
A1: Required Classes | B1: Vivacity Classes | D1: Interval
A2: Car | B2: CAR | D2: 15 | M2: 1 Click the 'Transfer…' button on the 'Main' worksheet.
A3: LGV | B3: LGV | M3: 2 Select the folder containing the Vivacity CSV files you want to transfer to the template.
A4: OGV1 | B4: OGV1 | M4: 3 For each site drag the relevant CSV across to the site list.
A5: OGV2 | B5: OGV2 | M5: 4 Click the 'Transfer...' button on the form.
A6: PSV | B6: BUS
A7: MC | B7: MC
A8: PC | B8: PC
M10: Click the 'Populate…' button on the Main worksheet to populate the Felicity Comparison sheet with site/arm details from current template

Sheet Felicity Comparison (hidden)
A1: Survey | B1: Date | C1: Site | D1: Camera | E1: Movement | F1: Origin Arm | G1: Destination Arm | H1: Additional counts required? | I1: Comment | J1: Hours Passed | K1: Hours Failed | L1: Minutes Failed (5 minute multiples) | N1: Total Hours
P2: Survey Start | Q2: 07:00:00 | S2: 1
A3: 3786-SCO | B3: 29/05/2019 | C3: 1 | D3: 1 | E3: A-A | F3: A | G3: A | J3: =N3-M3 -> 00:00:00 | K3: 6 | L3: 0 | M3: =TIME(K3,L3,0) -> 06:00:00 | N3: =$Q$4 -> 06:00:00 | P3: Survey End | Q3: 19:00:00 | S3: Origin Arm | T3: Total hours | U3: Passed hours | V3: Failed hours
P4: Survey Duration | Q4: 06:00:00 | S4: A | T4: =SUMIFS($N:$N,$F:$F,S4,$C:$C,S2) -> 0.25 | U4: =SUMIFS($J:$J,$F:$F,S4,$C:$C,S2) -> 0 | V4: =SUMIFS($M:$M,$F:$F,S4,$C:$C,S2) -> 0.25 | W4: =IF(U4+V4=T4,"OK","Check") -> OK
S5: B | T5: =SUMIFS($N:$N,$F:$F,S5,$C:$C,S2) -> 0 | U5: =SUMIFS($J:$J,$F:$F,S5,$C:$C,S2) -> 0 | V5: =SUMIFS($M:$M,$F:$F,S5,$C:$C,S2) -> 0 | W5: =IF(U5+V5=T5,"OK","Check") -> OK
S6: C | T6: =SUMIFS($N:$N,$F:$F,S6,$C:$C,S2) -> 0 | U6: =SUMIFS($J:$J,$F:$F,S6,$C:$C,S2) -> 0 | V6: =SUMIFS($M:$M,$F:$F,S6,$C:$C,S2) -> 0 | W6: =IF(U6+V6=T6,"OK","Check") -> OK
P7: Total | Q7: =SUM(N:N) -> 0.25 | S7: D | T7: =SUMIFS($N:$N,$F:$F,S7,$C:$C,S2) -> 0 | U7: =SUMIFS($J:$J,$F:$F,S7,$C:$C,S2) -> 0 | V7: =SUMIFS($M:$M,$F:$F,S7,$C:$C,S2) -> 0 | W7: =IF(U7+V7=T7,"OK","Check") -> OK
P8: Passed | Q8: =SUM(J:J) -> 0
P9: Failed | Q9: =SUM(M:M) -> 0.25 | S9: 2
P10: Pass Rate | Q10: =Q8/Q7 -> 0 | S10: Origin Arm | T10: Total hours | U10: Passed hours | V10: Failed hours
S11: A | T11: =SUMIFS($N:$N,$F:$F,S11,$C:$C,S9) -> 0 | U11: =SUMIFS($J:$J,$F:$F,S11,$C:$C,S9) -> 0 | V11: =SUMIFS($M:$M,$F:$F,S11,$C:$C,S9) -> 0 | W11: =IF(U11+V11=T11,"OK","Check") -> OK
S12: B | T12: =SUMIFS($N:$N,$F:$F,S12,$C:$C,S9) -> 0 | U12: =SUMIFS($J:$J,$F:$F,S12,$C:$C,S9) -> 0 | V12: =SUMIFS($M:$M,$F:$F,S12,$C:$C,S9) -> 0 | W12: =IF(U12+V12=T12,"OK","Check") -> OK
P13: Site | Q13: Pass Rate | S13: C | T13: =SUMIFS($N:$N,$F:$F,S13,$C:$C,S9) -> 0 | U13: =SUMIFS($J:$J,$F:$F,S13,$C:$C,S9) -> 0 | V13: =SUMIFS($M:$M,$F:$F,S13,$C:$C,S9) -> 0 | W13: =IF(U13+V13=T13,"OK","Check") -> OK
P14: 1 | S14: D | T14: =SUMIFS($N:$N,$F:$F,S14,$C:$C,S9) -> 0 | U14: =SUMIFS($J:$J,$F:$F,S14,$C:$C,S9) -> 0 | V14: =SUMIFS($M:$M,$F:$F,S14,$C:$C,S9) -> 0 | W14: =IF(U14+V14=T14,"OK","Check") -> OK
P15: 2
P16: 3 | S16: 3
P17: 4 | S17: Origin Arm | T17: Total hours | U17: Passed hours | V17: Failed hours
P18: 5 | S18: A | T18: =SUMIFS($N:$N,$F:$F,S18,$C:$C,S16) -> 0 | U18: =SUMIFS($J:$J,$F:$F,S18,$C:$C,S16) -> 0 | V18: =SUMIFS($M:$M,$F:$F,S18,$C:$C,S16) -> 0 | W18: =IF(U18+V18=T18,"OK","Check") -> OK
P19: 6 | S19: B | T19: =SUMIFS($N:$N,$F:$F,S19,$C:$C,S16) -> 0 | U19: =SUMIFS($J:$J,$F:$F,S19,$C:$C,S16) -> 0 | V19: =SUMIFS($M:$M,$F:$F,S19,$C:$C,S16) -> 0 | W19: =IF(U19+V19=T19,"OK","Check") -> OK
P20: 7 | S20: C | T20: =SUMIFS($N:$N,$F:$F,S20,$C:$C,S16) -> 0 | U20: =SUMIFS($J:$J,$F:$F,S20,$C:$C,S16) -> 0 | V20: =SUMIFS($M:$M,$F:$F,S20,$C:$C,S16) -> 0 | W20: =IF(U20+V20=T20,"OK","Check") -> OK
P21: 8 | S21: D | T21: =SUMIFS($N:$N,$F:$F,S21,$C:$C,S16) -> 0 | U21: =SUMIFS($J:$J,$F:$F,S21,$C:$C,S16) -> 0 | V21: =SUMIFS($M:$M,$F:$F,S21,$C:$C,S16) -> 0 | W21: =IF(U21+V21=T21,"OK","Check") -> OK
S23: 4
S24: Origin Arm | T24: Total hours | U24: Passed hours | V24: Failed hours
S25: A | T25: =SUMIFS($N:$N,$F:$F,S25,$C:$C,S23) -> 0 | U25: =SUMIFS($J:$J,$F:$F,S25,$C:$C,S23) -> 0 | V25: =SUMIFS($M:$M,$F:$F,S25,$C:$C,S23) -> 0 | W25: =IF(U25+V25=T25,"OK","Check") -> OK
S26: B | T26: =SUMIFS($N:$N,$F:$F,S26,$C:$C,S23) -> 0 | U26: =SUMIFS($J:$J,$F:$F,S26,$C:$C,S23) -> 0 | V26: =SUMIFS($M:$M,$F:$F,S26,$C:$C,S23) -> 0 | W26: =IF(U26+V26=T26,"OK","Check") -> OK
S27: C | T27: =SUMIFS($N:$N,$F:$F,S27,$C:$C,S23) -> 0 | U27: =SUMIFS($J:$J,$F:$F,S27,$C:$C,S23) -> 0 | V27: =SUMIFS($M:$M,$F:$F,S27,$C:$C,S23) -> 0 | W27: =IF(U27+V27=T27,"OK","Check") -> OK
S28: D | T28: =SUMIFS($N:$N,$F:$F,S28,$C:$C,S23) -> 0 | U28: =SUMIFS($J:$J,$F:$F,S28,$C:$C,S23) -> 0 | V28: =SUMIFS($M:$M,$F:$F,S28,$C:$C,S23) -> 0 | W28: =IF(U28+V28=T28,"OK","Check") -> OK
S30: 5
S31: Origin Arm | T31: Total hours | U31: Passed hours | V31: Failed hours
S32: A | T32: =SUMIFS($N:$N,$F:$F,S32,$C:$C,S30) -> 0 | U32: =SUMIFS($J:$J,$F:$F,S32,$C:$C,S30) -> 0 | V32: =SUMIFS($M:$M,$F:$F,S32,$C:$C,S30) -> 0 | W32: =IF(U32+V32=T32,"OK","Check") -> OK
S33: B | T33: =SUMIFS($N:$N,$F:$F,S33,$C:$C,S30) -> 0 | U33: =SUMIFS($J:$J,$F:$F,S33,$C:$C,S30) -> 0 | V33: =SUMIFS($M:$M,$F:$F,S33,$C:$C,S30) -> 0 | W33: =IF(U33+V33=T33,"OK","Check") -> OK
S34: C | T34: =SUMIFS($N:$N,$F:$F,S34,$C:$C,S30) -> 0 | U34: =SUMIFS($J:$J,$F:$F,S34,$C:$C,S30) -> 0 | V34: =SUMIFS($M:$M,$F:$F,S34,$C:$C,S30) -> 0 | W34: =IF(U34+V34=T34,"OK","Check") -> OK
S36: 6
S37: Origin Arm | T37: Total hours | U37: Passed hours | V37: Failed hours
S38: A | T38: =SUMIFS($N:$N,$F:$F,S38,$C:$C,S36) -> 0 | U38: =SUMIFS($J:$J,$F:$F,S38,$C:$C,S36) -> 0 | V38: =SUMIFS($M:$M,$F:$F,S38,$C:$C,S36) -> 0 | W38: =IF(U38+V38=T38,"OK","Check") -> OK
S39: B | T39: =SUMIFS($N:$N,$F:$F,S39,$C:$C,S36) -> 0 | U39: =SUMIFS($J:$J,$F:$F,S39,$C:$C,S36) -> 0 | V39: =SUMIFS($M:$M,$F:$F,S39,$C:$C,S36) -> 0 | W39: =IF(U39+V39=T39,"OK","Check") -> OK
S40: C | T40: =SUMIFS($N:$N,$F:$F,S40,$C:$C,S36) -> 0 | U40: =SUMIFS($J:$J,$F:$F,S40,$C:$C,S36) -> 0 | V40: =SUMIFS($M:$M,$F:$F,S40,$C:$C,S36) -> 0 | W40: =IF(U40+V40=T40,"OK","Check") -> OK
S42: 7
S43: Origin Arm | T43: Total hours | U43: Passed hours | V43: Failed hours
S44: A | T44: =SUMIFS($N:$N,$F:$F,S44,$C:$C,S42) -> 0 | U44: =SUMIFS($J:$J,$F:$F,S44,$C:$C,S42) -> 0 | V44: =SUMIFS($M:$M,$F:$F,S44,$C:$C,S42) -> 0 | W44: =IF(U44+V44=T44,"OK","Check") -> OK
S45: B | T45: =SUMIFS($N:$N,$F:$F,S45,$C:$C,S42) -> 0 | U45: =SUMIFS($J:$J,$F:$F,S45,$C:$C,S42) -> 0 | V45: =SUMIFS($M:$M,$F:$F,S45,$C:$C,S42) -> 0 | W45: =IF(U45+V45=T45,"OK","Check") -> OK
S46: C | T46: =SUMIFS($N:$N,$F:$F,S46,$C:$C,S42) -> 0 | U46: =SUMIFS($J:$J,$F:$F,S46,$C:$C,S42) -> 0 | V46: =SUMIFS($M:$M,$F:$F,S46,$C:$C,S42) -> 0 | W46: =IF(U46+V46=T46,"OK","Check") -> OK
S48: 8
S49: Origin Arm | T49: Total hours | U49: Passed hours | V49: Failed hours
S50: A | T50: =SUMIFS($N:$N,$F:$F,S50,$C:$C,S48) -> 0 | U50: =SUMIFS($J:$J,$F:$F,S50,$C:$C,S48) -> 0 | V50: =SUMIFS($M:$M,$F:$F,S50,$C:$C,S48) -> 0 | W50: =IF(U50+V50=T50,"OK","Check") -> OK
S51: B | T51: =SUMIFS($N:$N,$F:$F,S51,$C:$C,S48) -> 0 | U51: =SUMIFS($J:$J,$F:$F,S51,$C:$C,S48) -> 0 | V51: =SUMIFS($M:$M,$F:$F,S51,$C:$C,S48) -> 0 | W51: =IF(U51+V51=T51,"OK","Check") -> OK
S52: C | T52: =SUMIFS($N:$N,$F:$F,S52,$C:$C,S48) -> 0 | U52: =SUMIFS($J:$J,$F:$F,S52,$C:$C,S48) -> 0 | V52: =SUMIFS($M:$M,$F:$F,S52,$C:$C,S48) -> 0 | W52: =IF(U52+V52=T52,"OK","Check") -> OK
S53: D | T53: =SUMIFS($N:$N,$F:$F,S53,$C:$C,S48) -> 0 | U53: =SUMIFS($J:$J,$F:$F,S53,$C:$C,S48) -> 0 | V53: =SUMIFS($M:$M,$F:$F,S53,$C:$C,S48) -> 0 | W53: =IF(U53+V53=T53,"OK","Check") -> OK

Sheet Maps
A2: Site 1 | F2: ALL | M2: No relevant observations | AM2: 25
A3: Site 2 | M3: No relevant observations
A4: Site 3 | M4: No relevant observations
A5: Site 4 | M5: No relevant observations
A6: Site 5 | M6: No relevant observations

Sheet Site 1
AL1: ='Project Details'!F9&" "&'Project Details'!F10 -> 4204-MID Birmingham City Counts 2021
AL2: ='Project Details'!R7 -> Junction Turning Count
AL3: ='Project Details'!F14 -> 25/05/2021
AL5: Site 1 - B4122 Vicarage Road / A4040 Howard Road / Grove Road / A4040 Vicarage Road
A8: Origin : | B8: Arm A | C8: B4122 Vicarage Road
B9: Destination : | D9: Arm A | E9: B4122 Vicarage Road | I9: Total | K9: Destination : | M9: Arm B | N9: A4040 Howard Road | R9: Total | T9: Destination : | V9: Arm C | W9: Grove Road | AA9: Total | AC9: Destination : | AE9: Arm D | AF9: A4040 Vicarage Road | AJ9: Total | AL9: Arm Totals
B10: Car | C10: LGV | D10: OGV1 | E10: OGV2 | F10: Bus/Coach | G10: MC | H10: PC | K10: =$B$10 -> Car | L10: =$C$10 -> LGV | M10: =$D$10 -> OGV1 | N10: =$E$10 -> OGV2 | O10: =$F$10 -> Bus/Coach | P10: =$G$10 -> MC | Q10: =$H$10 -> PC | T10: =$B$10 -> Car | U10: =$C$10 -> LGV | V10: =$D$10 -> OGV1 | W10: =$E$10 -> OGV2 | X10: =$F$10 -> Bus/Coach | Y10: =$G$10 -> MC | Z10: =$H$10 -> PC | AC10: =$B$10 -> Car | AD10: =$C$10 -> LGV | AE10: =$D$10 -> OGV1 | AF10: =$E$10 -> OGV2 | AG10: =$F$10 -> Bus/Coach | AH10: =$G$10 -> MC | AI10: =$H$10 -> PC | AL10: Totals
A12: 07:00:00 | B12: 0 | C12: 0 | D12: 0 | E12: 0 | F12: 0 | G12: 0 | H12: 0 | I12: =SUM(B12:H12) -> 0 | K12: 7 | L12: 1 | M12: 0 | N12: 0 | O12: 0 | P12: 0 | Q12: 0 | R12: =SUM(K12:Q12) -> 8 | T12: 7 | U12: 0 | V12: 0 | W12: 0 | X12: 1 | Y12: 1 | Z12: 0 | AA12: =SUM(T12:Z12) -> 9 | AC12: 12 | AD12: 0 | AE12: 2 | AF12: 1 | AG12: 5 | AH12: 0 | AI12: 1 | AJ12: =SUM(AC12:AI12) -> 21 | AL12: =SUM(I12+R12+AA12+AJ12) -> 38
A13: 07:15:00 | B13: 0 | C13: 0 | D13: 0 | E13: 0 | F13: 0 | G13: 0 | H13: 0 | I13: 0 | K13: 17 | L13: 2 | M13: 0 | N13: 0 | O13: 0 | P13: 0 | Q13: 0 | R13: 19 | T13: 6 | U13: 1 | V13: 0 | W13: 0 | X13: 0 | Y13: 0 | Z13: 0 | AA13: 7 | AC13: 19 | AD13: 2 | AE13: 5 | AF13: 0 | AG13: 5 | AH13: 0 | AI13: 1 | AJ13: =SUM(AC13:AI13) -> 32 | AL13: =SUM(I13+R13+AA13+AJ13) -> 58
A14: 07:30:00 | B14: 0 | C14: 0 | D14: 0 | E14: 0 | F14: 0 | G14: 0 | H14: 0 | I14: 0 | K14: 21 | L14: 0 | M14: 0 | N14: 0 | O14: 0 | P14: 0 | Q14: 0 | R14: 21 | T14: 7 | U14: 0 | V14: 0 | W14: 0 | X14: 0 | Y14: 0 | Z14: 0 | AA14: 7 | AC14: 24 | AD14: 3 | AE14: 2 | AF14: 0 | AG14: 4 | AH14: 0 | AI14: 0 | AJ14: =SUM(AC14:AI14) -> 33 | AL14: =SUM(I14+R14+AA14+AJ14) -> 61
A15: 07:45:00 | B15: 0 | C15: 0 | D15: 0 | E15: 0 | F15: 0 | G15: 0 | H15: 0 | I15: 0 | K15: 25 | L15: 1 | M15: 0 | N15: 0 | O15: 0 | P15: 0 | Q15: 0 | R15: 26 | T15: 9 | U15: 2 | V15: 0 | W15: 0 | X15: 0 | Y15: 0 | Z15: 0 | AA15: 11 | AC15: 29 | AD15: 5 | AE15: 0 | AF15: 0 | AG15: 8 | AH15: 0 | AI15: 1 | AJ15: =SUM(AC15:AI15) -> 43 | AL15: =SUM(I15+R15+AA15+AJ15) -> 80
A16: 1 Hr | B16: =SUM(B12:B15) -> 0 | C16: 0 | D16: 0 | E16: 0 | F16: 0 | G16: 0 | H16: 0 | I16: 0 | K16: =SUM(K12:K15) -> 70 | L16: 4 | M16: 0 | N16: 0 | O16: 0 | P16: 0 | Q16: 0 | R16: 74 | T16: =SUM(T12:T15) -> 29 | U16: 3 | V16: 0 | W16: 0 | X16: 1 | Y16: 1 | Z16: 0 | AA16: 34 | AC16: =SUM(AC12:AC15) -> 84 | AD16: 10 | AE16: 9 | AF16: 1 | AG16: 22 | AH16: 0 | AI16: 3 | AJ16: =SUM(AJ12:AJ15) -> 129 | AL16: =SUM(AL12:AL15) -> 237
A17: 08:00:00 | B17: 0 | C17: 0 | D17: 0 | E17: 0 | F17: 0 | G17: 0 | H17: 0 | I17: =SUM(B17:H17) -> 0 | K17: 20 | L17: 0 | M17: 2 | N17: 0 | O17: 1 | P17: 0 | Q17: 0 | R17: =SUM(K17:Q17) -> 23 | T17: 10 | U17: 1 | V17: 1 | W17: 0 | X17: 1 | Y17: 0 | Z17: 0 | AA17: =SUM(T17:Z17) -> 13 | AC17: 28 | AD17: 3 | AE17: 1 | AF17: 0 | AG17: 3 | AH17: 0 | AI17: 0 | AJ17: =SUM(AC17:AI17) -> 35 | AL17: =SUM(I17+R17+AA17+AJ17) -> 71
A18: 08:15:00 | B18: 0 | C18: 0 | D18: 0 | E18: 0 | F18: 0 | G18: 0 | H18: 0 | I18: 0 | K18: 21 | L18: 2 | M18: 1 | N18: 0 | O18: 1 | P18: 0 | Q18: 0 | R18: 25 | T18: 13 | U18: 0 | V18: 1 | W18: 0 | X18: 0 | Y18: 0 | Z18: 0 | AA18: 14 | AC18: 30 | AD18: 0 | AE18: 1 | AF18: 0 | AG18: 4 | AH18: 1 | AI18: 1 | AJ18: =SUM(AC18:AI18) -> 37 | AL18: =SUM(I18+R18+AA18+AJ18) -> 76
A19: 08:30:00 | B19: 0 | C19: 0 | D19: 0 | E19: 0 | F19: 0 | G19: 0 | H19: 0 | I19: 0 | K19: 21 | L19: 1 | M19: 0 | N19: 0 | O19: 0 | P19: 0 | Q19: 0 | R19: 22 | T19: 20 | U19: 0 | V19: 0 | W19: 0 | X19: 0 | Y19: 0 | Z19: 0 | AA19: 20 | AC19: 35 | AD19: 7 | AE19: 1 | AF19: 0 | AG19: 2 | AH19: 1 | AI19: 1 | AJ19: =SUM(AC19:AI19) -> 47 | AL19: =SUM(I19+R19+AA19+AJ19) -> 89
A20: 08:45:00 | B20: 0 | C20: 0 | D20: 0 | E20: 0 | F20: 0 | G20: 0 | H20: 0 | I20: 0 | K20: 16 | L20: 1 | M20: 0 | N20: 0 | O20: 0 | P20: 0 | Q20: 0 | R20: 17 | T20: 13 | U20: 0 | V20: 0 | W20: 0 | X20: 0 | Y20: 0 | Z20: 0 | AA20: 13 | AC20: 29 | AD20: 6 | AE20: 1 | AF20: 0 | AG20: 6 | AH20: 1 | AI20: 1 | AJ20: =SUM(AC20:AI20) -> 44 | AL20: =SUM(I20+R20+AA20+AJ20) -> 74
A21: 1 Hr | B21: =SUM(B17:B20) -> 0 | C21: 0 | D21: 0 | E21: 0 | F21: 0 | G21: 0 | H21: 0 | I21: 0 | K21: =SUM(K17:K20) -> 78 | L21: 4 | M21: 3 | N21: 0 | O21: 2 | P21: 0 | Q21: 0 | R21: 87 | T21: =SUM(T17:T20) -> 56 | U21: 1 | V21: 2 | W21: 0 | X21: 1 | Y21: 0 | Z21: 0 | AA21: 60 | AC21: =SUM(AC17:AC20) -> 122 | AD21: 16 | AE21: 4 | AF21: 0 | AG21: 15 | AH21: 3 | AI21: 3 | AJ21: =SUM(AJ17:AJ20) -> 163 | AL21: =SUM(AL17:AL20) -> 310
A22: 09:00:00 | B22: 0 | C22: 0 | D22: 0 | E22: 0 | F22: 0 | G22: 0 | H22: 0 | I22: =SUM(B22:H22) -> 0 | K22: 18 | L22: 2 | M22: 0 | N22: 0 | O22: 0 | P22: 0 | Q22: 0 | R22: =SUM(K22:Q22) -> 20 | T22: 7 | U22: 2 | V22: 0 | W22: 0 | X22: 0 | Y22: 0 | Z22: 0 | AA22: =SUM(T22:Z22) -> 9 | AC22: 27 | AD22: 4 | AE22: 4 | AF22: 0 | AG22: 6 | AH22: 1 | AI22: 1 | AJ22: =SUM(AC22:AI22) -> 43 | AL22: =SUM(I22+R22+AA22+AJ22) -> 72
A23: 09:15:00 | B23: 0 | C23: 0 | D23: 0 | E23: 0 | F23: 0 | G23: 0 | H23: 0 | I23: 0 | K23: 16 | L23: 2 | M23: 1 | N23: 0 | O23: 0 | P23: 0 | Q23: 0 | R23: 19 | T23: 8 | U23: 1 | V23: 0 | W23: 0 | X23: 0 | Y23: 0 | Z23: 0 | AA23: 9 | AC23: 18 | AD23: 6 | AE23: 0 | AF23: 1 | AG23: 7 | AH23: 0 | AI23: 0 | AJ23: =SUM(AC23:AI23) -> 32 | AL23: =SUM(I23+R23+AA23+AJ23) -> 60
A24: 09:30:00 | B24: 0 | C24: 0 | D24: 0 | E24: 0 | F24: 0 | G24: 0 | H24: 0 | I24: 0 | K24: 17 | L24: 3 | M24: 0 | N24: 0 | O24: 0 | P24: 0 | Q24: 0 | R24: 20 | T24: 11 | U24: 3 | V24: 2 | W24: 0 | X24: 0 | Y24: 0 | Z24: 0 | AA24: 16 | AC24: 27 | AD24: 3 | AE24: 1 | AF24: 0 | AG24: 5 | AH24: 0 | AI24: 0 | AJ24: =SUM(AC24:AI24) -> 36 | AL24: =SUM(I24+R24+AA24+AJ24) -> 72
A25: 09:45:00 | B25: 0 | C25: 0 | D25: 0 | E25: 0 | F25: 0 | G25: 0 | H25: 0 | I25: 0 | K25: 16 | L25: 0 | M25: 1 | N25: 0 | O25: 0 | P25: 0 | Q25: 0 | R25: 17 | T25: 20 | U25: 1 | V25: 0 | W25: 0 | X25: 0 | Y25: 0 | Z25: 0 | AA25: 21 | AC25: 29 | AD25: 4 | AE25: 0 | AF25: 2 | AG25: 2 | AH25: 0 | AI25: 0 | AJ25: =SUM(AC25:AI25) -> 37 | AL25: =SUM(I25+R25+AA25+AJ25) -> 75
A26: 1 Hr | B26: =SUM(B22:B25) -> 0 | C26: 0 | D26: 0 | E26: 0 | F26: 0 | G26: 0 | H26: 0 | I26: 0 | K26: =SUM(K22:K25) -> 67 | L26: 7 | M26: 2 | N26: 0 | O26: 0 | P26: 0 | Q26: 0 | R26: 76 | T26: =SUM(T22:T25) -> 46 | U26: 7 | V26: 2 | W26: 0 | X26: 0 | Y26: 0 | Z26: 0 | AA26: 55 | AC26: =SUM(AC22:AC25) -> 101 | AD26: 17 | AE26: 5 | AF26: 3 | AG26: 20 | AH26: 1 | AI26: 1 | AJ26: =SUM(AJ22:AJ25) -> 148 | AL26: =SUM(AL22:AL25) -> 279
A27: 10:00:00 | B27: 0 | C27: 0 | D27: 0 | E27: 0 | F27: 0 | G27: 0 | H27: 0 | I27: =SUM(B27:H27) -> 0 | K27: 18 | L27: 2 | M27: 0 | N27: 0 | O27: 0 | P27: 0 | Q27: 0 | R27: =SUM(K27:Q27) -> 20 | T27: 12 | U27: 1 | V27: 0 | W27: 0 | X27: 0 | Y27: 0 | Z27: 0 | AA27: =SUM(T27:Z27) -> 13 | AC27: 33 | AD27: 4 | AE27: 1 | AF27: 1 | AG27: 6 | AH27: 0 | AI27: 0 | AJ27: =SUM(AC27:AI27) -> 45 | AL27: =SUM(I27+R27+AA27+AJ27) -> 78
A28: 10:15:00 | B28: 0 | C28: 0 | D28: 0 | E28: 0 | F28: 0 | G28: 0 | H28: 0 | I28: 0 | K28: 26 | L28: 5 | M28: 1 | N28: 0 | O28: 0 | P28: 0 | Q28: 0 | R28: 32 | T28: 12 | U28: 0 | V28: 0 | W28: 0 | X28: 1 | Y28: 0 | Z28: 0 | AA28: 13 | AC28: 25 | AD28: 6 | AE28: 1 | AF28: 0 | AG28: 4 | AH28: 0 | AI28: 0 | AJ28: =SUM(AC28:AI28) -> 36 | AL28: =SUM(I28+R28+AA28+AJ28) -> 81
A29: 10:30:00 | B29: 0 | C29: 0 | D29: 0 | E29: 0 | F29: 0 | G29: 0 | H29: 0 | I29: 0 | K29: 15 | L29: 3 | M29: 0 | N29: 0 | O29: 0 | P29: 0 | Q29: 0 | R29: 18 | T29: 11 | U29: 3 | V29: 0 | W29: 0 | X29: 0 | Y29: 0 | Z29: 0 | AA29: 14 | AC29: 28 | AD29: 5 | AE29: 1 | AF29: 0 | AG29: 3 | AH29: 1 | AI29: 0 | AJ29: =SUM(AC29:AI29) -> 38 | AL29: =SUM(I29+R29+AA29+AJ29) -> 70
A30: 10:45:00 | B30: 0 | C30: 0 | D30: 0 | E30: 0 | F30: 0 | G30: 0 | H30: 0 | I30: 0 | K30: 7 | L30: 3 | M30: 0 | N30: 0 | O30: 0 | P30: 0 | Q30: 0 | R30: 10 | T30: 16 | U30: 3 | V30: 0 | W30: 0 | X30: 0 | Y30: 0 | Z30: 1 | AA30: 20 | AC30: 23 | AD30: 7 | AE30: 1 | AF30: 1 | AG30: 4 | AH30: 0 | AI30: 2 | AJ30: =SUM(AC30:AI30) -> 38 | AL30: =SUM(I30+R30+AA30+AJ30) -> 68
A31: 1 Hr | B31: =SUM(B27:B30) -> 0 | C31: 0 | D31: 0 | E31: 0 | F31: 0 | G31: 0 | H31: 0 | I31: 0 | K31: =SUM(K27:K30) -> 66 | L31: 13 | M31: 1 | N31: 0 | O31: 0 | P31: 0 | Q31: 0 | R31: 80 | T31: =SUM(T27:T30) -> 51 | U31: 7 | V31: 0 | W31: 0 | X31: 1 | Y31: 0 | Z31: 1 | AA31: 60 | AC31: =SUM(AC27:AC30) -> 109 | AD31: 22 | AE31: 4 | AF31: 2 | AG31: 17 | AH31: 1 | AI31: 2 | AJ31: =SUM(AJ27:AJ30) -> 157 | AL31: =SUM(AL27:AL30) -> 297
A32: 11:00:00 | B32: 0 | C32: 0 | D32: 0 | E32: 0 | F32: 0 | G32: 0 | H32: 0 | I32: =SUM(B32:H32) -> 0 | K32: 24 | L32: 3 | M32: 1 | N32: 0 | O32: 0 | P32: 0 | Q32: 0 | R32: =SUM(K32:Q32) -> 28 | T32: 21 | U32: 0 | V32: 0 | W32: 0 | X32: 0 | Y32: 0 | Z32: 0 | AA32: =SUM(T32:Z32) -> 21 | AC32: 25 | AD32: 7 | AE32: 2 | AF32: 0 | AG32: 5 | AH32: 0 | AI32: 0 | AJ32: =SUM(AC32:AI32) -> 39 | AL32: =SUM(I32+R32+AA32+AJ32) -> 88
A33: 11:15:00 | B33: 0 | C33: 0 | D33: 0 | E33: 0 | F33: 0 | G33: 0 | H33: 0 | I33: 0 | K33: 14 | L33: 1 | M33: 0 | N33: 0 | O33: 0 | P33: 0 | Q33: 0 | R33: 15 | T33: 17 | U33: 1 | V33: 1 | W33: 0 | X33: 1 | Y33: 0 | Z33: 0 | AA33: 20 | AC33: 32 | AD33: 4 | AE33: 0 | AF33: 0 | AG33: 3 | AH33: 0 | AI33: 0 | AJ33: =SUM(AC33:AI33) -> 39 | AL33: =SUM(I33+R33+AA33+AJ33) -> 74
A34: 11:30:00 | B34: 0 | C34: 0 | D34: 0 | E34: 0 | F34: 0 | G34: 0 | H34: 0 | I34: 0 | K34: 12 | L34: 2 | M34: 2 | N34: 0 | O34: 0 | P34: 0 | Q34: 0 | R34: 16 | T34: 15 | U34: 0 | V34: 0 | W34: 0 | X34: 0 | Y34: 0 | Z34: 0 | AA34: 15 | AC34: 28 | AD34: 2 | AE34: 0 | AF34: 0 | AG34: 5 | AH34: 0 | AI34: 0 | AJ34: =SUM(AC34:AI34) -> 35 | AL34: =SUM(I34+R34+AA34+AJ34) -> 66
A35: 11:45:00 | B35: 0 | C35: 0 | D35: 0 | E35: 0 | F35: 0 | G35: 0 | H35: 0 | I35: 0 | K35: 17 | L35: 0 | M35: 0 | N35: 0 | O35: 0 | P35: 0 | Q35: 0 | R35: 17 | T35: 11 | U35: 2 | V35: 1 | W35: 0 | X35: 0 | Y35: 0 | Z35: 0 | AA35: 14 | AC35: 35 | AD35: 5 | AE35: 1 | AF35: 0 | AG35: 3 | AH35: 0 | AI35: 1 | AJ35: =SUM(AC35:AI35) -> 45 | AL35: =SUM(I35+R35+AA35+AJ35) -> 76
A36: 1 Hr | B36: =SUM(B32:B35) -> 0 | C36: 0 | D36: 0 | E36: 0 | F36: 0 | G36: 0 | H36: 0 | I36: 0 | K36: =SUM(K32:K35) -> 67 | L36: 6 | M36: 3 | N36: 0 | O36: 0 | P36: 0 | Q36: 0 | R36: 76 | T36: =SUM(T32:T35) -> 64 | U36: 3 | V36: 2 | W36: 0 | X36: 1 | Y36: 0 | Z36: 0 | AA36: 70 | AC36: =SUM(AC32:AC35) -> 120 | AD36: 18 | AE36: 3 | AF36: 0 | AG36: 16 | AH36: 0 | AI36: 1 | AJ36: =SUM(AJ32:AJ35) -> 158 | AL36: =SUM(AL32:AL35) -> 304
A37: 12:00:00 | B37: 0 | C37: 0 | D37: 0 | E37: 0 | F37: 0 | G37: 0 | H37: 0 | I37: =SUM(B37:H37) -> 0 | K37: 16 | L37: 3 | M37: 0 | N37: 0 | O37: 0 | P37: 1 | Q37: 0 | R37: =SUM(K37:Q37) -> 20 | T37: 14 | U37: 1 | V37: 0 | W37: 0 | X37: 0 | Y37: 0 | Z37: 0 | AA37: =SUM(T37:Z37) -> 15 | AC37: 37 | AD37: 3 | AE37: 1 | AF37: 0 | AG37: 4 | AH37: 1 | AI37: 0 | AJ37: =SUM(AC37:AI37) -> 46 | AL37: =SUM(I37+R37+AA37+AJ37) -> 81
A38: 12:15:00 | B38: 0 | C38: 0 | D38: 0 | E38: 0 | F38: 0 | G38: 0 | H38: 0 | I38: 0 | K38: 12 | L38: 3 | M38: 0 | N38: 0 | O38: 0 | P38: 0 | Q38: 0 | R38: 15 | T38: 15 | U38: 2 | V38: 0 | W38: 0 | X38: 2 | Y38: 0 | Z38: 0 | AA38: 19 | AC38: 26 | AD38: 5 | AE38: 0 | AF38: 0 | AG38: 2 | AH38: 0 | AI38: 2 | AJ38: =SUM(AC38:AI38) -> 35 | AL38: =SUM(I38+R38+AA38+AJ38) -> 69
A39: 12:30:00 | B39: 0 | C39: 0 | D39: 0 | E39: 0 | F39: 0 | G39: 0 | H39: 0 | I39: 0 | K39: 19 | L39: 3 | M39: 0 | N39: 0 | O39: 0 | P39: 0 | Q39: 0 | R39: 22 | T39: 18 | U39: 3 | V39: 0 | W39: 0 | X39: 0 | Y39: 0 | Z39: 0 | AA39: 21 | AC39: 38 | AD39: 2 | AE39: 0 | AF39: 0 | AG39: 4 | AH39: 1 | AI39: 0 | AJ39: =SUM(AC39:AI39) -> 45 | AL39: =SUM(I39+R39+AA39+AJ39) -> 88
A40: 12:45:00 | B40: 0 | C40: 0 | D40: 0 | E40: 0 | F40: 0 | G40: 0 | H40: 0 | I40: 0 | K40: 18 | L40: 3 | M40: 2 | N40: 0 | O40: 0 | P40: 0 | Q40: 0 | R40: 23 | T40: 25 | U40: 4 | V40: 0 | W40: 0 | X40: 0 | Y40: 0 | Z40: 0 | AA40: 29 | AC40: 33 | AD40: 3 | AE40: 1 | AF40: 0 | AG40: 4 | AH40: 0 | AI40: 0 | AJ40: =SUM(AC40:AI40) -> 41 | AL40: =SUM(I40+R40+AA40+AJ40) -> 93
A41: 1 Hr | B41: =SUM(B37:B40) -> 0 | C41: 0 | D41: 0 | E41: 0 | F41: 0 | G41: 0 | H41: 0 | I41: 0 | K41: =SUM(K37:K40) -> 65 | L41: 12 | M41: 2 | N41: 0 | O41: 0 | P41: 1 | Q41: 0 | R41: 80 | T41: =SUM(T37:T40) -> 72 | U41: 10 | V41: 0 | W41: 0 | X41: 2 | Y41: 0 | Z41: 0 | AA41: 84 | AC41: =SUM(AC37:AC40) -> 134 | AD41: 13 | AE41: 2 | AF41: 0 | AG41: 14 | AH41: 2 | AI41: 2 | AJ41: =SUM(AJ37:AJ40) -> 167 | AL41: =SUM(AL37:AL40) -> 331
A42: 13:00:00 | B42: 0 | C42: 0 | D42: 0 | E42: 0 | F42: 0 | G42: 0 | H42: 0 | I42: =SUM(B42:H42) -> 0 | K42: 13 | L42: 5 | M42: 0 | N42: 0 | O42: 0 | P42: 0 | Q42: 0 | R42: =SUM(K42:Q42) -> 18 | T42: 25 | U42: 3 | V42: 0 | W42: 0 | X42: 0 | Y42: 0 | Z42: 1 | AA42: =SUM(T42:Z42) -> 29 | AC42: 30 | AD42: 2 | AE42: 0 | AF42: 1 | AG42: 2 | AH42: 0 | AI42: 0 | AJ42: =SUM(AC42:AI42) -> 35 | AL42: =SUM(I42+R42+AA42+AJ42) -> 82
A43: 13:15:00 | B43: 0 | C43: 0 | D43: 0 | E43: 0 | F43: 0 | G43: 0 | H43: 0 | I43: 0 | K43: 16 | L43: 3 | M43: 1 | N43: 0 | O43: 0 | P43: 0 | Q43: 0 | R43: 20 | T43: 22 | U43: 0 | V43: 0 | W43: 0 | X43: 1 | Y43: 0 | Z43: 1 | AA43: 24 | AC43: 25 | AD43: 4 | AE43: 0 | AF43: 1 | AG43: 6 | AH43: 1 | AI43: 0 | AJ43: =SUM(AC43:AI43) -> 37 | AL43: =SUM(I43+R43+AA43+AJ43) -> 81
A44: 13:30:00 | B44: 0 | C44: 0 | D44: 0 | E44: 0 | F44: 0 | G44: 0 | H44: 0 | I44: 0 | K44: 22 | L44: 2 | M44: 0 | N44: 0 | O44: 0 | P44: 0 | Q44: 0 | R44: 24 | T44: 14 | U44: 0 | V44: 0 | W44: 0 | X44: 0 | Y44: 0 | Z44: 0 | AA44: 14 | AC44: 26 | AD44: 5 | AE44: 0 | AF44: 0 | AG44: 2 | AH44: 0 | AI44: 2 | AJ44: =SUM(AC44:AI44) -> 35 | AL44: =SUM(I44+R44+AA44+AJ44) -> 73
A45: 13:45:00 | B45: 0 | C45: 0 | D45: 0 | E45: 0 | F45: 0 | G45: 0 | H45: 0 | I45: 0 | K45: 17 | L45: 3 | M45: 1 | N45: 0 | O45: 0 | P45: 0 | Q45: 0 | R45: 21 | T45: 11 | U45: 2 | V45: 0 | W45: 0 | X45: 0 | Y45: 0 | Z45: 0 | AA45: 13 | AC45: 24 | AD45: 1 | AE45: 0 | AF45: 0 | AG45: 6 | AH45: 0 | AI45: 0 | AJ45: =SUM(AC45:AI45) -> 31 | AL45: =SUM(I45+R45+AA45+AJ45) -> 65
A46: 1 Hr | B46: =SUM(B42:B45) -> 0 | C46: 0 | D46: 0 | E46: 0 | F46: 0 | G46: 0 | H46: 0 | I46: 0 | K46: =SUM(K42:K45) -> 68 | L46: 13 | M46: 2 | N46: 0 | O46: 0 | P46: 0 | Q46: 0 | R46: 83 | T46: =SUM(T42:T45) -> 72 | U46: 5 | V46: 0 | W46: 0 | X46: 1 | Y46: 0 | Z46: 2 | AA46: 80 | AC46: =SUM(AC42:AC45) -> 105 | AD46: 12 | AE46: 0 | AF46: 2 | AG46: 16 | AH46: 1 | AI46: 2 | AJ46: =SUM(AJ42:AJ45) -> 138 | AL46: =SUM(AL42:AL45) -> 301
A47: 14:00:00 | B47: 0 | C47: 0 | D47: 0 | E47: 0 | F47: 0 | G47: 0 | H47: 0 | I47: =SUM(B47:H47) -> 0 | K47: 23 | L47: 5 | M47: 0 | N47: 0 | O47: 0 | P47: 0 | Q47: 0 | R47: =SUM(K47:Q47) -> 28 | T47: 12 | U47: 1 | V47: 0 | W47: 0 | X47: 0 | Y47: 0 | Z47: 0 | AA47: =SUM(T47:Z47) -> 13 | AC47: 29 | AD47: 2 | AE47: 0 | AF47: 0 | AG47: 3 | AH47: 1 | AI47: 1 | AJ47: =SUM(AC47:AI47) -> 36 | AL47: =SUM(I47+R47+AA47+AJ47) -> 77
A48: 14:15:00 | B48: 0 | C48: 0 | D48: 0 | E48: 0 | F48: 0 | G48: 0 | H48: 0 | I48: 0 | K48: 21 | L48: 1 | M48: 0 | N48: 0 | O48: 0 | P48: 0 | Q48: 0 | R48: 22 | T48: 18 | U48: 2 | V48: 0 | W48: 0 | X48: 0 | Y48: 0 | Z48: 0 | AA48: 20 | AC48: 30 | AD48: 4 | AE48: 1 | AF48: 0 | AG48: 4 | AH48: 0 | AI48: 0 | AJ48: =SUM(AC48:AI48) -> 39 | AL48: =SUM(I48+R48+AA48+AJ48) -> 81
A49: 14:30:00 | B49: 0 | C49: 0 | D49: 0 | E49: 0 | F49: 0 | G49: 0 | H49: 0 | I49: 0 | K49: 22 | L49: 2 | M49: 0 | N49: 0 | O49: 0 | P49: 0 | Q49: 0 | R49: 24 | T49: 18 | U49: 1 | V49: 1 | W49: 0 | X49: 0 | Y49: 0 | Z49: 1 | AA49: 21 | AC49: 31 | AD49: 1 | AE49: 0 | AF49: 0 | AG49: 4 | AH49: 0 | AI49: 0 | AJ49: =SUM(AC49:AI49) -> 36 | AL49: =SUM(I49+R49+AA49+AJ49) -> 81
A50: 14:45:00 | B50: 0 | C50: 0 | D50: 0 | E50: 0 | F50: 0 | G50: 0 | H50: 0 | I50: 0 | K50: 15 | L50: 2 | M50: 0 | N50: 0 | O50: 0 | P50: 1 | Q50: 0 | R50: 18 | T50: 19 | U50: 0 | V50: 1 | W50: 0 | X50: 1 | Y50: 0 | Z50: 0 | AA50: 21 | AC50: 32 | AD50: 5 | AE50: 1 | AF50: 0 | AG50: 3 | AH50: 0 | AI50: 3 | AJ50: =SUM(AC50:AI50) -> 44 | AL50: =SUM(I50+R50+AA50+AJ50) -> 83
A51: 1 Hr | B51: =SUM(B47:B50) -> 0 | C51: 0 | D51: 0 | E51: 0 | F51: 0 | G51: 0 | H51: 0 | I51: 0 | K51: =SUM(K47:K50) -> 81 | L51: 10 | M51: 0 | N51: 0 | O51: 0 | P51: 1 | Q51: 0 | R51: 92 | T51: =SUM(T47:T50) -> 67 | U51: 4 | V51: 2 | W51: 0 | X51: 1 | Y51: 0 | Z51: 1 | AA51: 75 | AC51: =SUM(AC47:AC50) -> 122 | AD51: 12 | AE51: 2 | AF51: 0 | AG51: 14 | AH51: 1 | AI51: 4 | AJ51: =SUM(AJ47:AJ50) -> 155 | AL51: =SUM(AL47:AL50) -> 322
A52: 15:00:00 | B52: 0 | C52: 0 | D52: 0 | E52: 0 | F52: 0 | G52: 0 | H52: 0 | I52: =SUM(B52:H52) -> 0 | K52: 12 | L52: 1 | M52: 0 | N52: 0 | O52: 0 | P52: 0 | Q52: 0 | R52: =SUM(K52:Q52) -> 13 | T52: 11 | U52: 1 | V52: 0 | W52: 0 | X52: 1 | Y52: 0 | Z52: 0 | AA52: =SUM(T52:Z52) -> 13 | AC52: 25 | AD52: 4 | AE52: 0 | AF52: 0 | AG52: 2 | AH52: 0 | AI52: 0 | AJ52: =SUM(AC52:AI52) -> 31 | AL52: =SUM(I52+R52+AA52+AJ52) -> 57
A53: 15:15:00 | B53: 0 | C53: 0 | D53: 0 | E53: 0 | F53: 0 | G53: 0 | H53: 0 | I53: 0 | K53: 13 | L53: 1 | M53: 0 | N53: 0 | O53: 0 | P53: 0 | Q53: 0 | R53: 14 | T53: 15 | U53: 3 | V53: 0 | W53: 0 | X53: 0 | Y53: 0 | Z53: 0 | AA53: 18 | AC53: 26 | AD53: 3 | AE53: 0 | AF53: 0 | AG53: 3 | AH53: 1 | AI53: 1 | AJ53: =SUM(AC53:AI53) -> 34 | AL53: =SUM(I53+R53+AA53+AJ53) -> 66
A54: 15:30:00 | B54: 0 | C54: 0 | D54: 0 | E54: 0 | F54: 0 | G54: 0 | H54: 0 | I54: 0 | K54: 21 | L54: 0 | M54: 0 | N54: 0 | O54: 0 | P54: 0 | Q54: 0 | R54: 21 | T54: 19 | U54: 2 | V54: 0 | W54: 0 | X54: 0 | Y54: 0 | Z54: 1 | AA54: 22 | AC54: 24 | AD54: 2 | AE54: 2 | AF54: 0 | AG54: 2 | AH54: 1 | AI54: 0 | AJ54: =SUM(AC54:AI54) -> 31 | AL54: =SUM(I54+R54+AA54+AJ54) -> 74
A55: 15:45:00 | B55: 0 | C55: 0 | D55: 0 | E55: 0 | F55: 0 | G55: 0 | H55: 0 | I55: 0 | K55: 32 | L55: 1 | M55: 0 | N55: 0 | O55: 0 | P55: 0 | Q55: 0 | R55: 33 | T55: 20 | U55: 2 | V55: 0 | W55: 0 | X55: 1 | Y55: 0 | Z55: 0 | AA55: 23 | AC55: 31 | AD55: 1 | AE55: 1 | AF55: 0 | AG55: 5 | AH55: 0 | AI55: 0 | AJ55: =SUM(AC55:AI55) -> 38 | AL55: =SUM(I55+R55+AA55+AJ55) -> 94
A56: 1 Hr | B56: =SUM(B52:B55) -> 0 | C56: 0 | D56: 0 | E56: 0 | F56: 0 | G56: 0 | H56: 0 | I56: 0 | K56: =SUM(K52:K55) -> 78 | L56: 3 | M56: 0 | N56: 0 | O56: 0 | P56: 0 | Q56: 0 | R56: 81 | T56: =SUM(T52:T55) -> 65 | U56: 8 | V56: 0 | W56: 0 | X56: 2 | Y56: 0 | Z56: 1 | AA56: 76 | AC56: =SUM(AC52:AC55) -> 106 | AD56: 10 | AE56: 3 | AF56: 0 | AG56: 12 | AH56: 2 | AI56: 1 | AJ56: =SUM(AJ52:AJ55) -> 134 | AL56: =SUM(AL52:AL55) -> 291
A57: 16:00:00 | B57: 0 | C57: 0 | D57: 0 | E57: 0 | F57: 0 | G57: 0 | H57: 0 | I57: =SUM(B57:H57) -> 0 | K57: 28 | L57: 6 | M57: 0 | N57: 0 | O57: 0 | P57: 1 | Q57: 0 | R57: =SUM(K57:Q57) -> 35 | T57: 21 | U57: 2 | V57: 0 | W57: 0 | X57: 0 | Y57: 0 | Z57: 0 | AA57: =SUM(T57:Z57) -> 23 | AC57: 34 | AD57: 3 | AE57: 0 | AF57: 0 | AG57: 5 | AH57: 1 | AI57: 3 | AJ57: =SUM(AC57:AI57) -> 46 | AL57: =SUM(I57+R57+AA57+AJ57) -> 104
A58: 16:15:00 | B58: 0 | C58: 0 | D58: 0 | E58: 0 | F58: 0 | G58: 0 | H58: 0 | I58: 0 | K58: 16 | L58: 1 | M58: 0 | N58: 0 | O58: 0 | P58: 1 | Q58: 0 | R58: 18 | T58: 16 | U58: 1 | V58: 1 | W58: 0 | X58: 0 | Y58: 0 | Z58: 0 | AA58: 18 | AC58: 21 | AD58: 1 | AE58: 0 | AF58: 0 | AG58: 3 | AH58: 1 | AI58: 0 | AJ58: =SUM(AC58:AI58) -> 26 | AL58: =SUM(I58+R58+AA58+AJ58) -> 62
A59: 16:30:00 | B59: 0 | C59: 0 | D59: 0 | E59: 0 | F59: 0 | G59: 0 | H59: 0 | I59: 0 | K59: 20 | L59: 2 | M59: 0 | N59: 0 | O59: 0 | P59: 0 | Q59: 0 | R59: 22 | T59: 19 | U59: 1 | V59: 0 | W59: 0 | X59: 0 | Y59: 0 | Z59: 0 | AA59: 20 | AC59: 36 | AD59: 4 | AE59: 1 | AF59: 0 | AG59: 6 | AH59: 1 | AI59: 0 | AJ59: =SUM(AC59:AI59) -> 48 | AL59: =SUM(I59+R59+AA59+AJ59) -> 90
A60: 16:45:00 | B60: 0 | C60: 0 | D60: 0 | E60: 0 | F60: 0 | G60: 0 | H60: 0 | I60: 0 | K60: 18 | L60: 2 | M60: 0 | N60: 0 | O60: 0 | P60: 0 | Q60: 0 | R60: 20 | T60: 26 | U60: 0 | V60: 0 | W60: 0 | X60: 0 | Y60: 0 | Z60: 0 | AA60: 26 | AC60: 36 | AD60: 6 | AE60: 1 | AF60: 0 | AG60: 1 | AH60: 0 | AI60: 2 | AJ60: =SUM(AC60:AI60) -> 46 | AL60: =SUM(I60+R60+AA60+AJ60) -> 92
A61: 1 Hr | B61: =SUM(B57:B60) -> 0 | C61: 0 | D61: 0 | E61: 0 | F61: 0 | G61: 0 | H61: 0 | I61: 0 | K61: =SUM(K57:K60) -> 82 | L61: 11 | M61: 0 | N61: 0 | O61: 0 | P61: 2 | Q61: 0 | R61: 95 | T61: =SUM(T57:T60) -> 82 | U61: 4 | V61: 1 | W61: 0 | X61: 0 | Y61: 0 | Z61: 0 | AA61: 87 | AC61: =SUM(AC57:AC60) -> 127 | AD61: 14 | AE61: 2 | AF61: 0 | AG61: 15 | AH61: 3 | AI61: 5 | AJ61: =SUM(AJ57:AJ60) -> 166 | AL61: =SUM(AL57:AL60) -> 348
A62: 17:00:00 | B62: 0 | C62: 0 | D62: 0 | E62: 0 | F62: 0 | G62: 0 | H62: 0 | I62: =SUM(B62:H62) -> 0 | K62: 23 | L62: 2 | M62: 0 | N62: 0 | O62: 0 | P62: 0 | Q62: 0 | R62: =SUM(K62:Q62) -> 25 | T62: 15 | U62: 2 | V62: 0 | W62: 0 | X62: 0 | Y62: 0 | Z62: 0 | AA62: =SUM(T62:Z62) -> 17 | AC62: 34 | AD62: 6 | AE62: 0 | AF62: 0 | AG62: 5 | AH62: 0 | AI62: 0 | AJ62: =SUM(AC62:AI62) -> 45 | AL62: =SUM(I62+R62+AA62+AJ62) -> 87
A63: 17:15:00 | B63: 0 | C63: 0 | D63: 0 | E63: 0 | F63: 0 | G63: 0 | H63: 0 | I63: 0 | K63: 20 | L63: 0 | M63: 0 | N63: 0 | O63: 0 | P63: 0 | Q63: 0 | R63: 20 | T63: 18 | U63: 3 | V63: 0 | W63: 0 | X63: 0 | Y63: 0 | Z63: 0 | AA63: 21 | AC63: 32 | AD63: 3 | AE63: 0 | AF63: 0 | AG63: 0 | AH63: 0 | AI63: 0 | AJ63: =SUM(AC63:AI63) -> 35 | AL63: =SUM(I63+R63+AA63+AJ63) -> 76
A64: 17:30:00 | B64: 0 | C64: 0 | D64: 0 | E64: 0 | F64: 0 | G64: 0 | H64: 0 | I64: 0 | K64: 22 | L64: 1 | M64: 0 | N64: 0 | O64: 0 | P64: 0 | Q64: 0 | R64: 23 | T64: 13 | U64: 0 | V64: 0 | W64: 0 | X64: 0 | Y64: 1 | Z64: 2 | AA64: 16 | AC64: 35 | AD64: 3 | AE64: 1 | AF64: 0 | AG64: 6 | AH64: 0 | AI64: 3 | AJ64: =SUM(AC64:AI64) -> 48 | AL64: =SUM(I64+R64+AA64+AJ64) -> 87
A65: 17:45:00 | B65: 0 | C65: 0 | D65: 0 | E65: 0 | F65: 0 | G65: 0 | H65: 0 | I65: 0 | K65: 18 | L65: 0 | M65: 0 | N65: 0 | O65: 0 | P65: 0 | Q65: 0 | R65: 18 | T65: 13 | U65: 3 | V65: 0 | W65: 0 | X65: 0 | Y65: 0 | Z65: 0 | AA65: 16 | AC65: 46 | AD65: 1 | AE65: 0 | AF65: 0 | AG65: 4 | AH65: 0 | AI65: 3 | AJ65: =SUM(AC65:AI65) -> 54 | AL65: =SUM(I65+R65+AA65+AJ65) -> 88
A66: 1 Hr | B66: =SUM(B62:B65) -> 0 | C66: 0 | D66: 0 | E66: 0 | F66: 0 | G66: 0 | H66: 0 | I66: 0 | K66: =SUM(K62:K65) -> 83 | L66: 3 | M66: 0 | N66: 0 | O66: 0 | P66: 0 | Q66: 0 | R66: 86 | T66: =SUM(T62:T65) -> 59 | U66: 8 | V66: 0 | W66: 0 | X66: 0 | Y66: 1 | Z66: 2 | AA66: 70 | AC66: =SUM(AC62:AC65) -> 147 | AD66: 13 | AE66: 1 | AF66: 0 | AG66: 15 | AH66: 0 | AI66: 6 | AJ66: =SUM(AJ62:AJ65) -> 182 | AL66: =SUM(AL62:AL65) -> 338
A67: 18:00:00 | B67: 0 | C67: 0 | D67: 0 | E67: 0 | F67: 0 | G67: 0 | H67: 0 | I67: =SUM(B67:H67) -> 0 | K67: 9 | L67: 0 | M67: 0 | N67: 0 | O67: 0 | P67: 0 | Q67: 0 | R67: =SUM(K67:Q67) -> 9 | T67: 15 | U67: 0 | V67: 0 | W67: 0 | X67: 0 | Y67: 0 | Z67: 0 | AA67: =SUM(T67:Z67) -> 15 | AC67: 30 | AD67: 4 | AE67: 0 | AF67: 0 | AG67: 1 | AH67: 0 | AI67: 1 | AJ67: =SUM(AC67:AI67) -> 36 | AL67: =SUM(I67+R67+AA67+AJ67) -> 60
A68: 18:15:00 | B68: 0 | C68: 0 | D68: 0 | E68: 0 | F68: 0 | G68: 0 | H68: 0 | I68: 0 | K68: 17 | L68: 0 | M68: 0 | N68: 0 | O68: 0 | P68: 0 | Q68: 0 | R68: 17 | T68: 27 | U68: 1 | V68: 0 | W68: 0 | X68: 0 | Y68: 0 | Z68: 0 | AA68: 28 | AC68: 48 | AD68: 3 | AE68: 0 | AF68: 0 | AG68: 7 | AH68: 0 | AI68: 0 | AJ68: =SUM(AC68:AI68) -> 58 | AL68: =SUM(I68+R68+AA68+AJ68) -> 103
A69: 18:30:00 | B69: 0 | C69: 0 | D69: 0 | E69: 0 | F69: 0 | G69: 0 | H69: 0 | I69: 0 | K69: 11 | L69: 1 | M69: 0 | N69: 0 | O69: 0 | P69: 0 | Q69: 0 | R69: 12 | T69: 15 | U69: 1 | V69: 0 | W69: 0 | X69: 0 | Y69: 0 | Z69: 0 | AA69: 16 | AC69: 26 | AD69: 1 | AE69: 0 | AF69: 0 | AG69: 3 | AH69: 2 | AI69: 1 | AJ69: =SUM(AC69:AI69) -> 33 | AL69: =SUM(I69+R69+AA69+AJ69) -> 61
A70: 18:45:00 | B70: 0 | C70: 0 | D70: 0 | E70: 0 | F70: 0 | G70: 0 | H70: 0 | I70: 0 | K70: 19 | L70: 2 | M70: 0 | N70: 0 | O70: 0 | P70: 0 | Q70: 0 | R70: 21 | T70: 19 | U70: 1 | V70: 0 | W70: 0 | X70: 0 | Y70: 0 | Z70: 0 | AA70: 20 | AC70: 35 | AD70: 0 | AE70: 0 | AF70: 0 | AG70: 2 | AH70: 0 | AI70: 3 | AJ70: =SUM(AC70:AI70) -> 40 | AL70: =SUM(I70+R70+AA70+AJ70) -> 81
A71: 1 Hr | B71: =SUM(B67:B70) -> 0 | C71: 0 | D71: 0 | E71: 0 | F71: 0 | G71: 0 | H71: 0 | I71: 0 | K71: =SUM(K67:K70) -> 56 | L71: 3 | M71: 0 | N71: 0 | O71: 0 | P71: 0 | Q71: 0 | R71: 59 | T71: =SUM(T67:T70) -> 76 | U71: 3 | V71: 0 | W71: 0 | X71: 0 | Y71: 0 | Z71: 0 | AA71: 79 | AC71: =SUM(AC67:AC70) -> 139 | AD71: 8 | AE71: 0 | AF71: 0 | AG71: 13 | AH71: 2 | AI71: 5 | AJ71: =SUM(AJ67:AJ70) -> 167 | AL71: =SUM(AL67:AL70) -> 305
B72: 0 | C72: 0 | D72: 0 | E72: 0 | F72: 0
A73: Total | B73: =SUM(B71+B66+B61+B56+B51+B46+B41+B36+B31+B26+B21+B16) -> 0 | C73: 0 | D73: 0 | E73: 0 | F73: 0 | G73: 0 | H73: 0 | I73: 0 | K73: =SUM(K71+K66+K61+K56+K51+K46+K41+K36+K31+K26+K21+K16) -> 861 | L73: 89 | M73: 13 | N73: 0 | O73: 2 | P73: 4 | Q73: 0 | R73: 969 | T73: =SUM(T71+T66+T61+T56+T51+T46+T41+T36+T31+T26+T21+T16) -> 739 | U73: 63 | V73: 9 | W73: 0 | X73: 10 | Y73: 2 | Z73: 7 | AA73: 830 | AC73: =SUM(AC71+AC66+AC61+AC56+AC51+AC46+AC41+AC36+AC31+AC26+AC21+AC16) -> 1416 | AD73: 165 | AE73: 35 | AF73: 8 | AG73: 189 | AH73: 16 | AI73: 35 | AJ73: =SUM(AJ71+AJ66+AJ61+AJ56+AJ51+AJ46+AJ41+AJ36+AJ31+AJ26+AJ21+AJ16) -> 1864 | AL73: =SUM(AL71+AL66+AL61+AL56+AL51+AL46+AL41+AL36+AL31+AL26+AL21+AL16) -> 3663
A75: Origin : | B75: Arm B | C75: A4040 Howard Road
B76: Destination : | D76: Arm A | E76: B4122 Vicarage Road | I76: Total | K76: Destination : | M76: Arm B | N76: A4040 Howard Road | R76: Total | T76: Destination : | V76: Arm C | W76: Grove Road | AA76: Total | AC76: Destination : | AE76: Arm D | AF76: A4040 Vicarage Road | AJ76: Total | AL76: Arm
B77: =$B$10 -> Car | C77: =$C$10 -> LGV | D77: =$D$10 -> OGV1 | E77: =$E$10 -> OGV2 | F77: =$F$10 -> Bus/Coach | G77: =$G$10 -> MC | H77: =$H$10 -> PC | K77: =$B$10 -> Car | L77: =$C$10 -> LGV | M77: =$D$10 -> OGV1 | N77: =$E$10 -> OGV2 | O77: =$F$10 -> Bus/Coach | P77: =$G$10 -> MC | Q77: =$H$10 -> PC | T77: =$B$10 -> Car | U77: =$C$10 -> LGV | V77: =$D$10 -> OGV1 | W77: =$E$10 -> OGV2 | X77: =$F$10 -> Bus/Coach | Y77: =$G$10 -> MC | Z77: =$H$10 -> PC | AC77: =$B$10 -> Car | AD77: =$C$10 -> LGV | AE77: =$D$10 -> OGV1 | AF77: =$E$10 -> OGV2 | AG77: =$F$10 -> Bus/Coach | AH77: =$G$10 -> MC | AI77: =$H$10 -> PC | AL77: Totals
A79: 07:00:00 | B79: 0 | C79: 0 | D79: 0 | E79: 0 | F79: 0 | G79: 0 | H79: 0 | I79: =SUM(B79:H79) -> 0 | K79: 0 | L79: 0 | M79: 0 | N79: 0 | O79: 0 | P79: 0 | Q79: 0 | R79: =SUM(K79:Q79) -> 0 | T79: 0 | U79: 0 | V79: 0 | W79: 0 | X79: 0 | Y79: 0 | Z79: 0 | AA79: =SUM(T79:Z79) -> 0 | AC79: 68 | AD79: 5 | AE79: 3 | AF79: 0 | AG79: 2 | AH79: 3 | AI79: 0 | AJ79: =SUM(AC79:AI79) -> 81 | AL79: =SUM(I79+R79+AA79+AJ79) -> 81
A80: 07:15:00 | B80: 0 | C80: 0 | D80: 0 | E80: 0 | F80: 0 | G80: 0 | H80: 0 | I80: 0 | K80: 0 | L80: 0 | M80: 0 | N80: 0 | O80: 0 | P80: 0 | Q80: 0 | R80: 0 | T80: 1 | U80: 0 | V80: 0 | W80: 0 | X80: 0 | Y80: 0 | Z80: 0 | AA80: 1 | AC80: 84 | AD80: 16 | AE80: 0 | AF80: 1 | AG80: 0 | AH80: 2 | AI80: 1 | AJ80: =SUM(AC80:AI80) -> 104 | AL80: =SUM(I80+R80+AA80+AJ80) -> 105
A81: 07:30:00 | B81: 0 | C81: 0 | D81: 0 | E81: 0 | F81: 0 | G81: 0 | H81: 0 | I81: 0 | K81: 0 | L81: 0 | M81: 0 | N81: 0 | O81: 0 | P81: 0 | Q81: 0 | R81: 0 | T81: 0 | U81: 0 | V81: 0 | W81: 0 | X81: 0 | Y81: 0 | Z81: 0 | AA81: 0 | AC81: 101 | AD81: 10 | AE81: 0 | AF81: 0 | AG81: 1 | AH81: 1 | AI81: 1 | AJ81: =SUM(AC81:AI81) -> 114 | AL81: =SUM(I81+R81+AA81+AJ81) -> 114
A82: 07:45:00 | B82: 0 | C82: 0 | D82: 0 | E82: 0 | F82: 0 | G82: 0 | H82: 0 | I82: 0 | K82: 0 | L82: 0 | M82: 0 | N82: 0 | O82: 0 | P82: 0 | Q82: 0 | R82: 0 | T82: 1 | U82: 0 | V82: 0 | W82: 0 | X82: 0 | Y82: 0 | Z82: 0 | AA82: 1 | AC82: 99 | AD82: 13 | AE82: 0 | AF82: 0 | AG82: 0 | AH82: 0 | AI82: 0 | AJ82: =SUM(AC82:AI82) -> 112 | AL82: =SUM(I82+R82+AA82+AJ82) -> 113
A83: 1 Hr | B83: =SUM(B79:B82) -> 0 | C83: 0 | D83: 0 | E83: 0 | F83: 0 | G83: 0 | H83: 0 | I83: 0 | K83: =SUM(K79:K82) -> 0 | L83: 0 | M83: 0 | N83: 0 | O83: 0 | P83: 0 | Q83: 0 | R83: 0 | T83: =SUM(T79:T82) -> 2 | U83: 0 | V83: 0 | W83: 0 | X83: 0 | Y83: 0 | Z83: 0 | AA83: 2 | AC83: =SUM(AC79:AC82) -> 352 | AD83: 44 | AE83: 3 | AF83: 1 | AG83: 3 | AH83: 6 | AI83: 2 | AJ83: =SUM(AJ79:AJ82) -> 411 | AL83: =SUM(AL79:AL82) -> 413
A84: 08:00:00 | B84: 0 | C84: 0 | D84: 0 | E84: 0 | F84: 0 | G84: 0 | H84: 0 | I84: =SUM(B84:H84) -> 0 | K84: 0 | L84: 0 | M84: 0 | N84: 0 | O84: 0 | P84: 0 | Q84: 0 | R84: =SUM(K84:Q84) -> 0 | T84: 2 | U84: 0 | V84: 0 | W84: 0 | X84: 0 | Y84: 0 | Z84: 0 | AA84: =SUM(T84:Z84) -> 2 | AC84: 82 | AD84: 12 | AE84: 2 | AF84: 0 | AG84: 0 | AH84: 0 | AI84: 1 | AJ84: =SUM(AC84:AI84) -> 97 | AL84: =SUM(I84+R84+AA84+AJ84) -> 99
A85: 08:15:00 | B85: 0 | C85: 0 | D85: 0 | E85: 0 | F85: 0 | G85: 0 | H85: 0 | I85: 0 | K85: 0 | L85: 0 | M85: 0 | N85: 0 | O85: 0 | P85: 0 | Q85: 0 | R85: 0 | T85: 2 | U85: 0 | V85: 0 | W85: 0 | X85: 0 | Y85: 0 | Z85: 0 | AA85: 2 | AC85: 97 | AD85: 7 | AE85: 1 | AF85: 0 | AG85: 0 | AH85: 0 | AI85: 0 | AJ85: =SUM(AC85:AI85) -> 105 | AL85: =SUM(I85+R85+AA85+AJ85) -> 107
A86: 08:30:00 | B86: 0 | C86: 0 | D86: 0 | E86: 0 | F86: 0 | G86: 0 | H86: 0 | I86: 0 | K86: 0 | L86: 0 | M86: 0 | N86: 0 | O86: 0 | P86: 0 | Q86: 0 | R86: 0 | T86: 0 | U86: 0 | V86: 0 | W86: 0 | X86: 0 | Y86: 0 | Z86: 1 | AA86: 1 | AC86: 80 | AD86: 8 | AE86: 3 | AF86: 1 | AG86: 0 | AH86: 0 | AI86: 0 | AJ86: =SUM(AC86:AI86) -> 92 | AL86: =SUM(I86+R86+AA86+AJ86) -> 93
A87: 08:45:00 | B87: 0 | C87: 0 | D87: 0 | E87: 0 | F87: 0 | G87: 0 | H87: 0 | I87: 0 | K87: 0 | L87: 0 | M87: 0 | N87: 0 | O87: 0 | P87: 0 | Q87: 0 | R87: 0 | T87: 1 | U87: 1 | V87: 0 | W87: 0 | X87: 0 | Y87: 0 | Z87: 0 | AA87: 2 | AC87: 84 | AD87: 9 | AE87: 0 | AF87: 0 | AG87: 0 | AH87: 0 | AI87: 1 | AJ87: =SUM(AC87:AI87) -> 94 | AL87: =SUM(I87+R87+AA87+AJ87) -> 96
A88: 1 Hr | B88: =SUM(B84:B87) -> 0 | C88: 0 | D88: 0 | E88: 0 | F88: 0 | G88: 0 | H88: 0 | I88: 0 | K88: =SUM(K84:K87) -> 0 | L88: 0 | M88: 0 | N88: 0 | O88: 0 | P88: 0 | Q88: 0 | R88: 0 | T88: =SUM(T84:T87) -> 5 | U88: 1 | V88: 0 | W88: 0 | X88: 0 | Y88: 0 | Z88: 1 | AA88: 7 | AC88: =SUM(AC84:AC87) -> 343 | AD88: 36 | AE88: 6 | AF88: 1 | AG88: 0 | AH88: 0 | AI88: 2 | AJ88: =SUM(AJ84:AJ87) -> 388 | AL88: =SUM(AL84:AL87) -> 395
A89: 09:00:00 | B89: 0 | C89: 0 | D89: 0 | E89: 0 | F89: 0 | G89: 0 | H89: 0 | I89: =SUM(B89:H89) -> 0 | K89: 0 | L89: 0 | M89: 0 | N89: 0 | O89: 0 | P89: 0 | Q89: 0 | R89: =SUM(K89:Q89) -> 0 | T89: 1 | U89: 0 | V89: 1 | W89: 0 | X89: 0 | Y89: 0 | Z89: 0 | AA89: =SUM(T89:Z89) -> 2 | AC89: 98 | AD89: 9 | AE89: 2 | AF89: 0 | AG89: 0 | AH89: 0 | AI89: 0 | AJ89: =SUM(AC89:AI89) -> 109 | AL89: =SUM(I89+R89+AA89+AJ89) -> 111
A90: 09:15:00 | B90: 0 | C90: 0 | D90: 0 | E90: 0 | F90: 0 | G90: 0 | H90: 0 | I90: 0 | K90: 0 | L90: 0 | M90: 0 | N90: 0 | O90: 0 | P90: 0 | Q90: 0 | R90: 0 | T90: 2 | U90: 0 | V90: 0 | W90: 0 | X90: 0 | Y90: 0 | Z90: 0 | AA90: 2 | AC90: 84 | AD90: 15 | AE90: 4 | AF90: 0 | AG90: 1 | AH90: 2 | AI90: 0 | AJ90: =SUM(AC90:AI90) -> 106 | AL90: =SUM(I90+R90+AA90+AJ90) -> 108
A91: 09:30:00 | B91: 0 | C91: 0 | D91: 0 | E91: 0 | F91: 0 | G91: 0 | H91: 0 | I91: 0 | K91: 0 | L91: 0 | M91: 0 | N91: 0 | O91: 0 | P91: 0 | Q91: 0 | R91: 0 | T91: 2 | U91: 0 | V91: 1 | W91: 0 | X91: 0 | Y91: 0 | Z91: 0 | AA91: 3 | AC91: 71 | AD91: 17 | AE91: 0 | AF91: 1 | AG91: 1 | AH91: 0 | AI91: 0 | AJ91: =SUM(AC91:AI91) -> 90 | AL91: =SUM(I91+R91+AA91+AJ91) -> 93
A92: 09:45:00 | B92: 0 | C92: 0 | D92: 0 | E92: 0 | F92: 0 | G92: 0 | H92: 0 | I92: 0 | K92: 0 | L92: 0 | M92: 0 | N92: 0 | O92: 0 | P92: 0 | Q92: 0 | R92: 0 | T92: 1 | U92: 0 | V92: 0 | W92: 0 | X92: 0 | Y92: 0 | Z92: 0 | AA92: 1 | AC92: 60 | AD92: 9 | AE92: 2 | AF92: 0 | AG92: 1 | AH92: 0 | AI92: 1 | AJ92: =SUM(AC92:AI92) -> 73 | AL92: =SUM(I92+R92+AA92+AJ92) -> 74
A93: 1 Hr | B93: =SUM(B89:B92) -> 0 | C93: 0 | D93: 0 | E93: 0 | F93: 0 | G93: 0 | H93: 0 | I93: 0 | K93: =SUM(K89:K92) -> 0 | L93: 0 | M93: 0 | N93: 0 | O93: 0 | P93: 0 | Q93: 0 | R93: 0 | T93: =SUM(T89:T92) -> 6 | U93: 0 | V93: 2 | W93: 0 | X93: 0 | Y93: 0 | Z93: 0 | AA93: 8 | AC93: =SUM(AC89:AC92) -> 313 | AD93: 50 | AE93: 8 | AF93: 1 | AG93: 3 | AH93: 2 | AI93: 1 | AJ93: =SUM(AJ89:AJ92) -> 378 | AL93: =SUM(AL89:AL92) -> 386
A94: 10:00:00 | B94: 0 | C94: 0 | D94: 0 | E94: 0 | F94: 0 | G94: 0 | H94: 0 | I94: =SUM(B94:H94) -> 0 | K94: 0 | L94: 0 | M94: 0 | N94: 0 | O94: 0 | P94: 0 | Q94: 0 | R94: =SUM(K94:Q94) -> 0 | T94: 0 | U94: 0 | V94: 0 | W94: 0 | X94: 0 | Y94: 0 | Z94: 0 | AA94: =SUM(T94:Z94) -> 0 | AC94: 82 | AD94: 14 | AE94: 1 | AF94: 0 | AG94: 0 | AH94: 0 | AI94: 2 | AJ94: =SUM(AC94:AI94) -> 99 | AL94: =SUM(I94+R94+AA94+AJ94) -> 99
A95: 10:15:00 | B95: 0 | C95: 0 | D95: 0 | E95: 0 | F95: 0 | G95: 0 | H95: 0 | I95: 0 | K95: 0 | L95: 0 | M95: 0 | N95: 0 | O95: 0 | P95: 0 | Q95: 0 | R95: 0 | T95: 0 | U95: 0 | V95: 0 | W95: 0 | X95: 0 | Y95: 0 | Z95: 0 | AA95: 0 | AC95: 77 | AD95: 9 | AE95: 3 | AF95: 3 | AG95: 0 | AH95: 2 | AI95: 0 | AJ95: =SUM(AC95:AI95) -> 94 | AL95: =SUM(I95+R95+AA95+AJ95) -> 94
A96: 10:30:00 | B96: 0 | C96: 0 | D96: 0 | E96: 0 | F96: 0 | G96: 0 | H96: 0 | I96: 0 | K96: 0 | L96: 0 | M96: 0 | N96: 0 | O96: 0 | P96: 0 | Q96: 0 | R96: 0 | T96: 1 | U96: 1 | V96: 0 | W96: 0 | X96: 0 | Y96: 0 | Z96: 0 | AA96: 2 | AC96: 82 | AD96: 14 | AE96: 2 | AF96: 0 | AG96: 0 | AH96: 1 | AI96: 0 | AJ96: =SUM(AC96:AI96) -> 99 | AL96: =SUM(I96+R96+AA96+AJ96) -> 101
A97: 10:45:00 | B97: 0 | C97: 0 | D97: 0 | E97: 0 | F97: 0 | G97: 0 | H97: 0 | I97: 0 | K97: 0 | L97: 0 | M97: 0 | N97: 0 | O97: 0 | P97: 0 | Q97: 0 | R97: 0 | T97: 1 | U97: 1 | V97: 0 | W97: 0 | X97: 0 | Y97: 0 | Z97: 0 | AA97: 2 | AC97: 76 | AD97: 12 | AE97: 0 | AF97: 0 | AG97: 1 | AH97: 0 | AI97: 1 | AJ97: =SUM(AC97:AI97) -> 90 | AL97: =SUM(I97+R97+AA97+AJ97) -> 92
A98: 1 Hr | B98: =SUM(B94:B97) -> 0 | C98: 0 | D98: 0 | E98: 0 | F98: 0 | G98: 0 | H98: 0 | I98: 0 | K98: =SUM(K94:K97) -> 0 | L98: 0 | M98: 0 | N98: 0 | O98: 0 | P98: 0 | Q98: 0 | R98: 0 | T98: =SUM(T94:T97) -> 2 | U98: 2 | V98: 0 | W98: 0 | X98: 0 | Y98: 0 | Z98: 0 | AA98: 4 | AC98: =SUM(AC94:AC97) -> 317 | AD98: 49 | AE98: 6 | AF98: 3 | AG98: 1 | AH98: 3 | AI98: 3 | AJ98: =SUM(AJ94:AJ97) -> 382 | AL98: =SUM(AL94:AL97) -> 386
A99: 11:00:00 | B99: 0 | C99: 0 | D99: 0 | E99: 0 | F99: 0 | G99: 0 | H99: 0 | I99: =SUM(B99:H99) -> 0 | K99: 0 | L99: 0 | M99: 0 | N99: 0 | O99: 0 | P99: 0 | Q99: 0 | R99: =SUM(K99:Q99) -> 0 | T99: 2 | U99: 0 | V99: 0 | W99: 0 | X99: 0 | Y99: 0 | Z99: 0 | AA99: =SUM(T99:Z99) -> 2 | AC99: 57 | AD99: 15 | AE99: 3 | AF99: 1 | AG99: 0 | AH99: 0 | AI99: 0 | AJ99: =SUM(AC99:AI99) -> 76 | AL99: =SUM(I99+R99+AA99+AJ99) -> 78
A100: 11:15:00 | B100: 0 | C100: 0 | D100: 0 | E100: 0 | F100: 0 | G100: 0 | H100: 0 | I100: 0 | K100: 0 | L100: 0 | M100: 0 | N100: 0 | O100: 0 | P100: 0 | Q100: 0 | R100: 0 | T100: 0 | U100: 0 | V100: 0 | W100: 0 | X100: 0 | Y100: 0 | Z100: 0 | AA100: 0 | AC100: 70 | AD100: 13 | AE100: 2 | AF100: 0 | AG100: 0 | AH100: 0 | AI100: 0 | AJ100: =SUM(AC100:AI100) -> 85 | AL100: =SUM(I100+R100+AA100+AJ100) -> 85
A101: 11:30:00 | B101: 0 | C101: 0 | D101: 0 | E101: 0 | F101: 0 | G101: 0 | H101: 0 | I101: 0 | K101: 0 | L101: 0 | M101: 0 | N101: 0 | O101: 0 | P101: 0 | Q101: 0 | R101: 0 | T101: 2 | U101: 0 | V101: 0 | W101: 0 | X101: 0 | Y101: 0 | Z101: 0 | AA101: 2 | AC101: 62 | AD101: 11 | AE101: 2 | AF101: 0 | AG101: 0 | AH101: 1 | AI101: 0 | AJ101: =SUM(AC101:AI101) -> 76 | AL101: =SUM(I101+R101+AA101+AJ101) -> 78
A102: 11:45:00 | B102: 0 | C102: 0 | D102: 0 | E102: 0 | F102: 0 | G102: 0 | H102: 0 | I102: 0 | K102: 0 | L102: 0 | M102: 0 | N102: 0 | O102: 0 | P102: 0 | Q102: 0 | R102: 0 | T102: 0 | U102: 1 | V102: 0 | W102: 0 | X102: 0 | Y102: 0 | Z102: 0 | AA102: 1 | AC102: 78 | AD102: 14 | AE102: 2 | AF102: 0 | AG102: 0 | AH102: 0 | AI102: 0 | AJ102: =SUM(AC102:AI102) -> 94 | AL102: =SUM(I102+R102+AA102+AJ102) -> 95
A103: 1 Hr | B103: =SUM(B99:B102) -> 0 | C103: 0 | D103: 0 | E103: 0 | F103: 0 | G103: 0 | H103: 0 | I103: 0 | K103: =SUM(K99:K102) -> 0 | L103: 0 | M103: 0 | N103: 0 | O103: 0 | P103: 0 | Q103: 0 | R103: 0 | T103: =SUM(T99:T102) -> 4 | U103: 1 | V103: 0 | W103: 0 | X103: 0 | Y103: 0 | Z103: 0 | AA103: 5 | AC103: =SUM(AC99:AC102) -> 267 | AD103: 53 | AE103: 9 | AF103: 1 | AG103: 0 | AH103: 1 | AI103: 0 | AJ103: =SUM(AJ99:AJ102) -> 331 | AL103: =SUM(AL99:AL102) -> 336
A104: 12:00:00 | B104: 0 | C104: 0 | D104: 0 | E104: 0 | F104: 0 | G104: 0 | H104: 0 | I104: =SUM(B104:H104) -> 0 | K104: 0 | L104: 0 | M104: 0 | N104: 0 | O104: 0 | P104: 0 | Q104: 0 | R104: =SUM(K104:Q104) -> 0 | T104: 1 | U104: 0 | V104: 0 | W104: 0 | X104: 0 | Y104: 0 | Z104: 0 | AA104: =SUM(T104:Z104) -> 1 | AC104: 70 | AD104: 18 | AE104: 3 | AF104: 1 | AG104: 0 | AH104: 0 | AI104: 0 | AJ104: =SUM(AC104:AI104) -> 92 | AL104: =SUM(I104+R104+AA104+AJ104) -> 93
A105: 12:15:00 | B105: 0 | C105: 0 | D105: 0 | E105: 0 | F105: 0 | G105: 0 | H105: 0 | I105: 0 | K105: 0 | L105: 0 | M105: 0 | N105: 0 | O105: 0 | P105: 0 | Q105: 0 | R105: 0 | T105: 0 | U105: 0 | V105: 0 | W105: 0 | X105: 0 | Y105: 0 | Z105: 0 | AA105: 0 | AC105: 70 | AD105: 11 | AE105: 1 | AF105: 0 | AG105: 0 | AH105: 0 | AI105: 0 | AJ105: =SUM(AC105:AI105) -> 82 | AL105: =SUM(I105+R105+AA105+AJ105) -> 82
A106: 12:30:00 | B106: 0 | C106: 0 | D106: 0 | E106: 0 | F106: 0 | G106: 0 | H106: 0 | I106: 0 | K106: 0 | L106: 0 | M106: 0 | N106: 0 | O106: 0 | P106: 0 | Q106: 0 | R106: 0 | T106: 2 | U106: 0 | V106: 1 | W106: 0 | X106: 0 | Y106: 0 | Z106: 0 | AA106: 3 | AC106: 66 | AD106: 6 | AE106: 3 | AF106: 0 | AG106: 0 | AH106: 0 | AI106: 0 | AJ106: =SUM(AC106:AI106) -> 75 | AL106: =SUM(I106+R106+AA106+AJ106) -> 78
A107: 12:45:00 | B107: 0 | C107: 0 | D107: 0 | E107: 0 | F107: 0 | G107: 0 | H107: 0 | I107: 0 | K107: 0 | L107: 0 | M107: 0 | N107: 0 | O107: 0 | P107: 0 | Q107: 0 | R107: 0 | T107: 0 | U107: 0 | V107: 0 | W107: 0 | X107: 0 | Y107: 0 | Z107: 0 | AA107: 0 | AC107: 68 | AD107: 9 | AE107: 3 | AF107: 0 | AG107: 0 | AH107: 0 | AI107: 0 | AJ107: =SUM(AC107:AI107) -> 80 | AL107: =SUM(I107+R107+AA107+AJ107) -> 80
A108: 1 Hr | B108: =SUM(B104:B107) -> 0 | C108: 0 | D108: 0 | E108: 0 | F108: 0 | G108: 0 | H108: 0 | I108: 0 | K108: =SUM(K104:K107) -> 0 | L108: 0 | M108: 0 | N108: 0 | O108: 0 | P108: 0 | Q108: 0 | R108: 0 | T108: =SUM(T104:T107) -> 3 | U108: 0 | V108: 1 | W108: 0 | X108: 0 | Y108: 0 | Z108: 0 | AA108: 4 | AC108: =SUM(AC104:AC107) -> 274 | AD108: 44 | AE108: 10 | AF108: 1 | AG108: 0 | AH108: 0 | AI108: 0 | AJ108: =SUM(AJ104:AJ107) -> 329 | AL108: =SUM(AL104:AL107) -> 333
A109: 13:00:00 | B109: 0 | C109: 0 | D109: 0 | E109: 0 | F109: 0 | G109: 0 | H109: 0 | I109: =SUM(B109:H109) -> 0 | K109: 0 | L109: 0 | M109: 0 | N109: 0 | O109: 0 | P109: 0 | Q109: 0 | R109: =SUM(K109:Q109) -> 0 | T109: 2 | U109: 0 | V109: 0 | W109: 0 | X109: 0 | Y109: 0 | Z109: 0 | AA109: =SUM(T109:Z109) -> 2 | AC109: 71 | AD109: 10 | AE109: 0 | AF109: 0 | AG109: 0 | AH109: 0 | AI109: 0 | AJ109: =SUM(AC109:AI109) -> 81 | AL109: =SUM(I109+R109+AA109+AJ109) -> 83
A110: 13:15:00 | B110: 0 | C110: 0 | D110: 0 | E110: 0 | F110: 0 | G110: 0 | H110: 0 | I110: 0 | K110: 0 | L110: 0 | M110: 0 | N110: 0 | O110: 0 | P110: 0 | Q110: 0 | R110: 0 | T110: 3 | U110: 1 | V110: 0 | W110: 0 | X110: 0 | Y110: 0 | Z110: 0 | AA110: 4 | AC110: 78 | AD110: 11 | AE110: 2 | AF110: 0 | AG110: 0 | AH110: 0 | AI110: 0 | AJ110: =SUM(AC110:AI110) -> 91 | AL110: =SUM(I110+R110+AA110+AJ110) -> 95
A111: 13:30:00 | B111: 0 | C111: 0 | D111: 0 | E111: 0 | F111: 0 | G111: 0 | H111: 0 | I111: 0 | K111: 0 | L111: 0 | M111: 0 | N111: 0 | O111: 0 | P111: 0 | Q111: 0 | R111: 0 | T111: 1 | U111: 0 | V111: 0 | W111: 0 | X111: 0 | Y111: 0 | Z111: 0 | AA111: 1 | AC111: 50 | AD111: 15 | AE111: 0 | AF111: 0 | AG111: 0 | AH111: 0 | AI111: 1 | AJ111: =SUM(AC111:AI111) -> 66 | AL111: =SUM(I111+R111+AA111+AJ111) -> 67
A112: 13:45:00 | B112: 0 | C112: 0 | D112: 1 | E112: 0 | F112: 0 | G112: 0 | H112: 0 | I112: 1 | K112: 0 | L112: 0 | M112: 0 | N112: 0 | O112: 0 | P112: 0 | Q112: 0 | R112: 0 | T112: 1 | U112: 0 | V112: 0 | W112: 0 | X112: 0 | Y112: 0 | Z112: 0 | AA112: 1 | AC112: 83 | AD112: 6 | AE112: 1 | AF112: 1 | AG112: 0 | AH112: 4 | AI112: 0 | AJ112: =SUM(AC112:AI112) -> 95 | AL112: =SUM(I112+R112+AA112+AJ112) -> 97
A113: 1 Hr | B113: =SUM(B109:B112) -> 0 | C113: 0 | D113: 1 | E113: 0 | F113: 0 | G113: 0 | H113: 0 | I113: 1 | K113: =SUM(K109:K112) -> 0 | L113: 0 | M113: 0 | N113: 0 | O113: 0 | P113: 0 | Q113: 0 | R113: 0 | T113: =SUM(T109:T112) -> 7 | U113: 1 | V113: 0 | W113: 0 | X113: 0 | Y113: 0 | Z113: 0 | AA113: 8 | AC113: =SUM(AC109:AC112) -> 282 | AD113: 42 | AE113: 3 | AF113: 1 | AG113: 0 | AH113: 4 | AI113: 1 | AJ113: =SUM(AJ109:AJ112) -> 333 | AL113: =SUM(AL109:AL112) -> 342
A114: 14:00:00 | B114: 0 | C114: 0 | D114: 0 | E114: 0 | F114: 0 | G114: 0 | H114: 0 | I114: =SUM(B114:H114) -> 0 | K114: 0 | L114: 0 | M114: 0 | N114: 0 | O114: 0 | P114: 0 | Q114: 0 | R114: =SUM(K114:Q114) -> 0 | T114: 3 | U114: 0 | V114: 0 | W114: 0 | X114: 0 | Y114: 0 | Z114: 0 | AA114: =SUM(T114:Z114) -> 3 | AC114: 70 | AD114: 19 | AE114: 0 | AF114: 1 | AG114: 0 | AH114: 1 | AI114: 0 | AJ114: =SUM(AC114:AI114) -> 91 | AL114: =SUM(I114+R114+AA114+AJ114) -> 94
A115: 14:15:00 | B115: 0 | C115: 0 | D115: 0 | E115: 0 | F115: 0 | G115: 0 | H115: 0 | I115: 0 | K115: 0 | L115: 0 | M115: 0 | N115: 0 | O115: 0 | P115: 0 | Q115: 0 | R115: 0 | T115: 0 | U115: 0 | V115: 0 | W115: 0 | X115: 0 | Y115: 0 | Z115: 0 | AA115: 0 | AC115: 84 | AD115: 12 | AE115: 1 | AF115: 1 | AG115: 0 | AH115: 0 | AI115: 0 | AJ115: =SUM(AC115:AI115) -> 98 | AL115: =SUM(I115+R115+AA115+AJ115) -> 98
A116: 14:30:00 | B116: 0 | C116: 0 | D116: 0 | E116: 0 | F116: 0 | G116: 0 | H116: 0 | I116: 0 | K116: 0 | L116: 0 | M116: 0 | N116: 0 | O116: 0 | P116: 0 | Q116: 0 | R116: 0 | T116: 1 | U116: 0 | V116: 0 | W116: 0 | X116: 0 | Y116: 0 | Z116: 0 | AA116: 1 | AC116: 82 | AD116: 11 | AE116: 1 | AF116: 0 | AG116: 0 | AH116: 0 | AI116: 1 | AJ116: =SUM(AC116:AI116) -> 95 | AL116: =SUM(I116+R116+AA116+AJ116) -> 96
A117: 14:45:00 | B117: 1 | C117: 0 | D117: 0 | E117: 0 | F117: 0 | G117: 0 | H117: 0 | I117: 1 | K117: 0 | L117: 0 | M117: 0 | N117: 0 | O117: 0 | P117: 0 | Q117: 0 | R117: 0 | T117: 2 | U117: 0 | V117: 1 | W117: 0 | X117: 0 | Y117: 0 | Z117: 0 | AA117: 3 | AC117: 79 | AD117: 4 | AE117: 0 | AF117: 0 | AG117: 0 | AH117: 1 | AI117: 1 | AJ117: =SUM(AC117:AI117) -> 85 | AL117: =SUM(I117+R117+AA117+AJ117) -> 89
A118: 1 Hr | B118: =SUM(B114:B117) -> 1 | C118: 0 | D118: 0 | E118: 0 | F118: 0 | G118: 0 | H118: 0 | I118: 1 | K118: =SUM(K114:K117) -> 0 | L118: 0 | M118: 0 | N118: 0 | O118: 0 | P118: 0 | Q118: 0 | R118: 0 | T118: =SUM(T114:T117) -> 6 | U118: 0 | V118: 1 | W118: 0 | X118: 0 | Y118: 0 | Z118: 0 | AA118: 7 | AC118: =SUM(AC114:AC117) -> 315 | AD118: 46 | AE118: 2 | AF118: 2 | AG118: 0 | AH118: 2 | AI118: 2 | AJ118: =SUM(AJ114:AJ117) -> 369 | AL118: =SUM(AL114:AL117) -> 377
A119: 15:00:00 | B119: 0 | C119: 0 | D119: 0 | E119: 0 | F119: 0 | G119: 0 | H119: 0 | I119: =SUM(B119:H119) -> 0 | K119: 0 | L119: 0 | M119: 0 | N119: 0 | O119: 0 | P119: 0 | Q119: 0 | R119: =SUM(K119:Q119) -> 0 | T119: 1 | U119: 0 | V119: 0 | W119: 0 | X119: 0 | Y119: 0 | Z119: 0 | AA119: =SUM(T119:Z119) -> 1 | AC119: 92 | AD119: 14 | AE119: 1 | AF119: 0 | AG119: 1 | AH119: 2 | AI119: 0 | AJ119: =SUM(AC119:AI119) -> 110 | AL119: =SUM(I119+R119+AA119+AJ119) -> 111
A120: 15:15:00 | B120: 0 | C120: 0 | D120: 0 | E120: 0 | F120: 0 | G120: 0 | H120: 0 | I120: 0 | K120: 0 | L120: 0 | M120: 0 | N120: 0 | O120: 0 | P120: 0 | Q120: 0 | R120: 0 | T120: 1 | U120: 0 | V120: 0 | W120: 0 | X120: 0 | Y120: 0 | Z120: 0 | AA120: 1 | AC120: 98 | AD120: 11 | AE120: 0 | AF120: 2 | AG120: 0 | AH120: 1 | AI120: 0 | AJ120: =SUM(AC120:AI120) -> 112 | AL120: =SUM(I120+R120+AA120+AJ120) -> 113
A121: 15:30:00 | B121: 0 | C121: 1 | D121: 0 | E121: 0 | F121: 0 | G121: 0 | H121: 0 | I121: 1 | K121: 0 | L121: 0 | M121: 0 | N121: 0 | O121: 0 | P121: 0 | Q121: 0 | R121: 0 | T121: 3 | U121: 0 | V121: 0 | W121: 0 | X121: 0 | Y121: 0 | Z121: 0 | AA121: 3 | AC121: 95 | AD121: 8 | AE121: 0 | AF121: 0 | AG121: 0 | AH121: 0 | AI121: 0 | AJ121: =SUM(AC121:AI121) -> 103 | AL121: =SUM(I121+R121+AA121+AJ121) -> 107
A122: 15:45:00 | B122: 0 | C122: 0 | D122: 0 | E122: 0 | F122: 0 | G122: 1 | H122: 0 | I122: 1 | K122: 0 | L122: 0 | M122: 0 | N122: 0 | O122: 0 | P122: 0 | Q122: 0 | R122: 0 | T122: 1 | U122: 0 | V122: 0 | W122: 0 | X122: 0 | Y122: 0 | Z122: 0 | AA122: 1 | AC122: 90 | AD122: 6 | AE122: 1 | AF122: 0 | AG122: 0 | AH122: 0 | AI122: 0 | AJ122: =SUM(AC122:AI122) -> 97 | AL122: =SUM(I122+R122+AA122+AJ122) -> 99
A123: 1 Hr | B123: =SUM(B119:B122) -> 0 | C123: 1 | D123: 0 | E123: 0 | F123: 0 | G123: 1 | H123: 0 | I123: 2 | K123: =SUM(K119:K122) -> 0 | L123: 0 | M123: 0 | N123: 0 | O123: 0 | P123: 0 | Q123: 0 | R123: 0 | T123: =SUM(T119:T122) -> 6 | U123: 0 | V123: 0 | W123: 0 | X123: 0 | Y123: 0 | Z123: 0 | AA123: 6 | AC123: =SUM(AC119:AC122) -> 375 | AD123: 39 | AE123: 2 | AF123: 2 | AG123: 1 | AH123: 3 | AI123: 0 | AJ123: =SUM(AJ119:AJ122) -> 422 | AL123: =SUM(AL119:AL122) -> 430
A124: 16:00:00 | B124: 0 | C124: 0 | D124: 0 | E124: 0 | F124: 0 | G124: 0 | H124: 0 | I124: =SUM(B124:H124) -> 0 | K124: 0 | L124: 0 | M124: 0 | N124: 0 | O124: 0 | P124: 0 | Q124: 0 | R124: =SUM(K124:Q124) -> 0 | T124: 0 | U124: 0 | V124: 0 | W124: 0 | X124: 0 | Y124: 0 | Z124: 0 | AA124: =SUM(T124:Z124) -> 0 | AC124: 84 | AD124: 8 | AE124: 0 | AF124: 0 | AG124: 1 | AH124: 0 | AI124: 1 | AJ124: =SUM(AC124:AI124) -> 94 | AL124: =SUM(I124+R124+AA124+AJ124) -> 94
A125: 16:15:00 | B125: 0 | C125: 0 | D125: 0 | E125: 0 | F125: 0 | G125: 0 | H125: 0 | I125: 0 | K125: 0 | L125: 0 | M125: 0 | N125: 0 | O125: 0 | P125: 0 | Q125: 0 | R125: 0 | T125: 0 | U125: 0 | V125: 0 | W125: 0 | X125: 0 | Y125: 0 | Z125: 0 | AA125: 0 | AC125: 88 | AD125: 16 | AE125: 2 | AF125: 0 | AG125: 2 | AH125: 1 | AI125: 0 | AJ125: =SUM(AC125:AI125) -> 109 | AL125: =SUM(I125+R125+AA125+AJ125) -> 109
A126: 16:30:00 | B126: 0 | C126: 0 | D126: 0 | E126: 0 | F126: 0 | G126: 0 | H126: 0 | I126: 0 | K126: 0 | L126: 0 | M126: 0 | N126: 0 | O126: 0 | P126: 0 | Q126: 0 | R126: 0 | T126: 0 | U126: 0 | V126: 0 | W126: 0 | X126: 0 | Y126: 0 | Z126: 0 | AA126: 0 | AC126: 104 | AD126: 7 | AE126: 1 | AF126: 0 | AG126: 1 | AH126: 0 | AI126: 0 | AJ126: =SUM(AC126:AI126) -> 113 | AL126: =SUM(I126+R126+AA126+AJ126) -> 113
A127: 16:45:00 | B127: 0 | C127: 0 | D127: 0 | E127: 0 | F127: 0 | G127: 0 | H127: 0 | I127: 0 | K127: 0 | L127: 0 | M127: 0 | N127: 0 | O127: 0 | P127: 0 | Q127: 0 | R127: 0 | T127: 1 | U127: 0 | V127: 0 | W127: 0 | X127: 0 | Y127: 0 | Z127: 0 | AA127: 1 | AC127: 108 | AD127: 11 | AE127: 1 | AF127: 0 | AG127: 0 | AH127: 0 | AI127: 0 | AJ127: =SUM(AC127:AI127) -> 120 | AL127: =SUM(I127+R127+AA127+AJ127) -> 121
A128: 1 Hr | B128: =SUM(B124:B127) -> 0 | C128: 0 | D128: 0 | E128: 0 | F128: 0 | G128: 0 | H128: 0 | I128: 0 | K128: =SUM(K124:K127) -> 0 | L128: 0 | M128: 0 | N128: 0 | O128: 0 | P128: 0 | Q128: 0 | R128: 0 | T128: =SUM(T124:T127) -> 1 | U128: 0 | V128: 0 | W128: 0 | X128: 0 | Y128: 0 | Z128: 0 | AA128: 1 | AC128: =SUM(AC124:AC127) -> 384 | AD128: 42 | AE128: 4 | AF128: 0 | AG128: 4 | AH128: 1 | AI128: 1 | AJ128: =SUM(AJ124:AJ127) -> 436 | AL128: =SUM(AL124:AL127) -> 437
A129: 17:00:00 | B129: 0 | C129: 0 | D129: 0 | E129: 0 | F129: 0 | G129: 0 | H129: 0 | I129: =SUM(B129:H129) -> 0 | K129: 0 | L129: 0 | M129: 0 | N129: 0 | O129: 0 | P129: 0 | Q129: 0 | R129: =SUM(K129:Q129) -> 0 | T129: 1 | U129: 0 | V129: 0 | W129: 0 | X129: 0 | Y129: 0 | Z129: 0 | AA129: =SUM(T129:Z129) -> 1 | AC129: 103 | AD129: 7 | AE129: 2 | AF129: 0 | AG129: 0 | AH129: 0 | AI129: 1 | AJ129: =SUM(AC129:AI129) -> 113 | AL129: =SUM(I129+R129+AA129+AJ129) -> 114
A130: 17:15:00 | B130: 0 | C130: 0 | D130: 0 | E130: 0 | F130: 0 | G130: 0 | H130: 0 | I130: 0 | K130: 0 | L130: 0 | M130: 0 | N130: 0 | O130: 0 | P130: 0 | Q130: 0 | R130: 0 | T130: 2 | U130: 1 | V130: 0 | W130: 0 | X130: 0 | Y130: 0 | Z130: 0 | AA130: 3 | AC130: 99 | AD130: 15 | AE130: 1 | AF130: 0 | AG130: 0 | AH130: 0 | AI130: 0 | AJ130: =SUM(AC130:AI130) -> 115 | AL130: =SUM(I130+R130+AA130+AJ130) -> 118
A131: 17:30:00 | B131: 0 | C131: 0 | D131: 0 | E131: 0 | F131: 0 | G131: 0 | H131: 0 | I131: 0 | K131: 0 | L131: 0 | M131: 0 | N131: 0 | O131: 0 | P131: 0 | Q131: 0 | R131: 0 | T131: 0 | U131: 0 | V131: 0 | W131: 0 | X131: 0 | Y131: 0 | Z131: 0 | AA131: 0 | AC131: 94 | AD131: 5 | AE131: 0 | AF131: 0 | AG131: 0 | AH131: 0 | AI131: 0 | AJ131: =SUM(AC131:AI131) -> 99 | AL131: =SUM(I131+R131+AA131+AJ131) -> 99
A132: 17:45:00 | B132: 0 | C132: 0 | D132: 0 | E132: 0 | F132: 0 | G132: 0 | H132: 0 | I132: 0 | K132: 0 | L132: 0 | M132: 0 | N132: 0 | O132: 0 | P132: 0 | Q132: 0 | R132: 0 | T132: 0 | U132: 0 | V132: 0 | W132: 0 | X132: 0 | Y132: 0 | Z132: 0 | AA132: 0 | AC132: 80 | AD132: 10 | AE132: 0 | AF132: 0 | AG132: 0 | AH132: 1 | AI132: 0 | AJ132: =SUM(AC132:AI132) -> 91 | AL132: =SUM(I132+R132+AA132+AJ132) -> 91
A133: 1 Hr | B133: =SUM(B129:B132) -> 0 | C133: 0 | D133: 0 | E133: 0 | F133: 0 | G133: 0 | H133: 0 | I133: 0 | K133: =SUM(K129:K132) -> 0 | L133: 0 | M133: 0 | N133: 0 | O133: 0 | P133: 0 | Q133: 0 | R133: 0 | T133: =SUM(T129:T132) -> 3 | U133: 1 | V133: 0 | W133: 0 | X133: 0 | Y133: 0 | Z133: 0 | AA133: 4 | AC133: =SUM(AC129:AC132) -> 376 | AD133: 37 | AE133: 3 | AF133: 0 | AG133: 0 | AH133: 1 | AI133: 1 | AJ133: =SUM(AJ129:AJ132) -> 418 | AL133: =SUM(AL129:AL132) -> 422
A134: 18:00:00 | B134: 0 | C134: 0 | D134: 0 | E134: 0 | F134: 0 | G134: 0 | H134: 0 | I134: =SUM(B134:H134) -> 0 | K134: 0 | L134: 0 | M134: 0 | N134: 0 | O134: 0 | P134: 0 | Q134: 0 | R134: =SUM(K134:Q134) -> 0 | T134: 0 | U134: 0 | V134: 0 | W134: 0 | X134: 0 | Y134: 0 | Z134: 0 | AA134: =SUM(T134:Z134) -> 0 | AC134: 99 | AD134: 12 | AE134: 1 | AF134: 0 | AG134: 0 | AH134: 1 | AI134: 1 | AJ134: =SUM(AC134:AI134) -> 114 | AL134: =SUM(I134+R134+AA134+AJ134) -> 114
A135: 18:15:00 | B135: 0 | C135: 0 | D135: 0 | E135: 0 | F135: 0 | G135: 0 | H135: 0 | I135: 0 | K135: 0 | L135: 0 | M135: 0 | N135: 0 | O135: 0 | P135: 0 | Q135: 0 | R135: 0 | T135: 2 | U135: 0 | V135: 0 | W135: 0 | X135: 0 | Y135: 0 | Z135: 0 | AA135: 2 | AC135: 106 | AD135: 7 | AE135: 0 | AF135: 0 | AG135: 0 | AH135: 0 | AI135: 1 | AJ135: =SUM(AC135:AI135) -> 114 | AL135: =SUM(I135+R135+AA135+AJ135) -> 116
A136: 18:30:00 | B136: 0 | C136: 0 | D136: 0 | E136: 0 | F136: 0 | G136: 0 | H136: 0 | I136: 0 | K136: 0 | L136: 0 | M136: 0 | N136: 0 | O136: 0 | P136: 0 | Q136: 0 | R136: 0 | T136: 0 | U136: 0 | V136: 0 | W136: 0 | X136: 0 | Y136: 0 | Z136: 0 | AA136: 0 | AC136: 84 | AD136: 5 | AE136: 0 | AF136: 0 | AG136: 0 | AH136: 0 | AI136: 0 | AJ136: =SUM(AC136:AI136) -> 89 | AL136: =SUM(I136+R136+AA136+AJ136) -> 89
A137: 18:45:00 | B137: 0 | C137: 0 | D137: 0 | E137: 0 | F137: 0 | G137: 0 | H137: 0 | I137: 0 | K137: 0 | L137: 0 | M137: 0 | N137: 0 | O137: 0 | P137: 0 | Q137: 0 | R137: 0 | T137: 0 | U137: 0 | V137: 0 | W137: 0 | X137: 0 | Y137: 0 | Z137: 0 | AA137: 0 | AC137: 82 | AD137: 3 | AE137: 0 | AF137: 0 | AG137: 0 | AH137: 0 | AI137: 1 | AJ137: =SUM(AC137:AI137) -> 86 | AL137: =SUM(I137+R137+AA137+AJ137) -> 86
A138: 1 Hr | B138: =SUM(B134:B137) -> 0 | C138: 0 | D138: 0 | E138: 0 | F138: 0 | G138: 0 | H138: 0 | I138: 0 | K138: =SUM(K134:K137) -> 0 | L138: 0 | M138: 0 | N138: 0 | O138: 0 | P138: 0 | Q138: 0 | R138: 0 | T138: =SUM(T134:T137) -> 2 | U138: 0 | V138: 0 | W138: 0 | X138: 0 | Y138: 0 | Z138: 0 | AA138: 2 | AC138: =SUM(AC134:AC137) -> 371 | AD138: 27 | AE138: 1 | AF138: 0 | AG138: 0 | AH138: 1 | AI138: 3 | AJ138: =SUM(AJ134:AJ137) -> 403 | AL138: =SUM(AL134:AL137) -> 405
A140: Total | B140: =SUM(B138+B133+B128+B123+B118+B113+B108+B103+B98+B93+B88+B83) -> 1 | C140: 1 | D140: 1 | E140: 0 | F140: 0 | G140: 1 | H140: 0 | I140: 4 | K140: =SUM(K138+K133+K128+K123+K118+K113+K108+K103+K98+K93+K88+K83) -> 0 | L140: 0 | M140: 0 | N140: 0 | O140: 0 | P140: 0 | Q140: 0 | R140: 0 | T140: =SUM(T138+T133+T128+T123+T118+T113+T108+T103+T98+T93+T88+T83) -> 47 | U140: 6 | V140: 4 | W140: 0 | X140: 0 | Y140: 0 | Z140: 1 | AA140: 58 | AC140: =SUM(AC138+AC133+AC128+AC123+AC118+AC113+AC108+AC103+AC98+AC93+AC88+AC83) -> 3969 | AD140: 509 | AE140: 57 | AF140: 13 | AG140: 12 | AH140: 24 | AI140: 16 | AJ140: =SUM(AJ138+AJ133+AJ128+AJ123+AJ118+AJ113+AJ108+AJ103+AJ98+AJ93+AJ88+AJ83) -> 4600 | AL140: =SUM(AL138+AL133+AL128+AL123+AL118+AL113+AL108+AL103+AL98+AL93+AL88+AL83) -> 4662
A142: Origin : | B142: Arm C | C142: Grove Road
B143: Destination : | D143: Arm A | E143: B4122 Vicarage Road | I143: Total | K143: Destination : | M143: Arm B | N143: A4040 Howard Road | R143: Total | T143: Destination : | V143: Arm C | W143: Grove Road | AA143: Total | AC143: Destination : | AE143: Arm D | AF143: A4040 Vicarage Road | AJ143: Total | AL143: Arm
B144: =$B$10 -> Car | C144: =$C$10 -> LGV | D144: =$D$10 -> OGV1 | E144: =$E$10 -> OGV2 | F144: =$F$10 -> Bus/Coach | G144: =$G$10 -> MC | H144: =$H$10 -> PC | K144: =$B$10 -> Car | L144: =$C$10 -> LGV | M144: =$D$10 -> OGV1 | N144: =$E$10 -> OGV2 | O144: =$F$10 -> Bus/Coach | P144: =$G$10 -> MC | Q144: =$H$10 -> PC | T144: =$B$10 -> Car | U144: =$C$10 -> LGV | V144: =$D$10 -> OGV1 | W144: =$E$10 -> OGV2 | X144: =$F$10 -> Bus/Coach | Y144: =$G$10 -> MC | Z144: =$H$10 -> PC | AC144: =$B$10 -> Car | AD144: =$C$10 -> LGV | AE144: =$D$10 -> OGV1 | AF144: =$E$10 -> OGV2 | AG144: =$F$10 -> Bus/Coach | AH144: =$G$10 -> MC | AI144: =$H$10 -> PC | AL144: Totals
A146: 07:00:00 | B146: 14 | C146: 1 | D146: 0 | E146: 0 | F146: 1 | G146: 0 | H146: 0 | I146: =SUM(B146:H146) -> 16 | K146: 0 | L146: 0 | M146: 0 | N146: 0 | O146: 0 | P146: 0 | Q146: 0 | R146: =SUM(K146:Q146) -> 0 | T146: 0 | U146: 0 | V146: 0 | W146: 0 | X146: 0 | Y146: 0 | Z146: 0 | AA146: =SUM(T146:Z146) -> 0 | AC146: 28 | AD146: 3 | AE146: 0 | AF146: 0 | AG146: 0 | AH146: 0 | AI146: 0 | AJ146: =SUM(AC146:AI146) -> 31 | AL146: =SUM(I146+R146+AA146+AJ146) -> 47
A147: 07:15:00 | B147: 23 | C147: 2 | D147: 0 | E147: 0 | F147: 1 | G147: 0 | H147: 1 | I147: 27 | K147: 0 | L147: 0 | M147: 0 | N147: 0 | O147: 0 | P147: 0 | Q147: 0 | R147: 0 | T147: 0 | U147: 0 | V147: 0 | W147: 0 | X147: 0 | Y147: 0 | Z147: 0 | AA147: 0 | AC147: 42 | AD147: 2 | AE147: 0 | AF147: 0 | AG147: 0 | AH147: 0 | AI147: 0 | AJ147: =SUM(AC147:AI147) -> 44 | AL147: =SUM(I147+R147+AA147+AJ147) -> 71
A148: 07:30:00 | B148: 29 | C148: 1 | D148: 1 | E148: 0 | F148: 0 | G148: 0 | H148: 0 | I148: 31 | K148: 1 | L148: 0 | M148: 0 | N148: 0 | O148: 0 | P148: 0 | Q148: 0 | R148: 1 | T148: 0 | U148: 0 | V148: 0 | W148: 0 | X148: 0 | Y148: 0 | Z148: 0 | AA148: 0 | AC148: 49 | AD148: 5 | AE148: 0 | AF148: 0 | AG148: 0 | AH148: 0 | AI148: 0 | AJ148: =SUM(AC148:AI148) -> 54 | AL148: =SUM(I148+R148+AA148+AJ148) -> 86
A149: 07:45:00 | B149: 29 | C149: 1 | D149: 2 | E149: 0 | F149: 1 | G149: 0 | H149: 0 | I149: 33 | K149: 1 | L149: 0 | M149: 0 | N149: 0 | O149: 0 | P149: 0 | Q149: 0 | R149: 1 | T149: 0 | U149: 0 | V149: 0 | W149: 0 | X149: 0 | Y149: 0 | Z149: 0 | AA149: 0 | AC149: 46 | AD149: 4 | AE149: 1 | AF149: 0 | AG149: 0 | AH149: 0 | AI149: 0 | AJ149: =SUM(AC149:AI149) -> 51 | AL149: =SUM(I149+R149+AA149+AJ149) -> 85
A150: 1 Hr | B150: =SUM(B146:B149) -> 95 | C150: 5 | D150: 3 | E150: 0 | F150: 3 | G150: 0 | H150: 1 | I150: 107 | K150: =SUM(K146:K149) -> 2 | L150: 0 | M150: 0 | N150: 0 | O150: 0 | P150: 0 | Q150: 0 | R150: 2 | T150: =SUM(T146:T149) -> 0 | U150: 0 | V150: 0 | W150: 0 | X150: 0 | Y150: 0 | Z150: 0 | AA150: 0 | AC150: =SUM(AC146:AC149) -> 165 | AD150: 14 | AE150: 1 | AF150: 0 | AG150: 0 | AH150: 0 | AI150: 0 | AJ150: =SUM(AJ146:AJ149) -> 180 | AL150: =SUM(AL146:AL149) -> 289
A151: 08:00:00 | B151: 28 | C151: 2 | D151: 0 | E151: 0 | F151: 0 | G151: 0 | H151: 0 | I151: =SUM(B151:H151) -> 30 | K151: 1 | L151: 0 | M151: 0 | N151: 0 | O151: 0 | P151: 0 | Q151: 0 | R151: =SUM(K151:Q151) -> 1 | T151: 0 | U151: 0 | V151: 0 | W151: 0 | X151: 0 | Y151: 0 | Z151: 0 | AA151: =SUM(T151:Z151) -> 0 | AC151: 43 | AD151: 6 | AE151: 0 | AF151: 0 | AG151: 0 | AH151: 1 | AI151: 1 | AJ151: =SUM(AC151:AI151) -> 51 | AL151: =SUM(I151+R151+AA151+AJ151) -> 82
A152: 08:15:00 | B152: 16 | C152: 2 | D152: 0 | E152: 0 | F152: 0 | G152: 1 | H152: 0 | I152: 19 | K152: 1 | L152: 0 | M152: 0 | N152: 0 | O152: 0 | P152: 0 | Q152: 0 | R152: 1 | T152: 0 | U152: 0 | V152: 0 | W152: 0 | X152: 0 | Y152: 0 | Z152: 0 | AA152: 0 | AC152: 45 | AD152: 1 | AE152: 0 | AF152: 0 | AG152: 0 | AH152: 0 | AI152: 0 | AJ152: =SUM(AC152:AI152) -> 46 | AL152: =SUM(I152+R152+AA152+AJ152) -> 66
A153: 08:30:00 | B153: 25 | C153: 1 | D153: 0 | E153: 0 | F153: 0 | G153: 0 | H153: 0 | I153: 26 | K153: 0 | L153: 0 | M153: 0 | N153: 0 | O153: 0 | P153: 0 | Q153: 0 | R153: 0 | T153: 0 | U153: 0 | V153: 0 | W153: 0 | X153: 0 | Y153: 0 | Z153: 0 | AA153: 0 | AC153: 28 | AD153: 4 | AE153: 1 | AF153: 0 | AG153: 1 | AH153: 0 | AI153: 0 | AJ153: =SUM(AC153:AI153) -> 34 | AL153: =SUM(I153+R153+AA153+AJ153) -> 60
A154: 08:45:00 | B154: 16 | C154: 0 | D154: 1 | E154: 0 | F154: 0 | G154: 0 | H154: 1 | I154: 18 | K154: 0 | L154: 2 | M154: 0 | N154: 0 | O154: 0 | P154: 0 | Q154: 0 | R154: 2 | T154: 0 | U154: 0 | V154: 0 | W154: 0 | X154: 0 | Y154: 0 | Z154: 0 | AA154: 0 | AC154: 34 | AD154: 2 | AE154: 0 | AF154: 1 | AG154: 0 | AH154: 1 | AI154: 1 | AJ154: =SUM(AC154:AI154) -> 39 | AL154: =SUM(I154+R154+AA154+AJ154) -> 59
A155: 1 Hr | B155: =SUM(B151:B154) -> 85 | C155: 5 | D155: 1 | E155: 0 | F155: 0 | G155: 1 | H155: 1 | I155: 93 | K155: =SUM(K151:K154) -> 2 | L155: 2 | M155: 0 | N155: 0 | O155: 0 | P155: 0 | Q155: 0 | R155: 4 | T155: =SUM(T151:T154) -> 0 | U155: 0 | V155: 0 | W155: 0 | X155: 0 | Y155: 0 | Z155: 0 | AA155: 0 | AC155: =SUM(AC151:AC154) -> 150 | AD155: 13 | AE155: 1 | AF155: 1 | AG155: 1 | AH155: 2 | AI155: 2 | AJ155: =SUM(AJ151:AJ154) -> 170 | AL155: =SUM(AL151:AL154) -> 267
A156: 09:00:00 | B156: 17 | C156: 1 | D156: 0 | E156: 0 | F156: 0 | G156: 0 | H156: 0 | I156: =SUM(B156:H156) -> 18 | K156: 1 | L156: 0 | M156: 0 | N156: 0 | O156: 0 | P156: 0 | Q156: 0 | R156: =SUM(K156:Q156) -> 1 | T156: 0 | U156: 0 | V156: 0 | W156: 0 | X156: 0 | Y156: 0 | Z156: 0 | AA156: =SUM(T156:Z156) -> 0 | AC156: 46 | AD156: 7 | AE156: 0 | AF156: 0 | AG156: 0 | AH156: 0 | AI156: 0 | AJ156: =SUM(AC156:AI156) -> 53 | AL156: =SUM(I156+R156+AA156+AJ156) -> 72
A157: 09:15:00 | B157: 26 | C157: 0 | D157: 0 | E157: 2 | F157: 0 | G157: 0 | H157: 0 | I157: 28 | K157: 0 | L157: 0 | M157: 0 | N157: 0 | O157: 0 | P157: 0 | Q157: 0 | R157: 0 | T157: 0 | U157: 0 | V157: 0 | W157: 0 | X157: 0 | Y157: 0 | Z157: 0 | AA157: 0 | AC157: 28 | AD157: 3 | AE157: 1 | AF157: 0 | AG157: 1 | AH157: 0 | AI157: 0 | AJ157: =SUM(AC157:AI157) -> 33 | AL157: =SUM(I157+R157+AA157+AJ157) -> 61
A158: 09:30:00 | B158: 21 | C158: 1 | D158: 0 | E158: 0 | F158: 1 | G158: 0 | H158: 0 | I158: 23 | K158: 1 | L158: 0 | M158: 1 | N158: 0 | O158: 0 | P158: 0 | Q158: 0 | R158: 2 | T158: 0 | U158: 0 | V158: 0 | W158: 0 | X158: 0 | Y158: 0 | Z158: 0 | AA158: 0 | AC158: 31 | AD158: 2 | AE158: 1 | AF158: 0 | AG158: 0 | AH158: 0 | AI158: 0 | AJ158: =SUM(AC158:AI158) -> 34 | AL158: =SUM(I158+R158+AA158+AJ158) -> 59
A159: 09:45:00 | B159: 20 | C159: 2 | D159: 1 | E159: 0 | F159: 0 | G159: 0 | H159: 0 | I159: 23 | K159: 1 | L159: 0 | M159: 0 | N159: 0 | O159: 0 | P159: 0 | Q159: 0 | R159: 1 | T159: 0 | U159: 0 | V159: 0 | W159: 0 | X159: 0 | Y159: 0 | Z159: 0 | AA159: 0 | AC159: 23 | AD159: 5 | AE159: 0 | AF159: 0 | AG159: 0 | AH159: 0 | AI159: 0 | AJ159: =SUM(AC159:AI159) -> 28 | AL159: =SUM(I159+R159+AA159+AJ159) -> 52
A160: 1 Hr | B160: =SUM(B156:B159) -> 84 | C160: 4 | D160: 1 | E160: 2 | F160: 1 | G160: 0 | H160: 0 | I160: 92 | K160: =SUM(K156:K159) -> 3 | L160: 0 | M160: 1 | N160: 0 | O160: 0 | P160: 0 | Q160: 0 | R160: 4 | T160: =SUM(T156:T159) -> 0 | U160: 0 | V160: 0 | W160: 0 | X160: 0 | Y160: 0 | Z160: 0 | AA160: 0 | AC160: =SUM(AC156:AC159) -> 128 | AD160: 17 | AE160: 2 | AF160: 0 | AG160: 1 | AH160: 0 | AI160: 0 | AJ160: =SUM(AJ156:AJ159) -> 148 | AL160: =SUM(AL156:AL159) -> 244
A161: 10:00:00 | B161: 17 | C161: 1 | D161: 0 | E161: 0 | F161: 0 | G161: 0 | H161: 0 | I161: =SUM(B161:H161) -> 18 | K161: 0 | L161: 0 | M161: 0 | N161: 0 | O161: 0 | P161: 0 | Q161: 0 | R161: =SUM(K161:Q161) -> 0 | T161: 0 | U161: 0 | V161: 0 | W161: 0 | X161: 0 | Y161: 0 | Z161: 0 | AA161: =SUM(T161:Z161) -> 0 | AC161: 25 | AD161: 4 | AE161: 0 | AF161: 0 | AG161: 0 | AH161: 0 | AI161: 0 | AJ161: =SUM(AC161:AI161) -> 29 | AL161: =SUM(I161+R161+AA161+AJ161) -> 47
A162: 10:15:00 | B162: 21 | C162: 2 | D162: 0 | E162: 0 | F162: 0 | G162: 0 | H162: 0 | I162: 23 | K162: 0 | L162: 0 | M162: 0 | N162: 0 | O162: 0 | P162: 0 | Q162: 0 | R162: 0 | T162: 0 | U162: 0 | V162: 0 | W162: 0 | X162: 0 | Y162: 0 | Z162: 0 | AA162: 0 | AC162: 21 | AD162: 2 | AE162: 1 | AF162: 0 | AG162: 0 | AH162: 0 | AI162: 0 | AJ162: =SUM(AC162:AI162) -> 24 | AL162: =SUM(I162+R162+AA162+AJ162) -> 47
A163: 10:30:00 | B163: 13 | C163: 0 | D163: 0 | E163: 0 | F163: 1 | G163: 0 | H163: 1 | I163: 15 | K163: 1 | L163: 0 | M163: 0 | N163: 0 | O163: 0 | P163: 0 | Q163: 0 | R163: 1 | T163: 0 | U163: 0 | V163: 0 | W163: 0 | X163: 0 | Y163: 0 | Z163: 0 | AA163: 0 | AC163: 32 | AD163: 7 | AE163: 2 | AF163: 0 | AG163: 0 | AH163: 0 | AI163: 0 | AJ163: =SUM(AC163:AI163) -> 41 | AL163: =SUM(I163+R163+AA163+AJ163) -> 57
A164: 10:45:00 | B164: 23 | C164: 1 | D164: 2 | E164: 0 | F164: 0 | G164: 0 | H164: 0 | I164: 26 | K164: 0 | L164: 0 | M164: 0 | N164: 0 | O164: 0 | P164: 0 | Q164: 0 | R164: 0 | T164: 0 | U164: 0 | V164: 0 | W164: 0 | X164: 0 | Y164: 0 | Z164: 0 | AA164: 0 | AC164: 16 | AD164: 5 | AE164: 0 | AF164: 0 | AG164: 0 | AH164: 0 | AI164: 0 | AJ164: =SUM(AC164:AI164) -> 21 | AL164: =SUM(I164+R164+AA164+AJ164) -> 47
A165: 1 Hr | B165: =SUM(B161:B164) -> 74 | C165: 4 | D165: 2 | E165: 0 | F165: 1 | G165: 0 | H165: 1 | I165: 82 | K165: =SUM(K161:K164) -> 1 | L165: 0 | M165: 0 | N165: 0 | O165: 0 | P165: 0 | Q165: 0 | R165: 1 | T165: =SUM(T161:T164) -> 0 | U165: 0 | V165: 0 | W165: 0 | X165: 0 | Y165: 0 | Z165: 0 | AA165: 0 | AC165: =SUM(AC161:AC164) -> 94 | AD165: 18 | AE165: 3 | AF165: 0 | AG165: 0 | AH165: 0 | AI165: 0 | AJ165: =SUM(AJ161:AJ164) -> 115 | AL165: =SUM(AL161:AL164) -> 198
A166: 11:00:00 | B166: 28 | C166: 1 | D166: 0 | E166: 0 | F166: 0 | G166: 0 | H166: 0 | I166: =SUM(B166:H166) -> 29 | K166: 0 | L166: 0 | M166: 0 | N166: 0 | O166: 0 | P166: 0 | Q166: 0 | R166: =SUM(K166:Q166) -> 0 | T166: 0 | U166: 0 | V166: 0 | W166: 0 | X166: 0 | Y166: 0 | Z166: 0 | AA166: =SUM(T166:Z166) -> 0 | AC166: 19 | AD166: 7 | AE166: 1 | AF166: 0 | AG166: 0 | AH166: 0 | AI166: 0 | AJ166: =SUM(AC166:AI166) -> 27 | AL166: =SUM(I166+R166+AA166+AJ166) -> 56
A167: 11:15:00 | B167: 15 | C167: 0 | D167: 1 | E167: 0 | F167: 0 | G167: 0 | H167: 0 | I167: 16 | K167: 0 | L167: 0 | M167: 0 | N167: 0 | O167: 0 | P167: 0 | Q167: 0 | R167: 0 | T167: 0 | U167: 0 | V167: 0 | W167: 0 | X167: 0 | Y167: 0 | Z167: 0 | AA167: 0 | AC167: 24 | AD167: 0 | AE167: 0 | AF167: 0 | AG167: 0 | AH167: 0 | AI167: 0 | AJ167: =SUM(AC167:AI167) -> 24 | AL167: =SUM(I167+R167+AA167+AJ167) -> 40
A168: 11:30:00 | B168: 19 | C168: 1 | D168: 0 | E168: 1 | F168: 1 | G168: 0 | H168: 0 | I168: 22 | K168: 1 | L168: 0 | M168: 0 | N168: 0 | O168: 0 | P168: 0 | Q168: 0 | R168: 1 | T168: 0 | U168: 0 | V168: 0 | W168: 0 | X168: 0 | Y168: 0 | Z168: 0 | AA168: 0 | AC168: 26 | AD168: 4 | AE168: 0 | AF168: 0 | AG168: 0 | AH168: 0 | AI168: 1 | AJ168: =SUM(AC168:AI168) -> 31 | AL168: =SUM(I168+R168+AA168+AJ168) -> 54
A169: 11:45:00 | B169: 23 | C169: 0 | D169: 1 | E169: 0 | F169: 0 | G169: 0 | H169: 0 | I169: 24 | K169: 1 | L169: 0 | M169: 0 | N169: 0 | O169: 0 | P169: 0 | Q169: 0 | R169: 1 | T169: 0 | U169: 0 | V169: 0 | W169: 0 | X169: 0 | Y169: 0 | Z169: 0 | AA169: 0 | AC169: 32 | AD169: 5 | AE169: 1 | AF169: 0 | AG169: 0 | AH169: 0 | AI169: 0 | AJ169: =SUM(AC169:AI169) -> 38 | AL169: =SUM(I169+R169+AA169+AJ169) -> 63
A170: 1 Hr | B170: =SUM(B166:B169) -> 85 | C170: 2 | D170: 2 | E170: 1 | F170: 1 | G170: 0 | H170: 0 | I170: 91 | K170: =SUM(K166:K169) -> 2 | L170: 0 | M170: 0 | N170: 0 | O170: 0 | P170: 0 | Q170: 0 | R170: 2 | T170: =SUM(T166:T169) -> 0 | U170: 0 | V170: 0 | W170: 0 | X170: 0 | Y170: 0 | Z170: 0 | AA170: 0 | AC170: =SUM(AC166:AC169) -> 101 | AD170: 16 | AE170: 2 | AF170: 0 | AG170: 0 | AH170: 0 | AI170: 1 | AJ170: =SUM(AJ166:AJ169) -> 120 | AL170: =SUM(AL166:AL169) -> 213
A171: 12:00:00 | B171: 11 | C171: 2 | D171: 1 | E171: 0 | F171: 0 | G171: 0 | H171: 0 | I171: =SUM(B171:H171) -> 14 | K171: 0 | L171: 0 | M171: 0 | N171: 0 | O171: 0 | P171: 0 | Q171: 0 | R171: =SUM(K171:Q171) -> 0 | T171: 0 | U171: 0 | V171: 0 | W171: 0 | X171: 0 | Y171: 0 | Z171: 0 | AA171: =SUM(T171:Z171) -> 0 | AC171: 25 | AD171: 7 | AE171: 1 | AF171: 0 | AG171: 0 | AH171: 0 | AI171: 0 | AJ171: =SUM(AC171:AI171) -> 33 | AL171: =SUM(I171+R171+AA171+AJ171) -> 47
A172: 12:15:00 | B172: 26 | C172: 2 | D172: 0 | E172: 0 | F172: 0 | G172: 0 | H172: 0 | I172: 28 | K172: 1 | L172: 0 | M172: 0 | N172: 0 | O172: 0 | P172: 0 | Q172: 0 | R172: 1 | T172: 0 | U172: 0 | V172: 0 | W172: 0 | X172: 0 | Y172: 0 | Z172: 0 | AA172: 0 | AC172: 29 | AD172: 5 | AE172: 0 | AF172: 0 | AG172: 0 | AH172: 0 | AI172: 0 | AJ172: =SUM(AC172:AI172) -> 34 | AL172: =SUM(I172+R172+AA172+AJ172) -> 63
A173: 12:30:00 | B173: 17 | C173: 2 | D173: 1 | E173: 0 | F173: 1 | G173: 1 | H173: 0 | I173: 22 | K173: 1 | L173: 0 | M173: 0 | N173: 0 | O173: 0 | P173: 0 | Q173: 0 | R173: 1 | T173: 0 | U173: 0 | V173: 0 | W173: 0 | X173: 0 | Y173: 0 | Z173: 0 | AA173: 0 | AC173: 27 | AD173: 0 | AE173: 0 | AF173: 0 | AG173: 0 | AH173: 0 | AI173: 0 | AJ173: =SUM(AC173:AI173) -> 27 | AL173: =SUM(I173+R173+AA173+AJ173) -> 50
A174: 12:45:00 | B174: 22 | C174: 3 | D174: 0 | E174: 0 | F174: 0 | G174: 0 | H174: 0 | I174: 25 | K174: 1 | L174: 0 | M174: 0 | N174: 0 | O174: 0 | P174: 0 | Q174: 0 | R174: 1 | T174: 0 | U174: 0 | V174: 0 | W174: 0 | X174: 0 | Y174: 0 | Z174: 0 | AA174: 0 | AC174: 27 | AD174: 3 | AE174: 0 | AF174: 0 | AG174: 0 | AH174: 0 | AI174: 1 | AJ174: =SUM(AC174:AI174) -> 31 | AL174: =SUM(I174+R174+AA174+AJ174) -> 57
A175: 1 Hr | B175: =SUM(B171:B174) -> 76 | C175: 9 | D175: 2 | E175: 0 | F175: 1 | G175: 1 | H175: 0 | I175: 89 | K175: =SUM(K171:K174) -> 3 | L175: 0 | M175: 0 | N175: 0 | O175: 0 | P175: 0 | Q175: 0 | R175: 3 | T175: =SUM(T171:T174) -> 0 | U175: 0 | V175: 0 | W175: 0 | X175: 0 | Y175: 0 | Z175: 0 | AA175: 0 | AC175: =SUM(AC171:AC174) -> 108 | AD175: 15 | AE175: 1 | AF175: 0 | AG175: 0 | AH175: 0 | AI175: 1 | AJ175: =SUM(AJ171:AJ174) -> 125 | AL175: =SUM(AL171:AL174) -> 217
A176: 13:00:00 | B176: 20 | C176: 3 | D176: 0 | E176: 0 | F176: 0 | G176: 0 | H176: 0 | I176: =SUM(B176:H176) -> 23 | K176: 0 | L176: 0 | M176: 0 | N176: 0 | O176: 0 | P176: 0 | Q176: 0 | R176: =SUM(K176:Q176) -> 0 | T176: 0 | U176: 0 | V176: 0 | W176: 0 | X176: 0 | Y176: 0 | Z176: 0 | AA176: =SUM(T176:Z176) -> 0 | AC176: 22 | AD176: 1 | AE176: 1 | AF176: 1 | AG176: 0 | AH176: 0 | AI176: 0 | AJ176: =SUM(AC176:AI176) -> 25 | AL176: =SUM(I176+R176+AA176+AJ176) -> 48
A177: 13:15:00 | B177: 22 | C177: 2 | D177: 0 | E177: 0 | F177: 0 | G177: 0 | H177: 0 | I177: 24 | K177: 0 | L177: 0 | M177: 0 | N177: 0 | O177: 0 | P177: 0 | Q177: 0 | R177: 0 | T177: 0 | U177: 0 | V177: 0 | W177: 0 | X177: 0 | Y177: 0 | Z177: 0 | AA177: 0 | AC177: 24 | AD177: 6 | AE177: 0 | AF177: 0 | AG177: 0 | AH177: 0 | AI177: 0 | AJ177: =SUM(AC177:AI177) -> 30 | AL177: =SUM(I177+R177+AA177+AJ177) -> 54
A178: 13:30:00 | B178: 19 | C178: 3 | D178: 0 | E178: 0 | F178: 1 | G178: 0 | H178: 0 | I178: 23 | K178: 1 | L178: 1 | M178: 0 | N178: 0 | O178: 0 | P178: 0 | Q178: 0 | R178: 2 | T178: 0 | U178: 0 | V178: 0 | W178: 0 | X178: 0 | Y178: 0 | Z178: 0 | AA178: 0 | AC178: 28 | AD178: 5 | AE178: 0 | AF178: 0 | AG178: 1 | AH178: 0 | AI178: 0 | AJ178: =SUM(AC178:AI178) -> 34 | AL178: =SUM(I178+R178+AA178+AJ178) -> 59
A179: 13:45:00 | B179: 16 | C179: 1 | D179: 0 | E179: 0 | F179: 0 | G179: 0 | H179: 0 | I179: 17 | K179: 3 | L179: 0 | M179: 0 | N179: 0 | O179: 0 | P179: 0 | Q179: 0 | R179: 3 | T179: 0 | U179: 0 | V179: 0 | W179: 0 | X179: 0 | Y179: 0 | Z179: 0 | AA179: 0 | AC179: 11 | AD179: 3 | AE179: 1 | AF179: 0 | AG179: 1 | AH179: 0 | AI179: 0 | AJ179: =SUM(AC179:AI179) -> 16 | AL179: =SUM(I179+R179+AA179+AJ179) -> 36
A180: 1 Hr | B180: =SUM(B176:B179) -> 77 | C180: 9 | D180: 0 | E180: 0 | F180: 1 | G180: 0 | H180: 0 | I180: 87 | K180: =SUM(K176:K179) -> 4 | L180: 1 | M180: 0 | N180: 0 | O180: 0 | P180: 0 | Q180: 0 | R180: 5 | T180: =SUM(T176:T179) -> 0 | U180: 0 | V180: 0 | W180: 0 | X180: 0 | Y180: 0 | Z180: 0 | AA180: 0 | AC180: =SUM(AC176:AC179) -> 85 | AD180: 15 | AE180: 2 | AF180: 1 | AG180: 2 | AH180: 0 | AI180: 0 | AJ180: =SUM(AJ176:AJ179) -> 105 | AL180: =SUM(AL176:AL179) -> 197
A181: 14:00:00 | B181: 18 | C181: 6 | D181: 0 | E181: 0 | F181: 0 | G181: 0 | H181: 0 | I181: =SUM(B181:H181) -> 24 | K181: 0 | L181: 0 | M181: 0 | N181: 0 | O181: 0 | P181: 0 | Q181: 0 | R181: =SUM(K181:Q181) -> 0 | T181: 0 | U181: 0 | V181: 0 | W181: 0 | X181: 0 | Y181: 0 | Z181: 0 | AA181: =SUM(T181:Z181) -> 0 | AC181: 31 | AD181: 2 | AE181: 0 | AF181: 1 | AG181: 0 | AH181: 0 | AI181: 0 | AJ181: =SUM(AC181:AI181) -> 34 | AL181: =SUM(I181+R181+AA181+AJ181) -> 58
A182: 14:15:00 | B182: 15 | C182: 1 | D182: 0 | E182: 0 | F182: 0 | G182: 0 | H182: 0 | I182: 16 | K182: 1 | L182: 0 | M182: 0 | N182: 0 | O182: 0 | P182: 0 | Q182: 0 | R182: 1 | T182: 0 | U182: 0 | V182: 0 | W182: 0 | X182: 0 | Y182: 0 | Z182: 0 | AA182: 0 | AC182: 29 | AD182: 1 | AE182: 1 | AF182: 0 | AG182: 0 | AH182: 0 | AI182: 1 | AJ182: =SUM(AC182:AI182) -> 32 | AL182: =SUM(I182+R182+AA182+AJ182) -> 49
A183: 14:30:00 | B183: 10 | C183: 1 | D183: 0 | E183: 0 | F183: 0 | G183: 0 | H183: 0 | I183: 11 | K183: 0 | L183: 0 | M183: 0 | N183: 0 | O183: 0 | P183: 0 | Q183: 0 | R183: 0 | T183: 0 | U183: 0 | V183: 0 | W183: 0 | X183: 0 | Y183: 0 | Z183: 0 | AA183: 0 | AC183: 39 | AD183: 4 | AE183: 0 | AF183: 0 | AG183: 0 | AH183: 0 | AI183: 0 | AJ183: =SUM(AC183:AI183) -> 43 | AL183: =SUM(I183+R183+AA183+AJ183) -> 54
A184: 14:45:00 | B184: 16 | C184: 2 | D184: 0 | E184: 0 | F184: 0 | G184: 0 | H184: 0 | I184: 18 | K184: 2 | L184: 0 | M184: 0 | N184: 0 | O184: 0 | P184: 0 | Q184: 0 | R184: 2 | T184: 0 | U184: 0 | V184: 0 | W184: 0 | X184: 0 | Y184: 0 | Z184: 0 | AA184: 0 | AC184: 31 | AD184: 4 | AE184: 0 | AF184: 0 | AG184: 0 | AH184: 0 | AI184: 0 | AJ184: =SUM(AC184:AI184) -> 35 | AL184: =SUM(I184+R184+AA184+AJ184) -> 55
A185: 1 Hr | B185: =SUM(B181:B184) -> 59 | C185: 10 | D185: 0 | E185: 0 | F185: 0 | G185: 0 | H185: 0 | I185: 69 | K185: =SUM(K181:K184) -> 3 | L185: 0 | M185: 0 | N185: 0 | O185: 0 | P185: 0 | Q185: 0 | R185: 3 | T185: =SUM(T181:T184) -> 0 | U185: 0 | V185: 0 | W185: 0 | X185: 0 | Y185: 0 | Z185: 0 | AA185: 0 | AC185: =SUM(AC181:AC184) -> 130 | AD185: 11 | AE185: 1 | AF185: 1 | AG185: 0 | AH185: 0 | AI185: 1 | AJ185: =SUM(AJ181:AJ184) -> 144 | AL185: =SUM(AL181:AL184) -> 216
A186: 15:00:00 | B186: 17 | C186: 1 | D186: 0 | E186: 0 | F186: 0 | G186: 0 | H186: 0 | I186: =SUM(B186:H186) -> 18 | K186: 0 | L186: 0 | M186: 0 | N186: 0 | O186: 0 | P186: 0 | Q186: 0 | R186: =SUM(K186:Q186) -> 0 | T186: 0 | U186: 0 | V186: 0 | W186: 0 | X186: 0 | Y186: 0 | Z186: 0 | AA186: =SUM(T186:Z186) -> 0 | AC186: 48 | AD186: 2 | AE186: 1 | AF186: 0 | AG186: 0 | AH186: 0 | AI186: 1 | AJ186: =SUM(AC186:AI186) -> 52 | AL186: =SUM(I186+R186+AA186+AJ186) -> 70
A187: 15:15:00 | B187: 20 | C187: 1 | D187: 0 | E187: 0 | F187: 0 | G187: 0 | H187: 0 | I187: 21 | K187: 0 | L187: 0 | M187: 0 | N187: 0 | O187: 0 | P187: 0 | Q187: 0 | R187: 0 | T187: 0 | U187: 0 | V187: 0 | W187: 0 | X187: 0 | Y187: 0 | Z187: 0 | AA187: 0 | AC187: 37 | AD187: 1 | AE187: 0 | AF187: 0 | AG187: 0 | AH187: 1 | AI187: 0 | AJ187: =SUM(AC187:AI187) -> 39 | AL187: =SUM(I187+R187+AA187+AJ187) -> 60
A188: 15:30:00 | B188: 16 | C188: 3 | D188: 0 | E188: 0 | F188: 1 | G188: 0 | H188: 0 | I188: 20 | K188: 1 | L188: 0 | M188: 0 | N188: 0 | O188: 0 | P188: 0 | Q188: 0 | R188: 1 | T188: 0 | U188: 0 | V188: 0 | W188: 0 | X188: 0 | Y188: 0 | Z188: 0 | AA188: 0 | AC188: 32 | AD188: 3 | AE188: 0 | AF188: 0 | AG188: 0 | AH188: 0 | AI188: 0 | AJ188: =SUM(AC188:AI188) -> 35 | AL188: =SUM(I188+R188+AA188+AJ188) -> 56
A189: 15:45:00 | B189: 16 | C189: 1 | D189: 0 | E189: 0 | F189: 0 | G189: 0 | H189: 0 | I189: 17 | K189: 0 | L189: 0 | M189: 0 | N189: 0 | O189: 0 | P189: 0 | Q189: 0 | R189: 0 | T189: 0 | U189: 0 | V189: 0 | W189: 0 | X189: 0 | Y189: 0 | Z189: 0 | AA189: 0 | AC189: 38 | AD189: 2 | AE189: 0 | AF189: 0 | AG189: 0 | AH189: 0 | AI189: 3 | AJ189: =SUM(AC189:AI189) -> 43 | AL189: =SUM(I189+R189+AA189+AJ189) -> 60
A190: 1 Hr | B190: =SUM(B186:B189) -> 69 | C190: 6 | D190: 0 | E190: 0 | F190: 1 | G190: 0 | H190: 0 | I190: 76 | K190: =SUM(K186:K189) -> 1 | L190: 0 | M190: 0 | N190: 0 | O190: 0 | P190: 0 | Q190: 0 | R190: 1 | T190: =SUM(T186:T189) -> 0 | U190: 0 | V190: 0 | W190: 0 | X190: 0 | Y190: 0 | Z190: 0 | AA190: 0 | AC190: =SUM(AC186:AC189) -> 155 | AD190: 8 | AE190: 1 | AF190: 0 | AG190: 0 | AH190: 1 | AI190: 4 | AJ190: =SUM(AJ186:AJ189) -> 169 | AL190: =SUM(AL186:AL189) -> 246
A191: 16:00:00 | B191: 10 | C191: 2 | D191: 0 | E191: 0 | F191: 0 | G191: 0 | H191: 0 | I191: =SUM(B191:H191) -> 12 | K191: 0 | L191: 0 | M191: 0 | N191: 0 | O191: 0 | P191: 0 | Q191: 0 | R191: =SUM(K191:Q191) -> 0 | T191: 0 | U191: 0 | V191: 0 | W191: 0 | X191: 0 | Y191: 0 | Z191: 0 | AA191: =SUM(T191:Z191) -> 0 | AC191: 39 | AD191: 6 | AE191: 0 | AF191: 0 | AG191: 1 | AH191: 0 | AI191: 0 | AJ191: =SUM(AC191:AI191) -> 46 | AL191: =SUM(I191+R191+AA191+AJ191) -> 58
A192: 16:15:00 | B192: 12 | C192: 0 | D192: 0 | E192: 0 | F192: 0 | G192: 0 | H192: 0 | I192: 12 | K192: 0 | L192: 0 | M192: 0 | N192: 0 | O192: 0 | P192: 0 | Q192: 0 | R192: 0 | T192: 0 | U192: 0 | V192: 0 | W192: 0 | X192: 0 | Y192: 0 | Z192: 0 | AA192: 0 | AC192: 35 | AD192: 2 | AE192: 1 | AF192: 0 | AG192: 0 | AH192: 0 | AI192: 1 | AJ192: =SUM(AC192:AI192) -> 39 | AL192: =SUM(I192+R192+AA192+AJ192) -> 51
A193: 16:30:00 | B193: 24 | C193: 2 | D193: 0 | E193: 0 | F193: 0 | G193: 0 | H193: 0 | I193: 26 | K193: 0 | L193: 0 | M193: 0 | N193: 0 | O193: 0 | P193: 0 | Q193: 0 | R193: 0 | T193: 0 | U193: 0 | V193: 0 | W193: 0 | X193: 0 | Y193: 0 | Z193: 0 | AA193: 0 | AC193: 30 | AD193: 2 | AE193: 0 | AF193: 0 | AG193: 0 | AH193: 0 | AI193: 0 | AJ193: =SUM(AC193:AI193) -> 32 | AL193: =SUM(I193+R193+AA193+AJ193) -> 58
A194: 16:45:00 | B194: 6 | C194: 1 | D194: 0 | E194: 0 | F194: 1 | G194: 0 | H194: 0 | I194: 8 | K194: 0 | L194: 0 | M194: 0 | N194: 0 | O194: 0 | P194: 0 | Q194: 0 | R194: 0 | T194: 0 | U194: 0 | V194: 0 | W194: 0 | X194: 0 | Y194: 0 | Z194: 0 | AA194: 0 | AC194: 30 | AD194: 3 | AE194: 0 | AF194: 0 | AG194: 0 | AH194: 0 | AI194: 0 | AJ194: =SUM(AC194:AI194) -> 33 | AL194: =SUM(I194+R194+AA194+AJ194) -> 41
A195: 1 Hr | B195: =SUM(B191:B194) -> 52 | C195: 5 | D195: 0 | E195: 0 | F195: 1 | G195: 0 | H195: 0 | I195: 58 | K195: =SUM(K191:K194) -> 0 | L195: 0 | M195: 0 | N195: 0 | O195: 0 | P195: 0 | Q195: 0 | R195: 0 | T195: =SUM(T191:T194) -> 0 | U195: 0 | V195: 0 | W195: 0 | X195: 0 | Y195: 0 | Z195: 0 | AA195: 0 | AC195: =SUM(AC191:AC194) -> 134 | AD195: 13 | AE195: 1 | AF195: 0 | AG195: 1 | AH195: 0 | AI195: 1 | AJ195: =SUM(AJ191:AJ194) -> 150 | AL195: =SUM(AL191:AL194) -> 208
A196: 17:00:00 | B196: 12 | C196: 0 | D196: 0 | E196: 0 | F196: 0 | G196: 0 | H196: 0 | I196: =SUM(B196:H196) -> 12 | K196: 1 | L196: 0 | M196: 0 | N196: 0 | O196: 0 | P196: 0 | Q196: 0 | R196: =SUM(K196:Q196) -> 1 | T196: 0 | U196: 0 | V196: 0 | W196: 0 | X196: 0 | Y196: 0 | Z196: 0 | AA196: =SUM(T196:Z196) -> 0 | AC196: 28 | AD196: 2 | AE196: 0 | AF196: 0 | AG196: 1 | AH196: 1 | AI196: 2 | AJ196: =SUM(AC196:AI196) -> 34 | AL196: =SUM(I196+R196+AA196+AJ196) -> 47
A197: 17:15:00 | B197: 18 | C197: 1 | D197: 0 | E197: 0 | F197: 0 | G197: 0 | H197: 0 | I197: 19 | K197: 2 | L197: 0 | M197: 0 | N197: 0 | O197: 0 | P197: 0 | Q197: 0 | R197: 2 | T197: 0 | U197: 0 | V197: 0 | W197: 0 | X197: 0 | Y197: 0 | Z197: 0 | AA197: 0 | AC197: 27 | AD197: 4 | AE197: 0 | AF197: 0 | AG197: 0 | AH197: 0 | AI197: 1 | AJ197: =SUM(AC197:AI197) -> 32 | AL197: =SUM(I197+R197+AA197+AJ197) -> 53
A198: 17:30:00 | B198: 14 | C198: 0 | D198: 0 | E198: 0 | F198: 0 | G198: 0 | H198: 0 | I198: 14 | K198: 3 | L198: 0 | M198: 0 | N198: 0 | O198: 0 | P198: 0 | Q198: 0 | R198: 3 | T198: 0 | U198: 0 | V198: 0 | W198: 0 | X198: 0 | Y198: 0 | Z198: 0 | AA198: 0 | AC198: 38 | AD198: 4 | AE198: 1 | AF198: 0 | AG198: 0 | AH198: 0 | AI198: 0 | AJ198: =SUM(AC198:AI198) -> 43 | AL198: =SUM(I198+R198+AA198+AJ198) -> 60
A199: 17:45:00 | B199: 21 | C199: 0 | D199: 0 | E199: 0 | F199: 0 | G199: 0 | H199: 0 | I199: 21 | K199: 0 | L199: 0 | M199: 0 | N199: 0 | O199: 0 | P199: 0 | Q199: 0 | R199: 0 | T199: 0 | U199: 0 | V199: 0 | W199: 0 | X199: 0 | Y199: 0 | Z199: 0 | AA199: 0 | AC199: 35 | AD199: 3 | AE199: 1 | AF199: 0 | AG199: 0 | AH199: 0 | AI199: 0 | AJ199: =SUM(AC199:AI199) -> 39 | AL199: =SUM(I199+R199+AA199+AJ199) -> 60
A200: 1 Hr | B200: =SUM(B196:B199) -> 65 | C200: 1 | D200: 0 | E200: 0 | F200: 0 | G200: 0 | H200: 0 | I200: 66 | K200: =SUM(K196:K199) -> 6 | L200: 0 | M200: 0 | N200: 0 | O200: 0 | P200: 0 | Q200: 0 | R200: 6 | T200: =SUM(T196:T199) -> 0 | U200: 0 | V200: 0 | W200: 0 | X200: 0 | Y200: 0 | Z200: 0 | AA200: 0 | AC200: =SUM(AC196:AC199) -> 128 | AD200: 13 | AE200: 2 | AF200: 0 | AG200: 1 | AH200: 1 | AI200: 3 | AJ200: =SUM(AJ196:AJ199) -> 148 | AL200: =SUM(AL196:AL199) -> 220
A201: 18:00:00 | B201: 9 | C201: 1 | D201: 0 | E201: 0 | F201: 0 | G201: 0 | H201: 0 | I201: =SUM(B201:H201) -> 10 | K201: 1 | L201: 0 | M201: 0 | N201: 0 | O201: 0 | P201: 0 | Q201: 0 | R201: =SUM(K201:Q201) -> 1 | T201: 0 | U201: 0 | V201: 0 | W201: 0 | X201: 0 | Y201: 0 | Z201: 0 | AA201: =SUM(T201:Z201) -> 0 | AC201: 31 | AD201: 3 | AE201: 0 | AF201: 0 | AG201: 0 | AH201: 0 | AI201: 0 | AJ201: =SUM(AC201:AI201) -> 34 | AL201: =SUM(I201+R201+AA201+AJ201) -> 45
A202: 18:15:00 | B202: 23 | C202: 2 | D202: 0 | E202: 0 | F202: 0 | G202: 0 | H202: 0 | I202: 25 | K202: 0 | L202: 0 | M202: 0 | N202: 0 | O202: 0 | P202: 0 | Q202: 0 | R202: 0 | T202: 0 | U202: 0 | V202: 0 | W202: 0 | X202: 0 | Y202: 0 | Z202: 0 | AA202: 0 | AC202: 21 | AD202: 0 | AE202: 0 | AF202: 0 | AG202: 0 | AH202: 1 | AI202: 0 | AJ202: =SUM(AC202:AI202) -> 22 | AL202: =SUM(I202+R202+AA202+AJ202) -> 47
A203: 18:30:00 | B203: 12 | C203: 1 | D203: 0 | E203: 0 | F203: 0 | G203: 0 | H203: 0 | I203: 13 | K203: 0 | L203: 0 | M203: 0 | N203: 0 | O203: 0 | P203: 0 | Q203: 0 | R203: 0 | T203: 0 | U203: 0 | V203: 0 | W203: 0 | X203: 0 | Y203: 0 | Z203: 0 | AA203: 0 | AC203: 21 | AD203: 1 | AE203: 0 | AF203: 0 | AG203: 0 | AH203: 0 | AI203: 0 | AJ203: =SUM(AC203:AI203) -> 22 | AL203: =SUM(I203+R203+AA203+AJ203) -> 35
A204: 18:45:00 | B204: 16 | C204: 0 | D204: 0 | E204: 0 | F204: 0 | G204: 0 | H204: 0 | I204: 16 | K204: 0 | L204: 0 | M204: 0 | N204: 0 | O204: 0 | P204: 0 | Q204: 0 | R204: 0 | T204: 0 | U204: 0 | V204: 0 | W204: 0 | X204: 0 | Y204: 0 | Z204: 0 | AA204: 0 | AC204: 26 | AD204: 1 | AE204: 0 | AF204: 0 | AG204: 0 | AH204: 0 | AI204: 0 | AJ204: =SUM(AC204:AI204) -> 27 | AL204: =SUM(I204+R204+AA204+AJ204) -> 43
A205: 1 Hr | B205: =SUM(B201:B204) -> 60 | C205: 4 | D205: 0 | E205: 0 | F205: 0 | G205: 0 | H205: 0 | I205: 64 | K205: =SUM(K201:K204) -> 1 | L205: 0 | M205: 0 | N205: 0 | O205: 0 | P205: 0 | Q205: 0 | R205: 1 | T205: =SUM(T201:T204) -> 0 | U205: 0 | V205: 0 | W205: 0 | X205: 0 | Y205: 0 | Z205: 0 | AA205: 0 | AC205: =SUM(AC201:AC204) -> 99 | AD205: 5 | AE205: 0 | AF205: 0 | AG205: 0 | AH205: 1 | AI205: 0 | AJ205: =SUM(AJ201:AJ204) -> 105 | AL205: =SUM(AL201:AL204) -> 170
A207: Total | B207: =SUM(B205+B200+B195+B190+B185+B180+B175+B170+B165+B160+B155+B150) -> 881 | C207: 64 | D207: 11 | E207: 3 | F207: 10 | G207: 2 | H207: 3 | I207: 974 | K207: =SUM(K205+K200+K195+K190+K185+K180+K175+K170+K165+K160+K155+K150) -> 28 | L207: 3 | M207: 1 | N207: 0 | O207: 0 | P207: 0 | Q207: 0 | R207: 32 | T207: =SUM(T205+T200+T195+T190+T185+T180+T175+T170+T165+T160+T155+T150) -> 0 | U207: 0 | V207: 0 | W207: 0 | X207: 0 | Y207: 0 | Z207: 0 | AA207: 0 | AC207: =SUM(AC205+AC200+AC195+AC190+AC185+AC180+AC175+AC170+AC165+AC160+AC155+AC150) -> 1477 | AD207: 158 | AE207: 17 | AF207: 3 | AG207: 6 | AH207: 5 | AI207: 13 | AJ207: =SUM(AJ205+AJ200+AJ195+AJ190+AJ185+AJ180+AJ175+AJ170+AJ165+AJ160+AJ155+AJ150) -> 1679 | AL207: =SUM(AL205+AL200+AL195+AL190+AL185+AL180+AL175+AL170+AL165+AL160+AL155+AL150) -> 2685
A209: Origin : | B209: Arm D | C209: A4040 Vicarage Road
B210: Destination : | D210: Arm A | E210: B4122 Vicarage Road | I210: Total | K210: Destination : | M210: Arm B | N210: A4040 Howard Road | R210: Total | T210: Destination : | V210: Arm C | W210: Grove Road | AA210: Total | AC210: Destination : | AE210: Arm D | AF210: A4040 Vicarage Road | AJ210: Total | AL210: Arm
B211: =$B$10 -> Car | C211: =$C$10 -> LGV | D211: =$D$10 -> OGV1 | E211: =$E$10 -> OGV2 | F211: =$F$10 -> Bus/Coach | G211: =$G$10 -> MC | H211: =$H$10 -> PC | K211: =$B$10 -> Car | L211: =$C$10 -> LGV | M211: =$D$10 -> OGV1 | N211: =$E$10 -> OGV2 | O211: =$F$10 -> Bus/Coach | P211: =$G$10 -> MC | Q211: =$H$10 -> PC | T211: =$B$10 -> Car | U211: =$C$10 -> LGV | V211: =$D$10 -> OGV1 | W211: =$E$10 -> OGV2 | X211: =$F$10 -> Bus/Coach | Y211: =$G$10 -> MC | Z211: =$H$10 -> PC | AC211: =$B$10 -> Car | AD211: =$C$10 -> LGV | AE211: =$D$10 -> OGV1 | AF211: =$E$10 -> OGV2 | AG211: =$F$10 -> Bus/Coach | AH211: =$G$10 -> MC | AI211: =$H$10 -> PC | AL211: Totals
... 189 more rows

Sheet Site 2
AL1: ='Project Details'!F9&" "&'Project Details'!F10 -> 4204-MID Birmingham City Counts 2021
AL2: ='Project Details'!R7 -> Junction Turning Count
AL3: ='Project Details'!F14 -> 25/05/2021
AL5: Site 2 - B4122 Vicarage Road(ENE) / Abbots Road / B4122 Vicarage Road(WSW) / Avenue Road
A8: Origin : | B8: Arm A | C8: B4122 Vicarage Road(ENE)
B9: Destination : | D9: Arm A | E9: B4122 Vicarage Road(ENE) | I9: Total | K9: Destination : | M9: Arm B | N9: Abbots Road | R9: Total | T9: Destination : | V9: Arm C | W9: B4122 Vicarage Road(WSW) | AA9: Total | AC9: Destination : | AE9: Arm D | AF9: Avenue Road | AJ9: Total | AL9: Arm
B10: Car | C10: LGV | D10: OGV1 | E10: OGV2 | F10: Bus/Coach | G10: MC | H10: PC | K10: =$B$10 -> Car | L10: =$C$10 -> LGV | M10: =$D$10 -> OGV1 | N10: =$E$10 -> OGV2 | O10: =$F$10 -> Bus/Coach | P10: =$G$10 -> MC | Q10: =$H$10 -> PC | T10: =$B$10 -> Car | U10: =$C$10 -> LGV | V10: =$D$10 -> OGV1 | W10: =$E$10 -> OGV2 | X10: =$F$10 -> Bus/Coach | Y10: =$G$10 -> MC | Z10: =$H$10 -> PC | AC10: =$B$10 -> Car | AD10: =$C$10 -> LGV | AE10: =$D$10 -> OGV1 | AF10: =$E$10 -> OGV2 | AG10: =$F$10 -> Bus/Coach | AH10: =$G$10 -> MC | AI10: =$H$10 -> PC | AL10: Totals
A12: 07:00:00 | B12: 0 | C12: 0 | D12: 0 | E12: 0 | F12: 0 | G12: 0 | H12: 0 | I12: =SUM(B12:H12) -> 0 | K12: 1 | L12: 0 | M12: 0 | N12: 0 | O12: 0 | P12: 0 | Q12: 0 | R12: =SUM(K12:Q12) -> 1 | T12: 20 | U12: 0 | V12: 2 | W12: 1 | X12: 7 | Y12: 0 | Z12: 1 | AA12: =SUM(T12:Z12) -> 31 | AC12: 19 | AD12: 2 | AE12: 0 | AF12: 0 | AG12: 1 | AH12: 0 | AI12: 1 | AJ12: =SUM(AC12:AI12) -> 23 | AL12: =SUM(I12+R12+AA12+AJ12) -> 55
A13: 07:15:00 | B13: 0 | C13: 0 | D13: 0 | E13: 0 | F13: 0 | G13: 0 | H13: 0 | I13: 0 | K13: 1 | L13: 1 | M13: 0 | N13: 0 | O13: 0 | P13: 0 | Q13: 0 | R13: 2 | T13: 29 | U13: 4 | V13: 5 | W13: 0 | X13: 4 | Y13: 0 | Z13: 0 | AA13: 42 | AC13: 39 | AD13: 3 | AE13: 1 | AF13: 0 | AG13: 1 | AH13: 0 | AI13: 0 | AJ13: =SUM(AC13:AI13) -> 44 | AL13: =SUM(I13+R13+AA13+AJ13) -> 88
A14: 07:30:00 | B14: 0 | C14: 0 | D14: 0 | E14: 0 | F14: 0 | G14: 0 | H14: 0 | I14: 0 | K14: 0 | L14: 0 | M14: 0 | N14: 0 | O14: 0 | P14: 0 | Q14: 0 | R14: 0 | T14: 34 | U14: 3 | V14: 1 | W14: 0 | X14: 5 | Y14: 0 | Z14: 1 | AA14: 44 | AC14: 42 | AD14: 4 | AE14: 2 | AF14: 0 | AG14: 3 | AH14: 1 | AI14: 0 | AJ14: =SUM(AC14:AI14) -> 52 | AL14: =SUM(I14+R14+AA14+AJ14) -> 96
A15: 07:45:00 | B15: 0 | C15: 0 | D15: 0 | E15: 0 | F15: 0 | G15: 0 | H15: 0 | I15: 0 | K15: 1 | L15: 0 | M15: 0 | N15: 0 | O15: 0 | P15: 0 | Q15: 1 | R15: 2 | T15: 43 | U15: 6 | V15: 2 | W15: 0 | X15: 7 | Y15: 0 | Z15: 2 | AA15: 60 | AC15: 46 | AD15: 5 | AE15: 2 | AF15: 0 | AG15: 3 | AH15: 0 | AI15: 0 | AJ15: =SUM(AC15:AI15) -> 56 | AL15: =SUM(I15+R15+AA15+AJ15) -> 118
A16: 1 Hr | B16: =SUM(B12:B15) -> 0 | C16: 0 | D16: 0 | E16: 0 | F16: 0 | G16: 0 | H16: 0 | I16: 0 | K16: =SUM(K12:K15) -> 3 | L16: 1 | M16: 0 | N16: 0 | O16: 0 | P16: 0 | Q16: 1 | R16: 5 | T16: =SUM(T12:T15) -> 126 | U16: 13 | V16: 10 | W16: 1 | X16: 23 | Y16: 0 | Z16: 4 | AA16: 177 | AC16: =SUM(AC12:AC15) -> 146 | AD16: 14 | AE16: 5 | AF16: 0 | AG16: 8 | AH16: 1 | AI16: 1 | AJ16: =SUM(AJ12:AJ15) -> 175 | AL16: =SUM(AL12:AL15) -> 357
A17: 08:00:00 | B17: 0 | C17: 0 | D17: 0 | E17: 0 | F17: 0 | G17: 0 | H17: 0 | I17: =SUM(B17:H17) -> 0 | K17: 2 | L17: 0 | M17: 0 | N17: 0 | O17: 0 | P17: 0 | Q17: 2 | R17: =SUM(K17:Q17) -> 4 | T17: 55 | U17: 2 | V17: 0 | W17: 0 | X17: 5 | Y17: 0 | Z17: 0 | AA17: =SUM(T17:Z17) -> 62 | AC17: 44 | AD17: 3 | AE17: 0 | AF17: 0 | AG17: 3 | AH17: 0 | AI17: 0 | AJ17: =SUM(AC17:AI17) -> 50 | AL17: =SUM(I17+R17+AA17+AJ17) -> 116
A18: 08:15:00 | B18: 0 | C18: 0 | D18: 0 | E18: 0 | F18: 0 | G18: 0 | H18: 0 | I18: 0 | K18: 1 | L18: 0 | M18: 0 | N18: 0 | O18: 0 | P18: 0 | Q18: 0 | R18: 1 | T18: 62 | U18: 0 | V18: 2 | W18: 0 | X18: 5 | Y18: 2 | Z18: 2 | AA18: 73 | AC18: 52 | AD18: 2 | AE18: 0 | AF18: 0 | AG18: 1 | AH18: 0 | AI18: 1 | AJ18: =SUM(AC18:AI18) -> 56 | AL18: =SUM(I18+R18+AA18+AJ18) -> 130
A19: 08:30:00 | B19: 0 | C19: 0 | D19: 0 | E19: 0 | F19: 0 | G19: 0 | H19: 0 | I19: 0 | K19: 0 | L19: 0 | M19: 0 | N19: 0 | O19: 0 | P19: 0 | Q19: 0 | R19: 0 | T19: 50 | U19: 6 | V19: 1 | W19: 0 | X19: 4 | Y19: 0 | Z19: 1 | AA19: 62 | AC19: 54 | AD19: 1 | AE19: 0 | AF19: 0 | AG19: 3 | AH19: 0 | AI19: 0 | AJ19: =SUM(AC19:AI19) -> 58 | AL19: =SUM(I19+R19+AA19+AJ19) -> 120
A20: 08:45:00 | B20: 0 | C20: 0 | D20: 0 | E20: 0 | F20: 0 | G20: 0 | H20: 0 | I20: 0 | K20: 2 | L20: 1 | M20: 0 | N20: 0 | O20: 0 | P20: 0 | Q20: 0 | R20: 3 | T20: 35 | U20: 7 | V20: 1 | W20: 0 | X20: 7 | Y20: 1 | Z20: 1 | AA20: 52 | AC20: 43 | AD20: 2 | AE20: 0 | AF20: 0 | AG20: 1 | AH20: 0 | AI20: 1 | AJ20: =SUM(AC20:AI20) -> 47 | AL20: =SUM(I20+R20+AA20+AJ20) -> 102
A21: 1 Hr | B21: =SUM(B17:B20) -> 0 | C21: 0 | D21: 0 | E21: 0 | F21: 0 | G21: 0 | H21: 0 | I21: 0 | K21: =SUM(K17:K20) -> 5 | L21: 1 | M21: 0 | N21: 0 | O21: 0 | P21: 0 | Q21: 2 | R21: 8 | T21: =SUM(T17:T20) -> 202 | U21: 15 | V21: 4 | W21: 0 | X21: 21 | Y21: 3 | Z21: 4 | AA21: 249 | AC21: =SUM(AC17:AC20) -> 193 | AD21: 8 | AE21: 0 | AF21: 0 | AG21: 8 | AH21: 0 | AI21: 2 | AJ21: =SUM(AJ17:AJ20) -> 211 | AL21: =SUM(AL17:AL20) -> 468
A22: 09:00:00 | B22: 0 | C22: 0 | D22: 0 | E22: 0 | F22: 0 | G22: 0 | H22: 0 | I22: =SUM(B22:H22) -> 0 | K22: 0 | L22: 0 | M22: 1 | N22: 0 | O22: 0 | P22: 1 | Q22: 0 | R22: =SUM(K22:Q22) -> 2 | T22: 36 | U22: 9 | V22: 3 | W22: 1 | X22: 6 | Y22: 0 | Z22: 1 | AA22: =SUM(T22:Z22) -> 56 | AC22: 21 | AD22: 4 | AE22: 0 | AF22: 0 | AG22: 4 | AH22: 0 | AI22: 0 | AJ22: =SUM(AC22:AI22) -> 29 | AL22: =SUM(I22+R22+AA22+AJ22) -> 87
A23: 09:15:00 | B23: 0 | C23: 0 | D23: 0 | E23: 0 | F23: 0 | G23: 0 | H23: 0 | I23: 0 | K23: 1 | L23: 0 | M23: 0 | N23: 0 | O23: 0 | P23: 0 | Q23: 0 | R23: 1 | T23: 21 | U23: 6 | V23: 0 | W23: 0 | X23: 7 | Y23: 0 | Z23: 0 | AA23: 34 | AC23: 27 | AD23: 3 | AE23: 0 | AF23: 0 | AG23: 2 | AH23: 0 | AI23: 0 | AJ23: =SUM(AC23:AI23) -> 32 | AL23: =SUM(I23+R23+AA23+AJ23) -> 67
A24: 09:30:00 | B24: 0 | C24: 0 | D24: 0 | E24: 0 | F24: 0 | G24: 0 | H24: 0 | I24: 0 | K24: 0 | L24: 0 | M24: 0 | N24: 0 | O24: 0 | P24: 0 | Q24: 0 | R24: 0 | T24: 43 | U24: 6 | V24: 2 | W24: 0 | X24: 3 | Y24: 0 | Z24: 0 | AA24: 54 | AC24: 24 | AD24: 5 | AE24: 1 | AF24: 0 | AG24: 2 | AH24: 0 | AI24: 1 | AJ24: =SUM(AC24:AI24) -> 33 | AL24: =SUM(I24+R24+AA24+AJ24) -> 87
A25: 09:45:00 | B25: 0 | C25: 0 | D25: 0 | E25: 0 | F25: 0 | G25: 0 | H25: 0 | I25: 0 | K25: 0 | L25: 0 | M25: 0 | N25: 0 | O25: 0 | P25: 0 | Q25: 1 | R25: 1 | T25: 40 | U25: 4 | V25: 0 | W25: 3 | X25: 3 | Y25: 0 | Z25: 0 | AA25: 50 | AC25: 25 | AD25: 4 | AE25: 1 | AF25: 0 | AG25: 1 | AH25: 0 | AI25: 0 | AJ25: =SUM(AC25:AI25) -> 31 | AL25: =SUM(I25+R25+AA25+AJ25) -> 82
A26: 1 Hr | B26: =SUM(B22:B25) -> 0 | C26: 0 | D26: 0 | E26: 0 | F26: 0 | G26: 0 | H26: 0 | I26: 0 | K26: =SUM(K22:K25) -> 1 | L26: 0 | M26: 1 | N26: 0 | O26: 0 | P26: 1 | Q26: 1 | R26: 4 | T26: =SUM(T22:T25) -> 140 | U26: 25 | V26: 5 | W26: 4 | X26: 19 | Y26: 0 | Z26: 1 | AA26: 194 | AC26: =SUM(AC22:AC25) -> 97 | AD26: 16 | AE26: 2 | AF26: 0 | AG26: 9 | AH26: 0 | AI26: 1 | AJ26: =SUM(AJ22:AJ25) -> 125 | AL26: =SUM(AL22:AL25) -> 323
A27: 10:00:00 | B27: 0 | C27: 0 | D27: 0 | E27: 0 | F27: 0 | G27: 0 | H27: 0 | I27: =SUM(B27:H27) -> 0 | K27: 1 | L27: 0 | M27: 0 | N27: 0 | O27: 0 | P27: 0 | Q27: 0 | R27: =SUM(K27:Q27) -> 1 | T27: 42 | U27: 4 | V27: 1 | W27: 0 | X27: 5 | Y27: 0 | Z27: 1 | AA27: =SUM(T27:Z27) -> 53 | AC27: 21 | AD27: 4 | AE27: 0 | AF27: 0 | AG27: 2 | AH27: 0 | AI27: 1 | AJ27: =SUM(AC27:AI27) -> 28 | AL27: =SUM(I27+R27+AA27+AJ27) -> 82
A28: 10:15:00 | B28: 0 | C28: 0 | D28: 0 | E28: 0 | F28: 0 | G28: 0 | H28: 0 | I28: 0 | K28: 1 | L28: 0 | M28: 0 | N28: 0 | O28: 0 | P28: 1 | Q28: 0 | R28: 2 | T28: 40 | U28: 6 | V28: 0 | W28: 0 | X28: 4 | Y28: 0 | Z28: 0 | AA28: 50 | AC28: 31 | AD28: 3 | AE28: 1 | AF28: 0 | AG28: 1 | AH28: 0 | AI28: 0 | AJ28: =SUM(AC28:AI28) -> 36 | AL28: =SUM(I28+R28+AA28+AJ28) -> 88
A29: 10:30:00 | B29: 0 | C29: 0 | D29: 0 | E29: 0 | F29: 0 | G29: 0 | H29: 0 | I29: 0 | K29: 0 | L29: 0 | M29: 0 | N29: 0 | O29: 0 | P29: 0 | Q29: 0 | R29: 0 | T29: 35 | U29: 3 | V29: 1 | W29: 0 | X29: 3 | Y29: 0 | Z29: 1 | AA29: 43 | AC29: 27 | AD29: 3 | AE29: 1 | AF29: 0 | AG29: 2 | AH29: 0 | AI29: 1 | AJ29: =SUM(AC29:AI29) -> 34 | AL29: =SUM(I29+R29+AA29+AJ29) -> 77
A30: 10:45:00 | B30: 0 | C30: 0 | D30: 0 | E30: 0 | F30: 0 | G30: 0 | H30: 0 | I30: 0 | K30: 0 | L30: 0 | M30: 0 | N30: 0 | O30: 0 | P30: 0 | Q30: 0 | R30: 0 | T30: 28 | U30: 10 | V30: 0 | W30: 1 | X30: 4 | Y30: 0 | Z30: 2 | AA30: 45 | AC30: 24 | AD30: 3 | AE30: 0 | AF30: 0 | AG30: 1 | AH30: 0 | AI30: 0 | AJ30: =SUM(AC30:AI30) -> 28 | AL30: =SUM(I30+R30+AA30+AJ30) -> 73
A31: 1 Hr | B31: =SUM(B27:B30) -> 0 | C31: 0 | D31: 0 | E31: 0 | F31: 0 | G31: 0 | H31: 0 | I31: 0 | K31: =SUM(K27:K30) -> 2 | L31: 0 | M31: 0 | N31: 0 | O31: 0 | P31: 1 | Q31: 0 | R31: 3 | T31: =SUM(T27:T30) -> 145 | U31: 23 | V31: 2 | W31: 1 | X31: 16 | Y31: 0 | Z31: 4 | AA31: 191 | AC31: =SUM(AC27:AC30) -> 103 | AD31: 13 | AE31: 2 | AF31: 0 | AG31: 6 | AH31: 0 | AI31: 2 | AJ31: =SUM(AJ27:AJ30) -> 126 | AL31: =SUM(AL27:AL30) -> 320
A32: 11:00:00 | B32: 0 | C32: 0 | D32: 0 | E32: 0 | F32: 0 | G32: 0 | H32: 0 | I32: =SUM(B32:H32) -> 0 | K32: 2 | L32: 0 | M32: 1 | N32: 0 | O32: 0 | P32: 0 | Q32: 0 | R32: =SUM(K32:Q32) -> 3 | T32: 30 | U32: 9 | V32: 2 | W32: 0 | X32: 5 | Y32: 0 | Z32: 0 | AA32: =SUM(T32:Z32) -> 46 | AC32: 18 | AD32: 6 | AE32: 0 | AF32: 0 | AG32: 2 | AH32: 0 | AI32: 0 | AJ32: =SUM(AC32:AI32) -> 26 | AL32: =SUM(I32+R32+AA32+AJ32) -> 75
A33: 11:15:00 | B33: 0 | C33: 0 | D33: 0 | E33: 0 | F33: 0 | G33: 0 | H33: 0 | I33: 0 | K33: 0 | L33: 0 | M33: 0 | N33: 0 | O33: 0 | P33: 0 | Q33: 0 | R33: 0 | T33: 32 | U33: 3 | V33: 0 | W33: 0 | X33: 4 | Y33: 0 | Z33: 0 | AA33: 39 | AC33: 23 | AD33: 2 | AE33: 0 | AF33: 0 | AG33: 2 | AH33: 0 | AI33: 0 | AJ33: =SUM(AC33:AI33) -> 27 | AL33: =SUM(I33+R33+AA33+AJ33) -> 66
A34: 11:30:00 | B34: 0 | C34: 0 | D34: 0 | E34: 0 | F34: 0 | G34: 0 | H34: 0 | I34: 0 | K34: 0 | L34: 0 | M34: 0 | N34: 0 | O34: 0 | P34: 0 | Q34: 0 | R34: 0 | T34: 31 | U34: 4 | V34: 0 | W34: 0 | X34: 5 | Y34: 0 | Z34: 2 | AA34: 42 | AC34: 18 | AD34: 1 | AE34: 0 | AF34: 0 | AG34: 1 | AH34: 0 | AI34: 0 | AJ34: =SUM(AC34:AI34) -> 20 | AL34: =SUM(I34+R34+AA34+AJ34) -> 62
A35: 11:45:00 | B35: 0 | C35: 0 | D35: 0 | E35: 0 | F35: 0 | G35: 0 | H35: 0 | I35: 0 | K35: 2 | L35: 0 | M35: 0 | N35: 0 | O35: 0 | P35: 0 | Q35: 1 | R35: 3 | T35: 48 | U35: 4 | V35: 1 | W35: 0 | X35: 3 | Y35: 1 | Z35: 0 | AA35: 57 | AC35: 32 | AD35: 3 | AE35: 0 | AF35: 0 | AG35: 1 | AH35: 0 | AI35: 0 | AJ35: =SUM(AC35:AI35) -> 36 | AL35: =SUM(I35+R35+AA35+AJ35) -> 96
A36: 1 Hr | B36: =SUM(B32:B35) -> 0 | C36: 0 | D36: 0 | E36: 0 | F36: 0 | G36: 0 | H36: 0 | I36: 0 | K36: =SUM(K32:K35) -> 4 | L36: 0 | M36: 1 | N36: 0 | O36: 0 | P36: 0 | Q36: 1 | R36: 6 | T36: =SUM(T32:T35) -> 141 | U36: 20 | V36: 3 | W36: 0 | X36: 17 | Y36: 1 | Z36: 2 | AA36: 184 | AC36: =SUM(AC32:AC35) -> 91 | AD36: 12 | AE36: 0 | AF36: 0 | AG36: 6 | AH36: 0 | AI36: 0 | AJ36: =SUM(AJ32:AJ35) -> 109 | AL36: =SUM(AL32:AL35) -> 299
A37: 12:00:00 | B37: 0 | C37: 0 | D37: 0 | E37: 0 | F37: 0 | G37: 0 | H37: 0 | I37: =SUM(B37:H37) -> 0 | K37: 1 | L37: 0 | M37: 0 | N37: 0 | O37: 0 | P37: 0 | Q37: 0 | R37: =SUM(K37:Q37) -> 1 | T37: 38 | U37: 3 | V37: 0 | W37: 0 | X37: 4 | Y37: 1 | Z37: 0 | AA37: =SUM(T37:Z37) -> 46 | AC37: 22 | AD37: 2 | AE37: 1 | AF37: 0 | AG37: 1 | AH37: 0 | AI37: 0 | AJ37: =SUM(AC37:AI37) -> 26 | AL37: =SUM(I37+R37+AA37+AJ37) -> 73
A38: 12:15:00 | B38: 0 | C38: 0 | D38: 0 | E38: 0 | F38: 0 | G38: 0 | H38: 0 | I38: 0 | K38: 1 | L38: 3 | M38: 0 | N38: 0 | O38: 0 | P38: 0 | Q38: 0 | R38: 4 | T38: 42 | U38: 4 | V38: 0 | W38: 0 | X38: 3 | Y38: 0 | Z38: 1 | AA38: 50 | AC38: 29 | AD38: 3 | AE38: 0 | AF38: 0 | AG38: 3 | AH38: 0 | AI38: 2 | AJ38: =SUM(AC38:AI38) -> 37 | AL38: =SUM(I38+R38+AA38+AJ38) -> 91
A39: 12:30:00 | B39: 0 | C39: 0 | D39: 0 | E39: 0 | F39: 0 | G39: 0 | H39: 0 | I39: 0 | K39: 1 | L39: 0 | M39: 0 | N39: 0 | O39: 0 | P39: 0 | Q39: 0 | R39: 1 | T39: 41 | U39: 4 | V39: 0 | W39: 0 | X39: 4 | Y39: 0 | Z39: 0 | AA39: 49 | AC39: 19 | AD39: 3 | AE39: 1 | AF39: 0 | AG39: 3 | AH39: 0 | AI39: 0 | AJ39: =SUM(AC39:AI39) -> 26 | AL39: =SUM(I39+R39+AA39+AJ39) -> 76
A40: 12:45:00 | B40: 0 | C40: 0 | D40: 0 | E40: 0 | F40: 0 | G40: 0 | H40: 0 | I40: 0 | K40: 2 | L40: 0 | M40: 0 | N40: 0 | O40: 0 | P40: 0 | Q40: 0 | R40: 2 | T40: 31 | U40: 0 | V40: 1 | W40: 1 | X40: 4 | Y40: 0 | Z40: 0 | AA40: 37 | AC40: 34 | AD40: 1 | AE40: 1 | AF40: 0 | AG40: 1 | AH40: 1 | AI40: 0 | AJ40: =SUM(AC40:AI40) -> 38 | AL40: =SUM(I40+R40+AA40+AJ40) -> 77
A41: 1 Hr | B41: =SUM(B37:B40) -> 0 | C41: 0 | D41: 0 | E41: 0 | F41: 0 | G41: 0 | H41: 0 | I41: 0 | K41: =SUM(K37:K40) -> 5 | L41: 3 | M41: 0 | N41: 0 | O41: 0 | P41: 0 | Q41: 0 | R41: 8 | T41: =SUM(T37:T40) -> 152 | U41: 11 | V41: 1 | W41: 1 | X41: 15 | Y41: 1 | Z41: 1 | AA41: 182 | AC41: =SUM(AC37:AC40) -> 104 | AD41: 9 | AE41: 3 | AF41: 0 | AG41: 8 | AH41: 1 | AI41: 2 | AJ41: =SUM(AJ37:AJ40) -> 127 | AL41: =SUM(AL37:AL40) -> 317
A42: 13:00:00 | B42: 0 | C42: 0 | D42: 0 | E42: 0 | F42: 0 | G42: 0 | H42: 0 | I42: =SUM(B42:H42) -> 0 | K42: 1 | L42: 0 | M42: 0 | N42: 0 | O42: 0 | P42: 0 | Q42: 0 | R42: =SUM(K42:Q42) -> 1 | T42: 41 | U42: 3 | V42: 0 | W42: 0 | X42: 1 | Y42: 1 | Z42: 2 | AA42: =SUM(T42:Z42) -> 48 | AC42: 29 | AD42: 1 | AE42: 0 | AF42: 0 | AG42: 2 | AH42: 0 | AI42: 1 | AJ42: =SUM(AC42:AI42) -> 33 | AL42: =SUM(I42+R42+AA42+AJ42) -> 82
A43: 13:15:00 | B43: 0 | C43: 0 | D43: 0 | E43: 0 | F43: 0 | G43: 0 | H43: 0 | I43: 0 | K43: 1 | L43: 1 | M43: 0 | N43: 0 | O43: 0 | P43: 1 | Q43: 0 | R43: 3 | T43: 34 | U43: 4 | V43: 1 | W43: 1 | X43: 7 | Y43: 1 | Z43: 1 | AA43: 49 | AC43: 19 | AD43: 4 | AE43: 1 | AF43: 0 | AG43: 2 | AH43: 0 | AI43: 0 | AJ43: =SUM(AC43:AI43) -> 26 | AL43: =SUM(I43+R43+AA43+AJ43) -> 78
A44: 13:30:00 | B44: 0 | C44: 0 | D44: 0 | E44: 0 | F44: 0 | G44: 0 | H44: 0 | I44: 0 | K44: 1 | L44: 0 | M44: 0 | N44: 0 | O44: 0 | P44: 0 | Q44: 0 | R44: 1 | T44: 29 | U44: 5 | V44: 0 | W44: 0 | X44: 4 | Y44: 0 | Z44: 0 | AA44: 38 | AC44: 29 | AD44: 2 | AE44: 0 | AF44: 0 | AG44: 1 | AH44: 0 | AI44: 0 | AJ44: =SUM(AC44:AI44) -> 32 | AL44: =SUM(I44+R44+AA44+AJ44) -> 71
A45: 13:45:00 | B45: 0 | C45: 0 | D45: 0 | E45: 0 | F45: 0 | G45: 0 | H45: 0 | I45: 0 | K45: 0 | L45: 0 | M45: 0 | N45: 0 | O45: 0 | P45: 0 | Q45: 1 | R45: 1 | T45: 34 | U45: 3 | V45: 0 | W45: 0 | X45: 5 | Y45: 1 | Z45: 2 | AA45: 45 | AC45: 25 | AD45: 3 | AE45: 1 | AF45: 0 | AG45: 1 | AH45: 0 | AI45: 0 | AJ45: =SUM(AC45:AI45) -> 30 | AL45: =SUM(I45+R45+AA45+AJ45) -> 76
A46: 1 Hr | B46: =SUM(B42:B45) -> 0 | C46: 0 | D46: 0 | E46: 0 | F46: 0 | G46: 0 | H46: 0 | I46: 0 | K46: =SUM(K42:K45) -> 3 | L46: 1 | M46: 0 | N46: 0 | O46: 0 | P46: 1 | Q46: 1 | R46: 6 | T46: =SUM(T42:T45) -> 138 | U46: 15 | V46: 1 | W46: 1 | X46: 17 | Y46: 3 | Z46: 5 | AA46: 180 | AC46: =SUM(AC42:AC45) -> 102 | AD46: 10 | AE46: 2 | AF46: 0 | AG46: 6 | AH46: 0 | AI46: 1 | AJ46: =SUM(AJ42:AJ45) -> 121 | AL46: =SUM(AL42:AL45) -> 307
A47: 14:00:00 | B47: 0 | C47: 0 | D47: 0 | E47: 0 | F47: 0 | G47: 0 | H47: 0 | I47: =SUM(B47:H47) -> 0 | K47: 0 | L47: 0 | M47: 0 | N47: 0 | O47: 0 | P47: 0 | Q47: 0 | R47: =SUM(K47:Q47) -> 0 | T47: 34 | U47: 3 | V47: 0 | W47: 0 | X47: 3 | Y47: 0 | Z47: 0 | AA47: =SUM(T47:Z47) -> 40 | AC47: 40 | AD47: 3 | AE47: 0 | AF47: 0 | AG47: 2 | AH47: 0 | AI47: 0 | AJ47: =SUM(AC47:AI47) -> 45 | AL47: =SUM(I47+R47+AA47+AJ47) -> 85
A48: 14:15:00 | B48: 0 | C48: 0 | D48: 0 | E48: 0 | F48: 0 | G48: 0 | H48: 0 | I48: 0 | K48: 1 | L48: 1 | M48: 0 | N48: 0 | O48: 0 | P48: 0 | Q48: 1 | R48: 3 | T48: 42 | U48: 4 | V48: 1 | W48: 0 | X48: 4 | Y48: 0 | Z48: 0 | AA48: 51 | AC48: 33 | AD48: 2 | AE48: 0 | AF48: 0 | AG48: 2 | AH48: 0 | AI48: 0 | AJ48: =SUM(AC48:AI48) -> 37 | AL48: =SUM(I48+R48+AA48+AJ48) -> 91
A49: 14:30:00 | B49: 0 | C49: 0 | D49: 0 | E49: 0 | F49: 0 | G49: 0 | H49: 0 | I49: 0 | K49: 2 | L49: 0 | M49: 0 | N49: 0 | O49: 0 | P49: 0 | Q49: 1 | R49: 3 | T49: 41 | U49: 2 | V49: 0 | W49: 0 | X49: 4 | Y49: 0 | Z49: 1 | AA49: 48 | AC49: 31 | AD49: 3 | AE49: 0 | AF49: 0 | AG49: 1 | AH49: 1 | AI49: 0 | AJ49: =SUM(AC49:AI49) -> 36 | AL49: =SUM(I49+R49+AA49+AJ49) -> 87
A50: 14:45:00 | B50: 0 | C50: 0 | D50: 0 | E50: 0 | F50: 0 | G50: 0 | H50: 0 | I50: 0 | K50: 0 | L50: 0 | M50: 0 | N50: 0 | O50: 0 | P50: 0 | Q50: 0 | R50: 0 | T50: 46 | U50: 4 | V50: 1 | W50: 0 | X50: 3 | Y50: 1 | Z50: 3 | AA50: 58 | AC50: 34 | AD50: 0 | AE50: 0 | AF50: 0 | AG50: 2 | AH50: 0 | AI50: 0 | AJ50: =SUM(AC50:AI50) -> 36 | AL50: =SUM(I50+R50+AA50+AJ50) -> 94
A51: 1 Hr | B51: =SUM(B47:B50) -> 0 | C51: 0 | D51: 0 | E51: 0 | F51: 0 | G51: 0 | H51: 0 | I51: 0 | K51: =SUM(K47:K50) -> 3 | L51: 1 | M51: 0 | N51: 0 | O51: 0 | P51: 0 | Q51: 2 | R51: 6 | T51: =SUM(T47:T50) -> 163 | U51: 13 | V51: 2 | W51: 0 | X51: 14 | Y51: 1 | Z51: 4 | AA51: 197 | AC51: =SUM(AC47:AC50) -> 138 | AD51: 8 | AE51: 0 | AF51: 0 | AG51: 7 | AH51: 1 | AI51: 0 | AJ51: =SUM(AJ47:AJ50) -> 154 | AL51: =SUM(AL47:AL50) -> 357
A52: 15:00:00 | B52: 0 | C52: 0 | D52: 0 | E52: 0 | F52: 0 | G52: 0 | H52: 0 | I52: =SUM(B52:H52) -> 0 | K52: 1 | L52: 0 | M52: 0 | N52: 0 | O52: 0 | P52: 0 | Q52: 0 | R52: =SUM(K52:Q52) -> 1 | T52: 37 | U52: 3 | V52: 0 | W52: 0 | X52: 3 | Y52: 0 | Z52: 0 | AA52: =SUM(T52:Z52) -> 43 | AC52: 61 | AD52: 3 | AE52: 0 | AF52: 0 | AG52: 1 | AH52: 0 | AI52: 0 | AJ52: =SUM(AC52:AI52) -> 65 | AL52: =SUM(I52+R52+AA52+AJ52) -> 109
A53: 15:15:00 | B53: 0 | C53: 0 | D53: 0 | E53: 0 | F53: 0 | G53: 0 | H53: 0 | I53: 0 | K53: 2 | L53: 0 | M53: 0 | N53: 0 | O53: 0 | P53: 0 | Q53: 0 | R53: 2 | T53: 36 | U53: 5 | V53: 0 | W53: 0 | X53: 3 | Y53: 1 | Z53: 2 | AA53: 47 | AC53: 62 | AD53: 2 | AE53: 0 | AF53: 0 | AG53: 1 | AH53: 0 | AI53: 1 | AJ53: =SUM(AC53:AI53) -> 66 | AL53: =SUM(I53+R53+AA53+AJ53) -> 115
A54: 15:30:00 | B54: 0 | C54: 0 | D54: 0 | E54: 0 | F54: 0 | G54: 0 | H54: 0 | I54: 0 | K54: 2 | L54: 0 | M54: 0 | N54: 0 | O54: 0 | P54: 0 | Q54: 0 | R54: 2 | T54: 45 | U54: 1 | V54: 2 | W54: 0 | X54: 3 | Y54: 1 | Z54: 0 | AA54: 52 | AC54: 39 | AD54: 2 | AE54: 1 | AF54: 0 | AG54: 2 | AH54: 0 | AI54: 0 | AJ54: =SUM(AC54:AI54) -> 44 | AL54: =SUM(I54+R54+AA54+AJ54) -> 98
A55: 15:45:00 | B55: 0 | C55: 0 | D55: 0 | E55: 0 | F55: 0 | G55: 0 | H55: 0 | I55: 0 | K55: 0 | L55: 0 | M55: 0 | N55: 0 | O55: 0 | P55: 0 | Q55: 0 | R55: 0 | T55: 31 | U55: 2 | V55: 1 | W55: 0 | X55: 6 | Y55: 0 | Z55: 1 | AA55: 41 | AC55: 43 | AD55: 4 | AE55: 0 | AF55: 0 | AG55: 2 | AH55: 0 | AI55: 0 | AJ55: =SUM(AC55:AI55) -> 49 | AL55: =SUM(I55+R55+AA55+AJ55) -> 90
A56: 1 Hr | B56: =SUM(B52:B55) -> 0 | C56: 0 | D56: 0 | E56: 0 | F56: 0 | G56: 0 | H56: 0 | I56: 0 | K56: =SUM(K52:K55) -> 5 | L56: 0 | M56: 0 | N56: 0 | O56: 0 | P56: 0 | Q56: 0 | R56: 5 | T56: =SUM(T52:T55) -> 149 | U56: 11 | V56: 3 | W56: 0 | X56: 15 | Y56: 2 | Z56: 3 | AA56: 183 | AC56: =SUM(AC52:AC55) -> 205 | AD56: 11 | AE56: 1 | AF56: 0 | AG56: 6 | AH56: 0 | AI56: 1 | AJ56: =SUM(AJ52:AJ55) -> 224 | AL56: =SUM(AL52:AL55) -> 412
A57: 16:00:00 | B57: 0 | C57: 0 | D57: 0 | E57: 0 | F57: 0 | G57: 0 | H57: 0 | I57: =SUM(B57:H57) -> 0 | K57: 1 | L57: 0 | M57: 0 | N57: 0 | O57: 0 | P57: 0 | Q57: 1 | R57: =SUM(K57:Q57) -> 2 | T57: 36 | U57: 5 | V57: 0 | W57: 0 | X57: 3 | Y57: 2 | Z57: 2 | AA57: =SUM(T57:Z57) -> 48 | AC57: 32 | AD57: 2 | AE57: 0 | AF57: 0 | AG57: 2 | AH57: 0 | AI57: 1 | AJ57: =SUM(AC57:AI57) -> 37 | AL57: =SUM(I57+R57+AA57+AJ57) -> 87
A58: 16:15:00 | B58: 0 | C58: 0 | D58: 0 | E58: 0 | F58: 0 | G58: 0 | H58: 0 | I58: 0 | K58: 1 | L58: 0 | M58: 0 | N58: 0 | O58: 0 | P58: 0 | Q58: 0 | R58: 1 | T58: 27 | U58: 3 | V58: 1 | W58: 0 | X58: 5 | Y58: 0 | Z58: 0 | AA58: 36 | AC58: 46 | AD58: 7 | AE58: 0 | AF58: 0 | AG58: 2 | AH58: 0 | AI58: 0 | AJ58: =SUM(AC58:AI58) -> 55 | AL58: =SUM(I58+R58+AA58+AJ58) -> 92
A59: 16:30:00 | B59: 0 | C59: 0 | D59: 0 | E59: 0 | F59: 0 | G59: 0 | H59: 0 | I59: 0 | K59: 1 | L59: 0 | M59: 0 | N59: 0 | O59: 0 | P59: 0 | Q59: 1 | R59: 2 | T59: 51 | U59: 2 | V59: 1 | W59: 0 | X59: 4 | Y59: 1 | Z59: 0 | AA59: 59 | AC59: 50 | AD59: 4 | AE59: 1 | AF59: 0 | AG59: 2 | AH59: 0 | AI59: 1 | AJ59: =SUM(AC59:AI59) -> 58 | AL59: =SUM(I59+R59+AA59+AJ59) -> 119
A60: 16:45:00 | B60: 0 | C60: 0 | D60: 0 | E60: 0 | F60: 0 | G60: 0 | H60: 0 | I60: 0 | K60: 1 | L60: 0 | M60: 0 | N60: 0 | O60: 0 | P60: 0 | Q60: 0 | R60: 1 | T60: 50 | U60: 7 | V60: 1 | W60: 0 | X60: 2 | Y60: 0 | Z60: 3 | AA60: 63 | AC60: 53 | AD60: 4 | AE60: 0 | AF60: 0 | AG60: 3 | AH60: 0 | AI60: 0 | AJ60: =SUM(AC60:AI60) -> 60 | AL60: =SUM(I60+R60+AA60+AJ60) -> 124
A61: 1 Hr | B61: =SUM(B57:B60) -> 0 | C61: 0 | D61: 0 | E61: 0 | F61: 0 | G61: 0 | H61: 0 | I61: 0 | K61: =SUM(K57:K60) -> 4 | L61: 0 | M61: 0 | N61: 0 | O61: 0 | P61: 0 | Q61: 2 | R61: 6 | T61: =SUM(T57:T60) -> 164 | U61: 17 | V61: 3 | W61: 0 | X61: 14 | Y61: 3 | Z61: 5 | AA61: 206 | AC61: =SUM(AC57:AC60) -> 181 | AD61: 17 | AE61: 1 | AF61: 0 | AG61: 9 | AH61: 0 | AI61: 2 | AJ61: =SUM(AJ57:AJ60) -> 210 | AL61: =SUM(AL57:AL60) -> 422
A62: 17:00:00 | B62: 0 | C62: 0 | D62: 0 | E62: 0 | F62: 0 | G62: 0 | H62: 0 | I62: =SUM(B62:H62) -> 0 | K62: 1 | L62: 0 | M62: 0 | N62: 0 | O62: 0 | P62: 0 | Q62: 0 | R62: =SUM(K62:Q62) -> 1 | T62: 39 | U62: 5 | V62: 0 | W62: 0 | X62: 4 | Y62: 0 | Z62: 1 | AA62: =SUM(T62:Z62) -> 49 | AC62: 49 | AD62: 2 | AE62: 0 | AF62: 0 | AG62: 2 | AH62: 0 | AI62: 1 | AJ62: =SUM(AC62:AI62) -> 54 | AL62: =SUM(I62+R62+AA62+AJ62) -> 104
A63: 17:15:00 | B63: 0 | C63: 0 | D63: 0 | E63: 0 | F63: 0 | G63: 0 | H63: 0 | I63: 0 | K63: 0 | L63: 0 | M63: 0 | N63: 0 | O63: 0 | P63: 0 | Q63: 1 | R63: 1 | T63: 38 | U63: 3 | V63: 0 | W63: 0 | X63: 1 | Y63: 0 | Z63: 1 | AA63: 43 | AC63: 49 | AD63: 7 | AE63: 0 | AF63: 0 | AG63: 0 | AH63: 0 | AI63: 0 | AJ63: =SUM(AC63:AI63) -> 56 | AL63: =SUM(I63+R63+AA63+AJ63) -> 100
A64: 17:30:00 | B64: 0 | C64: 0 | D64: 0 | E64: 0 | F64: 0 | G64: 0 | H64: 0 | I64: 0 | K64: 0 | L64: 0 | M64: 0 | N64: 0 | O64: 0 | P64: 0 | Q64: 1 | R64: 1 | T64: 50 | U64: 2 | V64: 1 | W64: 0 | X64: 5 | Y64: 0 | Z64: 6 | AA64: 64 | AC64: 45 | AD64: 0 | AE64: 0 | AF64: 0 | AG64: 2 | AH64: 1 | AI64: 0 | AJ64: =SUM(AC64:AI64) -> 48 | AL64: =SUM(I64+R64+AA64+AJ64) -> 113
A65: 17:45:00 | B65: 0 | C65: 0 | D65: 0 | E65: 0 | F65: 0 | G65: 0 | H65: 0 | I65: 0 | K65: 0 | L65: 0 | M65: 0 | N65: 0 | O65: 0 | P65: 0 | Q65: 0 | R65: 0 | T65: 39 | U65: 1 | V65: 0 | W65: 0 | X65: 4 | Y65: 0 | Z65: 2 | AA65: 46 | AC65: 40 | AD65: 2 | AE65: 0 | AF65: 0 | AG65: 2 | AH65: 0 | AI65: 0 | AJ65: =SUM(AC65:AI65) -> 44 | AL65: =SUM(I65+R65+AA65+AJ65) -> 90
A66: 1 Hr | B66: =SUM(B62:B65) -> 0 | C66: 0 | D66: 0 | E66: 0 | F66: 0 | G66: 0 | H66: 0 | I66: 0 | K66: =SUM(K62:K65) -> 1 | L66: 0 | M66: 0 | N66: 0 | O66: 0 | P66: 0 | Q66: 2 | R66: 3 | T66: =SUM(T62:T65) -> 166 | U66: 11 | V66: 1 | W66: 0 | X66: 14 | Y66: 0 | Z66: 10 | AA66: 202 | AC66: =SUM(AC62:AC65) -> 183 | AD66: 11 | AE66: 0 | AF66: 0 | AG66: 6 | AH66: 1 | AI66: 1 | AJ66: =SUM(AJ62:AJ65) -> 202 | AL66: =SUM(AL62:AL65) -> 407
A67: 18:00:00 | B67: 0 | C67: 0 | D67: 0 | E67: 0 | F67: 0 | G67: 0 | H67: 0 | I67: =SUM(B67:H67) -> 0 | K67: 1 | L67: 0 | M67: 0 | N67: 0 | O67: 0 | P67: 0 | Q67: 0 | R67: =SUM(K67:Q67) -> 1 | T67: 45 | U67: 5 | V67: 0 | W67: 0 | X67: 4 | Y67: 0 | Z67: 2 | AA67: =SUM(T67:Z67) -> 56 | AC67: 51 | AD67: 2 | AE67: 0 | AF67: 0 | AG67: 1 | AH67: 0 | AI67: 0 | AJ67: =SUM(AC67:AI67) -> 54 | AL67: =SUM(I67+R67+AA67+AJ67) -> 111
A68: 18:15:00 | B68: 0 | C68: 0 | D68: 0 | E68: 0 | F68: 0 | G68: 0 | H68: 0 | I68: 0 | K68: 1 | L68: 0 | M68: 0 | N68: 0 | O68: 0 | P68: 0 | Q68: 0 | R68: 1 | T68: 47 | U68: 2 | V68: 0 | W68: 0 | X68: 4 | Y68: 0 | Z68: 0 | AA68: 53 | AC68: 37 | AD68: 4 | AE68: 0 | AF68: 0 | AG68: 2 | AH68: 0 | AI68: 0 | AJ68: =SUM(AC68:AI68) -> 43 | AL68: =SUM(I68+R68+AA68+AJ68) -> 97
A69: 18:30:00 | B69: 0 | C69: 0 | D69: 0 | E69: 0 | F69: 0 | G69: 0 | H69: 0 | I69: 0 | K69: 0 | L69: 0 | M69: 0 | N69: 0 | O69: 0 | P69: 0 | Q69: 0 | R69: 0 | T69: 42 | U69: 2 | V69: 0 | W69: 0 | X69: 3 | Y69: 2 | Z69: 1 | AA69: 50 | AC69: 46 | AD69: 3 | AE69: 0 | AF69: 0 | AG69: 1 | AH69: 0 | AI69: 1 | AJ69: =SUM(AC69:AI69) -> 51 | AL69: =SUM(I69+R69+AA69+AJ69) -> 101
A70: 18:45:00 | B70: 0 | C70: 0 | D70: 0 | E70: 0 | F70: 0 | G70: 0 | H70: 0 | I70: 0 | K70: 1 | L70: 1 | M70: 0 | N70: 0 | O70: 0 | P70: 0 | Q70: 2 | R70: 4 | T70: 52 | U70: 0 | V70: 0 | W70: 0 | X70: 2 | Y70: 0 | Z70: 1 | AA70: 55 | AC70: 33 | AD70: 1 | AE70: 0 | AF70: 0 | AG70: 2 | AH70: 0 | AI70: 0 | AJ70: =SUM(AC70:AI70) -> 36 | AL70: =SUM(I70+R70+AA70+AJ70) -> 95
A71: 1 Hr | B71: =SUM(B67:B70) -> 0 | C71: 0 | D71: 0 | E71: 0 | F71: 0 | G71: 0 | H71: 0 | I71: 0 | K71: =SUM(K67:K70) -> 3 | L71: 1 | M71: 0 | N71: 0 | O71: 0 | P71: 0 | Q71: 2 | R71: 6 | T71: =SUM(T67:T70) -> 186 | U71: 9 | V71: 0 | W71: 0 | X71: 13 | Y71: 2 | Z71: 4 | AA71: 214 | AC71: =SUM(AC67:AC70) -> 167 | AD71: 10 | AE71: 0 | AF71: 0 | AG71: 6 | AH71: 0 | AI71: 1 | AJ71: =SUM(AJ67:AJ70) -> 184 | AL71: =SUM(AL67:AL70) -> 404
A73: Total | B73: =SUM(B71+B66+B61+B56+B51+B46+B41+B36+B31+B26+B21+B16) -> 0 | C73: 0 | D73: 0 | E73: 0 | F73: 0 | G73: 0 | H73: 0 | I73: 0 | K73: =SUM(K71+K66+K61+K56+K51+K46+K41+K36+K31+K26+K21+K16) -> 39 | L73: 8 | M73: 2 | N73: 0 | O73: 0 | P73: 3 | Q73: 14 | R73: 66 | T73: =SUM(T71+T66+T61+T56+T51+T46+T41+T36+T31+T26+T21+T16) -> 1872 | U73: 183 | V73: 35 | W73: 8 | X73: 198 | Y73: 16 | Z73: 47 | AA73: 2359 | AC73: =SUM(AC71+AC66+AC61+AC56+AC51+AC46+AC41+AC36+AC31+AC26+AC21+AC16) -> 1710 | AD73: 139 | AE73: 16 | AF73: 0 | AG73: 85 | AH73: 4 | AI73: 14 | AJ73: =SUM(AJ71+AJ66+AJ61+AJ56+AJ51+AJ46+AJ41+AJ36+AJ31+AJ26+AJ21+AJ16) -> 1968 | AL73: =SUM(AL71+AL66+AL61+AL56+AL51+AL46+AL41+AL36+AL31+AL26+AL21+AL16) -> 4393
A75: Origin : | B75: Arm B | C75: Abbots Road
B76: Destination : | D76: Arm A | E76: B4122 Vicarage Road(ENE) | I76: Total | K76: Destination : | M76: Arm B | N76: Abbots Road | R76: Total | T76: Destination : | V76: Arm C | W76: B4122 Vicarage Road(WSW) | AA76: Total | AC76: Destination : | AE76: Arm D | AF76: Avenue Road | AJ76: Total | AL76: Arm
B77: =$B$10 -> Car | C77: =$C$10 -> LGV | D77: =$D$10 -> OGV1 | E77: =$E$10 -> OGV2 | F77: =$F$10 -> Bus/Coach | G77: =$G$10 -> MC | H77: =$H$10 -> PC | K77: =$B$10 -> Car | L77: =$C$10 -> LGV | M77: =$D$10 -> OGV1 | N77: =$E$10 -> OGV2 | O77: =$F$10 -> Bus/Coach | P77: =$G$10 -> MC | Q77: =$H$10 -> PC | T77: =$B$10 -> Car | U77: =$C$10 -> LGV | V77: =$D$10 -> OGV1 | W77: =$E$10 -> OGV2 | X77: =$F$10 -> Bus/Coach | Y77: =$G$10 -> MC | Z77: =$H$10 -> PC | AC77: =$B$10 -> Car | AD77: =$C$10 -> LGV | AE77: =$D$10 -> OGV1 | AF77: =$E$10 -> OGV2 | AG77: =$F$10 -> Bus/Coach | AH77: =$G$10 -> MC | AI77: =$H$10 -> PC | AL77: Totals
A79: 07:00:00 | B79: 0 | C79: 0 | D79: 0 | E79: 0 | F79: 0 | G79: 0 | H79: 0 | I79: =SUM(B79:H79) -> 0 | K79: 0 | L79: 0 | M79: 0 | N79: 0 | O79: 0 | P79: 0 | Q79: 0 | R79: =SUM(K79:Q79) -> 0 | T79: 0 | U79: 0 | V79: 0 | W79: 0 | X79: 0 | Y79: 0 | Z79: 0 | AA79: =SUM(T79:Z79) -> 0 | AC79: 1 | AD79: 0 | AE79: 0 | AF79: 0 | AG79: 0 | AH79: 0 | AI79: 1 | AJ79: =SUM(AC79:AI79) -> 2 | AL79: =SUM(I79+R79+AA79+AJ79) -> 2
A80: 07:15:00 | B80: 3 | C80: 0 | D80: 0 | E80: 0 | F80: 0 | G80: 0 | H80: 0 | I80: 3 | K80: 0 | L80: 0 | M80: 0 | N80: 0 | O80: 0 | P80: 0 | Q80: 0 | R80: 0 | T80: 1 | U80: 0 | V80: 0 | W80: 0 | X80: 0 | Y80: 0 | Z80: 0 | AA80: 1 | AC80: 5 | AD80: 0 | AE80: 0 | AF80: 0 | AG80: 0 | AH80: 0 | AI80: 1 | AJ80: =SUM(AC80:AI80) -> 6 | AL80: =SUM(I80+R80+AA80+AJ80) -> 10
A81: 07:30:00 | B81: 1 | C81: 0 | D81: 0 | E81: 0 | F81: 0 | G81: 0 | H81: 0 | I81: 1 | K81: 0 | L81: 0 | M81: 0 | N81: 0 | O81: 0 | P81: 0 | Q81: 0 | R81: 0 | T81: 2 | U81: 0 | V81: 0 | W81: 0 | X81: 0 | Y81: 0 | Z81: 0 | AA81: 2 | AC81: 2 | AD81: 0 | AE81: 0 | AF81: 0 | AG81: 0 | AH81: 0 | AI81: 5 | AJ81: =SUM(AC81:AI81) -> 7 | AL81: =SUM(I81+R81+AA81+AJ81) -> 10
A82: 07:45:00 | B82: 1 | C82: 0 | D82: 0 | E82: 0 | F82: 0 | G82: 0 | H82: 0 | I82: 1 | K82: 0 | L82: 0 | M82: 0 | N82: 0 | O82: 0 | P82: 0 | Q82: 0 | R82: 0 | T82: 1 | U82: 0 | V82: 0 | W82: 0 | X82: 0 | Y82: 0 | Z82: 0 | AA82: 1 | AC82: 3 | AD82: 0 | AE82: 0 | AF82: 0 | AG82: 0 | AH82: 0 | AI82: 5 | AJ82: =SUM(AC82:AI82) -> 8 | AL82: =SUM(I82+R82+AA82+AJ82) -> 10
A83: 1 Hr | B83: =SUM(B79:B82) -> 5 | C83: 0 | D83: 0 | E83: 0 | F83: 0 | G83: 0 | H83: 0 | I83: 5 | K83: =SUM(K79:K82) -> 0 | L83: 0 | M83: 0 | N83: 0 | O83: 0 | P83: 0 | Q83: 0 | R83: 0 | T83: =SUM(T79:T82) -> 4 | U83: 0 | V83: 0 | W83: 0 | X83: 0 | Y83: 0 | Z83: 0 | AA83: 4 | AC83: =SUM(AC79:AC82) -> 11 | AD83: 0 | AE83: 0 | AF83: 0 | AG83: 0 | AH83: 0 | AI83: 12 | AJ83: =SUM(AJ79:AJ82) -> 23 | AL83: =SUM(AL79:AL82) -> 32
A84: 08:00:00 | B84: 4 | C84: 0 | D84: 0 | E84: 0 | F84: 0 | G84: 0 | H84: 0 | I84: =SUM(B84:H84) -> 4 | K84: 0 | L84: 0 | M84: 0 | N84: 0 | O84: 0 | P84: 0 | Q84: 0 | R84: =SUM(K84:Q84) -> 0 | T84: 0 | U84: 0 | V84: 0 | W84: 0 | X84: 0 | Y84: 0 | Z84: 0 | AA84: =SUM(T84:Z84) -> 0 | AC84: 6 | AD84: 1 | AE84: 0 | AF84: 0 | AG84: 0 | AH84: 0 | AI84: 1 | AJ84: =SUM(AC84:AI84) -> 8 | AL84: =SUM(I84+R84+AA84+AJ84) -> 12
A85: 08:15:00 | B85: 3 | C85: 0 | D85: 0 | E85: 0 | F85: 0 | G85: 0 | H85: 0 | I85: 3 | K85: 0 | L85: 0 | M85: 0 | N85: 0 | O85: 0 | P85: 0 | Q85: 0 | R85: 0 | T85: 0 | U85: 0 | V85: 0 | W85: 0 | X85: 0 | Y85: 0 | Z85: 0 | AA85: 0 | AC85: 3 | AD85: 0 | AE85: 0 | AF85: 0 | AG85: 0 | AH85: 0 | AI85: 1 | AJ85: =SUM(AC85:AI85) -> 4 | AL85: =SUM(I85+R85+AA85+AJ85) -> 7
A86: 08:30:00 | B86: 1 | C86: 1 | D86: 0 | E86: 0 | F86: 0 | G86: 0 | H86: 0 | I86: 2 | K86: 0 | L86: 0 | M86: 0 | N86: 0 | O86: 0 | P86: 0 | Q86: 0 | R86: 0 | T86: 1 | U86: 0 | V86: 0 | W86: 0 | X86: 0 | Y86: 0 | Z86: 0 | AA86: 1 | AC86: 1 | AD86: 0 | AE86: 0 | AF86: 0 | AG86: 0 | AH86: 0 | AI86: 2 | AJ86: =SUM(AC86:AI86) -> 3 | AL86: =SUM(I86+R86+AA86+AJ86) -> 6
A87: 08:45:00 | B87: 3 | C87: 0 | D87: 0 | E87: 0 | F87: 1 | G87: 0 | H87: 1 | I87: 5 | K87: 0 | L87: 0 | M87: 0 | N87: 0 | O87: 0 | P87: 0 | Q87: 0 | R87: 0 | T87: 2 | U87: 0 | V87: 0 | W87: 0 | X87: 0 | Y87: 0 | Z87: 0 | AA87: 2 | AC87: 2 | AD87: 0 | AE87: 0 | AF87: 0 | AG87: 0 | AH87: 0 | AI87: 3 | AJ87: =SUM(AC87:AI87) -> 5 | AL87: =SUM(I87+R87+AA87+AJ87) -> 12
A88: 1 Hr | B88: =SUM(B84:B87) -> 11 | C88: 1 | D88: 0 | E88: 0 | F88: 1 | G88: 0 | H88: 1 | I88: 14 | K88: =SUM(K84:K87) -> 0 | L88: 0 | M88: 0 | N88: 0 | O88: 0 | P88: 0 | Q88: 0 | R88: 0 | T88: =SUM(T84:T87) -> 3 | U88: 0 | V88: 0 | W88: 0 | X88: 0 | Y88: 0 | Z88: 0 | AA88: 3 | AC88: =SUM(AC84:AC87) -> 12 | AD88: 1 | AE88: 0 | AF88: 0 | AG88: 0 | AH88: 0 | AI88: 7 | AJ88: =SUM(AJ84:AJ87) -> 20 | AL88: =SUM(AL84:AL87) -> 37
A89: 09:00:00 | B89: 3 | C89: 1 | D89: 1 | E89: 0 | F89: 0 | G89: 0 | H89: 0 | I89: =SUM(B89:H89) -> 5 | K89: 0 | L89: 0 | M89: 0 | N89: 0 | O89: 0 | P89: 0 | Q89: 0 | R89: =SUM(K89:Q89) -> 0 | T89: 0 | U89: 0 | V89: 0 | W89: 0 | X89: 0 | Y89: 0 | Z89: 0 | AA89: =SUM(T89:Z89) -> 0 | AC89: 0 | AD89: 0 | AE89: 0 | AF89: 0 | AG89: 0 | AH89: 0 | AI89: 1 | AJ89: =SUM(AC89:AI89) -> 1 | AL89: =SUM(I89+R89+AA89+AJ89) -> 6
A90: 09:15:00 | B90: 1 | C90: 0 | D90: 0 | E90: 0 | F90: 0 | G90: 0 | H90: 0 | I90: 1 | K90: 0 | L90: 0 | M90: 0 | N90: 0 | O90: 0 | P90: 0 | Q90: 0 | R90: 0 | T90: 1 | U90: 0 | V90: 0 | W90: 0 | X90: 0 | Y90: 0 | Z90: 0 | AA90: 1 | AC90: 0 | AD90: 0 | AE90: 0 | AF90: 0 | AG90: 0 | AH90: 0 | AI90: 0 | AJ90: =SUM(AC90:AI90) -> 0 | AL90: =SUM(I90+R90+AA90+AJ90) -> 2
A91: 09:30:00 | B91: 1 | C91: 1 | D91: 0 | E91: 0 | F91: 0 | G91: 0 | H91: 0 | I91: 2 | K91: 0 | L91: 0 | M91: 0 | N91: 0 | O91: 0 | P91: 0 | Q91: 0 | R91: 0 | T91: 2 | U91: 1 | V91: 0 | W91: 0 | X91: 0 | Y91: 0 | Z91: 0 | AA91: 3 | AC91: 3 | AD91: 1 | AE91: 0 | AF91: 0 | AG91: 0 | AH91: 0 | AI91: 1 | AJ91: =SUM(AC91:AI91) -> 5 | AL91: =SUM(I91+R91+AA91+AJ91) -> 10
A92: 09:45:00 | B92: 1 | C92: 0 | D92: 0 | E92: 0 | F92: 0 | G92: 0 | H92: 0 | I92: 1 | K92: 0 | L92: 0 | M92: 0 | N92: 0 | O92: 0 | P92: 0 | Q92: 0 | R92: 0 | T92: 1 | U92: 0 | V92: 0 | W92: 0 | X92: 0 | Y92: 0 | Z92: 0 | AA92: 1 | AC92: 2 | AD92: 2 | AE92: 0 | AF92: 0 | AG92: 0 | AH92: 0 | AI92: 0 | AJ92: =SUM(AC92:AI92) -> 4 | AL92: =SUM(I92+R92+AA92+AJ92) -> 6
A93: 1 Hr | B93: =SUM(B89:B92) -> 6 | C93: 2 | D93: 1 | E93: 0 | F93: 0 | G93: 0 | H93: 0 | I93: 9 | K93: =SUM(K89:K92) -> 0 | L93: 0 | M93: 0 | N93: 0 | O93: 0 | P93: 0 | Q93: 0 | R93: 0 | T93: =SUM(T89:T92) -> 4 | U93: 1 | V93: 0 | W93: 0 | X93: 0 | Y93: 0 | Z93: 0 | AA93: 5 | AC93: =SUM(AC89:AC92) -> 5 | AD93: 3 | AE93: 0 | AF93: 0 | AG93: 0 | AH93: 0 | AI93: 2 | AJ93: =SUM(AJ89:AJ92) -> 10 | AL93: =SUM(AL89:AL92) -> 24
A94: 10:00:00 | B94: 3 | C94: 0 | D94: 0 | E94: 0 | F94: 0 | G94: 0 | H94: 0 | I94: =SUM(B94:H94) -> 3 | K94: 0 | L94: 0 | M94: 0 | N94: 0 | O94: 0 | P94: 0 | Q94: 0 | R94: =SUM(K94:Q94) -> 0 | T94: 4 | U94: 1 | V94: 0 | W94: 0 | X94: 0 | Y94: 0 | Z94: 0 | AA94: =SUM(T94:Z94) -> 5 | AC94: 2 | AD94: 1 | AE94: 1 | AF94: 0 | AG94: 0 | AH94: 0 | AI94: 0 | AJ94: =SUM(AC94:AI94) -> 4 | AL94: =SUM(I94+R94+AA94+AJ94) -> 12
A95: 10:15:00 | B95: 1 | C95: 0 | D95: 0 | E95: 0 | F95: 0 | G95: 0 | H95: 0 | I95: 1 | K95: 0 | L95: 0 | M95: 0 | N95: 0 | O95: 0 | P95: 0 | Q95: 0 | R95: 0 | T95: 2 | U95: 1 | V95: 0 | W95: 0 | X95: 0 | Y95: 0 | Z95: 0 | AA95: 3 | AC95: 3 | AD95: 1 | AE95: 0 | AF95: 0 | AG95: 0 | AH95: 0 | AI95: 0 | AJ95: =SUM(AC95:AI95) -> 4 | AL95: =SUM(I95+R95+AA95+AJ95) -> 8
A96: 10:30:00 | B96: 3 | C96: 0 | D96: 0 | E96: 0 | F96: 0 | G96: 0 | H96: 0 | I96: 3 | K96: 0 | L96: 0 | M96: 0 | N96: 0 | O96: 0 | P96: 0 | Q96: 0 | R96: 0 | T96: 9 | U96: 4 | V96: 0 | W96: 0 | X96: 0 | Y96: 0 | Z96: 0 | AA96: 13 | AC96: 2 | AD96: 0 | AE96: 0 | AF96: 0 | AG96: 0 | AH96: 0 | AI96: 0 | AJ96: =SUM(AC96:AI96) -> 2 | AL96: =SUM(I96+R96+AA96+AJ96) -> 18
A97: 10:45:00 | B97: 2 | C97: 0 | D97: 0 | E97: 0 | F97: 0 | G97: 0 | H97: 1 | I97: 3 | K97: 0 | L97: 0 | M97: 0 | N97: 0 | O97: 0 | P97: 0 | Q97: 0 | R97: 0 | T97: 8 | U97: 1 | V97: 0 | W97: 0 | X97: 0 | Y97: 0 | Z97: 1 | AA97: 10 | AC97: 2 | AD97: 0 | AE97: 0 | AF97: 0 | AG97: 0 | AH97: 0 | AI97: 0 | AJ97: =SUM(AC97:AI97) -> 2 | AL97: =SUM(I97+R97+AA97+AJ97) -> 15
A98: 1 Hr | B98: =SUM(B94:B97) -> 9 | C98: 0 | D98: 0 | E98: 0 | F98: 0 | G98: 0 | H98: 1 | I98: 10 | K98: =SUM(K94:K97) -> 0 | L98: 0 | M98: 0 | N98: 0 | O98: 0 | P98: 0 | Q98: 0 | R98: 0 | T98: =SUM(T94:T97) -> 23 | U98: 7 | V98: 0 | W98: 0 | X98: 0 | Y98: 0 | Z98: 1 | AA98: 31 | AC98: =SUM(AC94:AC97) -> 9 | AD98: 2 | AE98: 1 | AF98: 0 | AG98: 0 | AH98: 0 | AI98: 0 | AJ98: =SUM(AJ94:AJ97) -> 12 | AL98: =SUM(AL94:AL97) -> 53
A99: 11:00:00 | B99: 4 | C99: 2 | D99: 1 | E99: 0 | F99: 0 | G99: 0 | H99: 0 | I99: =SUM(B99:H99) -> 7 | K99: 0 | L99: 0 | M99: 0 | N99: 0 | O99: 0 | P99: 0 | Q99: 0 | R99: =SUM(K99:Q99) -> 0 | T99: 12 | U99: 0 | V99: 0 | W99: 0 | X99: 0 | Y99: 0 | Z99: 0 | AA99: =SUM(T99:Z99) -> 12 | AC99: 0 | AD99: 0 | AE99: 0 | AF99: 0 | AG99: 0 | AH99: 0 | AI99: 1 | AJ99: =SUM(AC99:AI99) -> 1 | AL99: =SUM(I99+R99+AA99+AJ99) -> 20
A100: 11:15:00 | B100: 1 | C100: 1 | D100: 0 | E100: 0 | F100: 0 | G100: 0 | H100: 0 | I100: 2 | K100: 0 | L100: 0 | M100: 0 | N100: 0 | O100: 0 | P100: 0 | Q100: 0 | R100: 0 | T100: 13 | U100: 0 | V100: 1 | W100: 0 | X100: 0 | Y100: 0 | Z100: 0 | AA100: 14 | AC100: 1 | AD100: 0 | AE100: 0 | AF100: 0 | AG100: 0 | AH100: 0 | AI100: 0 | AJ100: =SUM(AC100:AI100) -> 1 | AL100: =SUM(I100+R100+AA100+AJ100) -> 17
A101: 11:30:00 | B101: 1 | C101: 0 | D101: 0 | E101: 0 | F101: 0 | G101: 0 | H101: 0 | I101: 1 | K101: 0 | L101: 0 | M101: 0 | N101: 0 | O101: 0 | P101: 0 | Q101: 0 | R101: 0 | T101: 9 | U101: 0 | V101: 1 | W101: 0 | X101: 0 | Y101: 0 | Z101: 0 | AA101: 10 | AC101: 2 | AD101: 0 | AE101: 0 | AF101: 0 | AG101: 0 | AH101: 0 | AI101: 0 | AJ101: =SUM(AC101:AI101) -> 2 | AL101: =SUM(I101+R101+AA101+AJ101) -> 13
A102: 11:45:00 | B102: 1 | C102: 0 | D102: 0 | E102: 0 | F102: 0 | G102: 0 | H102: 0 | I102: 1 | K102: 0 | L102: 0 | M102: 0 | N102: 0 | O102: 0 | P102: 0 | Q102: 0 | R102: 0 | T102: 7 | U102: 1 | V102: 0 | W102: 0 | X102: 0 | Y102: 0 | Z102: 0 | AA102: 8 | AC102: 4 | AD102: 2 | AE102: 0 | AF102: 0 | AG102: 0 | AH102: 0 | AI102: 0 | AJ102: =SUM(AC102:AI102) -> 6 | AL102: =SUM(I102+R102+AA102+AJ102) -> 15
A103: 1 Hr | B103: =SUM(B99:B102) -> 7 | C103: 3 | D103: 1 | E103: 0 | F103: 0 | G103: 0 | H103: 0 | I103: 11 | K103: =SUM(K99:K102) -> 0 | L103: 0 | M103: 0 | N103: 0 | O103: 0 | P103: 0 | Q103: 0 | R103: 0 | T103: =SUM(T99:T102) -> 41 | U103: 1 | V103: 2 | W103: 0 | X103: 0 | Y103: 0 | Z103: 0 | AA103: 44 | AC103: =SUM(AC99:AC102) -> 7 | AD103: 2 | AE103: 0 | AF103: 0 | AG103: 0 | AH103: 0 | AI103: 1 | AJ103: =SUM(AJ99:AJ102) -> 10 | AL103: =SUM(AL99:AL102) -> 65
A104: 12:00:00 | B104: 1 | C104: 0 | D104: 0 | E104: 0 | F104: 0 | G104: 0 | H104: 1 | I104: =SUM(B104:H104) -> 2 | K104: 0 | L104: 0 | M104: 0 | N104: 0 | O104: 0 | P104: 0 | Q104: 0 | R104: =SUM(K104:Q104) -> 0 | T104: 6 | U104: 1 | V104: 0 | W104: 0 | X104: 0 | Y104: 0 | Z104: 0 | AA104: =SUM(T104:Z104) -> 7 | AC104: 4 | AD104: 3 | AE104: 0 | AF104: 0 | AG104: 0 | AH104: 0 | AI104: 1 | AJ104: =SUM(AC104:AI104) -> 8 | AL104: =SUM(I104+R104+AA104+AJ104) -> 17
A105: 12:15:00 | B105: 1 | C105: 1 | D105: 0 | E105: 0 | F105: 0 | G105: 0 | H105: 0 | I105: 2 | K105: 0 | L105: 0 | M105: 0 | N105: 0 | O105: 0 | P105: 0 | Q105: 0 | R105: 0 | T105: 9 | U105: 3 | V105: 0 | W105: 0 | X105: 0 | Y105: 0 | Z105: 0 | AA105: 12 | AC105: 2 | AD105: 1 | AE105: 0 | AF105: 0 | AG105: 0 | AH105: 0 | AI105: 0 | AJ105: =SUM(AC105:AI105) -> 3 | AL105: =SUM(I105+R105+AA105+AJ105) -> 17
A106: 12:30:00 | B106: 2 | C106: 0 | D106: 0 | E106: 0 | F106: 0 | G106: 0 | H106: 0 | I106: 2 | K106: 0 | L106: 0 | M106: 0 | N106: 0 | O106: 0 | P106: 0 | Q106: 0 | R106: 0 | T106: 11 | U106: 2 | V106: 0 | W106: 0 | X106: 0 | Y106: 0 | Z106: 0 | AA106: 13 | AC106: 2 | AD106: 0 | AE106: 0 | AF106: 0 | AG106: 0 | AH106: 0 | AI106: 0 | AJ106: =SUM(AC106:AI106) -> 2 | AL106: =SUM(I106+R106+AA106+AJ106) -> 17
A107: 12:45:00 | B107: 3 | C107: 1 | D107: 0 | E107: 0 | F107: 0 | G107: 0 | H107: 0 | I107: 4 | K107: 0 | L107: 0 | M107: 0 | N107: 0 | O107: 0 | P107: 0 | Q107: 0 | R107: 0 | T107: 13 | U107: 0 | V107: 1 | W107: 0 | X107: 0 | Y107: 0 | Z107: 0 | AA107: 14 | AC107: 2 | AD107: 0 | AE107: 0 | AF107: 0 | AG107: 0 | AH107: 1 | AI107: 0 | AJ107: =SUM(AC107:AI107) -> 3 | AL107: =SUM(I107+R107+AA107+AJ107) -> 21
A108: 1 Hr | B108: =SUM(B104:B107) -> 7 | C108: 2 | D108: 0 | E108: 0 | F108: 0 | G108: 0 | H108: 1 | I108: 10 | K108: =SUM(K104:K107) -> 0 | L108: 0 | M108: 0 | N108: 0 | O108: 0 | P108: 0 | Q108: 0 | R108: 0 | T108: =SUM(T104:T107) -> 39 | U108: 6 | V108: 1 | W108: 0 | X108: 0 | Y108: 0 | Z108: 0 | AA108: 46 | AC108: =SUM(AC104:AC107) -> 10 | AD108: 4 | AE108: 0 | AF108: 0 | AG108: 0 | AH108: 1 | AI108: 1 | AJ108: =SUM(AJ104:AJ107) -> 16 | AL108: =SUM(AL104:AL107) -> 72
A109: 13:00:00 | B109: 1 | C109: 0 | D109: 0 | E109: 0 | F109: 0 | G109: 0 | H109: 0 | I109: =SUM(B109:H109) -> 1 | K109: 0 | L109: 0 | M109: 0 | N109: 0 | O109: 0 | P109: 0 | Q109: 0 | R109: =SUM(K109:Q109) -> 0 | T109: 8 | U109: 4 | V109: 0 | W109: 0 | X109: 0 | Y109: 0 | Z109: 0 | AA109: =SUM(T109:Z109) -> 12 | AC109: 2 | AD109: 0 | AE109: 0 | AF109: 0 | AG109: 0 | AH109: 0 | AI109: 0 | AJ109: =SUM(AC109:AI109) -> 2 | AL109: =SUM(I109+R109+AA109+AJ109) -> 15
A110: 13:15:00 | B110: 1 | C110: 3 | D110: 0 | E110: 0 | F110: 0 | G110: 0 | H110: 0 | I110: 4 | K110: 0 | L110: 0 | M110: 0 | N110: 0 | O110: 0 | P110: 0 | Q110: 0 | R110: 0 | T110: 9 | U110: 3 | V110: 0 | W110: 0 | X110: 0 | Y110: 0 | Z110: 0 | AA110: 12 | AC110: 1 | AD110: 0 | AE110: 0 | AF110: 0 | AG110: 0 | AH110: 0 | AI110: 0 | AJ110: =SUM(AC110:AI110) -> 1 | AL110: =SUM(I110+R110+AA110+AJ110) -> 17
A111: 13:30:00 | B111: 2 | C111: 1 | D111: 0 | E111: 0 | F111: 0 | G111: 1 | H111: 0 | I111: 4 | K111: 0 | L111: 0 | M111: 0 | N111: 0 | O111: 0 | P111: 0 | Q111: 0 | R111: 0 | T111: 7 | U111: 4 | V111: 0 | W111: 0 | X111: 0 | Y111: 0 | Z111: 0 | AA111: 11 | AC111: 2 | AD111: 0 | AE111: 0 | AF111: 0 | AG111: 0 | AH111: 0 | AI111: 0 | AJ111: =SUM(AC111:AI111) -> 2 | AL111: =SUM(I111+R111+AA111+AJ111) -> 17
A112: 13:45:00 | B112: 3 | C112: 1 | D112: 0 | E112: 0 | F112: 0 | G112: 1 | H112: 0 | I112: 5 | K112: 0 | L112: 0 | M112: 0 | N112: 0 | O112: 0 | P112: 0 | Q112: 0 | R112: 0 | T112: 8 | U112: 1 | V112: 0 | W112: 0 | X112: 0 | Y112: 0 | Z112: 0 | AA112: 9 | AC112: 5 | AD112: 0 | AE112: 0 | AF112: 0 | AG112: 0 | AH112: 0 | AI112: 0 | AJ112: =SUM(AC112:AI112) -> 5 | AL112: =SUM(I112+R112+AA112+AJ112) -> 19
A113: 1 Hr | B113: =SUM(B109:B112) -> 7 | C113: 5 | D113: 0 | E113: 0 | F113: 0 | G113: 2 | H113: 0 | I113: 14 | K113: =SUM(K109:K112) -> 0 | L113: 0 | M113: 0 | N113: 0 | O113: 0 | P113: 0 | Q113: 0 | R113: 0 | T113: =SUM(T109:T112) -> 32 | U113: 12 | V113: 0 | W113: 0 | X113: 0 | Y113: 0 | Z113: 0 | AA113: 44 | AC113: =SUM(AC109:AC112) -> 10 | AD113: 0 | AE113: 0 | AF113: 0 | AG113: 0 | AH113: 0 | AI113: 0 | AJ113: =SUM(AJ109:AJ112) -> 10 | AL113: =SUM(AL109:AL112) -> 68
A114: 14:00:00 | B114: 1 | C114: 1 | D114: 0 | E114: 0 | F114: 0 | G114: 0 | H114: 0 | I114: =SUM(B114:H114) -> 2 | K114: 0 | L114: 0 | M114: 0 | N114: 0 | O114: 0 | P114: 0 | Q114: 0 | R114: =SUM(K114:Q114) -> 0 | T114: 5 | U114: 0 | V114: 0 | W114: 0 | X114: 0 | Y114: 0 | Z114: 0 | AA114: =SUM(T114:Z114) -> 5 | AC114: 0 | AD114: 0 | AE114: 0 | AF114: 0 | AG114: 0 | AH114: 0 | AI114: 0 | AJ114: =SUM(AC114:AI114) -> 0 | AL114: =SUM(I114+R114+AA114+AJ114) -> 7
A115: 14:15:00 | B115: 0 | C115: 1 | D115: 0 | E115: 0 | F115: 0 | G115: 0 | H115: 0 | I115: 1 | K115: 0 | L115: 0 | M115: 0 | N115: 0 | O115: 0 | P115: 0 | Q115: 0 | R115: 0 | T115: 9 | U115: 0 | V115: 0 | W115: 0 | X115: 0 | Y115: 0 | Z115: 0 | AA115: 9 | AC115: 5 | AD115: 0 | AE115: 1 | AF115: 0 | AG115: 0 | AH115: 0 | AI115: 0 | AJ115: =SUM(AC115:AI115) -> 6 | AL115: =SUM(I115+R115+AA115+AJ115) -> 16
A116: 14:30:00 | B116: 2 | C116: 0 | D116: 0 | E116: 0 | F116: 0 | G116: 0 | H116: 0 | I116: 2 | K116: 0 | L116: 0 | M116: 0 | N116: 0 | O116: 0 | P116: 0 | Q116: 0 | R116: 0 | T116: 6 | U116: 0 | V116: 0 | W116: 0 | X116: 0 | Y116: 0 | Z116: 0 | AA116: 6 | AC116: 5 | AD116: 0 | AE116: 0 | AF116: 0 | AG116: 0 | AH116: 0 | AI116: 0 | AJ116: =SUM(AC116:AI116) -> 5 | AL116: =SUM(I116+R116+AA116+AJ116) -> 13
A117: 14:45:00 | B117: 3 | C117: 0 | D117: 0 | E117: 0 | F117: 0 | G117: 0 | H117: 0 | I117: 3 | K117: 0 | L117: 0 | M117: 0 | N117: 0 | O117: 0 | P117: 0 | Q117: 0 | R117: 0 | T117: 8 | U117: 0 | V117: 0 | W117: 0 | X117: 0 | Y117: 0 | Z117: 0 | AA117: 8 | AC117: 0 | AD117: 1 | AE117: 0 | AF117: 0 | AG117: 0 | AH117: 0 | AI117: 0 | AJ117: =SUM(AC117:AI117) -> 1 | AL117: =SUM(I117+R117+AA117+AJ117) -> 12
A118: 1 Hr | B118: =SUM(B114:B117) -> 6 | C118: 2 | D118: 0 | E118: 0 | F118: 0 | G118: 0 | H118: 0 | I118: 8 | K118: =SUM(K114:K117) -> 0 | L118: 0 | M118: 0 | N118: 0 | O118: 0 | P118: 0 | Q118: 0 | R118: 0 | T118: =SUM(T114:T117) -> 28 | U118: 0 | V118: 0 | W118: 0 | X118: 0 | Y118: 0 | Z118: 0 | AA118: 28 | AC118: =SUM(AC114:AC117) -> 10 | AD118: 1 | AE118: 1 | AF118: 0 | AG118: 0 | AH118: 0 | AI118: 0 | AJ118: =SUM(AJ114:AJ117) -> 12 | AL118: =SUM(AL114:AL117) -> 48
A119: 15:00:00 | B119: 3 | C119: 0 | D119: 0 | E119: 0 | F119: 0 | G119: 0 | H119: 0 | I119: =SUM(B119:H119) -> 3 | K119: 0 | L119: 0 | M119: 0 | N119: 0 | O119: 0 | P119: 0 | Q119: 0 | R119: =SUM(K119:Q119) -> 0 | T119: 5 | U119: 0 | V119: 0 | W119: 0 | X119: 0 | Y119: 0 | Z119: 0 | AA119: =SUM(T119:Z119) -> 5 | AC119: 4 | AD119: 1 | AE119: 0 | AF119: 0 | AG119: 0 | AH119: 0 | AI119: 1 | AJ119: =SUM(AC119:AI119) -> 6 | AL119: =SUM(I119+R119+AA119+AJ119) -> 14
A120: 15:15:00 | B120: 2 | C120: 0 | D120: 0 | E120: 0 | F120: 0 | G120: 0 | H120: 0 | I120: 2 | K120: 0 | L120: 0 | M120: 0 | N120: 0 | O120: 0 | P120: 0 | Q120: 0 | R120: 0 | T120: 10 | U120: 1 | V120: 0 | W120: 0 | X120: 0 | Y120: 0 | Z120: 0 | AA120: 11 | AC120: 4 | AD120: 0 | AE120: 0 | AF120: 0 | AG120: 0 | AH120: 0 | AI120: 0 | AJ120: =SUM(AC120:AI120) -> 4 | AL120: =SUM(I120+R120+AA120+AJ120) -> 17
A121: 15:30:00 | B121: 2 | C121: 1 | D121: 0 | E121: 0 | F121: 0 | G121: 0 | H121: 0 | I121: 3 | K121: 0 | L121: 0 | M121: 0 | N121: 0 | O121: 0 | P121: 0 | Q121: 0 | R121: 0 | T121: 9 | U121: 1 | V121: 0 | W121: 0 | X121: 0 | Y121: 0 | Z121: 0 | AA121: 10 | AC121: 6 | AD121: 0 | AE121: 0 | AF121: 0 | AG121: 0 | AH121: 0 | AI121: 0 | AJ121: =SUM(AC121:AI121) -> 6 | AL121: =SUM(I121+R121+AA121+AJ121) -> 19
A122: 15:45:00 | B122: 5 | C122: 0 | D122: 0 | E122: 0 | F122: 0 | G122: 0 | H122: 0 | I122: 5 | K122: 0 | L122: 0 | M122: 0 | N122: 0 | O122: 0 | P122: 0 | Q122: 0 | R122: 0 | T122: 8 | U122: 1 | V122: 0 | W122: 0 | X122: 0 | Y122: 0 | Z122: 0 | AA122: 9 | AC122: 5 | AD122: 0 | AE122: 0 | AF122: 0 | AG122: 0 | AH122: 0 | AI122: 0 | AJ122: =SUM(AC122:AI122) -> 5 | AL122: =SUM(I122+R122+AA122+AJ122) -> 19
A123: 1 Hr | B123: =SUM(B119:B122) -> 12 | C123: 1 | D123: 0 | E123: 0 | F123: 0 | G123: 0 | H123: 0 | I123: 13 | K123: =SUM(K119:K122) -> 0 | L123: 0 | M123: 0 | N123: 0 | O123: 0 | P123: 0 | Q123: 0 | R123: 0 | T123: =SUM(T119:T122) -> 32 | U123: 3 | V123: 0 | W123: 0 | X123: 0 | Y123: 0 | Z123: 0 | AA123: 35 | AC123: =SUM(AC119:AC122) -> 19 | AD123: 1 | AE123: 0 | AF123: 0 | AG123: 0 | AH123: 0 | AI123: 1 | AJ123: =SUM(AJ119:AJ122) -> 21 | AL123: =SUM(AL119:AL122) -> 69
A124: 16:00:00 | B124: 3 | C124: 0 | D124: 0 | E124: 0 | F124: 0 | G124: 0 | H124: 0 | I124: =SUM(B124:H124) -> 3 | K124: 0 | L124: 0 | M124: 0 | N124: 0 | O124: 0 | P124: 0 | Q124: 0 | R124: =SUM(K124:Q124) -> 0 | T124: 6 | U124: 2 | V124: 0 | W124: 0 | X124: 0 | Y124: 0 | Z124: 0 | AA124: =SUM(T124:Z124) -> 8 | AC124: 2 | AD124: 0 | AE124: 0 | AF124: 0 | AG124: 0 | AH124: 0 | AI124: 1 | AJ124: =SUM(AC124:AI124) -> 3 | AL124: =SUM(I124+R124+AA124+AJ124) -> 14
A125: 16:15:00 | B125: 1 | C125: 0 | D125: 0 | E125: 0 | F125: 0 | G125: 0 | H125: 1 | I125: 2 | K125: 0 | L125: 0 | M125: 0 | N125: 0 | O125: 0 | P125: 0 | Q125: 0 | R125: 0 | T125: 5 | U125: 0 | V125: 0 | W125: 0 | X125: 0 | Y125: 0 | Z125: 0 | AA125: 5 | AC125: 2 | AD125: 1 | AE125: 0 | AF125: 0 | AG125: 0 | AH125: 0 | AI125: 0 | AJ125: =SUM(AC125:AI125) -> 3 | AL125: =SUM(I125+R125+AA125+AJ125) -> 10
A126: 16:30:00 | B126: 2 | C126: 0 | D126: 0 | E126: 0 | F126: 0 | G126: 0 | H126: 0 | I126: 2 | K126: 0 | L126: 0 | M126: 0 | N126: 0 | O126: 0 | P126: 0 | Q126: 0 | R126: 0 | T126: 5 | U126: 1 | V126: 0 | W126: 0 | X126: 0 | Y126: 0 | Z126: 0 | AA126: 6 | AC126: 3 | AD126: 0 | AE126: 0 | AF126: 0 | AG126: 0 | AH126: 0 | AI126: 0 | AJ126: =SUM(AC126:AI126) -> 3 | AL126: =SUM(I126+R126+AA126+AJ126) -> 11
A127: 16:45:00 | B127: 2 | C127: 0 | D127: 0 | E127: 0 | F127: 1 | G127: 0 | H127: 0 | I127: 3 | K127: 0 | L127: 0 | M127: 0 | N127: 0 | O127: 0 | P127: 0 | Q127: 0 | R127: 0 | T127: 1 | U127: 1 | V127: 0 | W127: 0 | X127: 0 | Y127: 0 | Z127: 0 | AA127: 2 | AC127: 2 | AD127: 0 | AE127: 0 | AF127: 0 | AG127: 0 | AH127: 0 | AI127: 0 | AJ127: =SUM(AC127:AI127) -> 2 | AL127: =SUM(I127+R127+AA127+AJ127) -> 7
A128: 1 Hr | B128: =SUM(B124:B127) -> 8 | C128: 0 | D128: 0 | E128: 0 | F128: 1 | G128: 0 | H128: 1 | I128: 10 | K128: =SUM(K124:K127) -> 0 | L128: 0 | M128: 0 | N128: 0 | O128: 0 | P128: 0 | Q128: 0 | R128: 0 | T128: =SUM(T124:T127) -> 17 | U128: 4 | V128: 0 | W128: 0 | X128: 0 | Y128: 0 | Z128: 0 | AA128: 21 | AC128: =SUM(AC124:AC127) -> 9 | AD128: 1 | AE128: 0 | AF128: 0 | AG128: 0 | AH128: 0 | AI128: 1 | AJ128: =SUM(AJ124:AJ127) -> 11 | AL128: =SUM(AL124:AL127) -> 42
A129: 17:00:00 | B129: 4 | C129: 0 | D129: 0 | E129: 0 | F129: 0 | G129: 0 | H129: 0 | I129: =SUM(B129:H129) -> 4 | K129: 0 | L129: 0 | M129: 0 | N129: 0 | O129: 0 | P129: 0 | Q129: 0 | R129: =SUM(K129:Q129) -> 0 | T129: 8 | U129: 2 | V129: 0 | W129: 0 | X129: 0 | Y129: 0 | Z129: 0 | AA129: =SUM(T129:Z129) -> 10 | AC129: 3 | AD129: 0 | AE129: 0 | AF129: 0 | AG129: 0 | AH129: 1 | AI129: 0 | AJ129: =SUM(AC129:AI129) -> 4 | AL129: =SUM(I129+R129+AA129+AJ129) -> 18
A130: 17:15:00 | B130: 3 | C130: 0 | D130: 0 | E130: 0 | F130: 0 | G130: 0 | H130: 0 | I130: 3 | K130: 0 | L130: 0 | M130: 0 | N130: 0 | O130: 0 | P130: 0 | Q130: 0 | R130: 0 | T130: 4 | U130: 1 | V130: 0 | W130: 0 | X130: 0 | Y130: 0 | Z130: 0 | AA130: 5 | AC130: 3 | AD130: 0 | AE130: 0 | AF130: 0 | AG130: 0 | AH130: 0 | AI130: 0 | AJ130: =SUM(AC130:AI130) -> 3 | AL130: =SUM(I130+R130+AA130+AJ130) -> 11
A131: 17:30:00 | B131: 0 | C131: 1 | D131: 0 | E131: 0 | F131: 0 | G131: 0 | H131: 0 | I131: 1 | K131: 0 | L131: 0 | M131: 0 | N131: 0 | O131: 0 | P131: 0 | Q131: 0 | R131: 0 | T131: 5 | U131: 0 | V131: 0 | W131: 0 | X131: 0 | Y131: 0 | Z131: 0 | AA131: 5 | AC131: 3 | AD131: 1 | AE131: 0 | AF131: 0 | AG131: 0 | AH131: 0 | AI131: 1 | AJ131: =SUM(AC131:AI131) -> 5 | AL131: =SUM(I131+R131+AA131+AJ131) -> 11
A132: 17:45:00 | B132: 1 | C132: 1 | D132: 0 | E132: 0 | F132: 0 | G132: 0 | H132: 0 | I132: 2 | K132: 0 | L132: 0 | M132: 0 | N132: 0 | O132: 0 | P132: 0 | Q132: 0 | R132: 0 | T132: 4 | U132: 0 | V132: 0 | W132: 0 | X132: 0 | Y132: 0 | Z132: 0 | AA132: 4 | AC132: 4 | AD132: 0 | AE132: 0 | AF132: 0 | AG132: 0 | AH132: 0 | AI132: 1 | AJ132: =SUM(AC132:AI132) -> 5 | AL132: =SUM(I132+R132+AA132+AJ132) -> 11
A133: 1 Hr | B133: =SUM(B129:B132) -> 8 | C133: 2 | D133: 0 | E133: 0 | F133: 0 | G133: 0 | H133: 0 | I133: 10 | K133: =SUM(K129:K132) -> 0 | L133: 0 | M133: 0 | N133: 0 | O133: 0 | P133: 0 | Q133: 0 | R133: 0 | T133: =SUM(T129:T132) -> 21 | U133: 3 | V133: 0 | W133: 0 | X133: 0 | Y133: 0 | Z133: 0 | AA133: 24 | AC133: =SUM(AC129:AC132) -> 13 | AD133: 1 | AE133: 0 | AF133: 0 | AG133: 0 | AH133: 1 | AI133: 2 | AJ133: =SUM(AJ129:AJ132) -> 17 | AL133: =SUM(AL129:AL132) -> 51
A134: 18:00:00 | B134: 2 | C134: 1 | D134: 0 | E134: 0 | F134: 0 | G134: 0 | H134: 0 | I134: =SUM(B134:H134) -> 3 | K134: 0 | L134: 0 | M134: 0 | N134: 0 | O134: 0 | P134: 0 | Q134: 0 | R134: =SUM(K134:Q134) -> 0 | T134: 7 | U134: 0 | V134: 0 | W134: 0 | X134: 0 | Y134: 0 | Z134: 0 | AA134: =SUM(T134:Z134) -> 7 | AC134: 5 | AD134: 0 | AE134: 0 | AF134: 0 | AG134: 0 | AH134: 0 | AI134: 1 | AJ134: =SUM(AC134:AI134) -> 6 | AL134: =SUM(I134+R134+AA134+AJ134) -> 16
A135: 18:15:00 | B135: 2 | C135: 1 | D135: 0 | E135: 0 | F135: 0 | G135: 0 | H135: 0 | I135: 3 | K135: 0 | L135: 0 | M135: 0 | N135: 0 | O135: 0 | P135: 0 | Q135: 0 | R135: 0 | T135: 7 | U135: 0 | V135: 0 | W135: 0 | X135: 0 | Y135: 0 | Z135: 0 | AA135: 7 | AC135: 6 | AD135: 0 | AE135: 0 | AF135: 0 | AG135: 0 | AH135: 0 | AI135: 1 | AJ135: =SUM(AC135:AI135) -> 7 | AL135: =SUM(I135+R135+AA135+AJ135) -> 17
A136: 18:30:00 | B136: 4 | C136: 0 | D136: 0 | E136: 0 | F136: 0 | G136: 0 | H136: 0 | I136: 4 | K136: 0 | L136: 0 | M136: 0 | N136: 0 | O136: 0 | P136: 0 | Q136: 0 | R136: 0 | T136: 4 | U136: 0 | V136: 0 | W136: 0 | X136: 0 | Y136: 0 | Z136: 0 | AA136: 4 | AC136: 0 | AD136: 0 | AE136: 0 | AF136: 0 | AG136: 0 | AH136: 0 | AI136: 0 | AJ136: =SUM(AC136:AI136) -> 0 | AL136: =SUM(I136+R136+AA136+AJ136) -> 8
A137: 18:45:00 | B137: 2 | C137: 0 | D137: 0 | E137: 0 | F137: 0 | G137: 0 | H137: 0 | I137: 2 | K137: 0 | L137: 0 | M137: 0 | N137: 0 | O137: 0 | P137: 0 | Q137: 0 | R137: 0 | T137: 2 | U137: 1 | V137: 0 | W137: 0 | X137: 0 | Y137: 0 | Z137: 1 | AA137: 4 | AC137: 0 | AD137: 0 | AE137: 0 | AF137: 0 | AG137: 0 | AH137: 0 | AI137: 0 | AJ137: =SUM(AC137:AI137) -> 0 | AL137: =SUM(I137+R137+AA137+AJ137) -> 6
A138: 1 Hr | B138: =SUM(B134:B137) -> 10 | C138: 2 | D138: 0 | E138: 0 | F138: 0 | G138: 0 | H138: 0 | I138: 12 | K138: =SUM(K134:K137) -> 0 | L138: 0 | M138: 0 | N138: 0 | O138: 0 | P138: 0 | Q138: 0 | R138: 0 | T138: =SUM(T134:T137) -> 20 | U138: 1 | V138: 0 | W138: 0 | X138: 0 | Y138: 0 | Z138: 1 | AA138: 22 | AC138: =SUM(AC134:AC137) -> 11 | AD138: 0 | AE138: 0 | AF138: 0 | AG138: 0 | AH138: 0 | AI138: 2 | AJ138: =SUM(AJ134:AJ137) -> 13 | AL138: =SUM(AL134:AL137) -> 47
A140: Total | B140: =SUM(B138+B133+B128+B123+B118+B113+B108+B103+B98+B93+B88+B83) -> 96 | C140: 20 | D140: 2 | E140: 0 | F140: 2 | G140: 2 | H140: 4 | I140: 126 | K140: =SUM(K138+K133+K128+K123+K118+K113+K108+K103+K98+K93+K88+K83) -> 0 | L140: 0 | M140: 0 | N140: 0 | O140: 0 | P140: 0 | Q140: 0 | R140: 0 | T140: =SUM(T138+T133+T128+T123+T118+T113+T108+T103+T98+T93+T88+T83) -> 264 | U140: 38 | V140: 3 | W140: 0 | X140: 0 | Y140: 0 | Z140: 2 | AA140: 307 | AC140: =SUM(AC138+AC133+AC128+AC123+AC118+AC113+AC108+AC103+AC98+AC93+AC88+AC83) -> 126 | AD140: 16 | AE140: 2 | AF140: 0 | AG140: 0 | AH140: 2 | AI140: 29 | AJ140: =SUM(AJ138+AJ133+AJ128+AJ123+AJ118+AJ113+AJ108+AJ103+AJ98+AJ93+AJ88+AJ83) -> 175 | AL140: =SUM(AL138+AL133+AL128+AL123+AL118+AL113+AL108+AL103+AL98+AL93+AL88+AL83) -> 608
A142: Origin : | B142: Arm C | C142: B4122 Vicarage Road(WSW)
B143: Destination : | D143: Arm A | E143: B4122 Vicarage Road(ENE) | I143: Total | K143: Destination : | M143: Arm B | N143: Abbots Road | R143: Total | T143: Destination : | V143: Arm C | W143: B4122 Vicarage Road(WSW) | AA143: Total | AC143: Destination : | AE143: Arm D | AF143: Avenue Road | AJ143: Total | AL143: Arm
B144: =$B$10 -> Car | C144: =$C$10 -> LGV | D144: =$D$10 -> OGV1 | E144: =$E$10 -> OGV2 | F144: =$F$10 -> Bus/Coach | G144: =$G$10 -> MC | H144: =$H$10 -> PC | K144: =$B$10 -> Car | L144: =$C$10 -> LGV | M144: =$D$10 -> OGV1 | N144: =$E$10 -> OGV2 | O144: =$F$10 -> Bus/Coach | P144: =$G$10 -> MC | Q144: =$H$10 -> PC | T144: =$B$10 -> Car | U144: =$C$10 -> LGV | V144: =$D$10 -> OGV1 | W144: =$E$10 -> OGV2 | X144: =$F$10 -> Bus/Coach | Y144: =$G$10 -> MC | Z144: =$H$10 -> PC | AC144: =$B$10 -> Car | AD144: =$C$10 -> LGV | AE144: =$D$10 -> OGV1 | AF144: =$E$10 -> OGV2 | AG144: =$F$10 -> Bus/Coach | AH144: =$G$10 -> MC | AI144: =$H$10 -> PC | AL144: Totals
A146: 07:00:00 | B146: 31 | C146: 1 | D146: 3 | E146: 0 | F146: 4 | G146: 0 | H146: 2 | I146: =SUM(B146:H146) -> 41 | K146: 2 | L146: 0 | M146: 0 | N146: 0 | O146: 0 | P146: 0 | Q146: 0 | R146: =SUM(K146:Q146) -> 2 | T146: 0 | U146: 0 | V146: 0 | W146: 0 | X146: 0 | Y146: 0 | Z146: 0 | AA146: =SUM(T146:Z146) -> 0 | AC146: 2 | AD146: 0 | AE146: 0 | AF146: 0 | AG146: 0 | AH146: 0 | AI146: 0 | AJ146: =SUM(AC146:AI146) -> 2 | AL146: =SUM(I146+R146+AA146+AJ146) -> 45
A147: 07:15:00 | B147: 49 | C147: 1 | D147: 3 | E147: 0 | F147: 6 | G147: 0 | H147: 2 | I147: 61 | K147: 0 | L147: 0 | M147: 0 | N147: 0 | O147: 0 | P147: 0 | Q147: 0 | R147: 0 | T147: 0 | U147: 0 | V147: 0 | W147: 0 | X147: 0 | Y147: 0 | Z147: 0 | AA147: 0 | AC147: 16 | AD147: 3 | AE147: 0 | AF147: 0 | AG147: 0 | AH147: 0 | AI147: 0 | AJ147: =SUM(AC147:AI147) -> 19 | AL147: =SUM(I147+R147+AA147+AJ147) -> 80
A148: 07:30:00 | B148: 48 | C148: 5 | D148: 1 | E148: 0 | F148: 4 | G148: 0 | H148: 2 | I148: 60 | K148: 1 | L148: 0 | M148: 0 | N148: 0 | O148: 0 | P148: 0 | Q148: 0 | R148: 1 | T148: 0 | U148: 0 | V148: 0 | W148: 0 | X148: 0 | Y148: 0 | Z148: 0 | AA148: 0 | AC148: 15 | AD148: 1 | AE148: 0 | AF148: 0 | AG148: 0 | AH148: 0 | AI148: 0 | AJ148: =SUM(AC148:AI148) -> 16 | AL148: =SUM(I148+R148+AA148+AJ148) -> 77
A149: 07:45:00 | B149: 42 | C149: 2 | D149: 2 | E149: 0 | F149: 5 | G149: 0 | H149: 4 | I149: 55 | K149: 0 | L149: 0 | M149: 0 | N149: 0 | O149: 0 | P149: 0 | Q149: 0 | R149: 0 | T149: 0 | U149: 0 | V149: 0 | W149: 0 | X149: 0 | Y149: 0 | Z149: 0 | AA149: 0 | AC149: 17 | AD149: 1 | AE149: 2 | AF149: 0 | AG149: 0 | AH149: 0 | AI149: 1 | AJ149: =SUM(AC149:AI149) -> 21 | AL149: =SUM(I149+R149+AA149+AJ149) -> 76
A150: 1 Hr | B150: =SUM(B146:B149) -> 170 | C150: 9 | D150: 9 | E150: 0 | F150: 19 | G150: 0 | H150: 10 | I150: 217 | K150: =SUM(K146:K149) -> 3 | L150: 0 | M150: 0 | N150: 0 | O150: 0 | P150: 0 | Q150: 0 | R150: 3 | T150: =SUM(T146:T149) -> 0 | U150: 0 | V150: 0 | W150: 0 | X150: 0 | Y150: 0 | Z150: 0 | AA150: 0 | AC150: =SUM(AC146:AC149) -> 50 | AD150: 5 | AE150: 2 | AF150: 0 | AG150: 0 | AH150: 0 | AI150: 1 | AJ150: =SUM(AJ146:AJ149) -> 58 | AL150: =SUM(AL146:AL149) -> 278
A151: 08:00:00 | B151: 43 | C151: 3 | D151: 1 | E151: 0 | F151: 2 | G151: 0 | H151: 2 | I151: =SUM(B151:H151) -> 51 | K151: 3 | L151: 1 | M151: 0 | N151: 0 | O151: 0 | P151: 0 | Q151: 0 | R151: =SUM(K151:Q151) -> 4 | T151: 0 | U151: 0 | V151: 0 | W151: 0 | X151: 0 | Y151: 0 | Z151: 0 | AA151: =SUM(T151:Z151) -> 0 | AC151: 13 | AD151: 0 | AE151: 0 | AF151: 0 | AG151: 0 | AH151: 0 | AI151: 0 | AJ151: =SUM(AC151:AI151) -> 13 | AL151: =SUM(I151+R151+AA151+AJ151) -> 68
A152: 08:15:00 | B152: 42 | C152: 2 | D152: 0 | E152: 0 | F152: 5 | G152: 0 | H152: 0 | I152: 49 | K152: 1 | L152: 3 | M152: 0 | N152: 0 | O152: 0 | P152: 0 | Q152: 0 | R152: 4 | T152: 0 | U152: 0 | V152: 0 | W152: 0 | X152: 0 | Y152: 0 | Z152: 0 | AA152: 0 | AC152: 8 | AD152: 4 | AE152: 0 | AF152: 0 | AG152: 0 | AH152: 0 | AI152: 0 | AJ152: =SUM(AC152:AI152) -> 12 | AL152: =SUM(I152+R152+AA152+AJ152) -> 65
A153: 08:30:00 | B153: 15 | C153: 2 | D153: 0 | E153: 0 | F153: 3 | G153: 1 | H153: 1 | I153: 22 | K153: 0 | L153: 0 | M153: 0 | N153: 0 | O153: 0 | P153: 0 | Q153: 0 | R153: 0 | T153: 0 | U153: 0 | V153: 0 | W153: 0 | X153: 0 | Y153: 0 | Z153: 0 | AA153: 0 | AC153: 9 | AD153: 0 | AE153: 0 | AF153: 0 | AG153: 0 | AH153: 1 | AI153: 0 | AJ153: =SUM(AC153:AI153) -> 10 | AL153: =SUM(I153+R153+AA153+AJ153) -> 32
A154: 08:45:00 | B154: 29 | C154: 2 | D154: 1 | E154: 0 | F154: 4 | G154: 0 | H154: 0 | I154: 36 | K154: 2 | L154: 0 | M154: 0 | N154: 0 | O154: 0 | P154: 0 | Q154: 0 | R154: 2 | T154: 0 | U154: 0 | V154: 0 | W154: 0 | X154: 0 | Y154: 0 | Z154: 0 | AA154: 0 | AC154: 19 | AD154: 1 | AE154: 0 | AF154: 0 | AG154: 0 | AH154: 0 | AI154: 0 | AJ154: =SUM(AC154:AI154) -> 20 | AL154: =SUM(I154+R154+AA154+AJ154) -> 58
A155: 1 Hr | B155: =SUM(B151:B154) -> 129 | C155: 9 | D155: 2 | E155: 0 | F155: 14 | G155: 1 | H155: 3 | I155: 158 | K155: =SUM(K151:K154) -> 6 | L155: 4 | M155: 0 | N155: 0 | O155: 0 | P155: 0 | Q155: 0 | R155: 10 | T155: =SUM(T151:T154) -> 0 | U155: 0 | V155: 0 | W155: 0 | X155: 0 | Y155: 0 | Z155: 0 | AA155: 0 | AC155: =SUM(AC151:AC154) -> 49 | AD155: 5 | AE155: 0 | AF155: 0 | AG155: 0 | AH155: 1 | AI155: 0 | AJ155: =SUM(AJ151:AJ154) -> 55 | AL155: =SUM(AL151:AL154) -> 223
A156: 09:00:00 | B156: 32 | C156: 4 | D156: 1 | E156: 0 | F156: 5 | G156: 0 | H156: 0 | I156: =SUM(B156:H156) -> 42 | K156: 5 | L156: 1 | M156: 0 | N156: 0 | O156: 0 | P156: 0 | Q156: 0 | R156: =SUM(K156:Q156) -> 6 | T156: 0 | U156: 0 | V156: 0 | W156: 0 | X156: 0 | Y156: 0 | Z156: 0 | AA156: =SUM(T156:Z156) -> 0 | AC156: 14 | AD156: 3 | AE156: 0 | AF156: 0 | AG156: 0 | AH156: 0 | AI156: 0 | AJ156: =SUM(AC156:AI156) -> 17 | AL156: =SUM(I156+R156+AA156+AJ156) -> 65
A157: 09:15:00 | B157: 33 | C157: 2 | D157: 0 | E157: 1 | F157: 4 | G157: 0 | H157: 1 | I157: 41 | K157: 2 | L157: 0 | M157: 0 | N157: 0 | O157: 0 | P157: 0 | Q157: 0 | R157: 2 | T157: 0 | U157: 0 | V157: 0 | W157: 0 | X157: 0 | Y157: 0 | Z157: 0 | AA157: 0 | AC157: 18 | AD157: 1 | AE157: 1 | AF157: 1 | AG157: 0 | AH157: 0 | AI157: 1 | AJ157: =SUM(AC157:AI157) -> 22 | AL157: =SUM(I157+R157+AA157+AJ157) -> 65
A158: 09:30:00 | B158: 27 | C158: 1 | D158: 0 | E158: 0 | F158: 5 | G158: 0 | H158: 0 | I158: 33 | K158: 0 | L158: 0 | M158: 0 | N158: 0 | O158: 0 | P158: 0 | Q158: 0 | R158: 0 | T158: 0 | U158: 0 | V158: 0 | W158: 0 | X158: 0 | Y158: 0 | Z158: 0 | AA158: 0 | AC158: 12 | AD158: 4 | AE158: 0 | AF158: 0 | AG158: 0 | AH158: 0 | AI158: 0 | AJ158: =SUM(AC158:AI158) -> 16 | AL158: =SUM(I158+R158+AA158+AJ158) -> 49
A159: 09:45:00 | B159: 25 | C159: 1 | D159: 1 | E159: 0 | F159: 4 | G159: 0 | H159: 0 | I159: 31 | K159: 1 | L159: 0 | M159: 0 | N159: 0 | O159: 0 | P159: 0 | Q159: 0 | R159: 1 | T159: 0 | U159: 0 | V159: 0 | W159: 0 | X159: 0 | Y159: 0 | Z159: 0 | AA159: 0 | AC159: 15 | AD159: 3 | AE159: 0 | AF159: 0 | AG159: 0 | AH159: 0 | AI159: 0 | AJ159: =SUM(AC159:AI159) -> 18 | AL159: =SUM(I159+R159+AA159+AJ159) -> 50
A160: 1 Hr | B160: =SUM(B156:B159) -> 117 | C160: 8 | D160: 2 | E160: 1 | F160: 18 | G160: 0 | H160: 1 | I160: 147 | K160: =SUM(K156:K159) -> 8 | L160: 1 | M160: 0 | N160: 0 | O160: 0 | P160: 0 | Q160: 0 | R160: 9 | T160: =SUM(T156:T159) -> 0 | U160: 0 | V160: 0 | W160: 0 | X160: 0 | Y160: 0 | Z160: 0 | AA160: 0 | AC160: =SUM(AC156:AC159) -> 59 | AD160: 11 | AE160: 1 | AF160: 1 | AG160: 0 | AH160: 0 | AI160: 1 | AJ160: =SUM(AJ156:AJ159) -> 73 | AL160: =SUM(AL156:AL159) -> 229
A161: 10:00:00 | B161: 39 | C161: 4 | D161: 2 | E161: 0 | F161: 4 | G161: 0 | H161: 1 | I161: =SUM(B161:H161) -> 50 | K161: 1 | L161: 0 | M161: 0 | N161: 0 | O161: 0 | P161: 1 | Q161: 0 | R161: =SUM(K161:Q161) -> 2 | T161: 0 | U161: 0 | V161: 0 | W161: 0 | X161: 0 | Y161: 0 | Z161: 0 | AA161: =SUM(T161:Z161) -> 0 | AC161: 16 | AD161: 0 | AE161: 0 | AF161: 0 | AG161: 0 | AH161: 0 | AI161: 1 | AJ161: =SUM(AC161:AI161) -> 17 | AL161: =SUM(I161+R161+AA161+AJ161) -> 69
A162: 10:15:00 | B162: 36 | C162: 5 | D162: 1 | E162: 0 | F162: 3 | G162: 1 | H162: 0 | I162: 46 | K162: 0 | L162: 0 | M162: 0 | N162: 0 | O162: 0 | P162: 0 | Q162: 0 | R162: 0 | T162: 0 | U162: 0 | V162: 0 | W162: 0 | X162: 0 | Y162: 0 | Z162: 0 | AA162: 0 | AC162: 15 | AD162: 3 | AE162: 0 | AF162: 0 | AG162: 0 | AH162: 0 | AI162: 0 | AJ162: =SUM(AC162:AI162) -> 18 | AL162: =SUM(I162+R162+AA162+AJ162) -> 64
A163: 10:30:00 | B163: 35 | C163: 2 | D163: 0 | E163: 0 | F163: 5 | G163: 0 | H163: 2 | I163: 44 | K163: 1 | L163: 0 | M163: 0 | N163: 0 | O163: 0 | P163: 0 | Q163: 0 | R163: 1 | T163: 0 | U163: 0 | V163: 0 | W163: 0 | X163: 0 | Y163: 0 | Z163: 0 | AA163: 0 | AC163: 10 | AD163: 3 | AE163: 0 | AF163: 0 | AG163: 0 | AH163: 0 | AI163: 0 | AJ163: =SUM(AC163:AI163) -> 13 | AL163: =SUM(I163+R163+AA163+AJ163) -> 58
A164: 10:45:00 | B164: 39 | C164: 2 | D164: 1 | E164: 0 | F164: 4 | G164: 0 | H164: 0 | I164: 46 | K164: 4 | L164: 0 | M164: 0 | N164: 0 | O164: 0 | P164: 0 | Q164: 0 | R164: 4 | T164: 0 | U164: 0 | V164: 0 | W164: 0 | X164: 0 | Y164: 0 | Z164: 0 | AA164: 0 | AC164: 17 | AD164: 1 | AE164: 1 | AF164: 0 | AG164: 0 | AH164: 0 | AI164: 0 | AJ164: =SUM(AC164:AI164) -> 19 | AL164: =SUM(I164+R164+AA164+AJ164) -> 69
A165: 1 Hr | B165: =SUM(B161:B164) -> 149 | C165: 13 | D165: 4 | E165: 0 | F165: 16 | G165: 1 | H165: 3 | I165: 186 | K165: =SUM(K161:K164) -> 6 | L165: 0 | M165: 0 | N165: 0 | O165: 0 | P165: 1 | Q165: 0 | R165: 7 | T165: =SUM(T161:T164) -> 0 | U165: 0 | V165: 0 | W165: 0 | X165: 0 | Y165: 0 | Z165: 0 | AA165: 0 | AC165: =SUM(AC161:AC164) -> 58 | AD165: 7 | AE165: 1 | AF165: 0 | AG165: 0 | AH165: 0 | AI165: 1 | AJ165: =SUM(AJ161:AJ164) -> 67 | AL165: =SUM(AL161:AL164) -> 260
A166: 11:00:00 | B166: 32 | C166: 6 | D166: 0 | E166: 1 | F166: 4 | G166: 0 | H166: 2 | I166: =SUM(B166:H166) -> 45 | K166: 0 | L166: 0 | M166: 0 | N166: 0 | O166: 0 | P166: 0 | Q166: 0 | R166: =SUM(K166:Q166) -> 0 | T166: 0 | U166: 0 | V166: 0 | W166: 0 | X166: 0 | Y166: 0 | Z166: 0 | AA166: =SUM(T166:Z166) -> 0 | AC166: 16 | AD166: 2 | AE166: 0 | AF166: 0 | AG166: 0 | AH166: 0 | AI166: 0 | AJ166: =SUM(AC166:AI166) -> 18 | AL166: =SUM(I166+R166+AA166+AJ166) -> 63
A167: 11:15:00 | B167: 38 | C167: 3 | D167: 0 | E167: 1 | F167: 3 | G167: 0 | H167: 0 | I167: 45 | K167: 1 | L167: 2 | M167: 0 | N167: 0 | O167: 0 | P167: 0 | Q167: 0 | R167: 3 | T167: 0 | U167: 0 | V167: 0 | W167: 0 | X167: 0 | Y167: 0 | Z167: 0 | AA167: 0 | AC167: 5 | AD167: 0 | AE167: 1 | AF167: 0 | AG167: 0 | AH167: 1 | AI167: 0 | AJ167: =SUM(AC167:AI167) -> 7 | AL167: =SUM(I167+R167+AA167+AJ167) -> 55
A168: 11:30:00 | B168: 47 | C168: 1 | D168: 0 | E168: 1 | F168: 6 | G168: 0 | H168: 0 | I168: 55 | K168: 0 | L168: 2 | M168: 0 | N168: 0 | O168: 0 | P168: 0 | Q168: 0 | R168: 2 | T168: 0 | U168: 0 | V168: 0 | W168: 0 | X168: 0 | Y168: 0 | Z168: 0 | AA168: 0 | AC168: 13 | AD168: 1 | AE168: 0 | AF168: 0 | AG168: 0 | AH168: 0 | AI168: 0 | AJ168: =SUM(AC168:AI168) -> 14 | AL168: =SUM(I168+R168+AA168+AJ168) -> 71
A169: 11:45:00 | B169: 36 | C169: 6 | D169: 3 | E169: 0 | F169: 5 | G169: 0 | H169: 1 | I169: 51 | K169: 1 | L169: 0 | M169: 0 | N169: 0 | O169: 0 | P169: 0 | Q169: 0 | R169: 1 | T169: 0 | U169: 0 | V169: 0 | W169: 0 | X169: 0 | Y169: 0 | Z169: 0 | AA169: 0 | AC169: 13 | AD169: 0 | AE169: 0 | AF169: 0 | AG169: 0 | AH169: 0 | AI169: 0 | AJ169: =SUM(AC169:AI169) -> 13 | AL169: =SUM(I169+R169+AA169+AJ169) -> 65
A170: 1 Hr | B170: =SUM(B166:B169) -> 153 | C170: 16 | D170: 3 | E170: 3 | F170: 18 | G170: 0 | H170: 3 | I170: 196 | K170: =SUM(K166:K169) -> 2 | L170: 4 | M170: 0 | N170: 0 | O170: 0 | P170: 0 | Q170: 0 | R170: 6 | T170: =SUM(T166:T169) -> 0 | U170: 0 | V170: 0 | W170: 0 | X170: 0 | Y170: 0 | Z170: 0 | AA170: 0 | AC170: =SUM(AC166:AC169) -> 47 | AD170: 3 | AE170: 1 | AF170: 0 | AG170: 0 | AH170: 1 | AI170: 0 | AJ170: =SUM(AJ166:AJ169) -> 52 | AL170: =SUM(AL166:AL169) -> 254
A171: 12:00:00 | B171: 34 | C171: 4 | D171: 0 | E171: 0 | F171: 2 | G171: 0 | H171: 0 | I171: =SUM(B171:H171) -> 40 | K171: 0 | L171: 0 | M171: 0 | N171: 0 | O171: 0 | P171: 0 | Q171: 0 | R171: =SUM(K171:Q171) -> 0 | T171: 0 | U171: 0 | V171: 0 | W171: 0 | X171: 0 | Y171: 0 | Z171: 0 | AA171: =SUM(T171:Z171) -> 0 | AC171: 12 | AD171: 2 | AE171: 0 | AF171: 0 | AG171: 0 | AH171: 0 | AI171: 0 | AJ171: =SUM(AC171:AI171) -> 14 | AL171: =SUM(I171+R171+AA171+AJ171) -> 54
A172: 12:15:00 | B172: 34 | C172: 3 | D172: 1 | E172: 0 | F172: 5 | G172: 0 | H172: 1 | I172: 44 | K172: 0 | L172: 0 | M172: 0 | N172: 0 | O172: 0 | P172: 0 | Q172: 0 | R172: 0 | T172: 0 | U172: 0 | V172: 0 | W172: 0 | X172: 0 | Y172: 0 | Z172: 0 | AA172: 0 | AC172: 16 | AD172: 2 | AE172: 0 | AF172: 0 | AG172: 0 | AH172: 0 | AI172: 0 | AJ172: =SUM(AC172:AI172) -> 18 | AL172: =SUM(I172+R172+AA172+AJ172) -> 62
A173: 12:30:00 | B173: 30 | C173: 2 | D173: 0 | E173: 0 | F173: 4 | G173: 1 | H173: 1 | I173: 38 | K173: 1 | L173: 0 | M173: 0 | N173: 0 | O173: 0 | P173: 0 | Q173: 0 | R173: 1 | T173: 0 | U173: 0 | V173: 0 | W173: 0 | X173: 0 | Y173: 0 | Z173: 0 | AA173: 0 | AC173: 20 | AD173: 2 | AE173: 0 | AF173: 0 | AG173: 0 | AH173: 0 | AI173: 0 | AJ173: =SUM(AC173:AI173) -> 22 | AL173: =SUM(I173+R173+AA173+AJ173) -> 61
A174: 12:45:00 | B174: 36 | C174: 3 | D174: 1 | E174: 0 | F174: 3 | G174: 1 | H174: 0 | I174: 44 | K174: 1 | L174: 0 | M174: 0 | N174: 0 | O174: 0 | P174: 1 | Q174: 0 | R174: 2 | T174: 0 | U174: 0 | V174: 0 | W174: 0 | X174: 0 | Y174: 0 | Z174: 0 | AA174: 0 | AC174: 16 | AD174: 5 | AE174: 1 | AF174: 0 | AG174: 0 | AH174: 0 | AI174: 0 | AJ174: =SUM(AC174:AI174) -> 22 | AL174: =SUM(I174+R174+AA174+AJ174) -> 68
A175: 1 Hr | B175: =SUM(B171:B174) -> 134 | C175: 12 | D175: 2 | E175: 0 | F175: 14 | G175: 2 | H175: 2 | I175: 166 | K175: =SUM(K171:K174) -> 2 | L175: 0 | M175: 0 | N175: 0 | O175: 0 | P175: 1 | Q175: 0 | R175: 3 | T175: =SUM(T171:T174) -> 0 | U175: 0 | V175: 0 | W175: 0 | X175: 0 | Y175: 0 | Z175: 0 | AA175: 0 | AC175: =SUM(AC171:AC174) -> 64 | AD175: 11 | AE175: 1 | AF175: 0 | AG175: 0 | AH175: 0 | AI175: 0 | AJ175: =SUM(AJ171:AJ174) -> 76 | AL175: =SUM(AL171:AL174) -> 245
A176: 13:00:00 | B176: 28 | C176: 3 | D176: 1 | E176: 0 | F176: 5 | G176: 0 | H176: 0 | I176: =SUM(B176:H176) -> 37 | K176: 3 | L176: 0 | M176: 0 | N176: 0 | O176: 0 | P176: 0 | Q176: 0 | R176: =SUM(K176:Q176) -> 3 | T176: 0 | U176: 0 | V176: 0 | W176: 0 | X176: 0 | Y176: 0 | Z176: 0 | AA176: =SUM(T176:Z176) -> 0 | AC176: 25 | AD176: 2 | AE176: 0 | AF176: 0 | AG176: 0 | AH176: 0 | AI176: 0 | AJ176: =SUM(AC176:AI176) -> 27 | AL176: =SUM(I176+R176+AA176+AJ176) -> 67
A177: 13:15:00 | B177: 32 | C177: 4 | D177: 0 | E177: 1 | F177: 3 | G177: 1 | H177: 1 | I177: 42 | K177: 0 | L177: 0 | M177: 0 | N177: 0 | O177: 0 | P177: 0 | Q177: 0 | R177: 0 | T177: 0 | U177: 0 | V177: 0 | W177: 0 | X177: 0 | Y177: 0 | Z177: 0 | AA177: 0 | AC177: 17 | AD177: 4 | AE177: 0 | AF177: 0 | AG177: 0 | AH177: 0 | AI177: 0 | AJ177: =SUM(AC177:AI177) -> 21 | AL177: =SUM(I177+R177+AA177+AJ177) -> 63
A178: 13:30:00 | B178: 38 | C178: 4 | D178: 1 | E178: 0 | F178: 4 | G178: 1 | H178: 1 | I178: 49 | K178: 2 | L178: 0 | M178: 0 | N178: 0 | O178: 0 | P178: 0 | Q178: 0 | R178: 2 | T178: 0 | U178: 0 | V178: 0 | W178: 0 | X178: 0 | Y178: 0 | Z178: 0 | AA178: 0 | AC178: 16 | AD178: 3 | AE178: 0 | AF178: 0 | AG178: 0 | AH178: 0 | AI178: 0 | AJ178: =SUM(AC178:AI178) -> 19 | AL178: =SUM(I178+R178+AA178+AJ178) -> 70
A179: 13:45:00 | B179: 35 | C179: 2 | D179: 1 | E179: 0 | F179: 3 | G179: 0 | H179: 0 | I179: 41 | K179: 2 | L179: 0 | M179: 0 | N179: 0 | O179: 0 | P179: 0 | Q179: 0 | R179: 2 | T179: 0 | U179: 0 | V179: 0 | W179: 0 | X179: 0 | Y179: 0 | Z179: 0 | AA179: 0 | AC179: 15 | AD179: 0 | AE179: 1 | AF179: 0 | AG179: 0 | AH179: 0 | AI179: 0 | AJ179: =SUM(AC179:AI179) -> 16 | AL179: =SUM(I179+R179+AA179+AJ179) -> 59
A180: 1 Hr | B180: =SUM(B176:B179) -> 133 | C180: 13 | D180: 3 | E180: 1 | F180: 15 | G180: 2 | H180: 2 | I180: 169 | K180: =SUM(K176:K179) -> 7 | L180: 0 | M180: 0 | N180: 0 | O180: 0 | P180: 0 | Q180: 0 | R180: 7 | T180: =SUM(T176:T179) -> 0 | U180: 0 | V180: 0 | W180: 0 | X180: 0 | Y180: 0 | Z180: 0 | AA180: 0 | AC180: =SUM(AC176:AC179) -> 73 | AD180: 9 | AE180: 1 | AF180: 0 | AG180: 0 | AH180: 0 | AI180: 0 | AJ180: =SUM(AJ176:AJ179) -> 83 | AL180: =SUM(AL176:AL179) -> 259
A181: 14:00:00 | B181: 41 | C181: 3 | D181: 1 | E181: 0 | F181: 3 | G181: 0 | H181: 1 | I181: =SUM(B181:H181) -> 49 | K181: 0 | L181: 1 | M181: 0 | N181: 0 | O181: 0 | P181: 0 | Q181: 0 | R181: =SUM(K181:Q181) -> 1 | T181: 0 | U181: 0 | V181: 0 | W181: 0 | X181: 0 | Y181: 0 | Z181: 0 | AA181: =SUM(T181:Z181) -> 0 | AC181: 11 | AD181: 3 | AE181: 0 | AF181: 0 | AG181: 0 | AH181: 0 | AI181: 0 | AJ181: =SUM(AC181:AI181) -> 14 | AL181: =SUM(I181+R181+AA181+AJ181) -> 64
A182: 14:15:00 | B182: 33 | C182: 5 | D182: 1 | E182: 1 | F182: 5 | G182: 1 | H182: 1 | I182: 47 | K182: 1 | L182: 0 | M182: 1 | N182: 0 | O182: 0 | P182: 0 | Q182: 0 | R182: 2 | T182: 0 | U182: 0 | V182: 0 | W182: 0 | X182: 0 | Y182: 0 | Z182: 0 | AA182: 0 | AC182: 17 | AD182: 0 | AE182: 1 | AF182: 0 | AG182: 0 | AH182: 0 | AI182: 0 | AJ182: =SUM(AC182:AI182) -> 18 | AL182: =SUM(I182+R182+AA182+AJ182) -> 67
A183: 14:30:00 | B183: 29 | C183: 0 | D183: 0 | E183: 0 | F183: 5 | G183: 0 | H183: 3 | I183: 37 | K183: 0 | L183: 0 | M183: 0 | N183: 0 | O183: 0 | P183: 0 | Q183: 0 | R183: 0 | T183: 0 | U183: 0 | V183: 0 | W183: 0 | X183: 0 | Y183: 0 | Z183: 0 | AA183: 0 | AC183: 10 | AD183: 2 | AE183: 0 | AF183: 0 | AG183: 0 | AH183: 0 | AI183: 0 | AJ183: =SUM(AC183:AI183) -> 12 | AL183: =SUM(I183+R183+AA183+AJ183) -> 49
A184: 14:45:00 | B184: 27 | C184: 2 | D184: 0 | E184: 0 | F184: 4 | G184: 0 | H184: 0 | I184: 33 | K184: 1 | L184: 0 | M184: 0 | N184: 0 | O184: 0 | P184: 0 | Q184: 0 | R184: 1 | T184: 0 | U184: 0 | V184: 0 | W184: 0 | X184: 0 | Y184: 0 | Z184: 0 | AA184: 0 | AC184: 11 | AD184: 2 | AE184: 0 | AF184: 0 | AG184: 0 | AH184: 0 | AI184: 0 | AJ184: =SUM(AC184:AI184) -> 13 | AL184: =SUM(I184+R184+AA184+AJ184) -> 47
A185: 1 Hr | B185: =SUM(B181:B184) -> 130 | C185: 10 | D185: 2 | E185: 1 | F185: 17 | G185: 1 | H185: 5 | I185: 166 | K185: =SUM(K181:K184) -> 2 | L185: 1 | M185: 1 | N185: 0 | O185: 0 | P185: 0 | Q185: 0 | R185: 4 | T185: =SUM(T181:T184) -> 0 | U185: 0 | V185: 0 | W185: 0 | X185: 0 | Y185: 0 | Z185: 0 | AA185: 0 | AC185: =SUM(AC181:AC184) -> 49 | AD185: 7 | AE185: 1 | AF185: 0 | AG185: 0 | AH185: 0 | AI185: 0 | AJ185: =SUM(AJ181:AJ184) -> 57 | AL185: =SUM(AL181:AL184) -> 227
A186: 15:00:00 | B186: 27 | C186: 1 | D186: 0 | E186: 0 | F186: 3 | G186: 0 | H186: 0 | I186: =SUM(B186:H186) -> 31 | K186: 1 | L186: 0 | M186: 0 | N186: 0 | O186: 0 | P186: 0 | Q186: 0 | R186: =SUM(K186:Q186) -> 1 | T186: 0 | U186: 0 | V186: 0 | W186: 0 | X186: 0 | Y186: 0 | Z186: 0 | AA186: =SUM(T186:Z186) -> 0 | AC186: 15 | AD186: 0 | AE186: 0 | AF186: 0 | AG186: 0 | AH186: 0 | AI186: 0 | AJ186: =SUM(AC186:AI186) -> 15 | AL186: =SUM(I186+R186+AA186+AJ186) -> 47
A187: 15:15:00 | B187: 30 | C187: 2 | D187: 1 | E187: 0 | F187: 2 | G187: 1 | H187: 0 | I187: 36 | K187: 1 | L187: 0 | M187: 0 | N187: 0 | O187: 0 | P187: 0 | Q187: 0 | R187: 1 | T187: 0 | U187: 0 | V187: 0 | W187: 0 | X187: 0 | Y187: 0 | Z187: 0 | AA187: 0 | AC187: 9 | AD187: 1 | AE187: 1 | AF187: 0 | AG187: 0 | AH187: 0 | AI187: 0 | AJ187: =SUM(AC187:AI187) -> 11 | AL187: =SUM(I187+R187+AA187+AJ187) -> 48
A188: 15:30:00 | B188: 30 | C188: 3 | D188: 0 | E188: 0 | F188: 3 | G188: 1 | H188: 3 | I188: 40 | K188: 4 | L188: 0 | M188: 0 | N188: 0 | O188: 0 | P188: 0 | Q188: 0 | R188: 4 | T188: 0 | U188: 0 | V188: 0 | W188: 0 | X188: 0 | Y188: 0 | Z188: 0 | AA188: 0 | AC188: 16 | AD188: 2 | AE188: 0 | AF188: 0 | AG188: 0 | AH188: 0 | AI188: 0 | AJ188: =SUM(AC188:AI188) -> 18 | AL188: =SUM(I188+R188+AA188+AJ188) -> 62
A189: 15:45:00 | B189: 32 | C189: 2 | D189: 0 | E189: 0 | F189: 6 | G189: 1 | H189: 1 | I189: 42 | K189: 0 | L189: 0 | M189: 0 | N189: 0 | O189: 0 | P189: 0 | Q189: 0 | R189: 0 | T189: 0 | U189: 0 | V189: 0 | W189: 0 | X189: 0 | Y189: 0 | Z189: 0 | AA189: 0 | AC189: 24 | AD189: 1 | AE189: 0 | AF189: 0 | AG189: 0 | AH189: 1 | AI189: 0 | AJ189: =SUM(AC189:AI189) -> 26 | AL189: =SUM(I189+R189+AA189+AJ189) -> 68
A190: 1 Hr | B190: =SUM(B186:B189) -> 119 | C190: 8 | D190: 1 | E190: 0 | F190: 14 | G190: 3 | H190: 4 | I190: 149 | K190: =SUM(K186:K189) -> 6 | L190: 0 | M190: 0 | N190: 0 | O190: 0 | P190: 0 | Q190: 0 | R190: 6 | T190: =SUM(T186:T189) -> 0 | U190: 0 | V190: 0 | W190: 0 | X190: 0 | Y190: 0 | Z190: 0 | AA190: 0 | AC190: =SUM(AC186:AC189) -> 64 | AD190: 4 | AE190: 1 | AF190: 0 | AG190: 0 | AH190: 1 | AI190: 0 | AJ190: =SUM(AJ186:AJ189) -> 70 | AL190: =SUM(AL186:AL189) -> 225
A191: 16:00:00 | B191: 30 | C191: 1 | D191: 0 | E191: 0 | F191: 0 | G191: 0 | H191: 0 | I191: =SUM(B191:H191) -> 31 | K191: 0 | L191: 0 | M191: 0 | N191: 0 | O191: 0 | P191: 0 | Q191: 0 | R191: =SUM(K191:Q191) -> 0 | T191: 0 | U191: 0 | V191: 0 | W191: 0 | X191: 0 | Y191: 0 | Z191: 0 | AA191: =SUM(T191:Z191) -> 0 | AC191: 9 | AD191: 1 | AE191: 0 | AF191: 0 | AG191: 0 | AH191: 0 | AI191: 1 | AJ191: =SUM(AC191:AI191) -> 11 | AL191: =SUM(I191+R191+AA191+AJ191) -> 42
A192: 16:15:00 | B192: 33 | C192: 4 | D192: 0 | E192: 0 | F192: 5 | G192: 0 | H192: 2 | I192: 44 | K192: 2 | L192: 0 | M192: 0 | N192: 0 | O192: 0 | P192: 0 | Q192: 0 | R192: 2 | T192: 0 | U192: 0 | V192: 0 | W192: 0 | X192: 0 | Y192: 0 | Z192: 0 | AA192: 0 | AC192: 5 | AD192: 0 | AE192: 0 | AF192: 0 | AG192: 0 | AH192: 0 | AI192: 1 | AJ192: =SUM(AC192:AI192) -> 6 | AL192: =SUM(I192+R192+AA192+AJ192) -> 52
A193: 16:30:00 | B193: 34 | C193: 2 | D193: 0 | E193: 0 | F193: 5 | G193: 0 | H193: 2 | I193: 43 | K193: 1 | L193: 0 | M193: 0 | N193: 0 | O193: 0 | P193: 0 | Q193: 0 | R193: 1 | T193: 0 | U193: 0 | V193: 0 | W193: 0 | X193: 0 | Y193: 0 | Z193: 0 | AA193: 0 | AC193: 16 | AD193: 1 | AE193: 1 | AF193: 0 | AG193: 0 | AH193: 0 | AI193: 0 | AJ193: =SUM(AC193:AI193) -> 18 | AL193: =SUM(I193+R193+AA193+AJ193) -> 62
A194: 16:45:00 | B194: 28 | C194: 1 | D194: 0 | E194: 0 | F194: 4 | G194: 0 | H194: 1 | I194: 34 | K194: 0 | L194: 0 | M194: 0 | N194: 0 | O194: 1 | P194: 0 | Q194: 0 | R194: 1 | T194: 0 | U194: 0 | V194: 0 | W194: 0 | X194: 0 | Y194: 0 | Z194: 0 | AA194: 0 | AC194: 11 | AD194: 1 | AE194: 0 | AF194: 0 | AG194: 0 | AH194: 0 | AI194: 0 | AJ194: =SUM(AC194:AI194) -> 12 | AL194: =SUM(I194+R194+AA194+AJ194) -> 47
A195: 1 Hr | B195: =SUM(B191:B194) -> 125 | C195: 8 | D195: 0 | E195: 0 | F195: 14 | G195: 0 | H195: 5 | I195: 152 | K195: =SUM(K191:K194) -> 3 | L195: 0 | M195: 0 | N195: 0 | O195: 1 | P195: 0 | Q195: 0 | R195: 4 | T195: =SUM(T191:T194) -> 0 | U195: 0 | V195: 0 | W195: 0 | X195: 0 | Y195: 0 | Z195: 0 | AA195: 0 | AC195: =SUM(AC191:AC194) -> 41 | AD195: 3 | AE195: 1 | AF195: 0 | AG195: 0 | AH195: 0 | AI195: 2 | AJ195: =SUM(AJ191:AJ194) -> 47 | AL195: =SUM(AL191:AL194) -> 203
A196: 17:00:00 | B196: 38 | C196: 0 | D196: 0 | E196: 0 | F196: 2 | G196: 0 | H196: 1 | I196: =SUM(B196:H196) -> 41 | K196: 3 | L196: 1 | M196: 0 | N196: 0 | O196: 0 | P196: 0 | Q196: 0 | R196: =SUM(K196:Q196) -> 4 | T196: 0 | U196: 0 | V196: 0 | W196: 0 | X196: 0 | Y196: 0 | Z196: 0 | AA196: =SUM(T196:Z196) -> 0 | AC196: 12 | AD196: 0 | AE196: 0 | AF196: 0 | AG196: 0 | AH196: 0 | AI196: 0 | AJ196: =SUM(AC196:AI196) -> 12 | AL196: =SUM(I196+R196+AA196+AJ196) -> 57
A197: 17:15:00 | B197: 39 | C197: 2 | D197: 0 | E197: 0 | F197: 5 | G197: 1 | H197: 1 | I197: 48 | K197: 1 | L197: 0 | M197: 0 | N197: 0 | O197: 0 | P197: 0 | Q197: 0 | R197: 1 | T197: 0 | U197: 0 | V197: 0 | W197: 0 | X197: 0 | Y197: 0 | Z197: 0 | AA197: 0 | AC197: 8 | AD197: 2 | AE197: 0 | AF197: 0 | AG197: 0 | AH197: 0 | AI197: 1 | AJ197: =SUM(AC197:AI197) -> 11 | AL197: =SUM(I197+R197+AA197+AJ197) -> 60
A198: 17:30:00 | B198: 30 | C198: 4 | D198: 0 | E198: 0 | F198: 3 | G198: 0 | H198: 1 | I198: 38 | K198: 0 | L198: 0 | M198: 0 | N198: 0 | O198: 0 | P198: 0 | Q198: 0 | R198: 0 | T198: 0 | U198: 0 | V198: 0 | W198: 0 | X198: 0 | Y198: 0 | Z198: 0 | AA198: 0 | AC198: 9 | AD198: 0 | AE198: 0 | AF198: 0 | AG198: 0 | AH198: 0 | AI198: 0 | AJ198: =SUM(AC198:AI198) -> 9 | AL198: =SUM(I198+R198+AA198+AJ198) -> 47
A199: 17:45:00 | B199: 20 | C199: 3 | D199: 0 | E199: 0 | F199: 3 | G199: 0 | H199: 2 | I199: 28 | K199: 1 | L199: 0 | M199: 0 | N199: 0 | O199: 0 | P199: 0 | Q199: 0 | R199: 1 | T199: 0 | U199: 0 | V199: 0 | W199: 0 | X199: 0 | Y199: 0 | Z199: 0 | AA199: 0 | AC199: 17 | AD199: 0 | AE199: 0 | AF199: 0 | AG199: 0 | AH199: 0 | AI199: 0 | AJ199: =SUM(AC199:AI199) -> 17 | AL199: =SUM(I199+R199+AA199+AJ199) -> 46
A200: 1 Hr | B200: =SUM(B196:B199) -> 127 | C200: 9 | D200: 0 | E200: 0 | F200: 13 | G200: 1 | H200: 5 | I200: 155 | K200: =SUM(K196:K199) -> 5 | L200: 1 | M200: 0 | N200: 0 | O200: 0 | P200: 0 | Q200: 0 | R200: 6 | T200: =SUM(T196:T199) -> 0 | U200: 0 | V200: 0 | W200: 0 | X200: 0 | Y200: 0 | Z200: 0 | AA200: 0 | AC200: =SUM(AC196:AC199) -> 46 | AD200: 2 | AE200: 0 | AF200: 0 | AG200: 0 | AH200: 0 | AI200: 1 | AJ200: =SUM(AJ196:AJ199) -> 49 | AL200: =SUM(AL196:AL199) -> 210
A201: 18:00:00 | B201: 28 | C201: 1 | D201: 0 | E201: 0 | F201: 3 | G201: 0 | H201: 0 | I201: =SUM(B201:H201) -> 32 | K201: 0 | L201: 1 | M201: 0 | N201: 0 | O201: 0 | P201: 0 | Q201: 0 | R201: =SUM(K201:Q201) -> 1 | T201: 0 | U201: 0 | V201: 0 | W201: 0 | X201: 0 | Y201: 0 | Z201: 0 | AA201: =SUM(T201:Z201) -> 0 | AC201: 9 | AD201: 1 | AE201: 0 | AF201: 0 | AG201: 0 | AH201: 0 | AI201: 0 | AJ201: =SUM(AC201:AI201) -> 10 | AL201: =SUM(I201+R201+AA201+AJ201) -> 43
A202: 18:15:00 | B202: 37 | C202: 3 | D202: 0 | E202: 0 | F202: 1 | G202: 1 | H202: 0 | I202: 42 | K202: 1 | L202: 0 | M202: 0 | N202: 0 | O202: 0 | P202: 0 | Q202: 0 | R202: 1 | T202: 0 | U202: 0 | V202: 0 | W202: 0 | X202: 0 | Y202: 0 | Z202: 0 | AA202: 0 | AC202: 17 | AD202: 1 | AE202: 0 | AF202: 0 | AG202: 0 | AH202: 0 | AI202: 0 | AJ202: =SUM(AC202:AI202) -> 18 | AL202: =SUM(I202+R202+AA202+AJ202) -> 61
A203: 18:30:00 | B203: 28 | C203: 1 | D203: 0 | E203: 0 | F203: 7 | G203: 0 | H203: 1 | I203: 37 | K203: 0 | L203: 0 | M203: 0 | N203: 0 | O203: 0 | P203: 0 | Q203: 1 | R203: 1 | T203: 0 | U203: 0 | V203: 0 | W203: 0 | X203: 0 | Y203: 0 | Z203: 0 | AA203: 0 | AC203: 15 | AD203: 1 | AE203: 0 | AF203: 0 | AG203: 0 | AH203: 0 | AI203: 1 | AJ203: =SUM(AC203:AI203) -> 17 | AL203: =SUM(I203+R203+AA203+AJ203) -> 55
A204: 18:45:00 | B204: 36 | C204: 1 | D204: 0 | E204: 0 | F204: 3 | G204: 0 | H204: 4 | I204: 44 | K204: 2 | L204: 0 | M204: 0 | N204: 0 | O204: 0 | P204: 0 | Q204: 0 | R204: 2 | T204: 0 | U204: 0 | V204: 0 | W204: 0 | X204: 0 | Y204: 0 | Z204: 0 | AA204: 0 | AC204: 15 | AD204: 0 | AE204: 0 | AF204: 0 | AG204: 0 | AH204: 0 | AI204: 0 | AJ204: =SUM(AC204:AI204) -> 15 | AL204: =SUM(I204+R204+AA204+AJ204) -> 61
A205: 1 Hr | B205: =SUM(B201:B204) -> 129 | C205: 6 | D205: 0 | E205: 0 | F205: 14 | G205: 1 | H205: 5 | I205: 155 | K205: =SUM(K201:K204) -> 3 | L205: 1 | M205: 0 | N205: 0 | O205: 0 | P205: 0 | Q205: 1 | R205: 5 | T205: =SUM(T201:T204) -> 0 | U205: 0 | V205: 0 | W205: 0 | X205: 0 | Y205: 0 | Z205: 0 | AA205: 0 | AC205: =SUM(AC201:AC204) -> 56 | AD205: 3 | AE205: 0 | AF205: 0 | AG205: 0 | AH205: 0 | AI205: 1 | AJ205: =SUM(AJ201:AJ204) -> 60 | AL205: =SUM(AL201:AL204) -> 220
A207: Total | B207: =SUM(B205+B200+B195+B190+B185+B180+B175+B170+B165+B160+B155+B150) -> 1615 | C207: 121 | D207: 28 | E207: 6 | F207: 186 | G207: 12 | H207: 48 | I207: 2016 | K207: =SUM(K205+K200+K195+K190+K185+K180+K175+K170+K165+K160+K155+K150) -> 53 | L207: 12 | M207: 1 | N207: 0 | O207: 1 | P207: 2 | Q207: 1 | R207: 70 | T207: =SUM(T205+T200+T195+T190+T185+T180+T175+T170+T165+T160+T155+T150) -> 0 | U207: 0 | V207: 0 | W207: 0 | X207: 0 | Y207: 0 | Z207: 0 | AA207: 0 | AC207: =SUM(AC205+AC200+AC195+AC190+AC185+AC180+AC175+AC170+AC165+AC160+AC155+AC150) -> 656 | AD207: 70 | AE207: 10 | AF207: 1 | AG207: 0 | AH207: 3 | AI207: 7 | AJ207: =SUM(AJ205+AJ200+AJ195+AJ190+AJ185+AJ180+AJ175+AJ170+AJ165+AJ160+AJ155+AJ150) -> 747 | AL207: =SUM(AL205+AL200+AL195+AL190+AL185+AL180+AL175+AL170+AL165+AL160+AL155+AL150) -> 2833
A209: Origin : | B209: Arm D | C209: Avenue Road
B210: Destination : | D210: Arm A | E210: B4122 Vicarage Road(ENE) | I210: Total | K210: Destination : | M210: Arm B | N210: Abbots Road | R210: Total | T210: Destination : | V210: Arm C | W210: B4122 Vicarage Road(WSW) | AA210: Total | AC210: Destination : | AE210: Arm D | AF210: Avenue Road | AJ210: Total | AL210: Arm
B211: =$B$10 -> Car | C211: =$C$10 -> LGV | D211: =$D$10 -> OGV1 | E211: =$E$10 -> OGV2 | F211: =$F$10 -> Bus/Coach | G211: =$G$10 -> MC | H211: =$H$10 -> PC | K211: =$B$10 -> Car | L211: =$C$10 -> LGV | M211: =$D$10 -> OGV1 | N211: =$E$10 -> OGV2 | O211: =$F$10 -> Bus/Coach | P211: =$G$10 -> MC | Q211: =$H$10 -> PC | T211: =$B$10 -> Car | U211: =$C$10 -> LGV | V211: =$D$10 -> OGV1 | W211: =$E$10 -> OGV2 | X211: =$F$10 -> Bus/Coach | Y211: =$G$10 -> MC | Z211: =$H$10 -> PC | AC211: =$B$10 -> Car | AD211: =$C$10 -> LGV | AE211: =$D$10 -> OGV1 | AF211: =$E$10 -> OGV2 | AG211: =$F$10 -> Bus/Coach | AH211: =$G$10 -> MC | AI211: =$H$10 -> PC | AL211: Totals
A213: 07:00:00 | B213: 23 | C213: 3 | D213: 0 | E213: 0 | F213: 1 | G213: 0 | H213: 0 | I213: =SUM(B213:H213) -> 27 | K213: 1 | L213: 0 | M213: 0 | N213: 0 | O213: 0 | P213: 0 | Q213: 0 | R213: =SUM(K213:Q213) -> 1 | T213: 10 | U213: 1 | V213: 0 | W213: 0 | X213: 0 | Y213: 0 | Z213: 0 | AA213: =SUM(T213:Z213) -> 11 | AC213: 0 | AD213: 0 | AE213: 0 | AF213: 0 | AG213: 0 | AH213: 0 | AI213: 0 | AJ213: =SUM(AC213:AI213) -> 0 | AL213: =SUM(I213+R213+AA213+AJ213) -> 39
... 188 more rows

Sheet Site 3
AC1: ='Project Details'!F9&" "&'Project Details'!F10 -> 4204-MID Birmingham City Counts 2021
AC2: ='Project Details'!R7 -> Junction Turning Count
AC3: ='Project Details'!F14 -> 25/05/2021
AC5: Site 3 - A435 Alcester Road South(N) / A435 Alcester Road South(S) / Vicarage Road
A8: Origin : | B8: Arm A | C8: A435 Alcester Road South(N)
B9: Destination : | D9: Arm A | E9: A435 Alcester Road South(N) | I9: Total | K9: Destination : | M9: Arm B | N9: A435 Alcester Road South(S) | R9: Total | T9: Destination : | V9: Arm C | W9: Vicarage Road | AA9: Total | AC9: Arm
B10: Car | C10: LGV | D10: OGV1 | E10: OGV2 | F10: Bus/Coach | G10: MC | H10: PC | K10: =$B$10 -> Car | L10: =$C$10 -> LGV | M10: =$D$10 -> OGV1 | N10: =$E$10 -> OGV2 | O10: =$F$10 -> Bus/Coach | P10: =$G$10 -> MC | Q10: =$H$10 -> PC | T10: =$B$10 -> Car | U10: =$C$10 -> LGV | V10: =$D$10 -> OGV1 | W10: =$E$10 -> OGV2 | X10: =$F$10 -> Bus/Coach | Y10: =$G$10 -> MC | Z10: =$H$10 -> PC | AC10: Totals
A12: 07:00:00 | B12: 0 | C12: 0 | D12: 0 | E12: 0 | F12: 0 | G12: 0 | H12: 0 | I12: =SUM(B12:H12) -> 0 | K12: 49 | L12: 7 | M12: 2 | N12: 5 | O12: 5 | P12: 0 | Q12: 0 | R12: =SUM(K12:Q12) -> 68 | T12: 23 | U12: 2 | V12: 1 | W12: 1 | X12: 3 | Y12: 0 | Z12: 0 | AA12: =SUM(T12:Z12) -> 30 | AC12: =SUM(I12+R12+AA12) -> 98
A13: 07:15:00 | B13: 0 | C13: 0 | D13: 0 | E13: 0 | F13: 0 | G13: 0 | H13: 0 | I13: 0 | K13: 55 | L13: 15 | M13: 2 | N13: 4 | O13: 5 | P13: 0 | Q13: 0 | R13: 81 | T13: 46 | U13: 5 | V13: 6 | W13: 0 | X13: 1 | Y13: 0 | Z13: 0 | AA13: 58 | AC13: 139
A14: 07:30:00 | B14: 0 | C14: 0 | D14: 0 | E14: 0 | F14: 0 | G14: 0 | H14: 0 | I14: 0 | K14: 79 | L14: 6 | M14: 3 | N14: 1 | O14: 6 | P14: 0 | Q14: 0 | R14: 95 | T14: 51 | U14: 7 | V14: 3 | W14: 0 | X14: 2 | Y14: 0 | Z14: 0 | AA14: 63 | AC14: 158
A15: 07:45:00 | B15: 0 | C15: 0 | D15: 0 | E15: 0 | F15: 0 | G15: 0 | H15: 0 | I15: 0 | K15: 77 | L15: 8 | M15: 5 | N15: 0 | O15: 6 | P15: 0 | Q15: 0 | R15: 96 | T15: 73 | U15: 8 | V15: 1 | W15: 0 | X15: 4 | Y15: 0 | Z15: 0 | AA15: 86 | AC15: 182
A16: 1 Hr | B16: =SUM(B12:B15) -> 0 | C16: 0 | D16: 0 | E16: 0 | F16: 0 | G16: 0 | H16: 0 | I16: 0 | K16: =SUM(K12:K15) -> 260 | L16: 36 | M16: 12 | N16: 10 | O16: 22 | P16: 0 | Q16: 0 | R16: 340 | T16: =SUM(T12:T15) -> 193 | U16: 22 | V16: 11 | W16: 1 | X16: 10 | Y16: 0 | Z16: 0 | AA16: 237 | AC16: =SUM(AC12:AC15) -> 577
A17: 08:00:00 | B17: 0 | C17: 0 | D17: 0 | E17: 0 | F17: 0 | G17: 0 | H17: 0 | I17: =SUM(B17:H17) -> 0 | K17: 82 | L17: 18 | M17: 5 | N17: 0 | O17: 5 | P17: 0 | Q17: 0 | R17: =SUM(K17:Q17) -> 110 | T17: 79 | U17: 6 | V17: 1 | W17: 0 | X17: 2 | Y17: 1 | Z17: 0 | AA17: =SUM(T17:Z17) -> 89 | AC17: =SUM(I17+R17+AA17) -> 199
A18: 08:15:00 | B18: 0 | C18: 0 | D18: 0 | E18: 0 | F18: 0 | G18: 0 | H18: 0 | I18: 0 | K18: 78 | L18: 9 | M18: 2 | N18: 0 | O18: 5 | P18: 0 | Q18: 3 | R18: 97 | T18: 73 | U18: 1 | V18: 1 | W18: 0 | X18: 1 | Y18: 0 | Z18: 0 | AA18: 76 | AC18: 173
A19: 08:30:00 | B19: 0 | C19: 0 | D19: 0 | E19: 0 | F19: 0 | G19: 0 | H19: 0 | I19: 0 | K19: 66 | L19: 15 | M19: 2 | N19: 0 | O19: 5 | P19: 0 | Q19: 1 | R19: 89 | T19: 73 | U19: 4 | V19: 1 | W19: 0 | X19: 4 | Y19: 0 | Z19: 0 | AA19: 82 | AC19: 171
A20: 08:45:00 | B20: 0 | C20: 0 | D20: 0 | E20: 0 | F20: 0 | G20: 0 | H20: 0 | I20: 0 | K20: 62 | L20: 5 | M20: 2 | N20: 3 | O20: 7 | P20: 1 | Q20: 0 | R20: 80 | T20: 66 | U20: 7 | V20: 1 | W20: 0 | X20: 2 | Y20: 0 | Z20: 0 | AA20: 76 | AC20: 156
A21: 1 Hr | B21: =SUM(B17:B20) -> 0 | C21: 0 | D21: 0 | E21: 0 | F21: 0 | G21: 0 | H21: 0 | I21: 0 | K21: =SUM(K17:K20) -> 288 | L21: 47 | M21: 11 | N21: 3 | O21: 22 | P21: 1 | Q21: 4 | R21: 376 | T21: =SUM(T17:T20) -> 291 | U21: 18 | V21: 4 | W21: 0 | X21: 9 | Y21: 1 | Z21: 0 | AA21: 323 | AC21: =SUM(AC17:AC20) -> 699
A22: 09:00:00 | B22: 0 | C22: 0 | D22: 0 | E22: 0 | F22: 0 | G22: 0 | H22: 0 | I22: =SUM(B22:H22) -> 0 | K22: 70 | L22: 10 | M22: 1 | N22: 3 | O22: 5 | P22: 1 | Q22: 0 | R22: =SUM(K22:Q22) -> 90 | T22: 47 | U22: 9 | V22: 3 | W22: 1 | X22: 3 | Y22: 0 | Z22: 2 | AA22: =SUM(T22:Z22) -> 65 | AC22: =SUM(I22+R22+AA22) -> 155
A23: 09:15:00 | B23: 0 | C23: 0 | D23: 0 | E23: 0 | F23: 0 | G23: 0 | H23: 0 | I23: 0 | K23: 51 | L23: 5 | M23: 1 | N23: 1 | O23: 7 | P23: 0 | Q23: 0 | R23: 65 | T23: 39 | U23: 5 | V23: 0 | W23: 0 | X23: 5 | Y23: 0 | Z23: 0 | AA23: 49 | AC23: 114
A24: 09:30:00 | B24: 0 | C24: 0 | D24: 0 | E24: 0 | F24: 0 | G24: 0 | H24: 0 | I24: 0 | K24: 41 | L24: 13 | M24: 4 | N24: 2 | O24: 8 | P24: 0 | Q24: 0 | R24: 68 | T24: 46 | U24: 10 | V24: 3 | W24: 0 | X24: 1 | Y24: 0 | Z24: 0 | AA24: 60 | AC24: 128
A25: 09:45:00 | B25: 0 | C25: 0 | D25: 0 | E25: 0 | F25: 0 | G25: 0 | H25: 0 | I25: 0 | K25: 78 | L25: 12 | M25: 3 | N25: 1 | O25: 6 | P25: 1 | Q25: 0 | R25: 101 | T25: 40 | U25: 11 | V25: 0 | W25: 3 | X25: 2 | Y25: 0 | Z25: 0 | AA25: 56 | AC25: 157
A26: 1 Hr | B26: =SUM(B22:B25) -> 0 | C26: 0 | D26: 0 | E26: 0 | F26: 0 | G26: 0 | H26: 0 | I26: 0 | K26: =SUM(K22:K25) -> 240 | L26: 40 | M26: 9 | N26: 7 | O26: 26 | P26: 2 | Q26: 0 | R26: 324 | T26: =SUM(T22:T25) -> 172 | U26: 35 | V26: 6 | W26: 4 | X26: 11 | Y26: 0 | Z26: 2 | AA26: 230 | AC26: =SUM(AC22:AC25) -> 554
A27: 10:00:00 | B27: 0 | C27: 0 | D27: 0 | E27: 0 | F27: 0 | G27: 0 | H27: 0 | I27: =SUM(B27:H27) -> 0 | K27: 65 | L27: 14 | M27: 6 | N27: 2 | O27: 6 | P27: 0 | Q27: 1 | R27: =SUM(K27:Q27) -> 94 | T27: 41 | U27: 8 | V27: 1 | W27: 0 | X27: 1 | Y27: 0 | Z27: 0 | AA27: =SUM(T27:Z27) -> 51 | AC27: =SUM(I27+R27+AA27) -> 145
A28: 10:15:00 | B28: 0 | C28: 0 | D28: 0 | E28: 0 | F28: 0 | G28: 0 | H28: 0 | I28: 0 | K28: 62 | L28: 11 | M28: 1 | N28: 1 | O28: 5 | P28: 0 | Q28: 0 | R28: 80 | T28: 48 | U28: 9 | V28: 1 | W28: 0 | X28: 3 | Y28: 1 | Z28: 1 | AA28: 63 | AC28: 143
A29: 10:30:00 | B29: 0 | C29: 0 | D29: 0 | E29: 0 | F29: 0 | G29: 0 | H29: 0 | I29: 0 | K29: 51 | L29: 9 | M29: 5 | N29: 2 | O29: 6 | P29: 0 | Q29: 0 | R29: 73 | T29: 51 | U29: 5 | V29: 1 | W29: 0 | X29: 1 | Y29: 0 | Z29: 1 | AA29: 59 | AC29: 132
A30: 10:45:00 | B30: 0 | C30: 0 | D30: 0 | E30: 0 | F30: 0 | G30: 0 | H30: 0 | I30: 0 | K30: 57 | L30: 18 | M30: 2 | N30: 2 | O30: 2 | P30: 0 | Q30: 1 | R30: 82 | T30: 35 | U30: 14 | V30: 0 | W30: 1 | X30: 2 | Y30: 0 | Z30: 0 | AA30: 52 | AC30: 134
A31: 1 Hr | B31: =SUM(B27:B30) -> 0 | C31: 0 | D31: 0 | E31: 0 | F31: 0 | G31: 0 | H31: 0 | I31: 0 | K31: =SUM(K27:K30) -> 235 | L31: 52 | M31: 14 | N31: 7 | O31: 19 | P31: 0 | Q31: 2 | R31: 329 | T31: =SUM(T27:T30) -> 175 | U31: 36 | V31: 3 | W31: 1 | X31: 7 | Y31: 1 | Z31: 2 | AA31: 225 | AC31: =SUM(AC27:AC30) -> 554
A32: 11:00:00 | B32: 0 | C32: 0 | D32: 0 | E32: 0 | F32: 0 | G32: 0 | H32: 0 | I32: =SUM(B32:H32) -> 0 | K32: 77 | L32: 11 | M32: 4 | N32: 2 | O32: 6 | P32: 0 | Q32: 0 | R32: =SUM(K32:Q32) -> 100 | T32: 42 | U32: 9 | V32: 1 | W32: 0 | X32: 1 | Y32: 0 | Z32: 0 | AA32: =SUM(T32:Z32) -> 53 | AC32: =SUM(I32+R32+AA32) -> 153
A33: 11:15:00 | B33: 0 | C33: 0 | D33: 0 | E33: 0 | F33: 0 | G33: 0 | H33: 0 | I33: 0 | K33: 75 | L33: 6 | M33: 1 | N33: 2 | O33: 5 | P33: 0 | Q33: 0 | R33: 89 | T33: 45 | U33: 7 | V33: 0 | W33: 0 | X33: 3 | Y33: 0 | Z33: 0 | AA33: 55 | AC33: 144
A34: 11:30:00 | B34: 0 | C34: 0 | D34: 0 | E34: 0 | F34: 0 | G34: 0 | H34: 0 | I34: 0 | K34: 59 | L34: 12 | M34: 3 | N34: 1 | O34: 5 | P34: 0 | Q34: 1 | R34: 81 | T34: 35 | U34: 5 | V34: 0 | W34: 0 | X34: 1 | Y34: 0 | Z34: 1 | AA34: 42 | AC34: 123
A35: 11:45:00 | B35: 0 | C35: 0 | D35: 0 | E35: 0 | F35: 0 | G35: 0 | H35: 0 | I35: 0 | K35: 60 | L35: 12 | M35: 3 | N35: 0 | O35: 4 | P35: 2 | Q35: 0 | R35: 81 | T35: 50 | U35: 6 | V35: 2 | W35: 0 | X35: 1 | Y35: 0 | Z35: 0 | AA35: 59 | AC35: 140
A36: 1 Hr | B36: =SUM(B32:B35) -> 0 | C36: 0 | D36: 0 | E36: 0 | F36: 0 | G36: 0 | H36: 0 | I36: 0 | K36: =SUM(K32:K35) -> 271 | L36: 41 | M36: 11 | N36: 5 | O36: 20 | P36: 2 | Q36: 1 | R36: 351 | T36: =SUM(T32:T35) -> 172 | U36: 27 | V36: 3 | W36: 0 | X36: 6 | Y36: 0 | Z36: 1 | AA36: 209 | AC36: =SUM(AC32:AC35) -> 560
A37: 12:00:00 | B37: 0 | C37: 0 | D37: 0 | E37: 0 | F37: 0 | G37: 0 | H37: 0 | I37: =SUM(B37:H37) -> 0 | K37: 90 | L37: 1 | M37: 0 | N37: 0 | O37: 7 | P37: 1 | Q37: 0 | R37: =SUM(K37:Q37) -> 99 | T37: 55 | U37: 3 | V37: 1 | W37: 0 | X37: 1 | Y37: 0 | Z37: 0 | AA37: =SUM(T37:Z37) -> 60 | AC37: =SUM(I37+R37+AA37) -> 159
A38: 12:15:00 | B38: 0 | C38: 0 | D38: 0 | E38: 0 | F38: 0 | G38: 0 | H38: 0 | I38: 0 | K38: 78 | L38: 7 | M38: 1 | N38: 1 | O38: 3 | P38: 0 | Q38: 0 | R38: 90 | T38: 52 | U38: 6 | V38: 0 | W38: 0 | X38: 4 | Y38: 0 | Z38: 0 | AA38: 62 | AC38: 152
A39: 12:30:00 | B39: 0 | C39: 0 | D39: 0 | E39: 0 | F39: 0 | G39: 0 | H39: 0 | I39: 0 | K39: 72 | L39: 6 | M39: 2 | N39: 1 | O39: 9 | P39: 0 | Q39: 1 | R39: 91 | T39: 42 | U39: 7 | V39: 1 | W39: 0 | X39: 2 | Y39: 0 | Z39: 1 | AA39: 53 | AC39: 144
A40: 12:45:00 | B40: 0 | C40: 0 | D40: 0 | E40: 0 | F40: 0 | G40: 0 | H40: 0 | I40: 0 | K40: 76 | L40: 9 | M40: 3 | N40: 1 | O40: 4 | P40: 1 | Q40: 1 | R40: 95 | T40: 42 | U40: 4 | V40: 1 | W40: 1 | X40: 1 | Y40: 0 | Z40: 0 | AA40: 49 | AC40: 144
A41: 1 Hr | B41: =SUM(B37:B40) -> 0 | C41: 0 | D41: 0 | E41: 0 | F41: 0 | G41: 0 | H41: 0 | I41: 0 | K41: =SUM(K37:K40) -> 316 | L41: 23 | M41: 6 | N41: 3 | O41: 23 | P41: 2 | Q41: 2 | R41: 375 | T41: =SUM(T37:T40) -> 191 | U41: 20 | V41: 3 | W41: 1 | X41: 8 | Y41: 0 | Z41: 1 | AA41: 224 | AC41: =SUM(AC37:AC40) -> 599
A42: 13:00:00 | B42: 0 | C42: 0 | D42: 0 | E42: 0 | F42: 0 | G42: 0 | H42: 0 | I42: =SUM(B42:H42) -> 0 | K42: 77 | L42: 6 | M42: 3 | N42: 0 | O42: 6 | P42: 0 | Q42: 0 | R42: =SUM(K42:Q42) -> 92 | T42: 52 | U42: 5 | V42: 0 | W42: 0 | X42: 1 | Y42: 1 | Z42: 0 | AA42: =SUM(T42:Z42) -> 59 | AC42: =SUM(I42+R42+AA42) -> 151
A43: 13:15:00 | B43: 0 | C43: 0 | D43: 0 | E43: 0 | F43: 0 | G43: 0 | H43: 0 | I43: 0 | K43: 87 | L43: 5 | M43: 2 | N43: 2 | O43: 6 | P43: 2 | Q43: 0 | R43: 104 | T43: 43 | U43: 8 | V43: 0 | W43: 1 | X43: 3 | Y43: 1 | Z43: 0 | AA43: 56 | AC43: 160
A44: 13:30:00 | B44: 0 | C44: 0 | D44: 0 | E44: 0 | F44: 0 | G44: 0 | H44: 0 | I44: 0 | K44: 87 | L44: 5 | M44: 1 | N44: 0 | O44: 6 | P44: 0 | Q44: 1 | R44: 100 | T44: 54 | U44: 4 | V44: 0 | W44: 0 | X44: 2 | Y44: 0 | Z44: 0 | AA44: 60 | AC44: 160
A45: 13:45:00 | B45: 0 | C45: 0 | D45: 0 | E45: 0 | F45: 0 | G45: 0 | H45: 0 | I45: 0 | K45: 79 | L45: 8 | M45: 0 | N45: 1 | O45: 5 | P45: 0 | Q45: 2 | R45: 95 | T45: 46 | U45: 4 | V45: 0 | W45: 0 | X45: 1 | Y45: 2 | Z45: 1 | AA45: 54 | AC45: 149
A46: 1 Hr | B46: =SUM(B42:B45) -> 0 | C46: 0 | D46: 0 | E46: 0 | F46: 0 | G46: 0 | H46: 0 | I46: 0 | K46: =SUM(K42:K45) -> 330 | L46: 24 | M46: 6 | N46: 3 | O46: 23 | P46: 2 | Q46: 3 | R46: 391 | T46: =SUM(T42:T45) -> 195 | U46: 21 | V46: 0 | W46: 1 | X46: 7 | Y46: 4 | Z46: 1 | AA46: 229 | AC46: =SUM(AC42:AC45) -> 620
A47: 14:00:00 | B47: 0 | C47: 0 | D47: 0 | E47: 0 | F47: 0 | G47: 0 | H47: 0 | I47: =SUM(B47:H47) -> 0 | K47: 85 | L47: 4 | M47: 4 | N47: 0 | O47: 4 | P47: 1 | Q47: 2 | R47: =SUM(K47:Q47) -> 100 | T47: 56 | U47: 2 | V47: 0 | W47: 0 | X47: 2 | Y47: 0 | Z47: 0 | AA47: =SUM(T47:Z47) -> 60 | AC47: =SUM(I47+R47+AA47) -> 160
A48: 14:15:00 | B48: 0 | C48: 0 | D48: 0 | E48: 0 | F48: 0 | G48: 0 | H48: 0 | I48: 0 | K48: 93 | L48: 12 | M48: 0 | N48: 1 | O48: 4 | P48: 1 | Q48: 2 | R48: 113 | T48: 42 | U48: 6 | V48: 0 | W48: 0 | X48: 1 | Y48: 0 | Z48: 0 | AA48: 49 | AC48: 162
A49: 14:30:00 | B49: 0 | C49: 0 | D49: 0 | E49: 0 | F49: 0 | G49: 0 | H49: 0 | I49: 0 | K49: 85 | L49: 10 | M49: 0 | N49: 1 | O49: 4 | P49: 1 | Q49: 0 | R49: 101 | T49: 55 | U49: 5 | V49: 0 | W49: 0 | X49: 1 | Y49: 0 | Z49: 1 | AA49: 62 | AC49: 163
A50: 14:45:00 | B50: 0 | C50: 0 | D50: 0 | E50: 0 | F50: 0 | G50: 0 | H50: 0 | I50: 0 | K50: 72 | L50: 9 | M50: 0 | N50: 0 | O50: 8 | P50: 0 | Q50: 0 | R50: 89 | T50: 43 | U50: 4 | V50: 0 | W50: 0 | X50: 2 | Y50: 0 | Z50: 0 | AA50: 49 | AC50: 138
A51: 1 Hr | B51: =SUM(B47:B50) -> 0 | C51: 0 | D51: 0 | E51: 0 | F51: 0 | G51: 0 | H51: 0 | I51: 0 | K51: =SUM(K47:K50) -> 335 | L51: 35 | M51: 4 | N51: 2 | O51: 20 | P51: 3 | Q51: 4 | R51: 403 | T51: =SUM(T47:T50) -> 196 | U51: 17 | V51: 0 | W51: 0 | X51: 6 | Y51: 0 | Z51: 1 | AA51: 220 | AC51: =SUM(AC47:AC50) -> 623
A52: 15:00:00 | B52: 0 | C52: 0 | D52: 0 | E52: 0 | F52: 0 | G52: 0 | H52: 0 | I52: =SUM(B52:H52) -> 0 | K52: 73 | L52: 6 | M52: 3 | N52: 0 | O52: 3 | P52: 0 | Q52: 1 | R52: =SUM(K52:Q52) -> 86 | T52: 68 | U52: 4 | V52: 0 | W52: 0 | X52: 1 | Y52: 0 | Z52: 0 | AA52: =SUM(T52:Z52) -> 73 | AC52: =SUM(I52+R52+AA52) -> 159
A53: 15:15:00 | B53: 0 | C53: 0 | D53: 0 | E53: 0 | F53: 0 | G53: 0 | H53: 0 | I53: 0 | K53: 89 | L53: 7 | M53: 0 | N53: 0 | O53: 4 | P53: 0 | Q53: 0 | R53: 100 | T53: 60 | U53: 5 | V53: 0 | W53: 0 | X53: 1 | Y53: 1 | Z53: 0 | AA53: 67 | AC53: 167
A54: 15:30:00 | B54: 0 | C54: 0 | D54: 0 | E54: 0 | F54: 0 | G54: 0 | H54: 0 | I54: 0 | K54: 68 | L54: 11 | M54: 2 | N54: 0 | O54: 5 | P54: 0 | Q54: 2 | R54: 88 | T54: 62 | U54: 3 | V54: 2 | W54: 0 | X54: 3 | Y54: 0 | Z54: 0 | AA54: 70 | AC54: 158
A55: 15:45:00 | B55: 0 | C55: 0 | D55: 0 | E55: 0 | F55: 0 | G55: 0 | H55: 0 | I55: 0 | K55: 87 | L55: 3 | M55: 1 | N55: 1 | O55: 3 | P55: 2 | Q55: 0 | R55: 97 | T55: 50 | U55: 4 | V55: 0 | W55: 0 | X55: 2 | Y55: 0 | Z55: 1 | AA55: 57 | AC55: 154
A56: 1 Hr | B56: =SUM(B52:B55) -> 0 | C56: 0 | D56: 0 | E56: 0 | F56: 0 | G56: 0 | H56: 0 | I56: 0 | K56: =SUM(K52:K55) -> 317 | L56: 27 | M56: 6 | N56: 1 | O56: 15 | P56: 2 | Q56: 3 | R56: 371 | T56: =SUM(T52:T55) -> 240 | U56: 16 | V56: 2 | W56: 0 | X56: 7 | Y56: 1 | Z56: 1 | AA56: 267 | AC56: =SUM(AC52:AC55) -> 638
A57: 16:00:00 | B57: 0 | C57: 0 | D57: 0 | E57: 0 | F57: 0 | G57: 0 | H57: 0 | I57: =SUM(B57:H57) -> 0 | K57: 87 | L57: 7 | M57: 0 | N57: 2 | O57: 6 | P57: 1 | Q57: 0 | R57: =SUM(K57:Q57) -> 103 | T57: 53 | U57: 5 | V57: 0 | W57: 0 | X57: 2 | Y57: 2 | Z57: 0 | AA57: =SUM(T57:Z57) -> 62 | AC57: =SUM(I57+R57+AA57) -> 165
A58: 16:15:00 | B58: 0 | C58: 0 | D58: 0 | E58: 0 | F58: 0 | G58: 0 | H58: 0 | I58: 0 | K58: 96 | L58: 7 | M58: 0 | N58: 0 | O58: 4 | P58: 0 | Q58: 1 | R58: 108 | T58: 58 | U58: 7 | V58: 0 | W58: 0 | X58: 2 | Y58: 0 | Z58: 0 | AA58: 67 | AC58: 175
A59: 16:30:00 | B59: 0 | C59: 0 | D59: 0 | E59: 0 | F59: 0 | G59: 0 | H59: 0 | I59: 0 | K59: 92 | L59: 7 | M59: 1 | N59: 0 | O59: 5 | P59: 0 | Q59: 1 | R59: 106 | T59: 68 | U59: 3 | V59: 2 | W59: 0 | X59: 1 | Y59: 0 | Z59: 0 | AA59: 74 | AC59: 180
A60: 16:45:00 | B60: 0 | C60: 0 | D60: 0 | E60: 0 | F60: 0 | G60: 0 | H60: 0 | I60: 0 | K60: 89 | L60: 7 | M60: 0 | N60: 0 | O60: 5 | P60: 0 | Q60: 0 | R60: 101 | T60: 82 | U60: 7 | V60: 0 | W60: 0 | X60: 1 | Y60: 0 | Z60: 1 | AA60: 91 | AC60: 192
A61: 1 Hr | B61: =SUM(B57:B60) -> 0 | C61: 0 | D61: 0 | E61: 0 | F61: 0 | G61: 0 | H61: 0 | I61: 0 | K61: =SUM(K57:K60) -> 364 | L61: 28 | M61: 1 | N61: 2 | O61: 20 | P61: 1 | Q61: 2 | R61: 418 | T61: =SUM(T57:T60) -> 261 | U61: 22 | V61: 2 | W61: 0 | X61: 6 | Y61: 2 | Z61: 1 | AA61: 294 | AC61: =SUM(AC57:AC60) -> 712
A62: 17:00:00 | B62: 0 | C62: 0 | D62: 0 | E62: 0 | F62: 0 | G62: 0 | H62: 0 | I62: =SUM(B62:H62) -> 0 | K62: 95 | L62: 10 | M62: 1 | N62: 0 | O62: 7 | P62: 0 | Q62: 0 | R62: =SUM(K62:Q62) -> 113 | T62: 68 | U62: 3 | V62: 0 | W62: 0 | X62: 1 | Y62: 0 | Z62: 2 | AA62: =SUM(T62:Z62) -> 74 | AC62: =SUM(I62+R62+AA62) -> 187
A63: 17:15:00 | B63: 0 | C63: 0 | D63: 0 | E63: 0 | F63: 0 | G63: 0 | H63: 0 | I63: 0 | K63: 101 | L63: 8 | M63: 0 | N63: 0 | O63: 4 | P63: 0 | Q63: 2 | R63: 115 | T63: 72 | U63: 7 | V63: 0 | W63: 0 | X63: 1 | Y63: 0 | Z63: 1 | AA63: 81 | AC63: 196
A64: 17:30:00 | B64: 0 | C64: 0 | D64: 0 | E64: 0 | F64: 0 | G64: 0 | H64: 0 | I64: 0 | K64: 108 | L64: 7 | M64: 1 | N64: 0 | O64: 4 | P64: 0 | Q64: 0 | R64: 120 | T64: 75 | U64: 4 | V64: 1 | W64: 0 | X64: 1 | Y64: 1 | Z64: 2 | AA64: 84 | AC64: 204
A65: 17:45:00 | B65: 0 | C65: 0 | D65: 0 | E65: 0 | F65: 0 | G65: 0 | H65: 0 | I65: 0 | K65: 93 | L65: 5 | M65: 0 | N65: 0 | O65: 7 | P65: 1 | Q65: 2 | R65: 108 | T65: 68 | U65: 4 | V65: 0 | W65: 0 | X65: 2 | Y65: 0 | Z65: 0 | AA65: 74 | AC65: 182
A66: 1 Hr | B66: =SUM(B62:B65) -> 0 | C66: 0 | D66: 0 | E66: 0 | F66: 0 | G66: 0 | H66: 0 | I66: 0 | K66: =SUM(K62:K65) -> 397 | L66: 30 | M66: 2 | N66: 0 | O66: 22 | P66: 1 | Q66: 4 | R66: 456 | T66: =SUM(T62:T65) -> 283 | U66: 18 | V66: 1 | W66: 0 | X66: 5 | Y66: 1 | Z66: 5 | AA66: 313 | AC66: =SUM(AC62:AC65) -> 769
A67: 18:00:00 | B67: 0 | C67: 0 | D67: 0 | E67: 0 | F67: 0 | G67: 0 | H67: 0 | I67: =SUM(B67:H67) -> 0 | K67: 106 | L67: 5 | M67: 2 | N67: 0 | O67: 6 | P67: 1 | Q67: 6 | R67: =SUM(K67:Q67) -> 126 | T67: 66 | U67: 9 | V67: 0 | W67: 0 | X67: 2 | Y67: 0 | Z67: 0 | AA67: =SUM(T67:Z67) -> 77 | AC67: =SUM(I67+R67+AA67) -> 203
A68: 18:15:00 | B68: 0 | C68: 0 | D68: 0 | E68: 0 | F68: 0 | G68: 0 | H68: 0 | I68: 0 | K68: 109 | L68: 8 | M68: 0 | N68: 0 | O68: 4 | P68: 0 | Q68: 1 | R68: 122 | T68: 64 | U68: 5 | V68: 0 | W68: 0 | X68: 1 | Y68: 0 | Z68: 0 | AA68: 70 | AC68: 192
A69: 18:30:00 | B69: 0 | C69: 0 | D69: 0 | E69: 0 | F69: 0 | G69: 0 | H69: 0 | I69: 0 | K69: 92 | L69: 4 | M69: 1 | N69: 1 | O69: 6 | P69: 0 | Q69: 1 | R69: 105 | T69: 64 | U69: 2 | V69: 0 | W69: 0 | X69: 2 | Y69: 2 | Z69: 1 | AA69: 71 | AC69: 176
A70: 18:45:00 | B70: 0 | C70: 0 | D70: 0 | E70: 0 | F70: 0 | G70: 0 | H70: 0 | I70: 0 | K70: 99 | L70: 6 | M70: 1 | N70: 0 | O70: 5 | P70: 1 | Q70: 2 | R70: 114 | T70: 76 | U70: 0 | V70: 0 | W70: 0 | X70: 1 | Y70: 0 | Z70: 0 | AA70: 77 | AC70: 191
A71: 1 Hr | B71: =SUM(B67:B70) -> 0 | C71: 0 | D71: 0 | E71: 0 | F71: 0 | G71: 0 | H71: 0 | I71: 0 | K71: =SUM(K67:K70) -> 406 | L71: 23 | M71: 4 | N71: 1 | O71: 21 | P71: 2 | Q71: 10 | R71: 467 | T71: =SUM(T67:T70) -> 270 | U71: 16 | V71: 0 | W71: 0 | X71: 6 | Y71: 2 | Z71: 1 | AA71: 295 | AC71: =SUM(AC67:AC70) -> 762
A73: Total | B73: =SUM(B71+B66+B61+B56+B51+B46+B41+B36+B31+B26+B21+B16) -> 0 | C73: 0 | D73: 0 | E73: 0 | F73: 0 | G73: 0 | H73: 0 | I73: 0 | K73: =SUM(K71+K66+K61+K56+K51+K46+K41+K36+K31+K26+K21+K16) -> 3759 | L73: 406 | M73: 86 | N73: 44 | O73: 253 | P73: 18 | Q73: 35 | R73: 4601 | T73: =SUM(T71+T66+T61+T56+T51+T46+T41+T36+T31+T26+T21+T16) -> 2639 | U73: 268 | V73: 35 | W73: 8 | X73: 88 | Y73: 12 | Z73: 16 | AA73: 3066 | AC73: =SUM(AC71+AC66+AC61+AC56+AC51+AC46+AC41+AC36+AC31+AC26+AC21+AC16) -> 7667
A75: Origin : | B75: Arm B | C75: A435 Alcester Road South(S)
B76: Destination : | D76: Arm A | E76: A435 Alcester Road South(N) | I76: Total | K76: Destination : | M76: Arm B | N76: A435 Alcester Road South(S) | R76: Total | T76: Destination : | V76: Arm C | W76: Vicarage Road | AA76: Total | AC76: Arm
B77: =$B$10 -> Car | C77: =$C$10 -> LGV | D77: =$D$10 -> OGV1 | E77: =$E$10 -> OGV2 | F77: =$F$10 -> Bus/Coach | G77: =$G$10 -> MC | H77: =$H$10 -> PC | K77: =$B$10 -> Car | L77: =$C$10 -> LGV | M77: =$D$10 -> OGV1 | N77: =$E$10 -> OGV2 | O77: =$F$10 -> Bus/Coach | P77: =$G$10 -> MC | Q77: =$H$10 -> PC | T77: =$B$10 -> Car | U77: =$C$10 -> LGV | V77: =$D$10 -> OGV1 | W77: =$E$10 -> OGV2 | X77: =$F$10 -> Bus/Coach | Y77: =$G$10 -> MC | Z77: =$H$10 -> PC | AC77: Totals
A79: 07:00:00 | B79: 91 | C79: 21 | D79: 2 | E79: 0 | F79: 6 | G79: 0 | H79: 0 | I79: =SUM(B79:H79) -> 120 | K79: 0 | L79: 0 | M79: 0 | N79: 0 | O79: 0 | P79: 0 | Q79: 0 | R79: =SUM(K79:Q79) -> 0 | T79: 16 | U79: 2 | V79: 0 | W79: 0 | X79: 3 | Y79: 0 | Z79: 0 | AA79: =SUM(T79:Z79) -> 21 | AC79: =SUM(I79+R79+AA79) -> 141
A80: 07:15:00 | B80: 101 | C80: 7 | D80: 3 | E80: 2 | F80: 4 | G80: 1 | H80: 0 | I80: 118 | K80: 0 | L80: 0 | M80: 0 | N80: 0 | O80: 0 | P80: 0 | Q80: 0 | R80: 0 | T80: 19 | U80: 2 | V80: 0 | W80: 0 | X80: 3 | Y80: 0 | Z80: 0 | AA80: 24 | AC80: 142
A81: 07:30:00 | B81: 125 | C81: 10 | D81: 1 | E81: 2 | F81: 6 | G81: 1 | H81: 0 | I81: 145 | K81: 0 | L81: 0 | M81: 0 | N81: 0 | O81: 0 | P81: 0 | Q81: 0 | R81: 0 | T81: 16 | U81: 0 | V81: 0 | W81: 0 | X81: 5 | Y81: 0 | Z81: 0 | AA81: 21 | AC81: 166
A82: 07:45:00 | B82: 93 | C82: 11 | D82: 1 | E82: 3 | F82: 7 | G82: 1 | H82: 0 | I82: 116 | K82: 0 | L82: 0 | M82: 0 | N82: 0 | O82: 0 | P82: 0 | Q82: 0 | R82: 0 | T82: 21 | U82: 1 | V82: 1 | W82: 0 | X82: 6 | Y82: 0 | Z82: 0 | AA82: 29 | AC82: 145
A83: 1 Hr | B83: =SUM(B79:B82) -> 410 | C83: 49 | D83: 7 | E83: 7 | F83: 23 | G83: 3 | H83: 0 | I83: 499 | K83: =SUM(K79:K82) -> 0 | L83: 0 | M83: 0 | N83: 0 | O83: 0 | P83: 0 | Q83: 0 | R83: 0 | T83: =SUM(T79:T82) -> 72 | U83: 5 | V83: 1 | W83: 0 | X83: 17 | Y83: 0 | Z83: 0 | AA83: 95 | AC83: =SUM(AC79:AC82) -> 594
A84: 08:00:00 | B84: 75 | C84: 7 | D84: 0 | E84: 1 | F84: 7 | G84: 0 | H84: 0 | I84: =SUM(B84:H84) -> 90 | K84: 0 | L84: 0 | M84: 0 | N84: 0 | O84: 0 | P84: 0 | Q84: 0 | R84: =SUM(K84:Q84) -> 0 | T84: 30 | U84: 2 | V84: 0 | W84: 0 | X84: 5 | Y84: 0 | Z84: 0 | AA84: =SUM(T84:Z84) -> 37 | AC84: =SUM(I84+R84+AA84) -> 127
A85: 08:15:00 | B85: 84 | C85: 5 | D85: 1 | E85: 0 | F85: 4 | G85: 0 | H85: 2 | I85: 96 | K85: 0 | L85: 0 | M85: 0 | N85: 0 | O85: 0 | P85: 0 | Q85: 0 | R85: 0 | T85: 42 | U85: 3 | V85: 0 | W85: 0 | X85: 4 | Y85: 0 | Z85: 0 | AA85: 49 | AC85: 145
A86: 08:30:00 | B86: 76 | C86: 4 | D86: 1 | E86: 1 | F86: 8 | G86: 0 | H86: 0 | I86: 90 | K86: 0 | L86: 0 | M86: 0 | N86: 0 | O86: 0 | P86: 0 | Q86: 0 | R86: 0 | T86: 30 | U86: 1 | V86: 0 | W86: 0 | X86: 4 | Y86: 0 | Z86: 0 | AA86: 35 | AC86: 125
A87: 08:45:00 | B87: 71 | C87: 3 | D87: 0 | E87: 2 | F87: 9 | G87: 0 | H87: 0 | I87: 85 | K87: 0 | L87: 0 | M87: 0 | N87: 0 | O87: 0 | P87: 0 | Q87: 0 | R87: 0 | T87: 28 | U87: 1 | V87: 0 | W87: 0 | X87: 5 | Y87: 0 | Z87: 0 | AA87: 34 | AC87: 119
A88: 1 Hr | B88: =SUM(B84:B87) -> 306 | C88: 19 | D88: 2 | E88: 4 | F88: 28 | G88: 0 | H88: 2 | I88: 361 | K88: =SUM(K84:K87) -> 0 | L88: 0 | M88: 0 | N88: 0 | O88: 0 | P88: 0 | Q88: 0 | R88: 0 | T88: =SUM(T84:T87) -> 130 | U88: 7 | V88: 0 | W88: 0 | X88: 18 | Y88: 0 | Z88: 0 | AA88: 155 | AC88: =SUM(AC84:AC87) -> 516
A89: 09:00:00 | B89: 83 | C89: 7 | D89: 5 | E89: 0 | F89: 14 | G89: 0 | H89: 2 | I89: =SUM(B89:H89) -> 111 | K89: 0 | L89: 0 | M89: 0 | N89: 0 | O89: 0 | P89: 0 | Q89: 0 | R89: =SUM(K89:Q89) -> 0 | T89: 16 | U89: 1 | V89: 1 | W89: 0 | X89: 3 | Y89: 0 | Z89: 0 | AA89: =SUM(T89:Z89) -> 21 | AC89: =SUM(I89+R89+AA89) -> 132
A90: 09:15:00 | B90: 79 | C90: 10 | D90: 1 | E90: 1 | F90: 6 | G90: 0 | H90: 1 | I90: 98 | K90: 0 | L90: 0 | M90: 0 | N90: 0 | O90: 0 | P90: 0 | Q90: 0 | R90: 0 | T90: 21 | U90: 2 | V90: 0 | W90: 0 | X90: 6 | Y90: 0 | Z90: 0 | AA90: 29 | AC90: 127
A91: 09:30:00 | B91: 83 | C91: 9 | D91: 0 | E91: 1 | F91: 4 | G91: 0 | H91: 0 | I91: 97 | K91: 0 | L91: 0 | M91: 0 | N91: 0 | O91: 0 | P91: 0 | Q91: 0 | R91: 0 | T91: 15 | U91: 0 | V91: 1 | W91: 0 | X91: 3 | Y91: 0 | Z91: 0 | AA91: 19 | AC91: 116
A92: 09:45:00 | B92: 76 | C92: 7 | D92: 4 | E92: 1 | F92: 6 | G92: 0 | H92: 0 | I92: 94 | K92: 0 | L92: 0 | M92: 0 | N92: 0 | O92: 0 | P92: 0 | Q92: 0 | R92: 0 | T92: 31 | U92: 7 | V92: 1 | W92: 0 | X92: 2 | Y92: 0 | Z92: 0 | AA92: 41 | AC92: 135
A93: 1 Hr | B93: =SUM(B89:B92) -> 321 | C93: 33 | D93: 10 | E93: 3 | F93: 30 | G93: 0 | H93: 3 | I93: 400 | K93: =SUM(K89:K92) -> 0 | L93: 0 | M93: 0 | N93: 0 | O93: 0 | P93: 0 | Q93: 0 | R93: 0 | T93: =SUM(T89:T92) -> 83 | U93: 10 | V93: 3 | W93: 0 | X93: 14 | Y93: 0 | Z93: 0 | AA93: 110 | AC93: =SUM(AC89:AC92) -> 510
A94: 10:00:00 | B94: 77 | C94: 6 | D94: 1 | E94: 1 | F94: 4 | G94: 0 | H94: 0 | I94: =SUM(B94:H94) -> 89 | K94: 0 | L94: 0 | M94: 0 | N94: 0 | O94: 0 | P94: 0 | Q94: 0 | R94: =SUM(K94:Q94) -> 0 | T94: 22 | U94: 3 | V94: 0 | W94: 0 | X94: 6 | Y94: 0 | Z94: 0 | AA94: =SUM(T94:Z94) -> 31 | AC94: =SUM(I94+R94+AA94) -> 120
A95: 10:15:00 | B95: 57 | C95: 10 | D95: 2 | E95: 1 | F95: 5 | G95: 0 | H95: 0 | I95: 75 | K95: 0 | L95: 0 | M95: 0 | N95: 0 | O95: 0 | P95: 0 | Q95: 0 | R95: 0 | T95: 25 | U95: 4 | V95: 0 | W95: 0 | X95: 4 | Y95: 0 | Z95: 0 | AA95: 33 | AC95: 108
A96: 10:30:00 | B96: 65 | C96: 8 | D96: 1 | E96: 2 | F96: 5 | G96: 0 | H96: 0 | I96: 81 | K96: 0 | L96: 0 | M96: 0 | N96: 0 | O96: 0 | P96: 0 | Q96: 0 | R96: 0 | T96: 17 | U96: 2 | V96: 1 | W96: 0 | X96: 3 | Y96: 0 | Z96: 0 | AA96: 23 | AC96: 104
A97: 10:45:00 | B97: 58 | C97: 11 | D97: 1 | E97: 2 | F97: 5 | G97: 1 | H97: 0 | I97: 78 | K97: 0 | L97: 0 | M97: 0 | N97: 0 | O97: 0 | P97: 0 | Q97: 0 | R97: 0 | T97: 20 | U97: 4 | V97: 0 | W97: 0 | X97: 4 | Y97: 0 | Z97: 0 | AA97: 28 | AC97: 106
A98: 1 Hr | B98: =SUM(B94:B97) -> 257 | C98: 35 | D98: 5 | E98: 6 | F98: 19 | G98: 1 | H98: 0 | I98: 323 | K98: =SUM(K94:K97) -> 0 | L98: 0 | M98: 0 | N98: 0 | O98: 0 | P98: 0 | Q98: 0 | R98: 0 | T98: =SUM(T94:T97) -> 84 | U98: 13 | V98: 1 | W98: 0 | X98: 17 | Y98: 0 | Z98: 0 | AA98: 115 | AC98: =SUM(AC94:AC97) -> 438
A99: 11:00:00 | B99: 68 | C99: 11 | D99: 3 | E99: 0 | F99: 5 | G99: 1 | H99: 1 | I99: =SUM(B99:H99) -> 89 | K99: 0 | L99: 0 | M99: 0 | N99: 0 | O99: 0 | P99: 0 | Q99: 0 | R99: =SUM(K99:Q99) -> 0 | T99: 17 | U99: 6 | V99: 1 | W99: 0 | X99: 6 | Y99: 0 | Z99: 0 | AA99: =SUM(T99:Z99) -> 30 | AC99: =SUM(I99+R99+AA99) -> 119
A100: 11:15:00 | B100: 70 | C100: 12 | D100: 0 | E100: 1 | F100: 4 | G100: 0 | H100: 2 | I100: 89 | K100: 0 | L100: 0 | M100: 0 | N100: 0 | O100: 0 | P100: 0 | Q100: 0 | R100: 0 | T100: 24 | U100: 2 | V100: 0 | W100: 0 | X100: 4 | Y100: 0 | Z100: 0 | AA100: 30 | AC100: 119
A101: 11:30:00 | B101: 60 | C101: 11 | D101: 2 | E101: 1 | F101: 4 | G101: 0 | H101: 0 | I101: 78 | K101: 0 | L101: 0 | M101: 0 | N101: 0 | O101: 0 | P101: 0 | Q101: 0 | R101: 0 | T101: 21 | U101: 1 | V101: 0 | W101: 0 | X101: 2 | Y101: 0 | Z101: 0 | AA101: 24 | AC101: 102
A102: 11:45:00 | B102: 66 | C102: 6 | D102: 1 | E102: 1 | F102: 6 | G102: 0 | H102: 1 | I102: 81 | K102: 0 | L102: 0 | M102: 0 | N102: 0 | O102: 0 | P102: 0 | Q102: 0 | R102: 0 | T102: 26 | U102: 3 | V102: 0 | W102: 0 | X102: 2 | Y102: 0 | Z102: 0 | AA102: 31 | AC102: 112
A103: 1 Hr | B103: =SUM(B99:B102) -> 264 | C103: 40 | D103: 6 | E103: 3 | F103: 19 | G103: 1 | H103: 4 | I103: 337 | K103: =SUM(K99:K102) -> 0 | L103: 0 | M103: 0 | N103: 0 | O103: 0 | P103: 0 | Q103: 0 | R103: 0 | T103: =SUM(T99:T102) -> 88 | U103: 12 | V103: 1 | W103: 0 | X103: 14 | Y103: 0 | Z103: 0 | AA103: 115 | AC103: =SUM(AC99:AC102) -> 452
A104: 12:00:00 | B104: 63 | C104: 8 | D104: 3 | E104: 0 | F104: 3 | G104: 1 | H104: 1 | I104: =SUM(B104:H104) -> 79 | K104: 0 | L104: 0 | M104: 0 | N104: 0 | O104: 0 | P104: 0 | Q104: 0 | R104: =SUM(K104:Q104) -> 0 | T104: 23 | U104: 1 | V104: 0 | W104: 0 | X104: 5 | Y104: 0 | Z104: 0 | AA104: =SUM(T104:Z104) -> 29 | AC104: =SUM(I104+R104+AA104) -> 108
A105: 12:15:00 | B105: 68 | C105: 2 | D105: 2 | E105: 0 | F105: 7 | G105: 0 | H105: 0 | I105: 79 | K105: 0 | L105: 0 | M105: 0 | N105: 0 | O105: 0 | P105: 0 | Q105: 0 | R105: 0 | T105: 20 | U105: 3 | V105: 0 | W105: 0 | X105: 1 | Y105: 0 | Z105: 0 | AA105: 24 | AC105: 103
A106: 12:30:00 | B106: 59 | C106: 3 | D106: 4 | E106: 1 | F106: 6 | G106: 1 | H106: 0 | I106: 74 | K106: 0 | L106: 0 | M106: 0 | N106: 0 | O106: 0 | P106: 0 | Q106: 0 | R106: 0 | T106: 18 | U106: 1 | V106: 0 | W106: 0 | X106: 4 | Y106: 0 | Z106: 0 | AA106: 23 | AC106: 97
A107: 12:45:00 | B107: 68 | C107: 6 | D107: 0 | E107: 2 | F107: 6 | G107: 0 | H107: 0 | I107: 82 | K107: 0 | L107: 0 | M107: 0 | N107: 0 | O107: 0 | P107: 0 | Q107: 0 | R107: 0 | T107: 17 | U107: 1 | V107: 0 | W107: 0 | X107: 4 | Y107: 0 | Z107: 0 | AA107: 22 | AC107: 104
A108: 1 Hr | B108: =SUM(B104:B107) -> 258 | C108: 19 | D108: 9 | E108: 3 | F108: 22 | G108: 2 | H108: 1 | I108: 314 | K108: =SUM(K104:K107) -> 0 | L108: 0 | M108: 0 | N108: 0 | O108: 0 | P108: 0 | Q108: 0 | R108: 0 | T108: =SUM(T104:T107) -> 78 | U108: 6 | V108: 0 | W108: 0 | X108: 14 | Y108: 0 | Z108: 0 | AA108: 98 | AC108: =SUM(AC104:AC107) -> 412
A109: 13:00:00 | B109: 59 | C109: 9 | D109: 1 | E109: 1 | F109: 5 | G109: 0 | H109: 1 | I109: =SUM(B109:H109) -> 76 | K109: 0 | L109: 0 | M109: 0 | N109: 0 | O109: 0 | P109: 0 | Q109: 0 | R109: =SUM(K109:Q109) -> 0 | T109: 25 | U109: 3 | V109: 0 | W109: 0 | X109: 2 | Y109: 0 | Z109: 0 | AA109: =SUM(T109:Z109) -> 30 | AC109: =SUM(I109+R109+AA109) -> 106
A110: 13:15:00 | B110: 57 | C110: 14 | D110: 2 | E110: 2 | F110: 6 | G110: 1 | H110: 1 | I110: 83 | K110: 0 | L110: 0 | M110: 0 | N110: 0 | O110: 0 | P110: 0 | Q110: 0 | R110: 0 | T110: 14 | U110: 4 | V110: 0 | W110: 1 | X110: 6 | Y110: 0 | Z110: 0 | AA110: 25 | AC110: 108
A111: 13:30:00 | B111: 74 | C111: 5 | D111: 1 | E111: 1 | F111: 3 | G111: 1 | H111: 0 | I111: 85 | K111: 0 | L111: 0 | M111: 0 | N111: 0 | O111: 0 | P111: 0 | Q111: 0 | R111: 0 | T111: 20 | U111: 2 | V111: 0 | W111: 0 | X111: 3 | Y111: 0 | Z111: 0 | AA111: 25 | AC111: 110
A112: 13:45:00 | B112: 62 | C112: 6 | D112: 1 | E112: 2 | F112: 6 | G112: 0 | H112: 0 | I112: 77 | K112: 0 | L112: 0 | M112: 0 | N112: 0 | O112: 0 | P112: 0 | Q112: 0 | R112: 0 | T112: 12 | U112: 3 | V112: 0 | W112: 0 | X112: 4 | Y112: 0 | Z112: 0 | AA112: 19 | AC112: 96
A113: 1 Hr | B113: =SUM(B109:B112) -> 252 | C113: 34 | D113: 5 | E113: 6 | F113: 20 | G113: 2 | H113: 2 | I113: 321 | K113: =SUM(K109:K112) -> 0 | L113: 0 | M113: 0 | N113: 0 | O113: 0 | P113: 0 | Q113: 0 | R113: 0 | T113: =SUM(T109:T112) -> 71 | U113: 12 | V113: 0 | W113: 1 | X113: 15 | Y113: 0 | Z113: 0 | AA113: 99 | AC113: =SUM(AC109:AC112) -> 420
A114: 14:00:00 | B114: 56 | C114: 6 | D114: 3 | E114: 1 | F114: 6 | G114: 0 | H114: 0 | I114: =SUM(B114:H114) -> 72 | K114: 0 | L114: 0 | M114: 0 | N114: 0 | O114: 0 | P114: 0 | Q114: 0 | R114: =SUM(K114:Q114) -> 0 | T114: 17 | U114: 4 | V114: 1 | W114: 0 | X114: 4 | Y114: 0 | Z114: 0 | AA114: =SUM(T114:Z114) -> 26 | AC114: =SUM(I114+R114+AA114) -> 98
A115: 14:15:00 | B115: 71 | C115: 9 | D115: 2 | E115: 0 | F115: 4 | G115: 1 | H115: 1 | I115: 88 | K115: 0 | L115: 0 | M115: 0 | N115: 0 | O115: 0 | P115: 0 | Q115: 0 | R115: 0 | T115: 30 | U115: 4 | V115: 0 | W115: 0 | X115: 4 | Y115: 0 | Z115: 0 | AA115: 38 | AC115: 126
A116: 14:30:00 | B116: 66 | C116: 12 | D116: 1 | E116: 0 | F116: 8 | G116: 0 | H116: 0 | I116: 87 | K116: 0 | L116: 0 | M116: 0 | N116: 0 | O116: 0 | P116: 0 | Q116: 0 | R116: 0 | T116: 28 | U116: 1 | V116: 0 | W116: 0 | X116: 6 | Y116: 0 | Z116: 0 | AA116: 35 | AC116: 122
A117: 14:45:00 | B117: 67 | C117: 6 | D117: 0 | E117: 0 | F117: 7 | G117: 0 | H117: 0 | I117: 80 | K117: 0 | L117: 0 | M117: 0 | N117: 0 | O117: 0 | P117: 0 | Q117: 0 | R117: 0 | T117: 33 | U117: 0 | V117: 2 | W117: 0 | X117: 2 | Y117: 0 | Z117: 0 | AA117: 37 | AC117: 117
A118: 1 Hr | B118: =SUM(B114:B117) -> 260 | C118: 33 | D118: 6 | E118: 1 | F118: 25 | G118: 1 | H118: 1 | I118: 327 | K118: =SUM(K114:K117) -> 0 | L118: 0 | M118: 0 | N118: 0 | O118: 0 | P118: 0 | Q118: 0 | R118: 0 | T118: =SUM(T114:T117) -> 108 | U118: 9 | V118: 3 | W118: 0 | X118: 16 | Y118: 0 | Z118: 0 | AA118: 136 | AC118: =SUM(AC114:AC117) -> 463
A119: 15:00:00 | B119: 59 | C119: 9 | D119: 1 | E119: 1 | F119: 5 | G119: 0 | H119: 0 | I119: =SUM(B119:H119) -> 75 | K119: 0 | L119: 0 | M119: 0 | N119: 0 | O119: 0 | P119: 0 | Q119: 0 | R119: =SUM(K119:Q119) -> 0 | T119: 34 | U119: 1 | V119: 1 | W119: 0 | X119: 5 | Y119: 0 | Z119: 0 | AA119: =SUM(T119:Z119) -> 41 | AC119: =SUM(I119+R119+AA119) -> 116
A120: 15:15:00 | B120: 63 | C120: 7 | D120: 0 | E120: 0 | F120: 6 | G120: 0 | H120: 1 | I120: 77 | K120: 0 | L120: 0 | M120: 0 | N120: 0 | O120: 0 | P120: 0 | Q120: 0 | R120: 0 | T120: 37 | U120: 0 | V120: 0 | W120: 0 | X120: 2 | Y120: 0 | Z120: 0 | AA120: 39 | AC120: 116
A121: 15:30:00 | B121: 59 | C121: 8 | D121: 1 | E121: 0 | F121: 8 | G121: 0 | H121: 1 | I121: 77 | K121: 0 | L121: 0 | M121: 0 | N121: 0 | O121: 0 | P121: 0 | Q121: 0 | R121: 0 | T121: 37 | U121: 2 | V121: 0 | W121: 0 | X121: 5 | Y121: 0 | Z121: 0 | AA121: 44 | AC121: 121
A122: 15:45:00 | B122: 66 | C122: 4 | D122: 2 | E122: 3 | F122: 6 | G122: 0 | H122: 0 | I122: 81 | K122: 0 | L122: 0 | M122: 0 | N122: 0 | O122: 0 | P122: 0 | Q122: 0 | R122: 0 | T122: 22 | U122: 2 | V122: 0 | W122: 0 | X122: 4 | Y122: 0 | Z122: 0 | AA122: 28 | AC122: 109
A123: 1 Hr | B123: =SUM(B119:B122) -> 247 | C123: 28 | D123: 4 | E123: 4 | F123: 25 | G123: 0 | H123: 2 | I123: 310 | K123: =SUM(K119:K122) -> 0 | L123: 0 | M123: 0 | N123: 0 | O123: 0 | P123: 0 | Q123: 0 | R123: 0 | T123: =SUM(T119:T122) -> 130 | U123: 5 | V123: 1 | W123: 0 | X123: 16 | Y123: 0 | Z123: 0 | AA123: 152 | AC123: =SUM(AC119:AC122) -> 462
A124: 16:00:00 | B124: 71 | C124: 7 | D124: 1 | E124: 0 | F124: 5 | G124: 0 | H124: 0 | I124: =SUM(B124:H124) -> 84 | K124: 0 | L124: 0 | M124: 0 | N124: 0 | O124: 0 | P124: 0 | Q124: 0 | R124: =SUM(K124:Q124) -> 0 | T124: 29 | U124: 5 | V124: 0 | W124: 0 | X124: 3 | Y124: 0 | Z124: 0 | AA124: =SUM(T124:Z124) -> 37 | AC124: =SUM(I124+R124+AA124) -> 121
A125: 16:15:00 | B125: 68 | C125: 10 | D125: 3 | E125: 0 | F125: 3 | G125: 0 | H125: 0 | I125: 84 | K125: 0 | L125: 0 | M125: 0 | N125: 0 | O125: 0 | P125: 0 | Q125: 0 | R125: 0 | T125: 34 | U125: 4 | V125: 0 | W125: 0 | X125: 5 | Y125: 0 | Z125: 0 | AA125: 43 | AC125: 127
A126: 16:30:00 | B126: 68 | C126: 3 | D126: 3 | E126: 1 | F126: 9 | G126: 0 | H126: 1 | I126: 85 | K126: 0 | L126: 0 | M126: 0 | N126: 0 | O126: 0 | P126: 0 | Q126: 0 | R126: 0 | T126: 26 | U126: 3 | V126: 0 | W126: 0 | X126: 2 | Y126: 0 | Z126: 0 | AA126: 31 | AC126: 116
A127: 16:45:00 | B127: 82 | C127: 7 | D127: 0 | E127: 0 | F127: 9 | G127: 0 | H127: 0 | I127: 98 | K127: 0 | L127: 0 | M127: 0 | N127: 0 | O127: 0 | P127: 0 | Q127: 0 | R127: 0 | T127: 34 | U127: 3 | V127: 1 | W127: 0 | X127: 4 | Y127: 0 | Z127: 0 | AA127: 42 | AC127: 140
A128: 1 Hr | B128: =SUM(B124:B127) -> 289 | C128: 27 | D128: 7 | E128: 1 | F128: 26 | G128: 0 | H128: 1 | I128: 351 | K128: =SUM(K124:K127) -> 0 | L128: 0 | M128: 0 | N128: 0 | O128: 0 | P128: 0 | Q128: 0 | R128: 0 | T128: =SUM(T124:T127) -> 123 | U128: 15 | V128: 1 | W128: 0 | X128: 14 | Y128: 0 | Z128: 0 | AA128: 153 | AC128: =SUM(AC124:AC127) -> 504
A129: 17:00:00 | B129: 71 | C129: 5 | D129: 2 | E129: 2 | F129: 5 | G129: 0 | H129: 0 | I129: =SUM(B129:H129) -> 85 | K129: 0 | L129: 0 | M129: 0 | N129: 0 | O129: 0 | P129: 0 | Q129: 0 | R129: =SUM(K129:Q129) -> 0 | T129: 26 | U129: 5 | V129: 0 | W129: 0 | X129: 5 | Y129: 0 | Z129: 0 | AA129: =SUM(T129:Z129) -> 36 | AC129: =SUM(I129+R129+AA129) -> 121
A130: 17:15:00 | B130: 80 | C130: 5 | D130: 0 | E130: 0 | F130: 3 | G130: 0 | H130: 3 | I130: 91 | K130: 0 | L130: 0 | M130: 0 | N130: 0 | O130: 0 | P130: 0 | Q130: 0 | R130: 0 | T130: 26 | U130: 3 | V130: 0 | W130: 0 | X130: 0 | Y130: 0 | Z130: 0 | AA130: 29 | AC130: 120
A131: 17:30:00 | B131: 74 | C131: 6 | D131: 0 | E131: 0 | F131: 4 | G131: 0 | H131: 1 | I131: 85 | K131: 0 | L131: 0 | M131: 0 | N131: 0 | O131: 0 | P131: 0 | Q131: 0 | R131: 0 | T131: 32 | U131: 2 | V131: 0 | W131: 0 | X131: 6 | Y131: 0 | Z131: 0 | AA131: 40 | AC131: 125
A132: 17:45:00 | B132: 94 | C132: 4 | D132: 0 | E132: 0 | F132: 5 | G132: 0 | H132: 6 | I132: 109 | K132: 0 | L132: 0 | M132: 0 | N132: 0 | O132: 0 | P132: 0 | Q132: 0 | R132: 0 | T132: 24 | U132: 2 | V132: 0 | W132: 0 | X132: 4 | Y132: 0 | Z132: 0 | AA132: 30 | AC132: 139
A133: 1 Hr | B133: =SUM(B129:B132) -> 319 | C133: 20 | D133: 2 | E133: 2 | F133: 17 | G133: 0 | H133: 10 | I133: 370 | K133: =SUM(K129:K132) -> 0 | L133: 0 | M133: 0 | N133: 0 | O133: 0 | P133: 0 | Q133: 0 | R133: 0 | T133: =SUM(T129:T132) -> 108 | U133: 12 | V133: 0 | W133: 0 | X133: 15 | Y133: 0 | Z133: 0 | AA133: 135 | AC133: =SUM(AC129:AC132) -> 505
A134: 18:00:00 | B134: 82 | C134: 7 | D134: 0 | E134: 0 | F134: 4 | G134: 0 | H134: 0 | I134: =SUM(B134:H134) -> 93 | K134: 0 | L134: 0 | M134: 0 | N134: 0 | O134: 0 | P134: 0 | Q134: 0 | R134: =SUM(K134:Q134) -> 0 | T134: 39 | U134: 2 | V134: 0 | W134: 0 | X134: 5 | Y134: 0 | Z134: 0 | AA134: =SUM(T134:Z134) -> 46 | AC134: =SUM(I134+R134+AA134) -> 139
A135: 18:15:00 | B135: 80 | C135: 2 | D135: 0 | E135: 1 | F135: 6 | G135: 0 | H135: 0 | I135: 89 | K135: 0 | L135: 0 | M135: 0 | N135: 0 | O135: 0 | P135: 0 | Q135: 0 | R135: 0 | T135: 26 | U135: 1 | V135: 0 | W135: 0 | X135: 3 | Y135: 0 | Z135: 0 | AA135: 30 | AC135: 119
A136: 18:30:00 | B136: 93 | C136: 5 | D136: 2 | E136: 0 | F136: 4 | G136: 0 | H136: 0 | I136: 104 | K136: 0 | L136: 0 | M136: 0 | N136: 0 | O136: 0 | P136: 0 | Q136: 0 | R136: 0 | T136: 26 | U136: 3 | V136: 0 | W136: 0 | X136: 2 | Y136: 0 | Z136: 0 | AA136: 31 | AC136: 135
A137: 18:45:00 | B137: 86 | C137: 2 | D137: 0 | E137: 0 | F137: 4 | G137: 0 | H137: 1 | I137: 93 | K137: 0 | L137: 0 | M137: 0 | N137: 0 | O137: 0 | P137: 0 | Q137: 0 | R137: 0 | T137: 32 | U137: 2 | V137: 0 | W137: 0 | X137: 4 | Y137: 0 | Z137: 0 | AA137: 38 | AC137: 131
A138: 1 Hr | B138: =SUM(B134:B137) -> 341 | C138: 16 | D138: 2 | E138: 1 | F138: 18 | G138: 0 | H138: 1 | I138: 379 | K138: =SUM(K134:K137) -> 0 | L138: 0 | M138: 0 | N138: 0 | O138: 0 | P138: 0 | Q138: 0 | R138: 0 | T138: =SUM(T134:T137) -> 123 | U138: 8 | V138: 0 | W138: 0 | X138: 14 | Y138: 0 | Z138: 0 | AA138: 145 | AC138: =SUM(AC134:AC137) -> 524
A140: Total | B140: =SUM(B138+B133+B128+B123+B118+B113+B108+B103+B98+B93+B88+B83) -> 3524 | C140: 353 | D140: 65 | E140: 41 | F140: 272 | G140: 10 | H140: 27 | I140: 4292 | K140: =SUM(K138+K133+K128+K123+K118+K113+K108+K103+K98+K93+K88+K83) -> 0 | L140: 0 | M140: 0 | N140: 0 | O140: 0 | P140: 0 | Q140: 0 | R140: 0 | T140: =SUM(T138+T133+T128+T123+T118+T113+T108+T103+T98+T93+T88+T83) -> 1198 | U140: 114 | V140: 11 | W140: 1 | X140: 184 | Y140: 0 | Z140: 0 | AA140: 1508 | AC140: =SUM(AC138+AC133+AC128+AC123+AC118+AC113+AC108+AC103+AC98+AC93+AC88+AC83) -> 5800
A142: Origin : | B142: Arm C | C142: Vicarage Road
B143: Destination : | D143: Arm A | E143: A435 Alcester Road South(N) | I143: Total | K143: Destination : | M143: Arm B | N143: A435 Alcester Road South(S) | R143: Total | T143: Destination : | V143: Arm C | W143: Vicarage Road | AA143: Total | AC143: Arm
B144: =$B$10 -> Car | C144: =$C$10 -> LGV | D144: =$D$10 -> OGV1 | E144: =$E$10 -> OGV2 | F144: =$F$10 -> Bus/Coach | G144: =$G$10 -> MC | H144: =$H$10 -> PC | K144: =$B$10 -> Car | L144: =$C$10 -> LGV | M144: =$D$10 -> OGV1 | N144: =$E$10 -> OGV2 | O144: =$F$10 -> Bus/Coach | P144: =$G$10 -> MC | Q144: =$H$10 -> PC | T144: =$B$10 -> Car | U144: =$C$10 -> LGV | V144: =$D$10 -> OGV1 | W144: =$E$10 -> OGV2 | X144: =$F$10 -> Bus/Coach | Y144: =$G$10 -> MC | Z144: =$H$10 -> PC | AC144: Totals
A146: 07:00:00 | B146: 53 | C146: 3 | D146: 3 | E146: 0 | F146: 2 | G146: 0 | H146: 0 | I146: =SUM(B146:H146) -> 61 | K146: 0 | L146: 1 | M146: 0 | N146: 0 | O146: 3 | P146: 0 | Q146: 0 | R146: =SUM(K146:Q146) -> 4 | T146: 0 | U146: 0 | V146: 0 | W146: 0 | X146: 0 | Y146: 0 | Z146: 0 | AA146: =SUM(T146:Z146) -> 0 | AC146: =SUM(I146+R146+AA146) -> 65
A147: 07:15:00 | B147: 78 | C147: 2 | D147: 3 | E147: 0 | F147: 2 | G147: 0 | H147: 0 | I147: 85 | K147: 2 | L147: 0 | M147: 0 | N147: 0 | O147: 5 | P147: 0 | Q147: 0 | R147: 7 | T147: 0 | U147: 0 | V147: 0 | W147: 0 | X147: 0 | Y147: 0 | Z147: 0 | AA147: 0 | AC147: 92
A148: 07:30:00 | B148: 67 | C148: 7 | D148: 1 | E148: 0 | F148: 2 | G148: 0 | H148: 2 | I148: 79 | K148: 4 | L148: 0 | M148: 0 | N148: 0 | O148: 4 | P148: 0 | Q148: 0 | R148: 8 | T148: 0 | U148: 0 | V148: 0 | W148: 0 | X148: 0 | Y148: 0 | Z148: 0 | AA148: 0 | AC148: 87
A149: 07:45:00 | B149: 74 | C149: 3 | D149: 2 | E149: 0 | F149: 1 | G149: 0 | H149: 0 | I149: 80 | K149: 3 | L149: 0 | M149: 0 | N149: 0 | O149: 5 | P149: 0 | Q149: 0 | R149: 8 | T149: 0 | U149: 0 | V149: 0 | W149: 0 | X149: 0 | Y149: 0 | Z149: 0 | AA149: 0 | AC149: 88
A150: 1 Hr | B150: =SUM(B146:B149) -> 272 | C150: 15 | D150: 9 | E150: 0 | F150: 7 | G150: 0 | H150: 2 | I150: 305 | K150: =SUM(K146:K149) -> 9 | L150: 1 | M150: 0 | N150: 0 | O150: 17 | P150: 0 | Q150: 0 | R150: 27 | T150: =SUM(T146:T149) -> 0 | U150: 0 | V150: 0 | W150: 0 | X150: 0 | Y150: 0 | Z150: 0 | AA150: 0 | AC150: =SUM(AC146:AC149) -> 332
A151: 08:00:00 | B151: 64 | C151: 4 | D151: 1 | E151: 0 | F151: 2 | G151: 1 | H151: 0 | I151: =SUM(B151:H151) -> 72 | K151: 0 | L151: 2 | M151: 0 | N151: 0 | O151: 0 | P151: 0 | Q151: 0 | R151: =SUM(K151:Q151) -> 2 | T151: 0 | U151: 0 | V151: 0 | W151: 0 | X151: 0 | Y151: 0 | Z151: 0 | AA151: =SUM(T151:Z151) -> 0 | AC151: =SUM(I151+R151+AA151) -> 74
A152: 08:15:00 | B152: 73 | C152: 3 | D152: 0 | E152: 0 | F152: 1 | G152: 0 | H152: 0 | I152: 77 | K152: 1 | L152: 0 | M152: 0 | N152: 0 | O152: 6 | P152: 0 | Q152: 0 | R152: 7 | T152: 0 | U152: 0 | V152: 0 | W152: 0 | X152: 0 | Y152: 0 | Z152: 0 | AA152: 0 | AC152: 84
A153: 08:30:00 | B153: 58 | C153: 4 | D153: 1 | E153: 0 | F153: 3 | G153: 0 | H153: 0 | I153: 66 | K153: 1 | L153: 0 | M153: 0 | N153: 0 | O153: 0 | P153: 0 | Q153: 0 | R153: 1 | T153: 0 | U153: 0 | V153: 0 | W153: 0 | X153: 0 | Y153: 0 | Z153: 0 | AA153: 0 | AC153: 67
A154: 08:45:00 | B154: 65 | C154: 3 | D154: 1 | E154: 0 | F154: 3 | G154: 0 | H154: 1 | I154: 73 | K154: 2 | L154: 0 | M154: 0 | N154: 0 | O154: 5 | P154: 0 | Q154: 0 | R154: 7 | T154: 0 | U154: 0 | V154: 0 | W154: 0 | X154: 0 | Y154: 0 | Z154: 0 | AA154: 0 | AC154: 80
A155: 1 Hr | B155: =SUM(B151:B154) -> 260 | C155: 14 | D155: 3 | E155: 0 | F155: 9 | G155: 1 | H155: 1 | I155: 288 | K155: =SUM(K151:K154) -> 4 | L155: 2 | M155: 0 | N155: 0 | O155: 11 | P155: 0 | Q155: 0 | R155: 17 | T155: =SUM(T151:T154) -> 0 | U155: 0 | V155: 0 | W155: 0 | X155: 0 | Y155: 0 | Z155: 0 | AA155: 0 | AC155: =SUM(AC151:AC154) -> 305
A156: 09:00:00 | B156: 56 | C156: 6 | D156: 1 | E156: 0 | F156: 3 | G156: 0 | H156: 0 | I156: =SUM(B156:H156) -> 66 | K156: 2 | L156: 1 | M156: 0 | N156: 0 | O156: 5 | P156: 0 | Q156: 0 | R156: =SUM(K156:Q156) -> 8 | T156: 0 | U156: 0 | V156: 0 | W156: 0 | X156: 0 | Y156: 0 | Z156: 0 | AA156: =SUM(T156:Z156) -> 0 | AC156: =SUM(I156+R156+AA156) -> 74
A157: 09:15:00 | B157: 56 | C157: 7 | D157: 0 | E157: 1 | F157: 3 | G157: 0 | H157: 0 | I157: 67 | K157: 1 | L157: 0 | M157: 0 | N157: 0 | O157: 4 | P157: 0 | Q157: 0 | R157: 5 | T157: 0 | U157: 0 | V157: 0 | W157: 0 | X157: 0 | Y157: 0 | Z157: 0 | AA157: 0 | AC157: 72
A158: 09:30:00 | B158: 56 | C158: 7 | D158: 1 | E158: 0 | F158: 1 | G158: 0 | H158: 0 | I158: 65 | K158: 0 | L158: 2 | M158: 0 | N158: 0 | O158: 6 | P158: 0 | Q158: 0 | R158: 8 | T158: 0 | U158: 0 | V158: 0 | W158: 0 | X158: 0 | Y158: 0 | Z158: 0 | AA158: 0 | AC158: 73
A159: 09:45:00 | B159: 55 | C159: 5 | D159: 1 | E159: 0 | F159: 1 | G159: 0 | H159: 1 | I159: 63 | K159: 0 | L159: 0 | M159: 0 | N159: 0 | O159: 5 | P159: 0 | Q159: 0 | R159: 5 | T159: 0 | U159: 0 | V159: 0 | W159: 0 | X159: 0 | Y159: 0 | Z159: 0 | AA159: 0 | AC159: 68
A160: 1 Hr | B160: =SUM(B156:B159) -> 223 | C160: 25 | D160: 3 | E160: 1 | F160: 8 | G160: 0 | H160: 1 | I160: 261 | K160: =SUM(K156:K159) -> 3 | L160: 3 | M160: 0 | N160: 0 | O160: 20 | P160: 0 | Q160: 0 | R160: 26 | T160: =SUM(T156:T159) -> 0 | U160: 0 | V160: 0 | W160: 0 | X160: 0 | Y160: 0 | Z160: 0 | AA160: 0 | AC160: =SUM(AC156:AC159) -> 287
A161: 10:00:00 | B161: 59 | C161: 5 | D161: 2 | E161: 0 | F161: 1 | G161: 0 | H161: 0 | I161: =SUM(B161:H161) -> 67 | K161: 0 | L161: 1 | M161: 0 | N161: 0 | O161: 4 | P161: 0 | Q161: 0 | R161: =SUM(K161:Q161) -> 5 | T161: 0 | U161: 0 | V161: 0 | W161: 0 | X161: 0 | Y161: 0 | Z161: 0 | AA161: =SUM(T161:Z161) -> 0 | AC161: =SUM(I161+R161+AA161) -> 72
A162: 10:15:00 | B162: 54 | C162: 13 | D162: 1 | E162: 0 | F162: 2 | G162: 0 | H162: 0 | I162: 70 | K162: 2 | L162: 0 | M162: 0 | N162: 0 | O162: 2 | P162: 0 | Q162: 0 | R162: 4 | T162: 0 | U162: 0 | V162: 0 | W162: 0 | X162: 0 | Y162: 0 | Z162: 0 | AA162: 0 | AC162: 74
A163: 10:30:00 | B163: 58 | C163: 7 | D163: 0 | E163: 0 | F163: 1 | G163: 0 | H163: 0 | I163: 66 | K163: 1 | L163: 0 | M163: 0 | N163: 0 | O163: 5 | P163: 0 | Q163: 0 | R163: 6 | T163: 0 | U163: 0 | V163: 0 | W163: 0 | X163: 0 | Y163: 0 | Z163: 0 | AA163: 0 | AC163: 72
A164: 10:45:00 | B164: 49 | C164: 10 | D164: 1 | E164: 0 | F164: 2 | G164: 0 | H164: 0 | I164: 62 | K164: 2 | L164: 0 | M164: 0 | N164: 0 | O164: 4 | P164: 0 | Q164: 0 | R164: 6 | T164: 0 | U164: 0 | V164: 0 | W164: 0 | X164: 0 | Y164: 0 | Z164: 0 | AA164: 0 | AC164: 68
A165: 1 Hr | B165: =SUM(B161:B164) -> 220 | C165: 35 | D165: 4 | E165: 0 | F165: 6 | G165: 0 | H165: 0 | I165: 265 | K165: =SUM(K161:K164) -> 5 | L165: 1 | M165: 0 | N165: 0 | O165: 15 | P165: 0 | Q165: 0 | R165: 21 | T165: =SUM(T161:T164) -> 0 | U165: 0 | V165: 0 | W165: 0 | X165: 0 | Y165: 0 | Z165: 0 | AA165: 0 | AC165: =SUM(AC161:AC164) -> 286
A166: 11:00:00 | B166: 52 | C166: 7 | D166: 0 | E166: 0 | F166: 1 | G166: 0 | H166: 0 | I166: =SUM(B166:H166) -> 60 | K166: 0 | L166: 1 | M166: 0 | N166: 0 | O166: 4 | P166: 0 | Q166: 0 | R166: =SUM(K166:Q166) -> 5 | T166: 0 | U166: 0 | V166: 0 | W166: 0 | X166: 0 | Y166: 0 | Z166: 0 | AA166: =SUM(T166:Z166) -> 0 | AC166: =SUM(I166+R166+AA166) -> 65
A167: 11:15:00 | B167: 50 | C167: 9 | D167: 2 | E167: 1 | F167: 2 | G167: 1 | H167: 0 | I167: 65 | K167: 0 | L167: 1 | M167: 0 | N167: 0 | O167: 1 | P167: 0 | Q167: 0 | R167: 2 | T167: 0 | U167: 0 | V167: 0 | W167: 0 | X167: 0 | Y167: 0 | Z167: 0 | AA167: 0 | AC167: 67
A168: 11:30:00 | B168: 67 | C168: 5 | D168: 1 | E168: 1 | F168: 1 | G168: 0 | H168: 0 | I168: 75 | K168: 1 | L168: 0 | M168: 0 | N168: 0 | O168: 8 | P168: 0 | Q168: 0 | R168: 9 | T168: 0 | U168: 0 | V168: 0 | W168: 0 | X168: 0 | Y168: 0 | Z168: 0 | AA168: 0 | AC168: 84
A169: 11:45:00 | B169: 51 | C169: 8 | D169: 3 | E169: 0 | F169: 2 | G169: 0 | H169: 1 | I169: 65 | K169: 2 | L169: 1 | M169: 0 | N169: 0 | O169: 3 | P169: 0 | Q169: 0 | R169: 6 | T169: 0 | U169: 0 | V169: 0 | W169: 0 | X169: 0 | Y169: 0 | Z169: 0 | AA169: 0 | AC169: 71
A170: 1 Hr | B170: =SUM(B166:B169) -> 220 | C170: 29 | D170: 6 | E170: 2 | F170: 6 | G170: 1 | H170: 1 | I170: 265 | K170: =SUM(K166:K169) -> 3 | L170: 3 | M170: 0 | N170: 0 | O170: 16 | P170: 0 | Q170: 0 | R170: 22 | T170: =SUM(T166:T169) -> 0 | U170: 0 | V170: 0 | W170: 0 | X170: 0 | Y170: 0 | Z170: 0 | AA170: 0 | AC170: =SUM(AC166:AC169) -> 287
A171: 12:00:00 | B171: 61 | C171: 7 | D171: 0 | E171: 0 | F171: 1 | G171: 0 | H171: 0 | I171: =SUM(B171:H171) -> 69 | K171: 1 | L171: 0 | M171: 0 | N171: 0 | O171: 5 | P171: 0 | Q171: 0 | R171: =SUM(K171:Q171) -> 6 | T171: 0 | U171: 0 | V171: 0 | W171: 0 | X171: 0 | Y171: 0 | Z171: 0 | AA171: =SUM(T171:Z171) -> 0 | AC171: =SUM(I171+R171+AA171) -> 75
A172: 12:15:00 | B172: 44 | C172: 12 | D172: 0 | E172: 0 | F172: 2 | G172: 0 | H172: 0 | I172: 58 | K172: 0 | L172: 0 | M172: 0 | N172: 0 | O172: 2 | P172: 0 | Q172: 0 | R172: 2 | T172: 0 | U172: 0 | V172: 0 | W172: 0 | X172: 0 | Y172: 0 | Z172: 0 | AA172: 0 | AC172: 60
A173: 12:30:00 | B173: 47 | C173: 4 | D173: 1 | E173: 0 | F173: 1 | G173: 1 | H173: 0 | I173: 54 | K173: 1 | L173: 0 | M173: 0 | N173: 0 | O173: 5 | P173: 0 | Q173: 0 | R173: 6 | T173: 0 | U173: 0 | V173: 0 | W173: 0 | X173: 0 | Y173: 0 | Z173: 0 | AA173: 0 | AC173: 60
A174: 12:45:00 | B174: 57 | C174: 5 | D174: 0 | E174: 0 | F174: 2 | G174: 0 | H174: 0 | I174: 64 | K174: 2 | L174: 1 | M174: 0 | N174: 0 | O174: 4 | P174: 0 | Q174: 0 | R174: 7 | T174: 0 | U174: 0 | V174: 0 | W174: 0 | X174: 0 | Y174: 0 | Z174: 0 | AA174: 0 | AC174: 71
A175: 1 Hr | B175: =SUM(B171:B174) -> 209 | C175: 28 | D175: 1 | E175: 0 | F175: 6 | G175: 1 | H175: 0 | I175: 245 | K175: =SUM(K171:K174) -> 4 | L175: 1 | M175: 0 | N175: 0 | O175: 16 | P175: 0 | Q175: 0 | R175: 21 | T175: =SUM(T171:T174) -> 0 | U175: 0 | V175: 0 | W175: 0 | X175: 0 | Y175: 0 | Z175: 0 | AA175: 0 | AC175: =SUM(AC171:AC174) -> 266
A176: 13:00:00 | B176: 55 | C176: 7 | D176: 1 | E176: 0 | F176: 2 | G176: 0 | H176: 0 | I176: =SUM(B176:H176) -> 65 | K176: 0 | L176: 0 | M176: 0 | N176: 0 | O176: 5 | P176: 0 | Q176: 0 | R176: =SUM(K176:Q176) -> 5 | T176: 0 | U176: 0 | V176: 0 | W176: 0 | X176: 0 | Y176: 0 | Z176: 0 | AA176: =SUM(T176:Z176) -> 0 | AC176: =SUM(I176+R176+AA176) -> 70
A177: 13:15:00 | B177: 55 | C177: 9 | D177: 0 | E177: 1 | F177: 1 | G177: 1 | H177: 0 | I177: 67 | K177: 2 | L177: 0 | M177: 0 | N177: 0 | O177: 1 | P177: 0 | Q177: 0 | R177: 3 | T177: 0 | U177: 0 | V177: 0 | W177: 0 | X177: 0 | Y177: 0 | Z177: 0 | AA177: 0 | AC177: 70
A178: 13:30:00 | B178: 59 | C178: 4 | D178: 1 | E178: 0 | F178: 2 | G178: 2 | H178: 0 | I178: 68 | K178: 4 | L178: 1 | M178: 0 | N178: 0 | O178: 6 | P178: 0 | Q178: 0 | R178: 11 | T178: 0 | U178: 0 | V178: 0 | W178: 0 | X178: 0 | Y178: 0 | Z178: 0 | AA178: 0 | AC178: 79
A179: 13:45:00 | B179: 61 | C179: 5 | D179: 1 | E179: 0 | F179: 0 | G179: 2 | H179: 0 | I179: 69 | K179: 0 | L179: 0 | M179: 0 | N179: 0 | O179: 4 | P179: 0 | Q179: 0 | R179: 4 | T179: 0 | U179: 0 | V179: 0 | W179: 0 | X179: 0 | Y179: 0 | Z179: 0 | AA179: 0 | AC179: 73
A180: 1 Hr | B180: =SUM(B176:B179) -> 230 | C180: 25 | D180: 3 | E180: 1 | F180: 5 | G180: 5 | H180: 0 | I180: 269 | K180: =SUM(K176:K179) -> 6 | L180: 1 | M180: 0 | N180: 0 | O180: 16 | P180: 0 | Q180: 0 | R180: 23 | T180: =SUM(T176:T179) -> 0 | U180: 0 | V180: 0 | W180: 0 | X180: 0 | Y180: 0 | Z180: 0 | AA180: 0 | AC180: =SUM(AC176:AC179) -> 292
A181: 14:00:00 | B181: 52 | C181: 4 | D181: 2 | E181: 0 | F181: 2 | G181: 0 | H181: 0 | I181: =SUM(B181:H181) -> 60 | K181: 7 | L181: 0 | M181: 0 | N181: 0 | O181: 3 | P181: 0 | Q181: 0 | R181: =SUM(K181:Q181) -> 10 | T181: 0 | U181: 0 | V181: 0 | W181: 0 | X181: 0 | Y181: 0 | Z181: 0 | AA181: =SUM(T181:Z181) -> 0 | AC181: =SUM(I181+R181+AA181) -> 70
A182: 14:15:00 | B182: 60 | C182: 8 | D182: 1 | E182: 1 | F182: 2 | G182: 0 | H182: 0 | I182: 72 | K182: 1 | L182: 0 | M182: 0 | N182: 0 | O182: 4 | P182: 0 | Q182: 0 | R182: 5 | T182: 0 | U182: 0 | V182: 0 | W182: 0 | X182: 0 | Y182: 0 | Z182: 0 | AA182: 0 | AC182: 77
A183: 14:30:00 | B183: 48 | C183: 6 | D183: 1 | E183: 0 | F183: 3 | G183: 0 | H183: 1 | I183: 59 | K183: 1 | L183: 1 | M183: 0 | N183: 0 | O183: 3 | P183: 0 | Q183: 0 | R183: 5 | T183: 0 | U183: 0 | V183: 0 | W183: 0 | X183: 0 | Y183: 0 | Z183: 0 | AA183: 0 | AC183: 64
A184: 14:45:00 | B184: 61 | C184: 0 | D184: 0 | E184: 0 | F184: 1 | G184: 0 | H184: 0 | I184: 62 | K184: 1 | L184: 0 | M184: 0 | N184: 0 | O184: 4 | P184: 0 | Q184: 0 | R184: 5 | T184: 0 | U184: 0 | V184: 0 | W184: 0 | X184: 0 | Y184: 0 | Z184: 0 | AA184: 0 | AC184: 67
A185: 1 Hr | B185: =SUM(B181:B184) -> 221 | C185: 18 | D185: 4 | E185: 1 | F185: 8 | G185: 0 | H185: 1 | I185: 253 | K185: =SUM(K181:K184) -> 10 | L185: 1 | M185: 0 | N185: 0 | O185: 14 | P185: 0 | Q185: 0 | R185: 25 | T185: =SUM(T181:T184) -> 0 | U185: 0 | V185: 0 | W185: 0 | X185: 0 | Y185: 0 | Z185: 0 | AA185: 0 | AC185: =SUM(AC181:AC184) -> 278
A186: 15:00:00 | B186: 55 | C186: 3 | D186: 0 | E186: 0 | F186: 2 | G186: 0 | H186: 0 | I186: =SUM(B186:H186) -> 60 | K186: 5 | L186: 0 | M186: 0 | N186: 0 | O186: 5 | P186: 0 | Q186: 0 | R186: =SUM(K186:Q186) -> 10 | T186: 0 | U186: 0 | V186: 0 | W186: 0 | X186: 0 | Y186: 0 | Z186: 0 | AA186: =SUM(T186:Z186) -> 0 | AC186: =SUM(I186+R186+AA186) -> 70
A187: 15:15:00 | B187: 56 | C187: 5 | D187: 1 | E187: 0 | F187: 2 | G187: 0 | H187: 0 | I187: 64 | K187: 3 | L187: 1 | M187: 0 | N187: 0 | O187: 2 | P187: 0 | Q187: 0 | R187: 6 | T187: 0 | U187: 0 | V187: 0 | W187: 0 | X187: 0 | Y187: 0 | Z187: 0 | AA187: 0 | AC187: 70
A188: 15:30:00 | B188: 53 | C188: 5 | D188: 0 | E188: 0 | F188: 2 | G188: 1 | H188: 0 | I188: 61 | K188: 3 | L188: 0 | M188: 1 | N188: 0 | O188: 2 | P188: 0 | Q188: 0 | R188: 6 | T188: 0 | U188: 0 | V188: 0 | W188: 0 | X188: 0 | Y188: 0 | Z188: 0 | AA188: 0 | AC188: 67
A189: 15:45:00 | B189: 61 | C189: 1 | D189: 0 | E189: 0 | F189: 1 | G189: 0 | H189: 0 | I189: 63 | K189: 4 | L189: 0 | M189: 0 | N189: 0 | O189: 7 | P189: 0 | Q189: 0 | R189: 11 | T189: 0 | U189: 0 | V189: 0 | W189: 0 | X189: 0 | Y189: 0 | Z189: 0 | AA189: 0 | AC189: 74
A190: 1 Hr | B190: =SUM(B186:B189) -> 225 | C190: 14 | D190: 1 | E190: 0 | F190: 7 | G190: 1 | H190: 0 | I190: 248 | K190: =SUM(K186:K189) -> 15 | L190: 1 | M190: 1 | N190: 0 | O190: 16 | P190: 0 | Q190: 0 | R190: 33 | T190: =SUM(T186:T189) -> 0 | U190: 0 | V190: 0 | W190: 0 | X190: 0 | Y190: 0 | Z190: 0 | AA190: 0 | AC190: =SUM(AC186:AC189) -> 281
A191: 16:00:00 | B191: 70 | C191: 4 | D191: 0 | E191: 0 | F191: 1 | G191: 0 | H191: 0 | I191: =SUM(B191:H191) -> 75 | K191: 2 | L191: 0 | M191: 0 | N191: 0 | O191: 3 | P191: 0 | Q191: 0 | R191: =SUM(K191:Q191) -> 5 | T191: 0 | U191: 0 | V191: 0 | W191: 0 | X191: 0 | Y191: 0 | Z191: 0 | AA191: =SUM(T191:Z191) -> 0 | AC191: =SUM(I191+R191+AA191) -> 80
A192: 16:15:00 | B192: 63 | C192: 5 | D192: 0 | E192: 0 | F192: 1 | G192: 0 | H192: 1 | I192: 70 | K192: 5 | L192: 0 | M192: 0 | N192: 0 | O192: 4 | P192: 0 | Q192: 0 | R192: 9 | T192: 0 | U192: 0 | V192: 0 | W192: 0 | X192: 0 | Y192: 0 | Z192: 0 | AA192: 0 | AC192: 79
A193: 16:30:00 | B193: 67 | C193: 5 | D193: 0 | E193: 0 | F193: 2 | G193: 0 | H193: 0 | I193: 74 | K193: 1 | L193: 0 | M193: 0 | N193: 0 | O193: 5 | P193: 0 | Q193: 0 | R193: 6 | T193: 0 | U193: 0 | V193: 0 | W193: 0 | X193: 0 | Y193: 0 | Z193: 0 | AA193: 0 | AC193: 80
A194: 16:45:00 | B194: 72 | C194: 4 | D194: 0 | E194: 0 | F194: 2 | G194: 0 | H194: 1 | I194: 79 | K194: 1 | L194: 0 | M194: 0 | N194: 0 | O194: 3 | P194: 0 | Q194: 0 | R194: 4 | T194: 0 | U194: 0 | V194: 0 | W194: 0 | X194: 0 | Y194: 0 | Z194: 0 | AA194: 0 | AC194: 83
A195: 1 Hr | B195: =SUM(B191:B194) -> 272 | C195: 18 | D195: 0 | E195: 0 | F195: 6 | G195: 0 | H195: 2 | I195: 298 | K195: =SUM(K191:K194) -> 9 | L195: 0 | M195: 0 | N195: 0 | O195: 15 | P195: 0 | Q195: 0 | R195: 24 | T195: =SUM(T191:T194) -> 0 | U195: 0 | V195: 0 | W195: 0 | X195: 0 | Y195: 0 | Z195: 0 | AA195: 0 | AC195: =SUM(AC191:AC194) -> 322
A196: 17:00:00 | B196: 77 | C196: 0 | D196: 0 | E196: 0 | F196: 1 | G196: 0 | H196: 0 | I196: =SUM(B196:H196) -> 78 | K196: 4 | L196: 1 | M196: 0 | N196: 0 | O196: 3 | P196: 0 | Q196: 0 | R196: =SUM(K196:Q196) -> 8 | T196: 0 | U196: 0 | V196: 0 | W196: 0 | X196: 0 | Y196: 0 | Z196: 0 | AA196: =SUM(T196:Z196) -> 0 | AC196: =SUM(I196+R196+AA196) -> 86
A197: 17:15:00 | B197: 71 | C197: 5 | D197: 1 | E197: 0 | F197: 2 | G197: 0 | H197: 0 | I197: 79 | K197: 5 | L197: 1 | M197: 0 | N197: 0 | O197: 5 | P197: 0 | Q197: 0 | R197: 11 | T197: 0 | U197: 0 | V197: 0 | W197: 0 | X197: 0 | Y197: 0 | Z197: 0 | AA197: 0 | AC197: 90
A198: 17:30:00 | B198: 70 | C198: 4 | D198: 0 | E198: 0 | F198: 1 | G198: 0 | H198: 0 | I198: 75 | K198: 2 | L198: 2 | M198: 0 | N198: 0 | O198: 2 | P198: 0 | Q198: 0 | R198: 6 | T198: 0 | U198: 0 | V198: 0 | W198: 0 | X198: 0 | Y198: 0 | Z198: 0 | AA198: 0 | AC198: 81
A199: 17:45:00 | B199: 65 | C199: 5 | D199: 0 | E199: 0 | F199: 1 | G199: 0 | H199: 0 | I199: 71 | K199: 3 | L199: 0 | M199: 0 | N199: 0 | O199: 2 | P199: 0 | Q199: 0 | R199: 5 | T199: 0 | U199: 0 | V199: 0 | W199: 0 | X199: 0 | Y199: 0 | Z199: 0 | AA199: 0 | AC199: 76
A200: 1 Hr | B200: =SUM(B196:B199) -> 283 | C200: 14 | D200: 1 | E200: 0 | F200: 5 | G200: 0 | H200: 0 | I200: 303 | K200: =SUM(K196:K199) -> 14 | L200: 4 | M200: 0 | N200: 0 | O200: 12 | P200: 0 | Q200: 0 | R200: 30 | T200: =SUM(T196:T199) -> 0 | U200: 0 | V200: 0 | W200: 0 | X200: 0 | Y200: 0 | Z200: 0 | AA200: 0 | AC200: =SUM(AC196:AC199) -> 333
A201: 18:00:00 | B201: 78 | C201: 5 | D201: 0 | E201: 0 | F201: 2 | G201: 0 | H201: 0 | I201: =SUM(B201:H201) -> 85 | K201: 0 | L201: 1 | M201: 0 | N201: 0 | O201: 4 | P201: 0 | Q201: 0 | R201: =SUM(K201:Q201) -> 5 | T201: 0 | U201: 0 | V201: 0 | W201: 0 | X201: 0 | Y201: 0 | Z201: 0 | AA201: =SUM(T201:Z201) -> 0 | AC201: =SUM(I201+R201+AA201) -> 90
A202: 18:15:00 | B202: 72 | C202: 8 | D202: 0 | E202: 0 | F202: 1 | G202: 1 | H202: 0 | I202: 82 | K202: 5 | L202: 1 | M202: 0 | N202: 0 | O202: 2 | P202: 0 | Q202: 0 | R202: 8 | T202: 0 | U202: 0 | V202: 0 | W202: 0 | X202: 0 | Y202: 0 | Z202: 0 | AA202: 0 | AC202: 90
A203: 18:30:00 | B203: 55 | C203: 2 | D203: 0 | E203: 0 | F203: 2 | G203: 0 | H203: 1 | I203: 60 | K203: 2 | L203: 0 | M203: 0 | N203: 0 | O203: 7 | P203: 0 | Q203: 0 | R203: 9 | T203: 0 | U203: 0 | V203: 0 | W203: 0 | X203: 0 | Y203: 0 | Z203: 0 | AA203: 0 | AC203: 69
A204: 18:45:00 | B204: 82 | C204: 2 | D204: 0 | E204: 0 | F204: 1 | G204: 0 | H204: 0 | I204: 85 | K204: 1 | L204: 0 | M204: 0 | N204: 0 | O204: 3 | P204: 0 | Q204: 0 | R204: 4 | T204: 0 | U204: 0 | V204: 0 | W204: 0 | X204: 0 | Y204: 0 | Z204: 0 | AA204: 0 | AC204: 89
A205: 1 Hr | B205: =SUM(B201:B204) -> 287 | C205: 17 | D205: 0 | E205: 0 | F205: 6 | G205: 1 | H205: 1 | I205: 312 | K205: =SUM(K201:K204) -> 8 | L205: 2 | M205: 0 | N205: 0 | O205: 16 | P205: 0 | Q205: 0 | R205: 26 | T205: =SUM(T201:T204) -> 0 | U205: 0 | V205: 0 | W205: 0 | X205: 0 | Y205: 0 | Z205: 0 | AA205: 0 | AC205: =SUM(AC201:AC204) -> 338
A207: Total | B207: =SUM(B205+B200+B195+B190+B185+B180+B175+B170+B165+B160+B155+B150) -> 2922 | C207: 252 | D207: 35 | E207: 5 | F207: 79 | G207: 10 | H207: 9 | I207: 3312 | K207: =SUM(K205+K200+K195+K190+K185+K180+K175+K170+K165+K160+K155+K150) -> 90 | L207: 20 | M207: 1 | N207: 0 | O207: 184 | P207: 0 | Q207: 0 | R207: 295 | T207: =SUM(T205+T200+T195+T190+T185+T180+T175+T170+T165+T160+T155+T150) -> 0 | U207: 0 | V207: 0 | W207: 0 | X207: 0 | Y207: 0 | Z207: 0 | AA207: 0 | AC207: =SUM(AC205+AC200+AC195+AC190+AC185+AC180+AC175+AC170+AC165+AC160+AC155+AC150) -> 3607
A209: ORIGIN SUMMARY
B210: Origin : | D210: Arm A | E210: A435 Alcester Road South(N) | I210: Total | K210: Origin : | M210: Arm B | N210: A435 Alcester Road South(S) | R210: Total | T210: Origin : | V210: Arm C | W210: Vicarage Road | AA210: Total | AC210: Origin
B211: =$B$10 -> Car | C211: =$C$10 -> LGV | D211: =$D$10 -> OGV1 | E211: =$E$10 -> OGV2 | F211: =$F$10 -> Bus/Coach | G211: =$G$10 -> MC | H211: =$H$10 -> PC | K211: =$B$10 -> Car | L211: =$C$10 -> LGV | M211: =$D$10 -> OGV1 | N211: =$E$10 -> OGV2 | O211: =$F$10 -> Bus/Coach | P211: =$G$10 -> MC | Q211: =$H$10 -> PC | T211: =$B$10 -> Car | U211: =$C$10 -> LGV | V211: =$D$10 -> OGV1 | W211: =$E$10 -> OGV2 | X211: =$F$10 -> Bus/Coach | Y211: =$G$10 -> MC | Z211: =$H$10 -> PC | AC211: Totals
A213: 07:00:00 | B213: =SUM(B12+K12+T12) -> 72 | C213: 9 | D213: 3 | E213: 6 | F213: 8 | G213: 0 | H213: 0 | I213: =SUM(B213:H213) -> 98 | K213: =SUM(B79+K79+T79) -> 107 | L213: 23 | M213: 2 | N213: 0 | O213: 9 | P213: 0 | Q213: 0 | R213: =SUM(K213:Q213) -> 141 | T213: =SUM(B146+K146+T146) -> 53 | U213: =SUM(C146+L146+U146) -> 4 | V213: 3 | W213: 0 | X213: 5 | Y213: 0 | Z213: 0 | AA213: =SUM(T213:Z213) -> 65 | AC213: =SUM(I213+R213+AA213) -> 304
... 124 more rows

Sheet Site 4
AC1: ='Project Details'!F9&" "&'Project Details'!F10 -> 4204-MID Birmingham City Counts 2021
AC2: ='Project Details'!R7 -> Junction Turning Count
AC3: ='Project Details'!F14 -> 25/05/2021
AC5: Site 4 - A435 Alcester Road South(N) / B4146 Addison Road / A435 Alcester Road South(S)
A8: Origin : | B8: Arm A | C8: A435 Alcester Road South(N)
B9: Destination : | D9: Arm A | E9: A435 Alcester Road South(N) | I9: Total | K9: Destination : | M9: Arm B | N9: B4146 Addison Road | R9: Total | T9: Destination : | V9: Arm C | W9: A435 Alcester Road South(S) | AA9: Total | AC9: Arm
B10: Car | C10: LGV | D10: OGV1 | E10: OGV2 | F10: Bus/Coach | G10: MC | H10: PC | K10: =$B$10 -> Car | L10: =$C$10 -> LGV | M10: =$D$10 -> OGV1 | N10: =$E$10 -> OGV2 | O10: =$F$10 -> Bus/Coach | P10: =$G$10 -> MC | Q10: =$H$10 -> PC | T10: =$B$10 -> Car | U10: =$C$10 -> LGV | V10: =$D$10 -> OGV1 | W10: =$E$10 -> OGV2 | X10: =$F$10 -> Bus/Coach | Y10: =$G$10 -> MC | Z10: =$H$10 -> PC | AC10: Totals
A12: 07:00:00 | B12: 0 | C12: 0 | D12: 0 | E12: 0 | F12: 0 | G12: 0 | H12: 0 | I12: =SUM(B12:H12) -> 0 | K12: 4 | L12: 2 | M12: 0 | N12: 1 | O12: 2 | P12: 0 | Q12: 0 | R12: =SUM(K12:Q12) -> 9 | T12: 50 | U12: 6 | V12: 2 | W12: 3 | X12: 8 | Y12: 0 | Z12: 0 | AA12: =SUM(T12:Z12) -> 69 | AC12: =SUM(I12+R12+AA12) -> 78
A13: 07:15:00 | B13: 0 | C13: 0 | D13: 0 | E13: 0 | F13: 0 | G13: 0 | H13: 0 | I13: 0 | K13: 1 | L13: 3 | M13: 0 | N13: 0 | O13: 2 | P13: 0 | Q13: 0 | R13: 6 | T13: 57 | U13: 12 | V13: 2 | W13: 5 | X13: 8 | Y13: 1 | Z13: 0 | AA13: 85 | AC13: 91
A14: 07:30:00 | B14: 0 | C14: 0 | D14: 0 | E14: 0 | F14: 0 | G14: 0 | H14: 0 | I14: 0 | K14: 8 | L14: 0 | M14: 0 | N14: 0 | O14: 3 | P14: 0 | Q14: 0 | R14: 11 | T14: 81 | U14: 6 | V14: 3 | W14: 1 | X14: 8 | Y14: 0 | Z14: 0 | AA14: 99 | AC14: 110
A15: 07:45:00 | B15: 0 | C15: 0 | D15: 0 | E15: 0 | F15: 0 | G15: 0 | H15: 0 | I15: 0 | K15: 6 | L15: 1 | M15: 0 | N15: 0 | O15: 2 | P15: 0 | Q15: 0 | R15: 9 | T15: 75 | U15: 9 | V15: 5 | W15: 0 | X15: 8 | Y15: 0 | Z15: 0 | AA15: 97 | AC15: 106
A16: 1 Hr | B16: =SUM(B12:B15) -> 0 | C16: 0 | D16: 0 | E16: 0 | F16: 0 | G16: 0 | H16: 0 | I16: 0 | K16: =SUM(K12:K15) -> 19 | L16: 6 | M16: 0 | N16: 1 | O16: 9 | P16: 0 | Q16: 0 | R16: 35 | T16: =SUM(T12:T15) -> 263 | U16: 33 | V16: 12 | W16: 9 | X16: 32 | Y16: 1 | Z16: 0 | AA16: 350 | AC16: =SUM(AC12:AC15) -> 385
A17: 08:00:00 | B17: 0 | C17: 0 | D17: 0 | E17: 0 | F17: 0 | G17: 0 | H17: 0 | I17: =SUM(B17:H17) -> 0 | K17: 22 | L17: 4 | M17: 0 | N17: 0 | O17: 0 | P17: 0 | Q17: 0 | R17: =SUM(K17:Q17) -> 26 | T17: 73 | U17: 15 | V17: 5 | W17: 0 | X17: 5 | Y17: 0 | Z17: 0 | AA17: =SUM(T17:Z17) -> 98 | AC17: =SUM(I17+R17+AA17) -> 124
A18: 08:15:00 | B18: 0 | C18: 0 | D18: 0 | E18: 0 | F18: 0 | G18: 0 | H18: 0 | I18: 0 | K18: 19 | L18: 0 | M18: 0 | N18: 0 | O18: 3 | P18: 0 | Q18: 0 | R18: 22 | T18: 66 | U18: 9 | V18: 2 | W18: 0 | X18: 6 | Y18: 0 | Z18: 3 | AA18: 86 | AC18: 108
A19: 08:30:00 | B19: 0 | C19: 0 | D19: 0 | E19: 0 | F19: 0 | G19: 0 | H19: 0 | I19: 0 | K19: 21 | L19: 1 | M19: 0 | N19: 0 | O19: 0 | P19: 0 | Q19: 0 | R19: 22 | T19: 62 | U19: 14 | V19: 2 | W19: 0 | X19: 6 | Y19: 0 | Z19: 1 | AA19: 85 | AC19: 107
A20: 08:45:00 | B20: 0 | C20: 0 | D20: 0 | E20: 0 | F20: 0 | G20: 0 | H20: 0 | I20: 0 | K20: 35 | L20: 1 | M20: 0 | N20: 0 | O20: 2 | P20: 0 | Q20: 0 | R20: 38 | T20: 77 | U20: 4 | V20: 2 | W20: 3 | X20: 10 | Y20: 0 | Z20: 0 | AA20: 96 | AC20: 134
A21: 1 Hr | B21: =SUM(B17:B20) -> 0 | C21: 0 | D21: 0 | E21: 0 | F21: 0 | G21: 0 | H21: 0 | I21: 0 | K21: =SUM(K17:K20) -> 97 | L21: 6 | M21: 0 | N21: 0 | O21: 5 | P21: 0 | Q21: 0 | R21: 108 | T21: =SUM(T17:T20) -> 278 | U21: 42 | V21: 11 | W21: 3 | X21: 27 | Y21: 0 | Z21: 4 | AA21: 365 | AC21: =SUM(AC17:AC20) -> 473
A22: 09:00:00 | B22: 0 | C22: 0 | D22: 0 | E22: 0 | F22: 0 | G22: 0 | H22: 0 | I22: =SUM(B22:H22) -> 0 | K22: 16 | L22: 2 | M22: 0 | N22: 0 | O22: 2 | P22: 0 | Q22: 0 | R22: =SUM(K22:Q22) -> 20 | T22: 70 | U22: 6 | V22: 1 | W22: 3 | X22: 9 | Y22: 1 | Z22: 0 | AA22: =SUM(T22:Z22) -> 90 | AC22: =SUM(I22+R22+AA22) -> 110
A23: 09:15:00 | B23: 0 | C23: 0 | D23: 0 | E23: 0 | F23: 0 | G23: 0 | H23: 0 | I23: 0 | K23: 9 | L23: 2 | M23: 0 | N23: 0 | O23: 1 | P23: 0 | Q23: 0 | R23: 12 | T23: 44 | U23: 4 | V23: 1 | W23: 1 | X23: 7 | Y23: 0 | Z23: 0 | AA23: 57 | AC23: 69
A24: 09:30:00 | B24: 0 | C24: 0 | D24: 0 | E24: 0 | F24: 0 | G24: 0 | H24: 0 | I24: 0 | K24: 8 | L24: 5 | M24: 1 | N24: 0 | O24: 3 | P24: 0 | Q24: 0 | R24: 17 | T24: 37 | U24: 11 | V24: 3 | W24: 2 | X24: 10 | Y24: 0 | Z24: 0 | AA24: 63 | AC24: 80
A25: 09:45:00 | B25: 0 | C25: 0 | D25: 0 | E25: 0 | F25: 0 | G25: 0 | H25: 0 | I25: 0 | K25: 18 | L25: 0 | M25: 0 | N25: 0 | O25: 6 | P25: 0 | Q25: 0 | R25: 24 | T25: 63 | U25: 12 | V25: 3 | W25: 1 | X25: 8 | Y25: 1 | Z25: 0 | AA25: 88 | AC25: 112
A26: 1 Hr | B26: =SUM(B22:B25) -> 0 | C26: 0 | D26: 0 | E26: 0 | F26: 0 | G26: 0 | H26: 0 | I26: 0 | K26: =SUM(K22:K25) -> 51 | L26: 9 | M26: 1 | N26: 0 | O26: 12 | P26: 0 | Q26: 0 | R26: 73 | T26: =SUM(T22:T25) -> 214 | U26: 33 | V26: 8 | W26: 7 | X26: 34 | Y26: 2 | Z26: 0 | AA26: 298 | AC26: =SUM(AC22:AC25) -> 371
A27: 10:00:00 | B27: 0 | C27: 0 | D27: 0 | E27: 0 | F27: 0 | G27: 0 | H27: 0 | I27: =SUM(B27:H27) -> 0 | K27: 12 | L27: 1 | M27: 1 | N27: 0 | O27: 2 | P27: 0 | Q27: 0 | R27: =SUM(K27:Q27) -> 16 | T27: 65 | U27: 11 | V27: 5 | W27: 2 | X27: 9 | Y27: 0 | Z27: 1 | AA27: =SUM(T27:Z27) -> 93 | AC27: =SUM(I27+R27+AA27) -> 109
A28: 10:15:00 | B28: 0 | C28: 0 | D28: 0 | E28: 0 | F28: 0 | G28: 0 | H28: 0 | I28: 0 | K28: 14 | L28: 1 | M28: 1 | N28: 0 | O28: 2 | P28: 0 | Q28: 0 | R28: 18 | T28: 54 | U28: 10 | V28: 1 | W28: 1 | X28: 5 | Y28: 1 | Z28: 0 | AA28: 72 | AC28: 90
A29: 10:30:00 | B29: 0 | C29: 0 | D29: 0 | E29: 0 | F29: 0 | G29: 0 | H29: 0 | I29: 0 | K29: 5 | L29: 5 | M29: 0 | N29: 0 | O29: 1 | P29: 0 | Q29: 0 | R29: 11 | T29: 47 | U29: 7 | V29: 5 | W29: 2 | X29: 7 | Y29: 0 | Z29: 0 | AA29: 68 | AC29: 79
A30: 10:45:00 | B30: 0 | C30: 0 | D30: 0 | E30: 0 | F30: 0 | G30: 0 | H30: 0 | I30: 0 | K30: 6 | L30: 5 | M30: 0 | N30: 0 | O30: 3 | P30: 0 | Q30: 0 | R30: 14 | T30: 57 | U30: 14 | V30: 1 | W30: 2 | X30: 5 | Y30: 0 | Z30: 0 | AA30: 79 | AC30: 93
A31: 1 Hr | B31: =SUM(B27:B30) -> 0 | C31: 0 | D31: 0 | E31: 0 | F31: 0 | G31: 0 | H31: 0 | I31: 0 | K31: =SUM(K27:K30) -> 37 | L31: 12 | M31: 2 | N31: 0 | O31: 8 | P31: 0 | Q31: 0 | R31: 59 | T31: =SUM(T27:T30) -> 223 | U31: 42 | V31: 12 | W31: 7 | X31: 26 | Y31: 1 | Z31: 1 | AA31: 312 | AC31: =SUM(AC27:AC30) -> 371
A32: 11:00:00 | B32: 0 | C32: 0 | D32: 0 | E32: 0 | F32: 0 | G32: 0 | H32: 0 | I32: =SUM(B32:H32) -> 0 | K32: 14 | L32: 1 | M32: 1 | N32: 0 | O32: 2 | P32: 0 | Q32: 0 | R32: =SUM(K32:Q32) -> 18 | T32: 62 | U32: 10 | V32: 3 | W32: 2 | X32: 6 | Y32: 0 | Z32: 0 | AA32: =SUM(T32:Z32) -> 83 | AC32: =SUM(I32+R32+AA32) -> 101
A33: 11:15:00 | B33: 0 | C33: 0 | D33: 0 | E33: 0 | F33: 0 | G33: 0 | H33: 0 | I33: 0 | K33: 19 | L33: 2 | M33: 0 | N33: 0 | O33: 1 | P33: 0 | Q33: 0 | R33: 22 | T33: 67 | U33: 7 | V33: 1 | W33: 2 | X33: 6 | Y33: 0 | Z33: 1 | AA33: 84 | AC33: 106
A34: 11:30:00 | B34: 0 | C34: 0 | D34: 0 | E34: 0 | F34: 0 | G34: 0 | H34: 0 | I34: 0 | K34: 18 | L34: 3 | M34: 0 | N34: 0 | O34: 3 | P34: 0 | Q34: 0 | R34: 24 | T34: 43 | U34: 10 | V34: 3 | W34: 1 | X34: 8 | Y34: 0 | Z34: 1 | AA34: 66 | AC34: 90
A35: 11:45:00 | B35: 0 | C35: 0 | D35: 0 | E35: 0 | F35: 0 | G35: 0 | H35: 0 | I35: 0 | K35: 16 | L35: 1 | M35: 0 | N35: 0 | O35: 0 | P35: 0 | Q35: 0 | R35: 17 | T35: 59 | U35: 13 | V35: 2 | W35: 0 | X35: 6 | Y35: 0 | Z35: 0 | AA35: 80 | AC35: 97
A36: 1 Hr | B36: =SUM(B32:B35) -> 0 | C36: 0 | D36: 0 | E36: 0 | F36: 0 | G36: 0 | H36: 0 | I36: 0 | K36: =SUM(K32:K35) -> 67 | L36: 7 | M36: 1 | N36: 0 | O36: 6 | P36: 0 | Q36: 0 | R36: 81 | T36: =SUM(T32:T35) -> 231 | U36: 40 | V36: 9 | W36: 5 | X36: 26 | Y36: 0 | Z36: 2 | AA36: 313 | AC36: =SUM(AC32:AC35) -> 394
A37: 12:00:00 | B37: 0 | C37: 0 | D37: 0 | E37: 0 | F37: 0 | G37: 0 | H37: 0 | I37: =SUM(B37:H37) -> 0 | K37: 13 | L37: 0 | M37: 0 | N37: 0 | O37: 5 | P37: 0 | Q37: 0 | R37: =SUM(K37:Q37) -> 18 | T37: 74 | U37: 1 | V37: 1 | W37: 0 | X37: 7 | Y37: 1 | Z37: 0 | AA37: =SUM(T37:Z37) -> 84 | AC37: =SUM(I37+R37+AA37) -> 102
A38: 12:15:00 | B38: 0 | C38: 0 | D38: 0 | E38: 0 | F38: 0 | G38: 0 | H38: 0 | I38: 0 | K38: 12 | L38: 3 | M38: 0 | N38: 0 | O38: 0 | P38: 0 | Q38: 0 | R38: 15 | T38: 75 | U38: 2 | V38: 1 | W38: 1 | X38: 4 | Y38: 0 | Z38: 0 | AA38: 83 | AC38: 98
A39: 12:30:00 | B39: 0 | C39: 0 | D39: 0 | E39: 0 | F39: 0 | G39: 0 | H39: 0 | I39: 0 | K39: 5 | L39: 3 | M39: 0 | N39: 0 | O39: 3 | P39: 0 | Q39: 0 | R39: 11 | T39: 65 | U39: 5 | V39: 2 | W39: 1 | X39: 8 | Y39: 0 | Z39: 1 | AA39: 82 | AC39: 93
A40: 12:45:00 | B40: 0 | C40: 0 | D40: 0 | E40: 0 | F40: 0 | G40: 0 | H40: 0 | I40: 0 | K40: 6 | L40: 3 | M40: 0 | N40: 0 | O40: 1 | P40: 0 | Q40: 0 | R40: 10 | T40: 76 | U40: 9 | V40: 3 | W40: 1 | X40: 8 | Y40: 1 | Z40: 0 | AA40: 98 | AC40: 108
A41: 1 Hr | B41: =SUM(B37:B40) -> 0 | C41: 0 | D41: 0 | E41: 0 | F41: 0 | G41: 0 | H41: 0 | I41: 0 | K41: =SUM(K37:K40) -> 36 | L41: 9 | M41: 0 | N41: 0 | O41: 9 | P41: 0 | Q41: 0 | R41: 54 | T41: =SUM(T37:T40) -> 290 | U41: 17 | V41: 7 | W41: 3 | X41: 27 | Y41: 2 | Z41: 1 | AA41: 347 | AC41: =SUM(AC37:AC40) -> 401
A42: 13:00:00 | B42: 0 | C42: 0 | D42: 0 | E42: 0 | F42: 0 | G42: 0 | H42: 0 | I42: =SUM(B42:H42) -> 0 | K42: 14 | L42: 2 | M42: 0 | N42: 0 | O42: 2 | P42: 0 | Q42: 0 | R42: =SUM(K42:Q42) -> 18 | T42: 71 | U42: 5 | V42: 3 | W42: 0 | X42: 8 | Y42: 0 | Z42: 0 | AA42: =SUM(T42:Z42) -> 87 | AC42: =SUM(I42+R42+AA42) -> 105
A43: 13:15:00 | B43: 0 | C43: 0 | D43: 0 | E43: 0 | F43: 0 | G43: 0 | H43: 0 | I43: 0 | K43: 15 | L43: 2 | M43: 0 | N43: 0 | O43: 3 | P43: 0 | Q43: 0 | R43: 20 | T43: 77 | U43: 3 | V43: 2 | W43: 2 | X43: 4 | Y43: 1 | Z43: 1 | AA43: 90 | AC43: 110
A44: 13:30:00 | B44: 0 | C44: 0 | D44: 0 | E44: 0 | F44: 0 | G44: 0 | H44: 0 | I44: 0 | K44: 24 | L44: 0 | M44: 0 | N44: 0 | O44: 4 | P44: 0 | Q44: 0 | R44: 28 | T44: 78 | U44: 6 | V44: 1 | W44: 0 | X44: 8 | Y44: 0 | Z44: 3 | AA44: 96 | AC44: 124
A45: 13:45:00 | B45: 0 | C45: 0 | D45: 0 | E45: 0 | F45: 0 | G45: 0 | H45: 0 | I45: 0 | K45: 12 | L45: 2 | M45: 0 | N45: 0 | O45: 3 | P45: 0 | Q45: 0 | R45: 17 | T45: 68 | U45: 6 | V45: 0 | W45: 1 | X45: 8 | Y45: 0 | Z45: 2 | AA45: 85 | AC45: 102
A46: 1 Hr | B46: =SUM(B42:B45) -> 0 | C46: 0 | D46: 0 | E46: 0 | F46: 0 | G46: 0 | H46: 0 | I46: 0 | K46: =SUM(K42:K45) -> 65 | L46: 6 | M46: 0 | N46: 0 | O46: 12 | P46: 0 | Q46: 0 | R46: 83 | T46: =SUM(T42:T45) -> 294 | U46: 20 | V46: 6 | W46: 3 | X46: 28 | Y46: 1 | Z46: 6 | AA46: 358 | AC46: =SUM(AC42:AC45) -> 441
A47: 14:00:00 | B47: 0 | C47: 0 | D47: 0 | E47: 0 | F47: 0 | G47: 0 | H47: 0 | I47: =SUM(B47:H47) -> 0 | K47: 18 | L47: 2 | M47: 3 | N47: 0 | O47: 2 | P47: 0 | Q47: 0 | R47: =SUM(K47:Q47) -> 25 | T47: 81 | U47: 3 | V47: 1 | W47: 0 | X47: 5 | Y47: 1 | Z47: 1 | AA47: =SUM(T47:Z47) -> 92 | AC47: =SUM(I47+R47+AA47) -> 117
A48: 14:15:00 | B48: 0 | C48: 0 | D48: 0 | E48: 0 | F48: 0 | G48: 0 | H48: 0 | I48: 0 | K48: 23 | L48: 1 | M48: 0 | N48: 0 | O48: 1 | P48: 0 | Q48: 0 | R48: 25 | T48: 87 | U48: 11 | V48: 0 | W48: 1 | X48: 6 | Y48: 1 | Z48: 1 | AA48: 107 | AC48: 132
A49: 14:30:00 | B49: 0 | C49: 0 | D49: 0 | E49: 0 | F49: 0 | G49: 0 | H49: 0 | I49: 0 | K49: 26 | L49: 3 | M49: 0 | N49: 0 | O49: 3 | P49: 0 | Q49: 0 | R49: 32 | T49: 74 | U49: 10 | V49: 0 | W49: 1 | X49: 6 | Y49: 1 | Z49: 1 | AA49: 93 | AC49: 125
A50: 14:45:00 | B50: 0 | C50: 0 | D50: 0 | E50: 0 | F50: 0 | G50: 0 | H50: 0 | I50: 0 | K50: 30 | L50: 4 | M50: 0 | N50: 0 | O50: 2 | P50: 0 | Q50: 0 | R50: 36 | T50: 69 | U50: 7 | V50: 0 | W50: 0 | X50: 8 | Y50: 0 | Z50: 0 | AA50: 84 | AC50: 120
A51: 1 Hr | B51: =SUM(B47:B50) -> 0 | C51: 0 | D51: 0 | E51: 0 | F51: 0 | G51: 0 | H51: 0 | I51: 0 | K51: =SUM(K47:K50) -> 97 | L51: 10 | M51: 3 | N51: 0 | O51: 8 | P51: 0 | Q51: 0 | R51: 118 | T51: =SUM(T47:T50) -> 311 | U51: 31 | V51: 1 | W51: 2 | X51: 25 | Y51: 3 | Z51: 3 | AA51: 376 | AC51: =SUM(AC47:AC50) -> 494
A52: 15:00:00 | B52: 0 | C52: 0 | D52: 0 | E52: 0 | F52: 0 | G52: 0 | H52: 0 | I52: =SUM(B52:H52) -> 0 | K52: 26 | L52: 0 | M52: 1 | N52: 0 | O52: 4 | P52: 0 | Q52: 0 | R52: =SUM(K52:Q52) -> 31 | T52: 78 | U52: 2 | V52: 2 | W52: 0 | X52: 6 | Y52: 0 | Z52: 0 | AA52: =SUM(T52:Z52) -> 88 | AC52: =SUM(I52+R52+AA52) -> 119
A53: 15:15:00 | B53: 0 | C53: 0 | D53: 0 | E53: 0 | F53: 0 | G53: 0 | H53: 0 | I53: 0 | K53: 26 | L53: 3 | M53: 0 | N53: 0 | O53: 2 | P53: 0 | Q53: 0 | R53: 31 | T53: 100 | U53: 10 | V53: 2 | W53: 0 | X53: 4 | Y53: 0 | Z53: 0 | AA53: 116 | AC53: 147
A54: 15:30:00 | B54: 0 | C54: 0 | D54: 0 | E54: 0 | F54: 0 | G54: 0 | H54: 0 | I54: 0 | K54: 6 | L54: 3 | M54: 0 | N54: 0 | O54: 0 | P54: 0 | Q54: 0 | R54: 9 | T54: 68 | U54: 10 | V54: 1 | W54: 0 | X54: 8 | Y54: 0 | Z54: 2 | AA54: 89 | AC54: 98
A55: 15:45:00 | B55: 0 | C55: 0 | D55: 0 | E55: 0 | F55: 0 | G55: 0 | H55: 0 | I55: 0 | K55: 18 | L55: 0 | M55: 0 | N55: 0 | O55: 4 | P55: 0 | Q55: 0 | R55: 22 | T55: 78 | U55: 3 | V55: 1 | W55: 1 | X55: 3 | Y55: 2 | Z55: 2 | AA55: 90 | AC55: 112
A56: 1 Hr | B56: =SUM(B52:B55) -> 0 | C56: 0 | D56: 0 | E56: 0 | F56: 0 | G56: 0 | H56: 0 | I56: 0 | K56: =SUM(K52:K55) -> 76 | L56: 6 | M56: 1 | N56: 0 | O56: 10 | P56: 0 | Q56: 0 | R56: 93 | T56: =SUM(T52:T55) -> 324 | U56: 25 | V56: 6 | W56: 1 | X56: 21 | Y56: 2 | Z56: 4 | AA56: 383 | AC56: =SUM(AC52:AC55) -> 476
A57: 16:00:00 | B57: 0 | C57: 0 | D57: 0 | E57: 0 | F57: 0 | G57: 0 | H57: 0 | I57: =SUM(B57:H57) -> 0 | K57: 17 | L57: 1 | M57: 0 | N57: 0 | O57: 2 | P57: 0 | Q57: 0 | R57: =SUM(K57:Q57) -> 20 | T57: 82 | U57: 11 | V57: 0 | W57: 2 | X57: 8 | Y57: 1 | Z57: 0 | AA57: =SUM(T57:Z57) -> 104 | AC57: =SUM(I57+R57+AA57) -> 124
A58: 16:15:00 | B58: 0 | C58: 0 | D58: 0 | E58: 0 | F58: 0 | G58: 0 | H58: 0 | I58: 0 | K58: 17 | L58: 0 | M58: 0 | N58: 0 | O58: 3 | P58: 0 | Q58: 0 | R58: 20 | T58: 90 | U58: 8 | V58: 0 | W58: 0 | X58: 6 | Y58: 0 | Z58: 2 | AA58: 106 | AC58: 126
A59: 16:30:00 | B59: 0 | C59: 0 | D59: 0 | E59: 0 | F59: 0 | G59: 0 | H59: 0 | I59: 0 | K59: 13 | L59: 5 | M59: 0 | N59: 0 | O59: 3 | P59: 0 | Q59: 0 | R59: 21 | T59: 85 | U59: 7 | V59: 1 | W59: 0 | X59: 7 | Y59: 0 | Z59: 0 | AA59: 100 | AC59: 121
A60: 16:45:00 | B60: 0 | C60: 0 | D60: 0 | E60: 0 | F60: 0 | G60: 0 | H60: 0 | I60: 0 | K60: 13 | L60: 0 | M60: 0 | N60: 0 | O60: 1 | P60: 0 | Q60: 0 | R60: 14 | T60: 86 | U60: 7 | V60: 0 | W60: 0 | X60: 5 | Y60: 0 | Z60: 3 | AA60: 101 | AC60: 115
A61: 1 Hr | B61: =SUM(B57:B60) -> 0 | C61: 0 | D61: 0 | E61: 0 | F61: 0 | G61: 0 | H61: 0 | I61: 0 | K61: =SUM(K57:K60) -> 60 | L61: 6 | M61: 0 | N61: 0 | O61: 9 | P61: 0 | Q61: 0 | R61: 75 | T61: =SUM(T57:T60) -> 343 | U61: 33 | V61: 1 | W61: 2 | X61: 26 | Y61: 1 | Z61: 5 | AA61: 411 | AC61: =SUM(AC57:AC60) -> 486
A62: 17:00:00 | B62: 0 | C62: 0 | D62: 0 | E62: 0 | F62: 0 | G62: 0 | H62: 0 | I62: =SUM(B62:H62) -> 0 | K62: 14 | L62: 1 | M62: 0 | N62: 0 | O62: 0 | P62: 0 | Q62: 0 | R62: =SUM(K62:Q62) -> 15 | T62: 101 | U62: 10 | V62: 2 | W62: 0 | X62: 9 | Y62: 0 | Z62: 1 | AA62: =SUM(T62:Z62) -> 123 | AC62: =SUM(I62+R62+AA62) -> 138
A63: 17:15:00 | B63: 0 | C63: 0 | D63: 0 | E63: 0 | F63: 0 | G63: 0 | H63: 0 | I63: 0 | K63: 17 | L63: 2 | M63: 0 | N63: 0 | O63: 4 | P63: 0 | Q63: 0 | R63: 23 | T63: 103 | U63: 8 | V63: 0 | W63: 0 | X63: 4 | Y63: 0 | Z63: 2 | AA63: 117 | AC63: 140
A64: 17:30:00 | B64: 0 | C64: 0 | D64: 0 | E64: 0 | F64: 0 | G64: 0 | H64: 0 | I64: 0 | K64: 14 | L64: 3 | M64: 0 | N64: 0 | O64: 2 | P64: 0 | Q64: 0 | R64: 19 | T64: 93 | U64: 8 | V64: 1 | W64: 0 | X64: 7 | Y64: 0 | Z64: 0 | AA64: 109 | AC64: 128
A65: 17:45:00 | B65: 0 | C65: 0 | D65: 0 | E65: 0 | F65: 0 | G65: 0 | H65: 0 | I65: 0 | K65: 13 | L65: 0 | M65: 0 | N65: 0 | O65: 1 | P65: 0 | Q65: 0 | R65: 14 | T65: 92 | U65: 5 | V65: 0 | W65: 0 | X65: 7 | Y65: 1 | Z65: 2 | AA65: 107 | AC65: 121
A66: 1 Hr | B66: =SUM(B62:B65) -> 0 | C66: 0 | D66: 0 | E66: 0 | F66: 0 | G66: 0 | H66: 0 | I66: 0 | K66: =SUM(K62:K65) -> 58 | L66: 6 | M66: 0 | N66: 0 | O66: 7 | P66: 0 | Q66: 0 | R66: 71 | T66: =SUM(T62:T65) -> 389 | U66: 31 | V66: 3 | W66: 0 | X66: 27 | Y66: 1 | Z66: 5 | AA66: 456 | AC66: =SUM(AC62:AC65) -> 527
A67: 18:00:00 | B67: 0 | C67: 0 | D67: 0 | E67: 0 | F67: 0 | G67: 0 | H67: 0 | I67: =SUM(B67:H67) -> 0 | K67: 5 | L67: 1 | M67: 0 | N67: 0 | O67: 1 | P67: 0 | Q67: 0 | R67: =SUM(K67:Q67) -> 7 | T67: 104 | U67: 5 | V67: 2 | W67: 0 | X67: 9 | Y67: 1 | Z67: 5 | AA67: =SUM(T67:Z67) -> 126 | AC67: =SUM(I67+R67+AA67) -> 133
A68: 18:15:00 | B68: 0 | C68: 0 | D68: 0 | E68: 0 | F68: 0 | G68: 0 | H68: 0 | I68: 0 | K68: 15 | L68: 0 | M68: 0 | N68: 0 | O68: 1 | P68: 0 | Q68: 0 | R68: 16 | T68: 108 | U68: 10 | V68: 0 | W68: 0 | X68: 6 | Y68: 0 | Z68: 0 | AA68: 124 | AC68: 140
A69: 18:30:00 | B69: 0 | C69: 0 | D69: 0 | E69: 0 | F69: 0 | G69: 0 | H69: 0 | I69: 0 | K69: 7 | L69: 0 | M69: 0 | N69: 0 | O69: 4 | P69: 0 | Q69: 0 | R69: 11 | T69: 89 | U69: 7 | V69: 1 | W69: 1 | X69: 8 | Y69: 0 | Z69: 2 | AA69: 108 | AC69: 119
A70: 18:45:00 | B70: 0 | C70: 0 | D70: 0 | E70: 0 | F70: 0 | G70: 0 | H70: 0 | I70: 0 | K70: 8 | L70: 3 | M70: 0 | N70: 0 | O70: 0 | P70: 0 | Q70: 0 | R70: 11 | T70: 89 | U70: 4 | V70: 1 | W70: 0 | X70: 6 | Y70: 1 | Z70: 2 | AA70: 103 | AC70: 114
A71: 1 Hr | B71: =SUM(B67:B70) -> 0 | C71: 0 | D71: 0 | E71: 0 | F71: 0 | G71: 0 | H71: 0 | I71: 0 | K71: =SUM(K67:K70) -> 35 | L71: 4 | M71: 0 | N71: 0 | O71: 6 | P71: 0 | Q71: 0 | R71: 45 | T71: =SUM(T67:T70) -> 390 | U71: 26 | V71: 4 | W71: 1 | X71: 29 | Y71: 2 | Z71: 9 | AA71: 461 | AC71: =SUM(AC67:AC70) -> 506
A73: Total | B73: =SUM(B71+B66+B61+B56+B51+B46+B41+B36+B31+B26+B21+B16) -> 0 | C73: 0 | D73: 0 | E73: 0 | F73: 0 | G73: 0 | H73: 0 | I73: 0 | K73: =SUM(K71+K66+K61+K56+K51+K46+K41+K36+K31+K26+K21+K16) -> 698 | L73: 87 | M73: 8 | N73: 1 | O73: 101 | P73: 0 | Q73: 0 | R73: 895 | T73: =SUM(T71+T66+T61+T56+T51+T46+T41+T36+T31+T26+T21+T16) -> 3550 | U73: 373 | V73: 80 | W73: 43 | X73: 328 | Y73: 16 | Z73: 40 | AA73: 4430 | AC73: =SUM(AC71+AC66+AC61+AC56+AC51+AC46+AC41+AC36+AC31+AC26+AC21+AC16) -> 5325
A75: Origin : | B75: Arm B | C75: B4146 Addison Road
B76: Destination : | D76: Arm A | E76: A435 Alcester Road South(N) | I76: Total | K76: Destination : | M76: Arm B | N76: B4146 Addison Road | R76: Total | T76: Destination : | V76: Arm C | W76: A435 Alcester Road South(S) | AA76: Total | AC76: Arm
B77: =$B$10 -> Car | C77: =$C$10 -> LGV | D77: =$D$10 -> OGV1 | E77: =$E$10 -> OGV2 | F77: =$F$10 -> Bus/Coach | G77: =$G$10 -> MC | H77: =$H$10 -> PC | K77: =$B$10 -> Car | L77: =$C$10 -> LGV | M77: =$D$10 -> OGV1 | N77: =$E$10 -> OGV2 | O77: =$F$10 -> Bus/Coach | P77: =$G$10 -> MC | Q77: =$H$10 -> PC | T77: =$B$10 -> Car | U77: =$C$10 -> LGV | V77: =$D$10 -> OGV1 | W77: =$E$10 -> OGV2 | X77: =$F$10 -> Bus/Coach | Y77: =$G$10 -> MC | Z77: =$H$10 -> PC | AC77: Totals
A79: 07:00:00 | B79: 5 | C79: 1 | D79: 0 | E79: 0 | F79: 2 | G79: 0 | H79: 0 | I79: =SUM(B79:H79) -> 8 | K79: 0 | L79: 0 | M79: 0 | N79: 0 | O79: 0 | P79: 0 | Q79: 0 | R79: =SUM(K79:Q79) -> 0 | T79: 4 | U79: 3 | V79: 0 | W79: 0 | X79: 0 | Y79: 0 | Z79: 0 | AA79: =SUM(T79:Z79) -> 7 | AC79: =SUM(I79+R79+AA79) -> 15
A80: 07:15:00 | B80: 1 | C80: 0 | D80: 0 | E80: 0 | F80: 2 | G80: 0 | H80: 0 | I80: 3 | K80: 0 | L80: 0 | M80: 0 | N80: 0 | O80: 0 | P80: 0 | Q80: 0 | R80: 0 | T80: 5 | U80: 1 | V80: 0 | W80: 0 | X80: 0 | Y80: 0 | Z80: 0 | AA80: 6 | AC80: 9
A81: 07:30:00 | B81: 3 | C81: 1 | D81: 0 | E81: 0 | F81: 4 | G81: 0 | H81: 0 | I81: 8 | K81: 0 | L81: 0 | M81: 0 | N81: 0 | O81: 0 | P81: 0 | Q81: 0 | R81: 0 | T81: 18 | U81: 1 | V81: 0 | W81: 0 | X81: 2 | Y81: 0 | Z81: 0 | AA81: 21 | AC81: 29
A82: 07:45:00 | B82: 4 | C82: 0 | D82: 0 | E82: 0 | F82: 3 | G82: 0 | H82: 0 | I82: 7 | K82: 0 | L82: 0 | M82: 0 | N82: 0 | O82: 0 | P82: 0 | Q82: 0 | R82: 0 | T82: 8 | U82: 1 | V82: 0 | W82: 0 | X82: 0 | Y82: 0 | Z82: 0 | AA82: 9 | AC82: 16
A83: 1 Hr | B83: =SUM(B79:B82) -> 13 | C83: 2 | D83: 0 | E83: 0 | F83: 11 | G83: 0 | H83: 0 | I83: 26 | K83: =SUM(K79:K82) -> 0 | L83: 0 | M83: 0 | N83: 0 | O83: 0 | P83: 0 | Q83: 0 | R83: 0 | T83: =SUM(T79:T82) -> 35 | U83: 6 | V83: 0 | W83: 0 | X83: 2 | Y83: 0 | Z83: 0 | AA83: 43 | AC83: =SUM(AC79:AC82) -> 69
A84: 08:00:00 | B84: 5 | C84: 0 | D84: 0 | E84: 0 | F84: 3 | G84: 0 | H84: 0 | I84: =SUM(B84:H84) -> 8 | K84: 0 | L84: 0 | M84: 0 | N84: 0 | O84: 0 | P84: 0 | Q84: 0 | R84: =SUM(K84:Q84) -> 0 | T84: 26 | U84: 3 | V84: 0 | W84: 0 | X84: 0 | Y84: 0 | Z84: 0 | AA84: =SUM(T84:Z84) -> 29 | AC84: =SUM(I84+R84+AA84) -> 37
A85: 08:15:00 | B85: 12 | C85: 2 | D85: 0 | E85: 0 | F85: 1 | G85: 0 | H85: 0 | I85: 15 | K85: 0 | L85: 0 | M85: 0 | N85: 0 | O85: 0 | P85: 0 | Q85: 0 | R85: 0 | T85: 51 | U85: 2 | V85: 0 | W85: 0 | X85: 0 | Y85: 0 | Z85: 0 | AA85: 53 | AC85: 68
A86: 08:30:00 | B86: 8 | C86: 0 | D86: 0 | E86: 0 | F86: 3 | G86: 0 | H86: 0 | I86: 11 | K86: 0 | L86: 0 | M86: 0 | N86: 0 | O86: 0 | P86: 0 | Q86: 0 | R86: 0 | T86: 45 | U86: 4 | V86: 0 | W86: 1 | X86: 0 | Y86: 0 | Z86: 1 | AA86: 51 | AC86: 62
A87: 08:45:00 | B87: 4 | C87: 0 | D87: 0 | E87: 0 | F87: 3 | G87: 0 | H87: 0 | I87: 7 | K87: 0 | L87: 0 | M87: 0 | N87: 0 | O87: 0 | P87: 0 | Q87: 0 | R87: 0 | T87: 23 | U87: 4 | V87: 0 | W87: 0 | X87: 0 | Y87: 0 | Z87: 0 | AA87: 27 | AC87: 34
A88: 1 Hr | B88: =SUM(B84:B87) -> 29 | C88: 2 | D88: 0 | E88: 0 | F88: 10 | G88: 0 | H88: 0 | I88: 41 | K88: =SUM(K84:K87) -> 0 | L88: 0 | M88: 0 | N88: 0 | O88: 0 | P88: 0 | Q88: 0 | R88: 0 | T88: =SUM(T84:T87) -> 145 | U88: 13 | V88: 0 | W88: 1 | X88: 0 | Y88: 0 | Z88: 1 | AA88: 160 | AC88: =SUM(AC84:AC87) -> 201
A89: 09:00:00 | B89: 0 | C89: 1 | D89: 0 | E89: 0 | F89: 2 | G89: 0 | H89: 0 | I89: =SUM(B89:H89) -> 3 | K89: 0 | L89: 0 | M89: 0 | N89: 0 | O89: 0 | P89: 0 | Q89: 0 | R89: =SUM(K89:Q89) -> 0 | T89: 19 | U89: 4 | V89: 0 | W89: 0 | X89: 0 | Y89: 0 | Z89: 0 | AA89: =SUM(T89:Z89) -> 23 | AC89: =SUM(I89+R89+AA89) -> 26
A90: 09:15:00 | B90: 5 | C90: 1 | D90: 0 | E90: 0 | F90: 4 | G90: 0 | H90: 0 | I90: 10 | K90: 0 | L90: 0 | M90: 0 | N90: 0 | O90: 0 | P90: 0 | Q90: 0 | R90: 0 | T90: 13 | U90: 1 | V90: 0 | W90: 0 | X90: 1 | Y90: 0 | Z90: 0 | AA90: 15 | AC90: 25
A91: 09:30:00 | B91: 0 | C91: 0 | D91: 0 | E91: 0 | F91: 2 | G91: 0 | H91: 0 | I91: 2 | K91: 0 | L91: 0 | M91: 0 | N91: 0 | O91: 0 | P91: 0 | Q91: 0 | R91: 0 | T91: 14 | U91: 1 | V91: 0 | W91: 0 | X91: 0 | Y91: 0 | Z91: 0 | AA91: 15 | AC91: 17
A92: 09:45:00 | B92: 2 | C92: 0 | D92: 0 | E92: 0 | F92: 0 | G92: 0 | H92: 0 | I92: 2 | K92: 0 | L92: 0 | M92: 0 | N92: 0 | O92: 0 | P92: 0 | Q92: 0 | R92: 0 | T92: 9 | U92: 1 | V92: 0 | W92: 0 | X92: 0 | Y92: 0 | Z92: 0 | AA92: 10 | AC92: 12
A93: 1 Hr | B93: =SUM(B89:B92) -> 7 | C93: 2 | D93: 0 | E93: 0 | F93: 8 | G93: 0 | H93: 0 | I93: 17 | K93: =SUM(K89:K92) -> 0 | L93: 0 | M93: 0 | N93: 0 | O93: 0 | P93: 0 | Q93: 0 | R93: 0 | T93: =SUM(T89:T92) -> 55 | U93: 7 | V93: 0 | W93: 0 | X93: 1 | Y93: 0 | Z93: 0 | AA93: 63 | AC93: =SUM(AC89:AC92) -> 80
A94: 10:00:00 | B94: 1 | C94: 2 | D94: 0 | E94: 0 | F94: 4 | G94: 0 | H94: 0 | I94: =SUM(B94:H94) -> 7 | K94: 0 | L94: 0 | M94: 0 | N94: 0 | O94: 0 | P94: 0 | Q94: 0 | R94: =SUM(K94:Q94) -> 0 | T94: 18 | U94: 2 | V94: 1 | W94: 0 | X94: 0 | Y94: 0 | Z94: 0 | AA94: =SUM(T94:Z94) -> 21 | AC94: =SUM(I94+R94+AA94) -> 28
A95: 10:15:00 | B95: 3 | C95: 1 | D95: 0 | E95: 0 | F95: 3 | G95: 0 | H95: 0 | I95: 7 | K95: 0 | L95: 0 | M95: 0 | N95: 0 | O95: 0 | P95: 0 | Q95: 0 | R95: 0 | T95: 15 | U95: 1 | V95: 0 | W95: 0 | X95: 0 | Y95: 0 | Z95: 0 | AA95: 16 | AC95: 23
A96: 10:30:00 | B96: 2 | C96: 1 | D96: 0 | E96: 0 | F96: 2 | G96: 0 | H96: 0 | I96: 5 | K96: 0 | L96: 0 | M96: 0 | N96: 0 | O96: 0 | P96: 0 | Q96: 0 | R96: 0 | T96: 16 | U96: 2 | V96: 0 | W96: 0 | X96: 0 | Y96: 0 | Z96: 0 | AA96: 18 | AC96: 23
A97: 10:45:00 | B97: 3 | C97: 0 | D97: 0 | E97: 0 | F97: 2 | G97: 0 | H97: 0 | I97: 5 | K97: 0 | L97: 0 | M97: 0 | N97: 0 | O97: 0 | P97: 0 | Q97: 0 | R97: 0 | T97: 19 | U97: 1 | V97: 1 | W97: 0 | X97: 0 | Y97: 0 | Z97: 0 | AA97: 21 | AC97: 26
A98: 1 Hr | B98: =SUM(B94:B97) -> 9 | C98: 4 | D98: 0 | E98: 0 | F98: 11 | G98: 0 | H98: 0 | I98: 24 | K98: =SUM(K94:K97) -> 0 | L98: 0 | M98: 0 | N98: 0 | O98: 0 | P98: 0 | Q98: 0 | R98: 0 | T98: =SUM(T94:T97) -> 68 | U98: 6 | V98: 2 | W98: 0 | X98: 0 | Y98: 0 | Z98: 0 | AA98: 76 | AC98: =SUM(AC94:AC97) -> 100
A99: 11:00:00 | B99: 1 | C99: 0 | D99: 0 | E99: 0 | F99: 2 | G99: 0 | H99: 0 | I99: =SUM(B99:H99) -> 3 | K99: 0 | L99: 0 | M99: 0 | N99: 0 | O99: 0 | P99: 0 | Q99: 0 | R99: =SUM(K99:Q99) -> 0 | T99: 14 | U99: 5 | V99: 0 | W99: 0 | X99: 0 | Y99: 0 | Z99: 0 | AA99: =SUM(T99:Z99) -> 19 | AC99: =SUM(I99+R99+AA99) -> 22
A100: 11:15:00 | B100: 6 | C100: 0 | D100: 0 | E100: 0 | F100: 1 | G100: 0 | H100: 0 | I100: 7 | K100: 0 | L100: 0 | M100: 0 | N100: 0 | O100: 0 | P100: 0 | Q100: 0 | R100: 0 | T100: 13 | U100: 6 | V100: 0 | W100: 0 | X100: 0 | Y100: 0 | Z100: 0 | AA100: 19 | AC100: 26
A101: 11:30:00 | B101: 4 | C101: 0 | D101: 0 | E101: 0 | F101: 2 | G101: 0 | H101: 0 | I101: 6 | K101: 0 | L101: 0 | M101: 0 | N101: 0 | O101: 0 | P101: 0 | Q101: 0 | R101: 0 | T101: 14 | U101: 3 | V101: 0 | W101: 0 | X101: 0 | Y101: 0 | Z101: 0 | AA101: 17 | AC101: 23
A102: 11:45:00 | B102: 4 | C102: 1 | D102: 0 | E102: 0 | F102: 1 | G102: 0 | H102: 0 | I102: 6 | K102: 0 | L102: 0 | M102: 0 | N102: 0 | O102: 0 | P102: 0 | Q102: 0 | R102: 0 | T102: 24 | U102: 4 | V102: 1 | W102: 0 | X102: 0 | Y102: 1 | Z102: 0 | AA102: 30 | AC102: 36
A103: 1 Hr | B103: =SUM(B99:B102) -> 15 | C103: 1 | D103: 0 | E103: 0 | F103: 6 | G103: 0 | H103: 0 | I103: 22 | K103: =SUM(K99:K102) -> 0 | L103: 0 | M103: 0 | N103: 0 | O103: 0 | P103: 0 | Q103: 0 | R103: 0 | T103: =SUM(T99:T102) -> 65 | U103: 18 | V103: 1 | W103: 0 | X103: 0 | Y103: 1 | Z103: 0 | AA103: 85 | AC103: =SUM(AC99:AC102) -> 107
A104: 12:00:00 | B104: 4 | C104: 0 | D104: 0 | E104: 0 | F104: 3 | G104: 0 | H104: 0 | I104: =SUM(B104:H104) -> 7 | K104: 0 | L104: 0 | M104: 0 | N104: 0 | O104: 0 | P104: 0 | Q104: 0 | R104: =SUM(K104:Q104) -> 0 | T104: 21 | U104: 2 | V104: 0 | W104: 0 | X104: 0 | Y104: 0 | Z104: 0 | AA104: =SUM(T104:Z104) -> 23 | AC104: =SUM(I104+R104+AA104) -> 30
A105: 12:15:00 | B105: 1 | C105: 1 | D105: 0 | E105: 0 | F105: 0 | G105: 0 | H105: 0 | I105: 2 | K105: 0 | L105: 0 | M105: 0 | N105: 0 | O105: 0 | P105: 0 | Q105: 0 | R105: 0 | T105: 10 | U105: 3 | V105: 0 | W105: 0 | X105: 0 | Y105: 0 | Z105: 0 | AA105: 13 | AC105: 15
A106: 12:30:00 | B106: 2 | C106: 0 | D106: 0 | E106: 0 | F106: 3 | G106: 0 | H106: 0 | I106: 5 | K106: 0 | L106: 0 | M106: 0 | N106: 0 | O106: 0 | P106: 0 | Q106: 0 | R106: 0 | T106: 16 | U106: 1 | V106: 0 | W106: 0 | X106: 0 | Y106: 0 | Z106: 0 | AA106: 17 | AC106: 22
A107: 12:45:00 | B107: 5 | C107: 0 | D107: 0 | E107: 0 | F107: 3 | G107: 0 | H107: 0 | I107: 8 | K107: 0 | L107: 0 | M107: 0 | N107: 0 | O107: 0 | P107: 0 | Q107: 0 | R107: 0 | T107: 19 | U107: 1 | V107: 0 | W107: 0 | X107: 0 | Y107: 0 | Z107: 0 | AA107: 20 | AC107: 28
A108: 1 Hr | B108: =SUM(B104:B107) -> 12 | C108: 1 | D108: 0 | E108: 0 | F108: 9 | G108: 0 | H108: 0 | I108: 22 | K108: =SUM(K104:K107) -> 0 | L108: 0 | M108: 0 | N108: 0 | O108: 0 | P108: 0 | Q108: 0 | R108: 0 | T108: =SUM(T104:T107) -> 66 | U108: 7 | V108: 0 | W108: 0 | X108: 0 | Y108: 0 | Z108: 0 | AA108: 73 | AC108: =SUM(AC104:AC107) -> 95
A109: 13:00:00 | B109: 3 | C109: 0 | D109: 0 | E109: 0 | F109: 2 | G109: 0 | H109: 0 | I109: =SUM(B109:H109) -> 5 | K109: 0 | L109: 0 | M109: 0 | N109: 0 | O109: 0 | P109: 0 | Q109: 0 | R109: =SUM(K109:Q109) -> 0 | T109: 15 | U109: 2 | V109: 0 | W109: 0 | X109: 0 | Y109: 0 | Z109: 0 | AA109: =SUM(T109:Z109) -> 17 | AC109: =SUM(I109+R109+AA109) -> 22
A110: 13:15:00 | B110: 6 | C110: 0 | D110: 0 | E110: 0 | F110: 1 | G110: 0 | H110: 0 | I110: 7 | K110: 0 | L110: 0 | M110: 0 | N110: 0 | O110: 0 | P110: 0 | Q110: 0 | R110: 0 | T110: 17 | U110: 2 | V110: 2 | W110: 0 | X110: 1 | Y110: 0 | Z110: 0 | AA110: 22 | AC110: 29
A111: 13:30:00 | B111: 4 | C111: 0 | D111: 0 | E111: 0 | F111: 2 | G111: 0 | H111: 0 | I111: 6 | K111: 0 | L111: 0 | M111: 0 | N111: 0 | O111: 0 | P111: 0 | Q111: 0 | R111: 0 | T111: 18 | U111: 5 | V111: 0 | W111: 0 | X111: 0 | Y111: 1 | Z111: 0 | AA111: 24 | AC111: 30
A112: 13:45:00 | B112: 4 | C112: 0 | D112: 0 | E112: 0 | F112: 4 | G112: 0 | H112: 0 | I112: 8 | K112: 0 | L112: 0 | M112: 0 | N112: 0 | O112: 0 | P112: 0 | Q112: 0 | R112: 0 | T112: 16 | U112: 2 | V112: 0 | W112: 0 | X112: 1 | Y112: 0 | Z112: 0 | AA112: 19 | AC112: 27
A113: 1 Hr | B113: =SUM(B109:B112) -> 17 | C113: 0 | D113: 0 | E113: 0 | F113: 9 | G113: 0 | H113: 0 | I113: 26 | K113: =SUM(K109:K112) -> 0 | L113: 0 | M113: 0 | N113: 0 | O113: 0 | P113: 0 | Q113: 0 | R113: 0 | T113: =SUM(T109:T112) -> 66 | U113: 11 | V113: 2 | W113: 0 | X113: 2 | Y113: 1 | Z113: 0 | AA113: 82 | AC113: =SUM(AC109:AC112) -> 108
A114: 14:00:00 | B114: 2 | C114: 1 | D114: 0 | E114: 0 | F114: 0 | G114: 0 | H114: 0 | I114: =SUM(B114:H114) -> 3 | K114: 0 | L114: 0 | M114: 0 | N114: 0 | O114: 0 | P114: 0 | Q114: 0 | R114: =SUM(K114:Q114) -> 0 | T114: 24 | U114: 4 | V114: 0 | W114: 0 | X114: 0 | Y114: 3 | Z114: 0 | AA114: =SUM(T114:Z114) -> 31 | AC114: =SUM(I114+R114+AA114) -> 34
A115: 14:15:00 | B115: 4 | C115: 1 | D115: 0 | E115: 0 | F115: 3 | G115: 0 | H115: 0 | I115: 8 | K115: 0 | L115: 0 | M115: 0 | N115: 0 | O115: 0 | P115: 0 | Q115: 0 | R115: 0 | T115: 23 | U115: 3 | V115: 1 | W115: 0 | X115: 0 | Y115: 2 | Z115: 0 | AA115: 29 | AC115: 37
A116: 14:30:00 | B116: 4 | C116: 1 | D116: 0 | E116: 0 | F116: 4 | G116: 0 | H116: 0 | I116: 9 | K116: 0 | L116: 0 | M116: 0 | N116: 0 | O116: 0 | P116: 0 | Q116: 0 | R116: 0 | T116: 23 | U116: 1 | V116: 0 | W116: 0 | X116: 0 | Y116: 0 | Z116: 0 | AA116: 24 | AC116: 33
A117: 14:45:00 | B117: 1 | C117: 1 | D117: 0 | E117: 0 | F117: 2 | G117: 0 | H117: 0 | I117: 4 | K117: 0 | L117: 0 | M117: 0 | N117: 0 | O117: 0 | P117: 0 | Q117: 0 | R117: 0 | T117: 34 | U117: 2 | V117: 0 | W117: 0 | X117: 0 | Y117: 3 | Z117: 1 | AA117: 40 | AC117: 44
A118: 1 Hr | B118: =SUM(B114:B117) -> 11 | C118: 4 | D118: 0 | E118: 0 | F118: 9 | G118: 0 | H118: 0 | I118: 24 | K118: =SUM(K114:K117) -> 0 | L118: 0 | M118: 0 | N118: 0 | O118: 0 | P118: 0 | Q118: 0 | R118: 0 | T118: =SUM(T114:T117) -> 104 | U118: 10 | V118: 1 | W118: 0 | X118: 0 | Y118: 8 | Z118: 1 | AA118: 124 | AC118: =SUM(AC114:AC117) -> 148
A119: 15:00:00 | B119: 0 | C119: 1 | D119: 0 | E119: 0 | F119: 3 | G119: 0 | H119: 0 | I119: =SUM(B119:H119) -> 4 | K119: 0 | L119: 0 | M119: 0 | N119: 0 | O119: 0 | P119: 0 | Q119: 0 | R119: =SUM(K119:Q119) -> 0 | T119: 30 | U119: 5 | V119: 0 | W119: 1 | X119: 0 | Y119: 0 | Z119: 0 | AA119: =SUM(T119:Z119) -> 36 | AC119: =SUM(I119+R119+AA119) -> 40
A120: 15:15:00 | B120: 3 | C120: 2 | D120: 0 | E120: 0 | F120: 2 | G120: 0 | H120: 0 | I120: 7 | K120: 0 | L120: 0 | M120: 0 | N120: 0 | O120: 0 | P120: 0 | Q120: 0 | R120: 0 | T120: 44 | U120: 2 | V120: 0 | W120: 0 | X120: 0 | Y120: 0 | Z120: 0 | AA120: 46 | AC120: 53
A121: 15:30:00 | B121: 7 | C121: 0 | D121: 0 | E121: 0 | F121: 3 | G121: 0 | H121: 0 | I121: 10 | K121: 0 | L121: 0 | M121: 0 | N121: 0 | O121: 0 | P121: 0 | Q121: 0 | R121: 0 | T121: 44 | U121: 3 | V121: 1 | W121: 0 | X121: 1 | Y121: 0 | Z121: 1 | AA121: 50 | AC121: 60
A122: 15:45:00 | B122: 2 | C122: 0 | D122: 0 | E122: 0 | F122: 2 | G122: 0 | H122: 0 | I122: 4 | K122: 0 | L122: 0 | M122: 0 | N122: 0 | O122: 0 | P122: 0 | Q122: 0 | R122: 0 | T122: 35 | U122: 1 | V122: 0 | W122: 0 | X122: 0 | Y122: 0 | Z122: 0 | AA122: 36 | AC122: 40
A123: 1 Hr | B123: =SUM(B119:B122) -> 12 | C123: 3 | D123: 0 | E123: 0 | F123: 10 | G123: 0 | H123: 0 | I123: 25 | K123: =SUM(K119:K122) -> 0 | L123: 0 | M123: 0 | N123: 0 | O123: 0 | P123: 0 | Q123: 0 | R123: 0 | T123: =SUM(T119:T122) -> 153 | U123: 11 | V123: 1 | W123: 1 | X123: 1 | Y123: 0 | Z123: 1 | AA123: 168 | AC123: =SUM(AC119:AC122) -> 193
A124: 16:00:00 | B124: 6 | C124: 1 | D124: 0 | E124: 0 | F124: 1 | G124: 0 | H124: 0 | I124: =SUM(B124:H124) -> 8 | K124: 0 | L124: 0 | M124: 0 | N124: 0 | O124: 0 | P124: 0 | Q124: 0 | R124: =SUM(K124:Q124) -> 0 | T124: 29 | U124: 3 | V124: 0 | W124: 0 | X124: 0 | Y124: 0 | Z124: 0 | AA124: =SUM(T124:Z124) -> 32 | AC124: =SUM(I124+R124+AA124) -> 40
A125: 16:15:00 | B125: 6 | C125: 1 | D125: 0 | E125: 0 | F125: 4 | G125: 0 | H125: 0 | I125: 11 | K125: 0 | L125: 0 | M125: 0 | N125: 0 | O125: 0 | P125: 0 | Q125: 0 | R125: 0 | T125: 27 | U125: 6 | V125: 0 | W125: 0 | X125: 0 | Y125: 0 | Z125: 0 | AA125: 33 | AC125: 44
A126: 16:30:00 | B126: 4 | C126: 0 | D126: 0 | E126: 0 | F126: 0 | G126: 0 | H126: 0 | I126: 4 | K126: 0 | L126: 0 | M126: 0 | N126: 0 | O126: 0 | P126: 0 | Q126: 0 | R126: 0 | T126: 29 | U126: 7 | V126: 0 | W126: 0 | X126: 0 | Y126: 2 | Z126: 2 | AA126: 40 | AC126: 44
A127: 16:45:00 | B127: 4 | C127: 1 | D127: 0 | E127: 0 | F127: 2 | G127: 0 | H127: 0 | I127: 7 | K127: 0 | L127: 0 | M127: 0 | N127: 0 | O127: 0 | P127: 0 | Q127: 0 | R127: 0 | T127: 32 | U127: 3 | V127: 0 | W127: 1 | X127: 0 | Y127: 0 | Z127: 0 | AA127: 36 | AC127: 43
A128: 1 Hr | B128: =SUM(B124:B127) -> 20 | C128: 3 | D128: 0 | E128: 0 | F128: 7 | G128: 0 | H128: 0 | I128: 30 | K128: =SUM(K124:K127) -> 0 | L128: 0 | M128: 0 | N128: 0 | O128: 0 | P128: 0 | Q128: 0 | R128: 0 | T128: =SUM(T124:T127) -> 117 | U128: 19 | V128: 0 | W128: 1 | X128: 0 | Y128: 2 | Z128: 2 | AA128: 141 | AC128: =SUM(AC124:AC127) -> 171
A129: 17:00:00 | B129: 2 | C129: 1 | D129: 0 | E129: 0 | F129: 2 | G129: 0 | H129: 0 | I129: =SUM(B129:H129) -> 5 | K129: 0 | L129: 0 | M129: 0 | N129: 0 | O129: 0 | P129: 0 | Q129: 0 | R129: =SUM(K129:Q129) -> 0 | T129: 22 | U129: 2 | V129: 0 | W129: 0 | X129: 0 | Y129: 0 | Z129: 0 | AA129: =SUM(T129:Z129) -> 24 | AC129: =SUM(I129+R129+AA129) -> 29
A130: 17:15:00 | B130: 4 | C130: 0 | D130: 0 | E130: 0 | F130: 0 | G130: 0 | H130: 0 | I130: 4 | K130: 0 | L130: 0 | M130: 0 | N130: 0 | O130: 0 | P130: 0 | Q130: 0 | R130: 0 | T130: 19 | U130: 3 | V130: 0 | W130: 0 | X130: 0 | Y130: 0 | Z130: 0 | AA130: 22 | AC130: 26
A131: 17:30:00 | B131: 5 | C131: 0 | D131: 0 | E131: 0 | F131: 4 | G131: 0 | H131: 0 | I131: 9 | K131: 0 | L131: 0 | M131: 0 | N131: 0 | O131: 0 | P131: 0 | Q131: 0 | R131: 0 | T131: 34 | U131: 2 | V131: 0 | W131: 0 | X131: 0 | Y131: 0 | Z131: 0 | AA131: 36 | AC131: 45
A132: 17:45:00 | B132: 5 | C132: 0 | D132: 0 | E132: 0 | F132: 2 | G132: 0 | H132: 0 | I132: 7 | K132: 0 | L132: 0 | M132: 0 | N132: 0 | O132: 0 | P132: 0 | Q132: 0 | R132: 0 | T132: 16 | U132: 2 | V132: 1 | W132: 0 | X132: 0 | Y132: 0 | Z132: 0 | AA132: 19 | AC132: 26
A133: 1 Hr | B133: =SUM(B129:B132) -> 16 | C133: 1 | D133: 0 | E133: 0 | F133: 8 | G133: 0 | H133: 0 | I133: 25 | K133: =SUM(K129:K132) -> 0 | L133: 0 | M133: 0 | N133: 0 | O133: 0 | P133: 0 | Q133: 0 | R133: 0 | T133: =SUM(T129:T132) -> 91 | U133: 9 | V133: 1 | W133: 0 | X133: 0 | Y133: 0 | Z133: 0 | AA133: 101 | AC133: =SUM(AC129:AC132) -> 126
A134: 18:00:00 | B134: 4 | C134: 0 | D134: 0 | E134: 0 | F134: 4 | G134: 0 | H134: 0 | I134: =SUM(B134:H134) -> 8 | K134: 0 | L134: 0 | M134: 0 | N134: 0 | O134: 0 | P134: 0 | Q134: 0 | R134: =SUM(K134:Q134) -> 0 | T134: 22 | U134: 1 | V134: 0 | W134: 0 | X134: 0 | Y134: 0 | Z134: 0 | AA134: =SUM(T134:Z134) -> 23 | AC134: =SUM(I134+R134+AA134) -> 31
A135: 18:15:00 | B135: 6 | C135: 0 | D135: 0 | E135: 0 | F135: 1 | G135: 0 | H135: 0 | I135: 7 | K135: 0 | L135: 0 | M135: 0 | N135: 0 | O135: 0 | P135: 0 | Q135: 0 | R135: 0 | T135: 20 | U135: 2 | V135: 0 | W135: 0 | X135: 0 | Y135: 0 | Z135: 0 | AA135: 22 | AC135: 29
A136: 18:30:00 | B136: 6 | C136: 1 | D136: 0 | E136: 0 | F136: 1 | G136: 0 | H136: 0 | I136: 8 | K136: 0 | L136: 0 | M136: 0 | N136: 0 | O136: 0 | P136: 0 | Q136: 0 | R136: 0 | T136: 16 | U136: 2 | V136: 0 | W136: 0 | X136: 0 | Y136: 0 | Z136: 0 | AA136: 18 | AC136: 26
A137: 18:45:00 | B137: 8 | C137: 0 | D137: 0 | E137: 0 | F137: 2 | G137: 0 | H137: 0 | I137: 10 | K137: 0 | L137: 0 | M137: 0 | N137: 0 | O137: 0 | P137: 0 | Q137: 0 | R137: 0 | T137: 16 | U137: 2 | V137: 0 | W137: 0 | X137: 0 | Y137: 0 | Z137: 0 | AA137: 18 | AC137: 28
A138: 1 Hr | B138: =SUM(B134:B137) -> 24 | C138: 1 | D138: 0 | E138: 0 | F138: 8 | G138: 0 | H138: 0 | I138: 33 | K138: =SUM(K134:K137) -> 0 | L138: 0 | M138: 0 | N138: 0 | O138: 0 | P138: 0 | Q138: 0 | R138: 0 | T138: =SUM(T134:T137) -> 74 | U138: 7 | V138: 0 | W138: 0 | X138: 0 | Y138: 0 | Z138: 0 | AA138: 81 | AC138: =SUM(AC134:AC137) -> 114
A140: Total | B140: =SUM(B138+B133+B128+B123+B118+B113+B108+B103+B98+B93+B88+B83) -> 185 | C140: 24 | D140: 0 | E140: 0 | F140: 106 | G140: 0 | H140: 0 | I140: 315 | K140: =SUM(K138+K133+K128+K123+K118+K113+K108+K103+K98+K93+K88+K83) -> 0 | L140: 0 | M140: 0 | N140: 0 | O140: 0 | P140: 0 | Q140: 0 | R140: 0 | T140: =SUM(T138+T133+T128+T123+T118+T113+T108+T103+T98+T93+T88+T83) -> 1039 | U140: 124 | V140: 8 | W140: 3 | X140: 6 | Y140: 12 | Z140: 5 | AA140: 1197 | AC140: =SUM(AC138+AC133+AC128+AC123+AC118+AC113+AC108+AC103+AC98+AC93+AC88+AC83) -> 1512
A142: Origin : | B142: Arm C | C142: A435 Alcester Road South(S)
B143: Destination : | D143: Arm A | E143: A435 Alcester Road South(N) | I143: Total | K143: Destination : | M143: Arm B | N143: B4146 Addison Road | R143: Total | T143: Destination : | V143: Arm C | W143: A435 Alcester Road South(S) | AA143: Total | AC143: Arm
B144: =$B$10 -> Car | C144: =$C$10 -> LGV | D144: =$D$10 -> OGV1 | E144: =$E$10 -> OGV2 | F144: =$F$10 -> Bus/Coach | G144: =$G$10 -> MC | H144: =$H$10 -> PC | K144: =$B$10 -> Car | L144: =$C$10 -> LGV | M144: =$D$10 -> OGV1 | N144: =$E$10 -> OGV2 | O144: =$F$10 -> Bus/Coach | P144: =$G$10 -> MC | Q144: =$H$10 -> PC | T144: =$B$10 -> Car | U144: =$C$10 -> LGV | V144: =$D$10 -> OGV1 | W144: =$E$10 -> OGV2 | X144: =$F$10 -> Bus/Coach | Y144: =$G$10 -> MC | Z144: =$H$10 -> PC | AC144: Totals
A146: 07:00:00 | B146: 106 | C146: 24 | D146: 4 | E146: 0 | F146: 8 | G146: 0 | H146: 1 | I146: =SUM(B146:H146) -> 143 | K146: 5 | L146: 0 | M146: 0 | N146: 0 | O146: 1 | P146: 0 | Q146: 0 | R146: =SUM(K146:Q146) -> 6 | T146: 0 | U146: 0 | V146: 0 | W146: 0 | X146: 0 | Y146: 0 | Z146: 0 | AA146: =SUM(T146:Z146) -> 0 | AC146: =SUM(I146+R146+AA146) -> 149
A147: 07:15:00 | B147: 122 | C147: 9 | D147: 1 | E147: 3 | F147: 4 | G147: 1 | H147: 1 | I147: 141 | K147: 6 | L147: 1 | M147: 0 | N147: 0 | O147: 0 | P147: 0 | Q147: 0 | R147: 7 | T147: 0 | U147: 0 | V147: 0 | W147: 0 | X147: 0 | Y147: 0 | Z147: 0 | AA147: 0 | AC147: 148
A148: 07:30:00 | B148: 133 | C148: 8 | D148: 1 | E148: 1 | F148: 8 | G148: 1 | H148: 0 | I148: 152 | K148: 4 | L148: 1 | M148: 0 | N148: 0 | O148: 0 | P148: 0 | Q148: 1 | R148: 6 | T148: 0 | U148: 0 | V148: 0 | W148: 0 | X148: 0 | Y148: 0 | Z148: 0 | AA148: 0 | AC148: 158
A149: 07:45:00 | B149: 106 | C149: 14 | D149: 2 | E149: 3 | F149: 10 | G149: 1 | H149: 0 | I149: 136 | K149: 8 | L149: 1 | M149: 0 | N149: 0 | O149: 0 | P149: 0 | Q149: 0 | R149: 9 | T149: 0 | U149: 0 | V149: 0 | W149: 0 | X149: 0 | Y149: 0 | Z149: 0 | AA149: 0 | AC149: 145
A150: 1 Hr | B150: =SUM(B146:B149) -> 467 | C150: 55 | D150: 8 | E150: 7 | F150: 30 | G150: 3 | H150: 2 | I150: 572 | K150: =SUM(K146:K149) -> 23 | L150: 3 | M150: 0 | N150: 0 | O150: 1 | P150: 0 | Q150: 1 | R150: 28 | T150: =SUM(T146:T149) -> 0 | U150: 0 | V150: 0 | W150: 0 | X150: 0 | Y150: 0 | Z150: 0 | AA150: 0 | AC150: =SUM(AC146:AC149) -> 600
A151: 08:00:00 | B151: 97 | C151: 9 | D151: 0 | E151: 1 | F151: 8 | G151: 0 | H151: 0 | I151: =SUM(B151:H151) -> 115 | K151: 9 | L151: 0 | M151: 0 | N151: 0 | O151: 1 | P151: 0 | Q151: 1 | R151: =SUM(K151:Q151) -> 11 | T151: 0 | U151: 0 | V151: 0 | W151: 0 | X151: 0 | Y151: 0 | Z151: 0 | AA151: =SUM(T151:Z151) -> 0 | AC151: =SUM(I151+R151+AA151) -> 126
A152: 08:15:00 | B152: 114 | C152: 6 | D152: 1 | E152: 0 | F152: 5 | G152: 1 | H152: 2 | I152: 129 | K152: 13 | L152: 1 | M152: 0 | N152: 0 | O152: 1 | P152: 1 | Q152: 0 | R152: 16 | T152: 0 | U152: 0 | V152: 0 | W152: 0 | X152: 0 | Y152: 0 | Z152: 0 | AA152: 0 | AC152: 145
A153: 08:30:00 | B153: 102 | C153: 4 | D153: 1 | E153: 1 | F153: 10 | G153: 0 | H153: 2 | I153: 120 | K153: 13 | L153: 2 | M153: 0 | N153: 0 | O153: 0 | P153: 0 | Q153: 0 | R153: 15 | T153: 0 | U153: 0 | V153: 0 | W153: 0 | X153: 0 | Y153: 0 | Z153: 0 | AA153: 0 | AC153: 135
A154: 08:45:00 | B154: 92 | C154: 5 | D154: 1 | E154: 2 | F154: 14 | G154: 0 | H154: 4 | I154: 118 | K154: 23 | L154: 1 | M154: 1 | N154: 0 | O154: 0 | P154: 0 | Q154: 0 | R154: 25 | T154: 0 | U154: 0 | V154: 0 | W154: 0 | X154: 0 | Y154: 0 | Z154: 0 | AA154: 0 | AC154: 143
A155: 1 Hr | B155: =SUM(B151:B154) -> 405 | C155: 24 | D155: 3 | E155: 4 | F155: 37 | G155: 1 | H155: 8 | I155: 482 | K155: =SUM(K151:K154) -> 58 | L155: 4 | M155: 1 | N155: 0 | O155: 2 | P155: 1 | Q155: 1 | R155: 67 | T155: =SUM(T151:T154) -> 0 | U155: 0 | V155: 0 | W155: 0 | X155: 0 | Y155: 0 | Z155: 0 | AA155: 0 | AC155: =SUM(AC151:AC154) -> 549
A156: 09:00:00 | B156: 95 | C156: 8 | D156: 4 | E156: 0 | F156: 12 | G156: 1 | H156: 1 | I156: =SUM(B156:H156) -> 121 | K156: 10 | L156: 2 | M156: 0 | N156: 0 | O156: 0 | P156: 0 | Q156: 0 | R156: =SUM(K156:Q156) -> 12 | T156: 0 | U156: 0 | V156: 0 | W156: 0 | X156: 0 | Y156: 0 | Z156: 0 | AA156: =SUM(T156:Z156) -> 0 | AC156: =SUM(I156+R156+AA156) -> 133
A157: 09:15:00 | B157: 97 | C157: 13 | D157: 2 | E157: 1 | F157: 7 | G157: 0 | H157: 2 | I157: 122 | K157: 9 | L157: 4 | M157: 0 | N157: 0 | O157: 0 | P157: 0 | Q157: 0 | R157: 13 | T157: 0 | U157: 0 | V157: 0 | W157: 0 | X157: 0 | Y157: 0 | Z157: 0 | AA157: 0 | AC157: 135
A158: 09:30:00 | B158: 97 | C158: 7 | D158: 1 | E158: 1 | F158: 7 | G158: 0 | H158: 0 | I158: 113 | K158: 7 | L158: 2 | M158: 0 | N158: 0 | O158: 0 | P158: 0 | Q158: 0 | R158: 9 | T158: 0 | U158: 0 | V158: 0 | W158: 0 | X158: 0 | Y158: 0 | Z158: 0 | AA158: 0 | AC158: 122
A159: 09:45:00 | B159: 103 | C159: 16 | D159: 5 | E159: 2 | F159: 6 | G159: 0 | H159: 0 | I159: 132 | K159: 7 | L159: 0 | M159: 0 | N159: 0 | O159: 0 | P159: 0 | Q159: 0 | R159: 7 | T159: 0 | U159: 0 | V159: 0 | W159: 0 | X159: 0 | Y159: 0 | Z159: 0 | AA159: 0 | AC159: 139
A160: 1 Hr | B160: =SUM(B156:B159) -> 392 | C160: 44 | D160: 12 | E160: 4 | F160: 32 | G160: 1 | H160: 3 | I160: 488 | K160: =SUM(K156:K159) -> 33 | L160: 8 | M160: 0 | N160: 0 | O160: 0 | P160: 0 | Q160: 0 | R160: 41 | T160: =SUM(T156:T159) -> 0 | U160: 0 | V160: 0 | W160: 0 | X160: 0 | Y160: 0 | Z160: 0 | AA160: 0 | AC160: =SUM(AC156:AC159) -> 529
A161: 10:00:00 | B161: 90 | C161: 8 | D161: 0 | E161: 0 | F161: 7 | G161: 0 | H161: 0 | I161: =SUM(B161:H161) -> 105 | K161: 4 | L161: 1 | M161: 0 | N161: 0 | O161: 0 | P161: 0 | Q161: 0 | R161: =SUM(K161:Q161) -> 5 | T161: 0 | U161: 0 | V161: 0 | W161: 0 | X161: 0 | Y161: 0 | Z161: 0 | AA161: =SUM(T161:Z161) -> 0 | AC161: =SUM(I161+R161+AA161) -> 110
A162: 10:15:00 | B162: 77 | C162: 14 | D162: 1 | E162: 1 | F162: 5 | G162: 0 | H162: 0 | I162: 98 | K162: 5 | L162: 0 | M162: 0 | N162: 0 | O162: 0 | P162: 0 | Q162: 0 | R162: 5 | T162: 0 | U162: 0 | V162: 0 | W162: 0 | X162: 0 | Y162: 0 | Z162: 0 | AA162: 0 | AC162: 103
A163: 10:30:00 | B163: 90 | C163: 10 | D163: 2 | E163: 2 | F163: 7 | G163: 0 | H163: 0 | I163: 111 | K163: 9 | L163: 0 | M163: 0 | N163: 0 | O163: 0 | P163: 0 | Q163: 0 | R163: 9 | T163: 0 | U163: 0 | V163: 0 | W163: 0 | X163: 0 | Y163: 0 | Z163: 0 | AA163: 0 | AC163: 120
A164: 10:45:00 | B164: 71 | C164: 15 | D164: 2 | E164: 2 | F164: 7 | G164: 1 | H164: 1 | I164: 99 | K164: 6 | L164: 2 | M164: 1 | N164: 0 | O164: 0 | P164: 0 | Q164: 0 | R164: 9 | T164: 0 | U164: 0 | V164: 0 | W164: 0 | X164: 0 | Y164: 0 | Z164: 0 | AA164: 0 | AC164: 108
A165: 1 Hr | B165: =SUM(B161:B164) -> 328 | C165: 47 | D165: 5 | E165: 5 | F165: 26 | G165: 1 | H165: 1 | I165: 413 | K165: =SUM(K161:K164) -> 24 | L165: 3 | M165: 1 | N165: 0 | O165: 0 | P165: 0 | Q165: 0 | R165: 28 | T165: =SUM(T161:T164) -> 0 | U165: 0 | V165: 0 | W165: 0 | X165: 0 | Y165: 0 | Z165: 0 | AA165: 0 | AC165: =SUM(AC161:AC164) -> 441
A166: 11:00:00 | B166: 75 | C166: 15 | D166: 4 | E166: 0 | F166: 7 | G166: 1 | H166: 0 | I166: =SUM(B166:H166) -> 102 | K166: 5 | L166: 0 | M166: 0 | N166: 0 | O166: 0 | P166: 0 | Q166: 0 | R166: =SUM(K166:Q166) -> 5 | T166: 0 | U166: 0 | V166: 0 | W166: 0 | X166: 0 | Y166: 0 | Z166: 0 | AA166: =SUM(T166:Z166) -> 0 | AC166: =SUM(I166+R166+AA166) -> 107
A167: 11:15:00 | B167: 81 | C167: 14 | D167: 1 | E167: 1 | F167: 5 | G167: 0 | H167: 1 | I167: 103 | K167: 13 | L167: 0 | M167: 0 | N167: 0 | O167: 0 | P167: 0 | Q167: 0 | R167: 13 | T167: 0 | U167: 0 | V167: 0 | W167: 0 | X167: 0 | Y167: 0 | Z167: 0 | AA167: 0 | AC167: 116
A168: 11:30:00 | B168: 84 | C168: 12 | D168: 1 | E168: 1 | F168: 5 | G168: 0 | H168: 1 | I168: 104 | K168: 8 | L168: 2 | M168: 0 | N168: 0 | O168: 0 | P168: 0 | Q168: 0 | R168: 10 | T168: 0 | U168: 0 | V168: 0 | W168: 0 | X168: 0 | Y168: 0 | Z168: 0 | AA168: 0 | AC168: 114
A169: 11:45:00 | B169: 82 | C169: 8 | D169: 1 | E169: 1 | F169: 9 | G169: 0 | H169: 1 | I169: 102 | K169: 12 | L169: 2 | M169: 0 | N169: 0 | O169: 0 | P169: 0 | Q169: 0 | R169: 14 | T169: 0 | U169: 0 | V169: 0 | W169: 0 | X169: 0 | Y169: 0 | Z169: 0 | AA169: 0 | AC169: 116
A170: 1 Hr | B170: =SUM(B166:B169) -> 322 | C170: 49 | D170: 7 | E170: 3 | F170: 26 | G170: 1 | H170: 3 | I170: 411 | K170: =SUM(K166:K169) -> 38 | L170: 4 | M170: 0 | N170: 0 | O170: 0 | P170: 0 | Q170: 0 | R170: 42 | T170: =SUM(T166:T169) -> 0 | U170: 0 | V170: 0 | W170: 0 | X170: 0 | Y170: 0 | Z170: 0 | AA170: 0 | AC170: =SUM(AC166:AC169) -> 453
A171: 12:00:00 | B171: 83 | C171: 9 | D171: 4 | E171: 0 | F171: 6 | G171: 0 | H171: 1 | I171: =SUM(B171:H171) -> 103 | K171: 8 | L171: 1 | M171: 1 | N171: 0 | O171: 0 | P171: 0 | Q171: 0 | R171: =SUM(K171:Q171) -> 10 | T171: 0 | U171: 0 | V171: 0 | W171: 0 | X171: 0 | Y171: 0 | Z171: 0 | AA171: =SUM(T171:Z171) -> 0 | AC171: =SUM(I171+R171+AA171) -> 113
A172: 12:15:00 | B172: 83 | C172: 4 | D172: 3 | E172: 1 | F172: 6 | G172: 0 | H172: 1 | I172: 98 | K172: 5 | L172: 1 | M172: 0 | N172: 0 | O172: 0 | P172: 0 | Q172: 0 | R172: 6 | T172: 0 | U172: 0 | V172: 0 | W172: 0 | X172: 0 | Y172: 0 | Z172: 0 | AA172: 0 | AC172: 104
A173: 12:30:00 | B173: 77 | C173: 5 | D173: 4 | E173: 0 | F173: 6 | G173: 1 | H173: 0 | I173: 93 | K173: 5 | L173: 1 | M173: 0 | N173: 0 | O173: 0 | P173: 0 | Q173: 1 | R173: 7 | T173: 0 | U173: 0 | V173: 0 | W173: 0 | X173: 0 | Y173: 0 | Z173: 0 | AA173: 0 | AC173: 100
A174: 12:45:00 | B174: 75 | C174: 6 | D174: 0 | E174: 2 | F174: 7 | G174: 1 | H174: 1 | I174: 92 | K174: 6 | L174: 2 | M174: 0 | N174: 0 | O174: 0 | P174: 0 | Q174: 0 | R174: 8 | T174: 0 | U174: 0 | V174: 0 | W174: 0 | X174: 0 | Y174: 0 | Z174: 0 | AA174: 0 | AC174: 100
A175: 1 Hr | B175: =SUM(B171:B174) -> 318 | C175: 24 | D175: 11 | E175: 3 | F175: 25 | G175: 2 | H175: 3 | I175: 386 | K175: =SUM(K171:K174) -> 24 | L175: 5 | M175: 1 | N175: 0 | O175: 0 | P175: 0 | Q175: 1 | R175: 31 | T175: =SUM(T171:T174) -> 0 | U175: 0 | V175: 0 | W175: 0 | X175: 0 | Y175: 0 | Z175: 0 | AA175: 0 | AC175: =SUM(AC171:AC174) -> 417
A176: 13:00:00 | B176: 85 | C176: 15 | D176: 1 | E176: 2 | F176: 8 | G176: 1 | H176: 1 | I176: =SUM(B176:H176) -> 113 | K176: 9 | L176: 0 | M176: 0 | N176: 0 | O176: 0 | P176: 0 | Q176: 0 | R176: =SUM(K176:Q176) -> 9 | T176: 0 | U176: 0 | V176: 0 | W176: 0 | X176: 0 | Y176: 0 | Z176: 0 | AA176: =SUM(T176:Z176) -> 0 | AC176: =SUM(I176+R176+AA176) -> 122
A177: 13:15:00 | B177: 59 | C177: 16 | D177: 4 | E177: 1 | F177: 7 | G177: 2 | H177: 1 | I177: 90 | K177: 15 | L177: 0 | M177: 0 | N177: 0 | O177: 0 | P177: 0 | Q177: 0 | R177: 15 | T177: 0 | U177: 0 | V177: 0 | W177: 0 | X177: 0 | Y177: 0 | Z177: 0 | AA177: 0 | AC177: 105
A178: 13:30:00 | B178: 91 | C178: 8 | D178: 1 | E178: 2 | F178: 5 | G178: 1 | H178: 1 | I178: 109 | K178: 11 | L178: 3 | M178: 0 | N178: 0 | O178: 0 | P178: 0 | Q178: 0 | R178: 14 | T178: 0 | U178: 0 | V178: 0 | W178: 0 | X178: 0 | Y178: 0 | Z178: 0 | AA178: 0 | AC178: 123
A179: 13:45:00 | B179: 64 | C179: 6 | D179: 1 | E179: 1 | F179: 6 | G179: 0 | H179: 0 | I179: 78 | K179: 8 | L179: 0 | M179: 0 | N179: 0 | O179: 0 | P179: 0 | Q179: 0 | R179: 8 | T179: 0 | U179: 0 | V179: 0 | W179: 0 | X179: 0 | Y179: 0 | Z179: 0 | AA179: 0 | AC179: 86
A180: 1 Hr | B180: =SUM(B176:B179) -> 299 | C180: 45 | D180: 7 | E180: 6 | F180: 26 | G180: 4 | H180: 3 | I180: 390 | K180: =SUM(K176:K179) -> 43 | L180: 3 | M180: 0 | N180: 0 | O180: 0 | P180: 0 | Q180: 0 | R180: 46 | T180: =SUM(T176:T179) -> 0 | U180: 0 | V180: 0 | W180: 0 | X180: 0 | Y180: 0 | Z180: 0 | AA180: 0 | AC180: =SUM(AC176:AC179) -> 436
A181: 14:00:00 | B181: 81 | C181: 11 | D181: 5 | E181: 1 | F181: 9 | G181: 0 | H181: 0 | I181: =SUM(B181:H181) -> 107 | K181: 12 | L181: 3 | M181: 0 | N181: 0 | O181: 0 | P181: 0 | Q181: 0 | R181: =SUM(K181:Q181) -> 15 | T181: 0 | U181: 0 | V181: 0 | W181: 0 | X181: 0 | Y181: 0 | Z181: 0 | AA181: =SUM(T181:Z181) -> 0 | AC181: =SUM(I181+R181+AA181) -> 122
A182: 14:15:00 | B182: 106 | C182: 12 | D182: 0 | E182: 1 | F182: 5 | G182: 0 | H182: 0 | I182: 124 | K182: 4 | L182: 0 | M182: 0 | N182: 0 | O182: 0 | P182: 0 | Q182: 0 | R182: 4 | T182: 0 | U182: 0 | V182: 0 | W182: 0 | X182: 0 | Y182: 0 | Z182: 0 | AA182: 0 | AC182: 128
A183: 14:30:00 | B183: 85 | C183: 11 | D183: 1 | E183: 0 | F183: 8 | G183: 1 | H183: 0 | I183: 106 | K183: 15 | L183: 2 | M183: 0 | N183: 0 | O183: 0 | P183: 0 | Q183: 0 | R183: 17 | T183: 0 | U183: 0 | V183: 0 | W183: 0 | X183: 0 | Y183: 0 | Z183: 0 | AA183: 0 | AC183: 123
A184: 14:45:00 | B184: 102 | C184: 6 | D184: 1 | E184: 0 | F184: 7 | G184: 0 | H184: 1 | I184: 117 | K184: 12 | L184: 0 | M184: 0 | N184: 0 | O184: 0 | P184: 0 | Q184: 0 | R184: 12 | T184: 0 | U184: 0 | V184: 0 | W184: 0 | X184: 0 | Y184: 0 | Z184: 0 | AA184: 0 | AC184: 129
A185: 1 Hr | B185: =SUM(B181:B184) -> 374 | C185: 40 | D185: 7 | E185: 2 | F185: 29 | G185: 1 | H185: 1 | I185: 454 | K185: =SUM(K181:K184) -> 43 | L185: 5 | M185: 0 | N185: 0 | O185: 0 | P185: 0 | Q185: 0 | R185: 48 | T185: =SUM(T181:T184) -> 0 | U185: 0 | V185: 0 | W185: 0 | X185: 0 | Y185: 0 | Z185: 0 | AA185: 0 | AC185: =SUM(AC181:AC184) -> 502
A186: 15:00:00 | B186: 97 | C186: 9 | D186: 1 | E186: 1 | F186: 8 | G186: 0 | H186: 0 | I186: =SUM(B186:H186) -> 116 | K186: 21 | L186: 0 | M186: 1 | N186: 0 | O186: 0 | P186: 0 | Q186: 0 | R186: =SUM(K186:Q186) -> 22 | T186: 0 | U186: 0 | V186: 0 | W186: 0 | X186: 0 | Y186: 0 | Z186: 0 | AA186: =SUM(T186:Z186) -> 0 | AC186: =SUM(I186+R186+AA186) -> 138
A187: 15:15:00 | B187: 97 | C187: 8 | D187: 0 | E187: 0 | F187: 7 | G187: 1 | H187: 1 | I187: 114 | K187: 12 | L187: 0 | M187: 0 | N187: 0 | O187: 0 | P187: 0 | Q187: 0 | R187: 12 | T187: 0 | U187: 0 | V187: 0 | W187: 0 | X187: 0 | Y187: 0 | Z187: 0 | AA187: 0 | AC187: 126
A188: 15:30:00 | B188: 92 | C188: 8 | D188: 1 | E188: 1 | F188: 8 | G188: 0 | H188: 3 | I188: 113 | K188: 11 | L188: 1 | M188: 0 | N188: 0 | O188: 0 | P188: 0 | Q188: 0 | R188: 12 | T188: 0 | U188: 0 | V188: 0 | W188: 0 | X188: 0 | Y188: 0 | Z188: 0 | AA188: 0 | AC188: 125
A189: 15:45:00 | B189: 83 | C189: 8 | D189: 3 | E189: 2 | F189: 9 | G189: 0 | H189: 0 | I189: 105 | K189: 10 | L189: 0 | M189: 0 | N189: 0 | O189: 0 | P189: 0 | Q189: 0 | R189: 10 | T189: 0 | U189: 0 | V189: 0 | W189: 0 | X189: 0 | Y189: 0 | Z189: 0 | AA189: 0 | AC189: 115
A190: 1 Hr | B190: =SUM(B186:B189) -> 369 | C190: 33 | D190: 5 | E190: 4 | F190: 32 | G190: 1 | H190: 4 | I190: 448 | K190: =SUM(K186:K189) -> 54 | L190: 1 | M190: 1 | N190: 0 | O190: 0 | P190: 0 | Q190: 0 | R190: 56 | T190: =SUM(T186:T189) -> 0 | U190: 0 | V190: 0 | W190: 0 | X190: 0 | Y190: 0 | Z190: 0 | AA190: 0 | AC190: =SUM(AC186:AC189) -> 504
A191: 16:00:00 | B191: 90 | C191: 13 | D191: 1 | E191: 1 | F191: 4 | G191: 0 | H191: 0 | I191: =SUM(B191:H191) -> 109 | K191: 12 | L191: 3 | M191: 0 | N191: 0 | O191: 0 | P191: 0 | Q191: 0 | R191: =SUM(K191:Q191) -> 15 | T191: 0 | U191: 0 | V191: 0 | W191: 0 | X191: 0 | Y191: 0 | Z191: 0 | AA191: =SUM(T191:Z191) -> 0 | AC191: =SUM(I191+R191+AA191) -> 124
A192: 16:15:00 | B192: 86 | C192: 13 | D192: 2 | E192: 0 | F192: 5 | G192: 1 | H192: 0 | I192: 107 | K192: 9 | L192: 1 | M192: 0 | N192: 0 | O192: 1 | P192: 0 | Q192: 0 | R192: 11 | T192: 0 | U192: 0 | V192: 0 | W192: 0 | X192: 0 | Y192: 0 | Z192: 0 | AA192: 0 | AC192: 118
A193: 16:30:00 | B193: 97 | C193: 6 | D193: 4 | E193: 1 | F193: 11 | G193: 0 | H193: 1 | I193: 120 | K193: 12 | L193: 2 | M193: 0 | N193: 1 | O193: 0 | P193: 0 | Q193: 0 | R193: 15 | T193: 0 | U193: 0 | V193: 0 | W193: 0 | X193: 0 | Y193: 0 | Z193: 0 | AA193: 0 | AC193: 135
A194: 16:45:00 | B194: 100 | C194: 9 | D194: 0 | E194: 1 | F194: 10 | G194: 0 | H194: 0 | I194: 120 | K194: 13 | L194: 2 | M194: 0 | N194: 0 | O194: 0 | P194: 0 | Q194: 0 | R194: 15 | T194: 0 | U194: 0 | V194: 0 | W194: 0 | X194: 0 | Y194: 0 | Z194: 0 | AA194: 0 | AC194: 135
A195: 1 Hr | B195: =SUM(B191:B194) -> 373 | C195: 41 | D195: 7 | E195: 3 | F195: 30 | G195: 1 | H195: 1 | I195: 456 | K195: =SUM(K191:K194) -> 46 | L195: 8 | M195: 0 | N195: 1 | O195: 1 | P195: 0 | Q195: 0 | R195: 56 | T195: =SUM(T191:T194) -> 0 | U195: 0 | V195: 0 | W195: 0 | X195: 0 | Y195: 0 | Z195: 0 | AA195: 0 | AC195: =SUM(AC191:AC194) -> 512
A196: 17:00:00 | B196: 105 | C196: 7 | D196: 2 | E196: 1 | F196: 8 | G196: 0 | H196: 0 | I196: =SUM(B196:H196) -> 123 | K196: 9 | L196: 2 | M196: 0 | N196: 0 | O196: 0 | P196: 0 | Q196: 0 | R196: =SUM(K196:Q196) -> 11 | T196: 0 | U196: 0 | V196: 0 | W196: 0 | X196: 0 | Y196: 0 | Z196: 0 | AA196: =SUM(T196:Z196) -> 0 | AC196: =SUM(I196+R196+AA196) -> 134
A197: 17:15:00 | B197: 102 | C197: 9 | D197: 0 | E197: 0 | F197: 3 | G197: 1 | H197: 1 | I197: 116 | K197: 13 | L197: 0 | M197: 0 | N197: 0 | O197: 0 | P197: 0 | Q197: 0 | R197: 13 | T197: 0 | U197: 0 | V197: 0 | W197: 0 | X197: 0 | Y197: 0 | Z197: 0 | AA197: 0 | AC197: 129
A198: 17:30:00 | B198: 107 | C198: 8 | D198: 0 | E198: 0 | F198: 7 | G198: 0 | H198: 1 | I198: 123 | K198: 8 | L198: 2 | M198: 0 | N198: 0 | O198: 0 | P198: 0 | Q198: 0 | R198: 10 | T198: 0 | U198: 0 | V198: 0 | W198: 0 | X198: 0 | Y198: 0 | Z198: 0 | AA198: 0 | AC198: 133
A199: 17:45:00 | B199: 104 | C199: 8 | D199: 0 | E199: 0 | F199: 6 | G199: 0 | H199: 6 | I199: 124 | K199: 9 | L199: 1 | M199: 0 | N199: 0 | O199: 0 | P199: 0 | Q199: 0 | R199: 10 | T199: 0 | U199: 0 | V199: 0 | W199: 0 | X199: 0 | Y199: 0 | Z199: 0 | AA199: 0 | AC199: 134
A200: 1 Hr | B200: =SUM(B196:B199) -> 418 | C200: 32 | D200: 2 | E200: 1 | F200: 24 | G200: 1 | H200: 8 | I200: 486 | K200: =SUM(K196:K199) -> 39 | L200: 5 | M200: 0 | N200: 0 | O200: 0 | P200: 0 | Q200: 0 | R200: 44 | T200: =SUM(T196:T199) -> 0 | U200: 0 | V200: 0 | W200: 0 | X200: 0 | Y200: 0 | Z200: 0 | AA200: 0 | AC200: =SUM(AC196:AC199) -> 530
A201: 18:00:00 | B201: 112 | C201: 9 | D201: 0 | E201: 0 | F201: 6 | G201: 0 | H201: 1 | I201: =SUM(B201:H201) -> 128 | K201: 12 | L201: 0 | M201: 0 | N201: 0 | O201: 0 | P201: 0 | Q201: 0 | R201: =SUM(K201:Q201) -> 12 | T201: 0 | U201: 0 | V201: 0 | W201: 0 | X201: 0 | Y201: 0 | Z201: 0 | AA201: =SUM(T201:Z201) -> 0 | AC201: =SUM(I201+R201+AA201) -> 140
A202: 18:15:00 | B202: 103 | C202: 2 | D202: 0 | E202: 1 | F202: 7 | G202: 0 | H202: 0 | I202: 113 | K202: 13 | L202: 1 | M202: 0 | N202: 0 | O202: 0 | P202: 0 | Q202: 1 | R202: 15 | T202: 0 | U202: 0 | V202: 0 | W202: 0 | X202: 0 | Y202: 0 | Z202: 0 | AA202: 0 | AC202: 128
A203: 18:30:00 | B203: 112 | C203: 6 | D203: 1 | E203: 1 | F203: 6 | G203: 0 | H203: 1 | I203: 127 | K203: 4 | L203: 0 | M203: 0 | N203: 0 | O203: 0 | P203: 0 | Q203: 0 | R203: 4 | T203: 0 | U203: 0 | V203: 0 | W203: 0 | X203: 0 | Y203: 0 | Z203: 0 | AA203: 0 | AC203: 131
A204: 18:45:00 | B204: 100 | C204: 5 | D204: 0 | E204: 0 | F204: 5 | G204: 1 | H204: 1 | I204: 112 | K204: 7 | L204: 1 | M204: 0 | N204: 0 | O204: 0 | P204: 0 | Q204: 0 | R204: 8 | T204: 0 | U204: 0 | V204: 0 | W204: 0 | X204: 0 | Y204: 0 | Z204: 0 | AA204: 0 | AC204: 120
